Workbook

Sheet LDC Info
Z3: 1 | AA3: Alectra Utilities Corporation
Z4: 2 | AA4: Alectra Utilities Corporation - Brampton service territory
Z5: 3 | AA5: Alectra Utilities Corporation - Horizon Utilities service territory
Z6: 4 | AA6: Alectra Utilities Corporation - Mississauga service territory
Z7: 5 | AA7: Alectra Utilities Corporation - PowerStream service territory
Z8: 6 | AA8: Algoma Power Inc.
Z9: 7 | AA9: Atikokan Hydro Inc.
Z10: 8 | AA10: Attawapiskat Power Corporation
Z11: 9 | AA11: Bluewater Power Distribution Corporation
Z12: 10 | AA12: Brantford Power Inc.
Z13: 11 | AA13: Burlington Hydro Inc.
D14: Utility Name | E14: Westario Power Inc. | Z14: 12 | AA14: Canadian Niagara Power Inc. (Eastern Ontario Power/Fort Erie/Port Colborne)
Z15: 13 | AA15: Centre Wellington Hydro Ltd.
D16: Assigned EB Number | E16: EB-2017-0084 | Z16: 14 | AA16: Chapleau Public Utilities Corporation
Z17: 15 | AA17: COLLUS PowerStream Corp.
D18: Name of Contact and Title | E18: Malcolm McCallum,Vice President Finance/CFO | Z18: 16 | AA18: Cooperative Hydro Embrun Inc.
Z19: 17 | AA19: E.L.K. Energy Inc.
D20: Phone Number | E20: 519-507-6666 | Z20: 18 | AA20: Energy + Inc.
Z21: 19 | AA21: Enersource Hydro Mississauga Inc.
D22: Email Address | E22: Malcolm.McCallum@westario.com | Z22: 20 | AA22: Entegrus Powerlines Inc.
Z23: 21 | AA23: ENWIN Utilities Ltd.
D24: Test Year | E24: 2018 | Z24: 22 | AA24: Erie Thames Powerlines Corporation
Z25: 23 | AA25: Espanola Regional Hydro Distribution Corporation
D26: Bridge Year | E26: =IF(ISBLANK(E24), "", E24-1) -> 2017 | Z26: 24 | AA26: Essex Powerlines Corporation
Z27: 25 | AA27: Festival Hydro Inc.
D28: Last Rebasing Year | E28: 2013 | Z28: 26 | AA28: Fort Albany Power Corporation
Z29: 27 | AA29: Fort Frances Power Corporation
A30: Identify the accounting standard used for the test year | Z30: 28 | AA30: Greater Sudbury Hydro Inc.
E31: MIFRS | Z31: 29 | AA31: Grimsby Power Inc.
Z32: 30 | AA32: Guelph Hydro Electric Systems Inc.
A33: Did you update your depreciation and capitalization policies and reflect the changes in policies in a prior rebasing application? | Z33: 31 | AA33: Halton Hills Hydro Inc.
E34: Yes | Z34: 32 | AA34: Hearst Power Distribution Company Limited
Z35: 33 | AA35: Hydro 2000 Inc.
A36: When did you update your actual depreciation and capitalization policies? | Z36: 34 | AA36: Hydro Hawkesbury Inc.
E37: 2001-01-01 | F37: 2013 | Z37: 35 | AA37: Hydro One Networks Inc.
Z38: 36 | AA38: Hydro One Networks Inc. - Norfolk, Haldimand, Woodstock
A39: Identify the year the applicant adopted IFRS for financial reporting purposes | Z39: 37 | AA39: Hydro One Remote Communities Inc.
E40: 2015 | Z40: 38 | AA40: Hydro Ottawa Limited
Z41: 39 | AA41: Innpower Corporation
Z42: 40 | AA42: Kashechewan Power Corporation
A43: Are you applying for cost recovery for the test and/or future year(s) for Green Energy initiatives? | Z43: 41 | AA43: Kenora Hydro Electric Corporation Ltd.
E44: No | Z44: 42 | AA44: Kingston Hydro Corporation
Z45: 43 | AA45: Kitchener-Wilmot Hydro Inc.
A46: ="Is " & E14 & " an embedded distributor?" -> Is Westario Power Inc. an embedded distributor? | E46: Partial | Z46: 44 | AA46: Lakefront Utilities Inc.
Z47: 45 | AA47: Lakeland Power Distribution Ltd.
Z48: 46 | AA48: London Hydro Inc.
B49: Notes | Z49: 47 | AA49: Midland Power Utility Corporation
Z50: 48 | AA50: Milton Hydro Distribution Inc.
C51: Pale green cells represent input cells. | Z51: 49 | AA51: Newmarket-Tay Power Distribution Ltd.
Z52: 50 | AA52: Niagara Peninsula Energy Inc.
C53: Pale blue cells represent drop-down lists. The applicant should select the appropriate item from the drop-down list. | Z53: 51 | AA53: Niagara-on-the-Lake Hydro Inc.
Z54: 52 | AA54: North Bay Hydro Distribution Limited
C55: White cells contain fixed values, automatically generated values or formulae. | N55: =IF(LEN($G55)>1, (SUMPRODUCT(--($C$78:$C$1000=$C55),--($A$78:$A$1000=$D55), --($B$78:$B$1000=$B55&"_TOTAL"), $L$78:$L$1000)), "") ->  | O55: =IF(LEN($G55)>1, (SUMPRODUCT(--($C$78:$C$1000=$C55),--($A$78:$A$1000=$D55), --($B$78:$B$1000=$B55&"_TOTAL"), $M$78:$M$1000)), "") ->  | Z55: 53 | AA55: Northern Ontario Wires Inc.
N56: =IF(LEN($G56)>1, (SUMPRODUCT(--($C$78:$C$1000=$C56),--($A$78:$A$1000=$D56), --($B$78:$B$1000=$B56&"_TOTAL"), $L$78:$L$1000)), "") ->  | O56: =IF(LEN($G56)>1, (SUMPRODUCT(--($C$78:$C$1000=$C56),--($A$78:$A$1000=$D56), --($B$78:$B$1000=$B56&"_TOTAL"), $M$78:$M$1000)), "") ->  | Z56: 54 | AA56: Oakville Hydro Electricity Distribution Inc.
Z57: 55 | AA57: Orangeville Hydro Limited
Z58: 56 | AA58: Orillia Power Distribution Corporation
Z59: 57 | AA59: Oshawa PUC Networks Inc.
Z60: 58 | AA60: Ottawa River Power Corporation
Z61: 59 | AA61: Peterborough Distribution Inc.
Z62: 60 | AA62: PUC Distribution Inc.
Z63: 61 | AA63: Renfrew Hydro Inc.
Z64: 62 | AA64: Rideau St. Lawrence Distribution Inc.
Z65: 63 | AA65: Sioux Lookout Hydro Inc.
Z66: 64 | AA66: St. Thomas Energy Inc.
Z67: 65 | AA67: Thunder Bay Hydro Electricity Distribution Inc.
Z68: 66 | AA68: Tillsonburg Hydro Inc.
Z69: 67 | AA69: Toronto Hydro-Electric System Limited
Z70: 68 | AA70: Veridian Connections Inc.
Z71: 69 | AA71: Wasaga Distribution Inc.
Z72: 70 | AA72: Waterloo North Hydro Inc.
Z73: 71 | AA73: Welland Hydro-Electric System Corp.
Z74: 72 | AA74: Wellington North Power Inc.
Z75: 73 | AA75: West Coast Huron Energy Inc.
Z76: 74 | AA76: Westario Power Inc.
Z77: 75 | AA77: Whitby Hydro Electric Corporation

Sheet Index
A15: 1 | B15: LDC Information Sheet | E15: 20 | F15: App.2-G: Service Reliability Indicators
A16: 2 | B16: Index | E16: 21 | F16: App.2-H: Other Operating Revenue
A17: 3 | B17: Cost of Service Application Flowchart | E17: 22 | F17: App.2-I: Load Forecast CDM Adjustment Workform
A18: 4 | B18: List of Key References | E18: 23 | F18: App.2-IA: Load Forecast Data Instructions
A19: 5 | B19: App.2-A: List of Requested Approvals | E19: 24 | F19: App.2-IB: Actual and Forecast Load and Customer Data
A20: 6 | B20: App.2-AA: Capital Projects Table | E20: 25 | F20: App.2-JA: OM&A Summary Analysis
A21: 7 | B21: App.2-AB: Capital Expenditures | E21: 26 | F21: App.2-JB: Recoverable OM&A Cost Driver Table
A22: 8 | B22: App. 2-AC: Customer Engagement Worksheet | E22: 27 | F22: App.2-JC: OM&A Programs Table
A23: 9 | B23: App.2-B: General Accounting Instructions | E23: 28 | F23: App.2-K: Employee Costs
A24: 10 | B24: App.2-BA: Fixed Asset Continuity Schedule | E24: 29 | F24: App.2-L: Recoverable OM&A Cost per Customer and per FTE
A25: 11 | B25: Appendix 2-BB: Service Life Comparison | E25: 30 | F25: App.2-M: Regulatory Costs Schedule
A26: 12 | B26: App.2-C_DepExp: Depreciation and Amortization Expense | E26: 31 | F26: App.2-N: Shared Services and Corporate Cost Allocation
A27: 13 | B27: App.2-D: Overhead Expenses | E27: 32 | F27: App.2-OA: Capital Structure and Cost of Capital
A28: 14 | B28: App.2-EA: Account 1575 PP&E Deferral Account (2015 IFRS Adopters) | E28: 33 | F28: App.2-OB: Debt Instruments
A29: 15 | B29: App.2-EB: Account 1576 - Accounting Changes Under CGAAP (2012 Changes) | E29: 34 | F29: App.2-Q: Cost of Serving Embedded Distributor(s)
A30: 16 | B30: App.2-EC: Account 1576 - Accounting Changes Under CGAAP (2013 Changes) | E30: 35 | F30: App.2-R: Loss Factors
A31: 17 | B31: App.2-FA: Renewable Generation Connection Investment Summary | E31: 36 | F31: App.2-S: Stranded Meter Treatment
A32: 18 | B32: App.2-FB: Calculation of Renewable Generation Connection Direct Benefits/Provincial Amount: Renewable Enabling Improvement Investments | E32: 37 | F32: App.2-Y: Transition to MIFRS Summary Impact
A33: 19 | B33: App.2-FC: Calculation of Renewable Generation Connection Direct Benefits/Provincial Amount: Renewable Expansion Investments | E33: 38 | F33: App.2-YA: One-Time Incremental IFRS Transition Costs
A42: Note: | B42: Appendices for the Tariff of Rates and Charges at Current and Proposed Rates, and for the Bill Impacts are now in a separate spreadsheet model. These appendices were formerly 2-Z and 2-W.

Sheet COS Flowchart
B4: Cost of Service Rate Application Schematic
B6: The Cost of Service Rate Application Schematic is a flowchart that is included as a guide for the components of an application. The schematic demonstrates how demand and costs interrelate to derive the revenue requirement and how the revenue requirement is allocated between classes and through fixed/variable splits to derive rates that will be compensatory for the annual revenue requirement, based on the the forecasted demand. There is no form to be filled out; therefore, this Schedule is not required to be filed.

Sheet List of Key References
B3: List of Key References
A5: A list of key references for understanding the Filing Requirements has been embedded in the document below. To access the list of references and associated hyperlinks double-click the icon below.

Sheet App.2-A_Requested_Approvals
G1: File Number: | H1: =EBNUMBER -> EB-2017-0084
G2: Exhibit:
G3: Tab:
G4: Schedule:
G5: Page:
G7: Date:
B9: Appendix 2-A
B10: List of Requested Approvals
B12: The distributor must fill out the following sheet with the complete list of specific approvals requested and relevant section(s) of the legislation must be provided. All approvals, including accounting orders (deferral and variance accounts) new rate classes, revised specific service charges or retail service charges which the applicant is seeking, must be separately identified, as well being clearly documented in the appropriate sections of the application.
B14: Additional requests may be added by copying and pasting blank input rows, as needed.
B16: If additional requests arise, or requested approvals are removed, during the processing of the application, the distributor should update this list.
B18: =CONCATENATE('LDC Info'!E14," is seeking the following approvals in this application:") -> Westario Power Inc. is seeking the following approvals in this application:
B20: 1 | F20: Approval to charge distribution rates effective January 1, 2018 to recover a service revenue requirement of $11,302,115. The schedule of proposed rates is set out in Exhibit 8.
F22: Approval of the Distribution System Plan as outlined in Exhibit 2 Section 2.5.2
F24: Approval of a revised Microfit monthly service charge as outlined in Exhibit 3 and 8.
F26: Approval to adjust the Retail Transmission Rates – Network and Connection as detailed in Exhibit 8.
F28: Approval of the proposed loss factors as detailed in Exhibit 8.
F30: Approval of new or continued Wholesale Market and Rural Rate Protection Charges approved in the Board Decision and Order in the matter of WPI 2017 Distribution Rates (EB-2016-0113).
F32: Approval to continue the Specific Service Charges, Retail Service Charges, and Transformer Allowance approved in the Board Decision and Order in the matter of WPI’s 2017 Distribution Rates (EB-2016-0062).
F34: Approval of the rate riders for a one year disposition of the Group 1 and Group 2 and Other Deferral and Variance Accounts as detailed in Exhibit 9.

Sheet App.2-AA_Capital Projects
G1: File Number: | H1: =EBNUMBER -> EB-2017-0084
G2: Exhibit:
G3: Tab:
G4: Schedule:
G5: Page:
G7: Date:
A9: Appendix 2-AA
A10: Capital Projects Table
A13: Reporting Basis | B13: Reporting Basis | D13: CGAAP | E13: CGAAP | F13: MIFRS | G13: MIFRS | H13: CGAAP | I13: NEWGAAP | J13: NEWGAAP
A14: Projects | B14: Projects | C14: USoA | D14: 2011 | E14: 2012 | F14: =Last_Rebasing_Year -> 2013 | G14: =Last_Rebasing_Year+1 -> 2014 | H14: =Last_Rebasing_Year+2 -> 2015 | I14: =Last_Rebasing_Year+3 -> 2016 | J14: =Last_Rebasing_Year+4 -> 2017 | K14: =Last_Rebasing_Year+5 -> 2018
A15: System Access | B15: System Access
A16: Access | B16: Capital Poles
B17: Distribution Station Equipment Nor | C17: 182000 | D17: 0 | E17: 0 | F17: 0 | G17: 0 | H17: 0 | I17: 0 | J17: 0 | K17: 0
B18: Poles, Towers and Fixtures | C18: 183000 | D18: 88194 | E18: 72451.66 | F18: 73025.24 | G18: 33672.81 | H18: 80888.08 | I18: 99868.57 | J18: 137056.94 | K18: 96571.2031
B19: Overhead Conductors and Devices | C19: 183500 | D19: 39166 | E19: 106855.44 | F19: 102325 | G19: 37154.31 | H19: 151508.86 | I19: 74137.09 | J19: 98721.02 | K19: 127577.0918
B20: Underground Conduit | C20: 184000 | D20: 510 | E20: 2806.52 | F20: 3066.4 | G20: 12213.93 | H20: 10653.72 | I20: 3332.79 | J20: 12774.35 | K20: 8468.307604
B21: Underground Conductors and Devices | C21: 184500 | D21: 2891 | E21: 2611.12 | F21: 26988.43 | G21: 24725.93 | H21: 14105.39 | I21: 33868.66 | J21: 31777.84 | K21: 26798.94293
B22: Line Transformers Overhead | C22: 185000 | D22: 10593 | E22: 23441.68 | F22: 22585.08 | G22: -3724.65 | H22: 9978.59 | I22: 52649.24 | J22: 24253.38 | K22: 28394.46504
B23: Services Overhead | C23: 185500 | D23: 8465 | E23: 23681.72 | F23: 11704.71 | G23: 1110.48 | H23: 9067.64 | I23: 9254.59 | J23: 3686.53 | K23: 15206.012
B24: Meters | C24: 186000 | D24: 2125 | E24: 0 | F24: 1465.08 | G24: 8817.08 | H24: 0 | I24: 4010.65 | J24: 5103.25 | K24: 3725.974949
B25: New 3 phase
B26: Distribution Station Equipment Nor | C26: 182000 | D26: 0 | E26: 0 | F26: 0 | G26: 0 | H26: 0 | J26: 0
B27: Poles, Towers and Fixtures | C27: 183000 | D27: 17990 | E27: 32836.25 | F27: 11846.28 | G27: 16907.58 | H27: 4667.99 | I27: 9846.71 | J27: 472
B28: Overhead Conductors and Devices | C28: 183500 | D28: 22322 | E28: 40864.2 | F28: 34341.99 | G28: 28683.37 | H28: 13967.19 | I28: 20853.37 | J28: 6192
B29: Underground Conduit | C29: 184000 | D29: 253 | E29: 388.08 | F29: 822.25 | G29: 998.04 | H29: 267.21 | I29: 1749.61 | J29: 33
B30: Underground Conductors and Devices | C30: 184500 | D30: 30942 | E30: 11792.34 | F30: 15713.38 | G30: 1194.94 | H30: 13483.29 | I30: 17779.43 | J30: 24312
B31: Line Transformers Overhead | C31: 185000 | D31: 95438 | E31: 46449.67 | F31: 38225.05 | G31: 35070.62 | H31: 56611.76 | I31: 101645.31 | J31: 44482
B32: Services Overhead | C32: 185500 | D32: 10755 | E32: 5739.04 | F32: 20.46 | G32: 6659.31 | H32: 3649.48 | I32: 4986.72 | J32: 5452
B33: Meters | C33: 186000 | D33: 14595 | E33: 1360.49 | F33: 10383.35 | G33: 8480.4 | H33: 13116.38 | I33: 16152.3 | J33: 12879
B34: New Single Phase
B35: Distribution Station Equipment Nor | C35: 182000 | D35: 0 | E35: 0 | F35: 0 | G35: 0 | I35: 0 | J35: 0
B36: Poles, Towers and Fixtures | C36: 183000 | D36: 0 | E36: 848.59 | F36: 0 | G36: 0 | I36: =2318.52+2342.72 -> 4661.24 | J36: 862
B37: Overhead Conductors and Devices | C37: 183500 | D37: 0 | E37: 2223.86 | F37: 766.28 | G37: 160.39 | I37: =3706.73+2772 -> 6478.73 | J37: 2262
B38: Underground Conduit | C38: 184000 | D38: 0 | E38: 6430.13 | F38: 0 | G38: 0 | I38: =140.96+163.7 -> 304.66 | J38: 95
B39: Underground Conductors and Devices | C39: 184500 | D39: 0 | E39: 7958.45 | F39: 479.07 | G39: 0 | I39: =441.72+2073.84 -> 2515.56 | J39: 0
B40: Line Transformers Overhead | C40: 185000 | D40: 0 | E40: 4274.58 | F40: 2398.09 | G40: 0 | I40: =5497.98+6415.03+14848.13 -> 26761.14 | J40: 5117
B41: Services Overhead | C41: 185500 | D41: 0 | E41: 15354.48 | F41: 7964.36 | G41: 1424.4 | I41: =1987.74+1831.28 -> 3819.02 | J41: 1310
B42: Meters | C42: 186000 | D42: 0 | E42: 1378.76 | F42: 389.72 | G42: 0 | I42: 3337.73 | J42: 1119
B43: New UG Service
B44: Distribution Station Equipment Nor | C44: 182000 | D44: 0 | E44: 0 | F44: 0 | G44: 0 | H44: 0 | I44: 0 | J44: 0 | K44: 0
B45: Poles, Towers and Fixtures | C45: 183000 | D45: 3405 | E45: 21579.64 | F45: 21342.72 | G45: 8766.26 | H45: 9060.76 | I45: 4559.64 | J45: 8518.56 | K45: 12959.87752
B46: Overhead Conductors and Devices | C46: 183500 | D46: 6735 | E46: 18559.86 | F46: 24068.17 | G46: 10061.62 | H46: 24474.86 | I46: 3072.74 | J46: 3990.71 | K46: 15764.41488
B47: Underground Conduit | C47: 184000 | D47: 690 | E47: 2465.4 | F47: 790.79 | G47: 617.72 | H47: 1083.01 | I47: 3817.1 | J47: 280.23 | K47: 1729.613427
B48: Underground Conductors and Devices | C48: 184500 | D48: 31773 | E48: 25750.14 | F48: 37070.63 | G48: 48297.07 | H48: 50136.93 | I48: 26494.38 | J48: 40108.17 | K48: 36484.14857
B49: Line Transformers Overhead | C49: 185000 | D49: -2694.01 | E49: 66924.39 | F49: -13623.76 | G49: 140061.87 | H49: 54405.71 | I49: =59151.71-2111+0.19 -> 57040.9 | J49: 3731.49 | K49: 59869.57899
B50: Services Overhead | C50: 185500 | D50: 180662 | E50: 134537.96 | F50: 112954.24 | G50: 80502.16 | H50: 71633.6 | I50: 0 | J50: 79379.64 | K50: 142011.2665
B51: Meters | C51: 186000 | D51: 116297.2 | E51: 63139.73 | F51: 99714.53 | G51: 86031.44 | H51: 76940.63 | I51: 4328.33 | J51: 2566.54 | K51: 1835.007567
B52: New Subdivisions (80 new lots)
B53: Distribution Station Equipment Nor | C53: 182000 | D53: 0 | E53: 0 | F53: 0 | G53: 0 | H53: 0 | I53: 0 | J53: 0
B54: Poles, Towers and Fixtures | C54: 183000 | D54: 24561 | E54: 13084.61 | F54: 5768.37 | G54: 16365.1 | H54: 39537.49 | I54: 4479.55 | J54: 13310.82
B55: Overhead Conductors and Devices | C55: 183500 | D55: 39440 | E55: 25838.94 | F55: 7068.47 | G55: 25454.39 | H55: 62572.15 | I55: 12666.63 | J55: 21830.03
B56: Underground Conduit | C56: 184000 | D56: 2462 | E56: 412.53 | F56: 166.5 | G56: 1297.59 | H56: 1575.94 | I56: 183.78 | J56: 660.7
B57: Underground Conductors and Devices | C57: 184500 | D57: 157372 | E57: 182972.12 | F57: 24822.35 | G57: 111278.94 | H57: 64945.5 | I57: 78205.25 | J57: 89726.09
B58: Line Transformers Overhead | C58: 185000 | D58: 55612 | E58: 53461.68 | F58: 23046.18 | G58: 44724.81 | H58: 34026.97 | I58: 10687.62 | J58: 35933.98
B59: Services Overhead | C59: 185500 | D59: 9092 | E59: 999.46 | F59: 1271.74 | G59: 10317.71 | H59: 1440.83 | I59: 0 | J59: 1076.09
B60: Meters | C60: 186000 | D60: 11449.23 | E60: 0 | F60: 120.89 | G60: 0 | H60: 0 | I60: 0 | J60: 0
B61: New OH Services
B62: Distribution Station Equipment Nor | C62: 182000 | K62: 0
B63: Poles, Towers and Fixtures | C63: 183000 | K63: 17270.66749
B64: Overhead Conductors and Devices | C64: 183500 | K64: 21008.05325
B65: Underground Conduit | C65: 184000 | K65: 2304.928194
B66: Underground Conductors and Devices | C66: 184500 | K66: 48619.66662
B67: Line Transformers Overhead | C67: 185000 | K67: =79783.6896379887-18250.9 -> 61532.78964
B68: Services Overhead | C68: 185500 | K68: =105865.233636035+18250.9+60000 -> 184116.1336
B69: Meters | C69: 186000 | K69: =85827.8490097045-60000 -> 25827.84901
B70: Make Ready
B71: Distribution Station Equipment Nor | C71: 182000
B72: Poles, Towers and Fixtures | C72: 183000
B73: Overhead Conductors and Devices | C73: 183500
B74: Underground Conduit | C74: 184000
B75: Underground Conductors and Devices | C75: 184500
B76: Line Transformers Overhead | C76: 185000
B77: Services Overhead | C77: 185500
B78: Meters | C78: 186000
B79: Meter Relocates & Conversions
B80: Distribution Station Equipment Nor | C80: 182000
B81: Poles, Towers and Fixtures | C81: 183000
B82: Overhead Conductors and Devices | C82: 183500
B83: Underground Conduit | C83: 184000
B84: Underground Conductors and Devices | C84: 184500
B85: Line Transformers Overhead | C85: 185000
B86: Services Overhead | C86: 185500
B87: Meters | C87: 186000
B88: Municipal Roads Act
B89: Distribution Station Equipment Nor | C89: 182000
B90: Poles, Towers and Fixtures | C90: 183000
B91: Overhead Conductors and Devices | C91: 183500
B92: Underground Conduit | C92: 184000
B93: Underground Conductors and Devices | C93: 184500
B94: Line Transformers Overhead | C94: 185000
B95: Services Overhead | C95: 185500
B96: Meters | C96: 186000
B97: Microfit
B98: Distribution Station Equipment Nor | C98: 182000
B99: Poles, Towers and Fixtures | C99: 183000
B100: Overhead Conductors and Devices | C100: 183500
B101: Underground Conduit | C101: 184000
B102: Underground Conductors and Devices | C102: 184500
B103: Line Transformers Overhead | C103: 185000
B104: Services Overhead | C104: 185500
B105: Meters | C105: 186000
B106: Meter & Transformers Stock Adjustments
B107: Distribution Station Equipment Nor | C107: 182000
B108: Poles, Towers and Fixtures | C108: 183000
B109: Overhead Conductors and Devices | C109: 183500
B110: Underground Conduit | C110: 184000
B111: Underground Conductors and Devices | C111: 184500
B112: Line Transformers Overhead | C112: 185000
B113: Services Overhead | C113: 185500
B114: Meters | C114: 186000
B115: Capital Poles
B116: Distribution Station Equipment | C116: 182000 | D116: 0 | E116: 0
B117: Poles, Towers and Fixtures | C117: 183000 | D117: 169152 | E117: 176460
B118: Overhead Conductors and Devices | C118: 183500 | D118: 229501 | E118: 172567
B119: Underground Conduit | C119: 184000 | D119: 7046 | E119: 3826
B120: Underground Conductors and Devices | C120: 184500 | D120: 67798 | E120: 9142
B121: Line Transformers Overhead | C121: 185000 | D121: 123021 | E121: 16396
B122: Services Overhead | C122: 185500 | D122: 85609 | E122: 46094
B123: Meters | C123: 186000 | D123: 1895 | E123: 518
B124: Disconnect/Reconnect
B125: Distribution Station Equipment Nor | C125: 182000
B126: Poles, Towers and Fixtures | C126: 183000
B127: Overhead Conductors and Devices | C127: 183500
B128: Underground Conduit | C128: 184000
B129: Underground Conductors and Devices | C129: 184500
B130: Line Transformers Overhead | C130: 185000
B131: Services Overhead | C131: 185500
B132: Meters | C132: 186000
B133: Non-bugdeted Work Orders
B134: Distribution Station Equipment Nor | C134: 182000 | I134: 0
B135: Poles, Towers and Fixtures | C135: 183000 | I135: 16774.2 | J135: 465.5
B136: Overhead Conductors and Devices | C136: 183500 | I136: 30136.79 | J136: 402.44
B137: Underground Conduit | C137: 184000 | I137: 11117.37 | J137: 13
B138: Underground Conductors and Devices | C138: 184500 | I138: 23345.56 | J138: 1579.32
B139: Line Transformers Overhead | C139: 185000 | I139: =-57040.9-14849.13 -> -71890.03
B140: Services Overhead | C140: 185500 | I140: 80136.62 | J140: 3050.11
B141: Meters | C141: 186000 | I141: 14323.6 | J141: 118.88
B142: Non-demarcation
B143: Distribution Station Equipment Nor | C143: 182000 | D143: 0 | E143: 0 | F143: 0 | G143: 0 | H143: 0 | I143: 0 | J143: 0 | K143: 0
B144: Poles, Towers and Fixtures | C144: 183000 | D144: 2446 | E144: 0 | F144: 0 | G144: 0 | H144: 0 | I144: 3242.49 | J144: 211 | K144: 4560.275408
B145: Overhead Conductors and Devices | C145: 183500 | D145: 0 | E145: 0 | F145: 0 | G145: 0 | H145: 0 | I145: 161.37 | J145: 2 | K145: 226.9526329
B146: Underground Conduit | C146: 184000 | D146: 17852 | E146: 0 | F146: 0 | G146: 11536.02 | H146: 3568 | I146: 8465.04 | J146: 0 | K146: 11905.33008
B147: Underground Conductors and Devices | C147: 184500 | D147: 0 | E147: 0 | F147: 0 | G147: 103 | H147: 0 | I147: 5374.22 | J147: 18105 | K147: 7558.365115
B148: Line Transformers Overhead | C148: 185000 | D148: 0 | E148: 0 | F148: 0 | G148: 0 | H148: 0 | I148: 0 | J148: 0 | K148: 0
B149: Services Overhead | C149: 185500 | D149: 0 | E149: 1244.62 | F149: 6613.4 | G149: 0 | H149: 10918.63 | I149: 14895.41 | J149: 1441 | K149: 20949.07676
B150: Meters | C150: 186000 | D150: 0 | E150: 0 | F150: 0 | G150: 0 | H150: 0 | I150: 0 | K150: 0
B151: Mobile Transformer Substation
B152: Distribution Station Equipment | C152: 182000 | D152: 0 | E152: 0
B153: Poles, Towers and Fixtures | C153: 183000 | D153: 0 | E153: 0
B154: Overhead Conductors and Devices | C154: 183500 | D154: 0 | E154: 0
B155: Underground Conduit | C155: 184000 | D155: 0 | E155: 0
B156: Underground Conductors and Devices | C156: 184500 | D156: 0 | E156: 0
B157: Line Transformers Overhead | C157: 185000 | D157: 0 | E157: 0
B158: Services Overhead | C158: 185500 | D158: 0 | E158: 0
B159: Meters | C159: 186000 | D159: 0 | E159: 0
B160: Total Projects | D160: =SUM(D16:D159) -> 1685415.42 | E160: 1445721.14 | F160: 715705.44 | G160: 808964.64 | H160: 888286.59 | I160: 839631.68 | J160: 744461.61 | K160: 983275.9927
A162: Contributed Capital | B162: Contributed Capital | D162: -626691 | E162: -689868 | F162: -473674 | G162: -394427 | H162: -360794 | I162: -584438 | J162: -572358 | K162: -340541
A164: Sub-Total System Access | B164: =A164 -> Sub-Total System Access | D164: =SUM(D160:D163) -> 1058724.42 | E164: 755853.14 | F164: 242031.44 | G164: 414537.64 | H164: 527492.59 | I164: 255193.68 | J164: 172103.61 | K164: 642734.9927
A167: System Renewal | B167: System Renewal | C167: USoA | D167: =D14 -> 2011 | E167: 2012 | F167: 2013 | G167: 2014 | H167: 2015 | I167: 2016 | J167: 2017 | K167: 2018
A168: System Renewal | B168: #6 Copper Primary Replacement
B169: Distribution Station Equipment | C169: 182000 | D169: 0 | E169: 0 | F169: 0 | G169: 0 | H169: 0 | I169: 0 | J169: 0
B170: Poles, Towers and Fixtures | C170: 183000 | D170: 188289 | E170: 191308 | F170: 550670.49 | G170: 176655 | H170: 245523 | I170: 89049.19 | J170: 324004.59 | K170: 122493
B171: Overhead Conductors and Devices | C171: 183500 | D171: 272671 | E171: 737605 | F171: 562981.77 | G171: 147104 | H171: 401943 | I171: 145335.9 | J171: 356031.25 | K171: 186836
B172: Underground Conduit | C172: 184000 | D172: 3916 | E172: 3772 | F172: 17145.95 | G172: 14595 | H172: 19121 | I172: 4924.42 | J172: 10983.03 | K172: 6868
B173: Underground Conductors and Devices | C173: 184500 | D173: 59654 | E173: 7621 | F173: 50158.33 | G173: 20315 | H173: 57392 | I173: 13416.66 | J173: 20127.55 | K173: 15362
B174: Line Transformers Overhead | C174: 185000 | D174: 119629 | E174: 44646 | F174: 54644.22 | G174: 48024 | H174: 22162 | I174: 14941.6 | J174: 5881.05 | K174: 20612
B175: Services Overhead | C175: 185500 | D175: 145735 | E175: 18205 | F175: 67484.1 | G175: 42456 | H175: 27274 | I175: 13316.21 | J175: 52529.42 | K175: 18495
B176: Meters | C176: 186000 | D176: 1545 | E176: 1165 | F176: 0 | G176: 0 | H176: 0 | I176: 939.04 | J176: 1249.92 | K176: 107
B177: Cable & Poletran Replacement
B178: Distribution Station Equipment | C178: 182000 | D178: 0 | E178: 0 | F178: 0 | G178: 0 | H178: 0 | J178: 0 | K178: 0
B179: Poles, Towers and Fixtures | C179: 183000 | D179: 10242 | E179: 4360 | F179: 4062.48 | G179: 10337 | H179: 7685 | J179: 62165 | K179: 10348.2086
B180: Overhead Conductors and Devices | C180: 183500 | D180: 17388 | E180: 29695 | F180: 8855.49 | G180: 14378 | H180: 12201 | J180: 38495 | K180: 16429.21186
B181: Underground Conduit | C181: 184000 | D181: 249446 | E181: 3066 | F181: 121217.5 | G181: 16609 | H181: 1070 | J181: 9391 | K181: 1440.804581
B182: Underground Conductors and Devices | C182: 184500 | D182: 115416 | E182: 198452 | F182: 119710.92 | G182: 175030 | H182: 236148 | J182: 147238 | K182: 317984.2244
B183: Line Transformers Overhead | C183: 185000 | D183: 30269 | E183: 37862 | F183: 29704.58 | G183: 54024 | H183: 52173 | J183: 43816 | K183: 70253.36204
B184: Services Overhead | C184: 185500 | D184: 11089 | E184: 3222 | F184: 4115.74 | G184: 17120 | H184: 34778 | J184: 34944 | K184: 46830.18851
B185: Meters | C185: 186000 | D185: 0 | E185: 0 | F185: 0 | G185: 0 | H185: 0 | J185: 781 | K185: 0
B186: Replace Batteries at MS 5 Hanover
B187: Distribution Station Equipment Nor | C187: 182000
B188: Poles, Towers and Fixtures | C188: 183000
B189: Overhead Conductors and Devices | C189: 183500
B190: Underground Conduit | C190: 184000
B191: Underground Conductors and Devices | C191: 184500
B192: Line Transformers Overhead | C192: 185000
B193: Services Overhead | C193: 185500
B194: Meters | C194: 186000
B195: Substation Refurbishment
B196: Distribution Station Equipment | C196: 182000 | D196: =129203+174297 -> 303500 | E196: 0 | F196: 15000 | G196: 1814902.49 | H196: 815176.05 | I196: =181909.06+1176373+99250.66+55932 -> 1513464.72 | J196: 1731851 | K196: 1310000
B197: Poles, Towers and Fixtures | C197: 183000 | D197: =14720+1559+12038 -> 28317 | E197: 0 | F197: 0 | G197: 0
B198: Overhead Conductors and Devices | C198: 183500 | D198: =10741+21332+11641 -> 43714 | E198: 0 | F198: =142.43 -> 142.43 | G198: 0
B199: Underground Conduit | C199: 184000 | D199: =55064+407 -> 55471 | E199: 0 | F199: 0 | G199: 0
B200: Underground Conductors and Devices | C200: 184500 | D200: =65480+11671 -> 77151 | E200: 0 | F200: =9670.03 -> 9670.03 | G200: 0
B201: Line Transformers Overhead | C201: 185000 | D201: =1881+35512 -> 37393 | E201: 0 | F201: =13744 -> 13744 | G201: 0
B202: Services Overhead | C202: 185500 | D202: =5067+10155 -> 15222 | E202: 0 | F202: 0 | G202: 0
B203: Meters | C203: 186000 | D203: =2084+82168+5337 -> 89589 | E203: 0 | F203: =-15000-15.46 -> -15015.46 | G203: 0
B204: Distribution Transformer Replacements
B205: Distribution Station Equipment | C205: 182000 | D205: 0 | E205: 0 | H205: 0 | I205: 0 | J205: 0 | K205: 0
B206: Poles, Towers and Fixtures | C206: 183000 | D206: 0 | E206: 0 | H206: 910 | I206: =13118.65-0.48 -> 13118.17 | J206: 15895 | K206: 12017.19181
B207: Overhead Conductors and Devices | C207: 183500 | D207: 0 | E207: 0 | H207: 0 | I207: =8276.06-0.22 -> 8275.84 | J207: 20560 | K207: 7581.267557
B208: Underground Conduit | C208: 184000 | D208: 0 | E208: 0 | H208: 0 | I208: =1556.14+0.28 -> 1556.42 | J208: 445 | K208: 1425.793207
... 182 more rows

Sheet App.2-AB_Capital Expenditures
A1: MRS: You will need to populate the cells in yellow with total budgets | S1: File Number: | U1: =EBNUMBER -> EB-2017-0084
S2: Exhibit:
S3: Tab:
S4: Schedule:
S5: Page:
S7: Date:
A9: Appendix 2-AB
A10: Table 2 - Capital Expenditure Summary from Chapter 5 Consolidated Distribution System Plan Filing Requirements
A12: First year of Forecast Period: | B12: =TestYear -> 2018
A13: CATEGORY | B13: Historical Period (previous plan1 & actual) | Q13: Forecast Period (planned)
B14: =E14-1 -> 2013 | E14: =H14-1 -> 2014 | H14: =K14-1 -> 2015 | K14: =N14-1 -> 2016 | N14: =Q14-1 -> 2017 | Q14: =B12 -> 2018 | R14: =Q14+1 -> 2019 | S14: =R14+1 -> 2020 | T14: 2021 | U14: 2022
B15: Plan | C15: Actual | D15: Var | E15: Plan | F15: Actual | G15: Var | H15: Plan | I15: Actual | J15: Var | K15: Plan | L15: Actual | M15: Var | N15: Plan | O15: Actual2 | P15: Var
B16: $ '000 | D16: % | E16: $ '000 | G16: % | H16: $ '000 | J16: % | K16: $ '000 | M16: % | N16: $ '000 | P16: % | Q16: $ '000
A17: System Access | C17: 242031.44 | D17: -- | E17: n/a | F17: 414537.64 | G17: -- | H17: n/a | I17: 527492.59 | J17: -- | K17: n/a | L17: 255193.68 | M17: -- | N17: n/a | O17: 172103.7 | P17: -- | Q17: 642734.9927 | R17: 664635 | S17: 671006 | T17: 677481 | U17: 686893
A18: System Renewal | C18: 2148445.65 | D18: -- | E18: n/a | F18: 2841278.49 | G18: -- | H18: n/a | I18: 2409929.05 | J18: -- | K18: n/a | L18: 3116717.58 | M18: -- | N18: n/a | O18: 3926009.6 | P18: -- | Q18: 3231509 | R18: 2963562 | S18: 3158679 | T18: 3449520 | U18: 3466927
A19: System Service | C19: 4027349.16 | D19: -- | E19: n/a | F19: 408137.52 | G19: -- | H19: n/a | I19: 308048.58 | J19: -- | K19: n/a | L19: 1362194.66 | M19: -- | N19: n/a | O19: 413902.88 | P19: -- | Q19: 382000 | R19: 66750 | S19: 69690 | T19: 69690 | U19: 69690
A20: General Plant | C20: 480015 | D20: -- | E20: n/a | F20: 663246.84 | G20: -- | H20: n/a | I20: 620228 | J20: -- | K20: n/a | L20: 651394 | M20: -- | N20: n/a | O20: 71056.65 | P20: -- | Q20: 635000 | R20: 350000 | S20: 590000 | T20: 95000 | U20: 570000
A21: TOTAL EXPENDITURE | B21: 4739040 | C21: =SUM(C17:C20) -> 6897841.25 | D21: =IF(ISERROR((C21-B21)/B21),"--",(C21-B21)/B21) -> 0.4555355621 | E21: 4437677 | F21: 4327200.49 | G21: =IF(ISERROR((F21-E21)/E21),"--",(F21-E21)/E21) -> -0.02489512193 | H21: 5137349 | I21: 3865698.22 | J21: =IF(ISERROR((I21-H21)/H21),"--",(I21-H21)/H21) -> -0.2475305415 | K21: 5441000 | L21: 5385499.92 | M21: =IF(ISERROR((L21-K21)/K21),"--",(L21-K21)/K21) -> -0.01020034552 | N21: 0 | O21: 4583072.83 | P21: =IF(ISERROR((O21-N21)/N21),"--",(O21-N21)/N21) -> -- | Q21: 4891243.993 | R21: 4044947 | S21: 4489375 | T21: 4291691 | U21: =SUM(U17:U20) -> 4793510
A22: System O&M
A24: Notes to the Table:
A25: 1. Historical “previous plan” data is not required unless a plan has previously been filed. However, use the last Board-approved, at least on a Total (Capital) Expenditure basis for the last cost of service rebasing year, and the applicant should include their planned budget in each subsequent historical year up to and including the Bridge Year.
A26: 2. Indicate the number of months of 'actual' data included in the last year of the Historical Period (normally a 'bridge' year):
A28: Explanatory Notes on Variances (complete only if applicable)
A29: Notes on shifts in forecast vs. historical budgets by category
A32: Notes on year over year Plan vs. Actual variances for Total Expenditures
A35: Notes on Plan vs. Actual variance trends for individual expenditure categories

Sheet App.2-AC_Customer Engagement
B1: File Number: | C1: =EBNUMBER -> EB-2017-0084
B2: Exhibit:
B3: Tab:
B4: Schedule:
B5: Page:
B7: Date:
A9: Appendix 2-AC
A10: Customer Engagement Activities Summary
A12: Provide a list of customer engagement activities | B12: Provide a list of customer needs and preferences identified through each engagement activity | C12: Actions taken to respond to identified needs and preferences. If no action was taken, explain why.
A13: Online Website Survey | B13: Website difficult to navigate and locate necessary information; was not mobile friendly | C13: Update website to become more user friendly and mobile friendly
C14: Post capital projects on notification (front) screen
A15: Direct and Indirect Outreach | B15: Increase community engagement | C15: Touch-A-Truck events; Christmas Parades; Community Swim/Skate Sponsorships
C16: Implemented Twitter, Facebook and website outage notification; Call blasts for planned outages
B17: Proactive outage management system | C17: Bill inserts explaining value added services; Telephone etiquette training; On-going discussions regarding customer centricity
B20: Feedback on improving customer experience
A22: Large Customer 1-on-1 Meetings | B22: Establishing contact points within WPI for outages | C22: Contact points established; enhancement to After Hours for key contacts
C23: Personal or recorded call for planned outages
B24: Notification for planned outages | C24: Created dialogue for potential expansion/system upgrades; Provided liaison between customer and LDC
B26: Understand LDC expectations and comprehend feedback
A27: Customer Engagement Survey | B27: Decrease amount of time to deal with issues; Telephone is preferred method of contact | C27: Department is now fully staffed and a tiered call system implemented to provide first call resolution
C28: Completed 2017 tree trimming program early in year
B29: Increase amount of tree trimming to increase system reliability | C29: Conducted Electrical Safety Awareness Survey; Website/Social media updates with Industry related information; School safety awareness programs; Bill buck slips promoting energy conservation programs and information
B30: Educating customer/public about energy conservation and safety | C30: Website and Social Media updates; Phone blasts completed for planned outages; enhancing After Hours support for better customer experience
B34: Increase service during power outages
A35: Operational and Capital Plan Online Survey | B35: Maintain appropriate spending; Maintain current level of service and reliability; Annual feedback on Capital spending | C35: Continue with capital plan; Create insert to distribute outlining proposed capital expenditures, location of online survey and proportioned bill revenue
C36: Increase usage of website and social media to distribute industry information, rate explanation; Time Of Use material; Energy management; Services promotion, etc.
B37: Improve customer information via website and social media outlets | C37: Reviewed and amended policy; created menu style pricing for service work completed
B40: Review isolation / re-energization policy/fees
A42: Electrical Safety Awareness Survey | B42: Continuing focus on customer and public electricity safety and awareness | C42: Provide information regarding Electricity Safety and Awareness via website, social media, bill inserts and on-hold messaging
C43: Continue school education programs as well as community Touch-A-Truck events; contributed to Community Safety Village
B44: Education should begin with children and be community based
A45: Note: Use "ALT-ENTER" to go to the next line within a cell

Sheet App.2-B_Acctg Instructions
A1: General Instructions to MIFRS Appendices
A2: Types of Schedules to File
A4: The purpose of this tab is to provide general instructions. The specific instructions to each appendix are listed in footnotes of each appendix.
A6: The typical applicant is expected to have made capitalization and depreciation policy changes under CGAAP as permitted by the Board on January 1, 2012 or mandated by the Board by January 1, 2013, and adopted IFRS for reporting purposes on January 1, 2015 (transition date January 1, 2014). Some distributors filing for 2018 rates have rebased with these accounting changes reflected in a prior rebasing application. If that is the case, information relating to pre-accounting policy changes is not generally required. The information to be provided by applicants will depend on when the accounting policy changes were made and when they last rebased. In general, applicants should provide the following information in the appendices:
E9: Reflecting Accounting Policy Changes in Current Application | G9: Reflected Accounting Policy Changes in Prior Application3
E10: Accounting Policy Changes in 2012 and Adopted IFRS in 2015 | F10: Accounting Policy Changes in 2013 and Adopted IFRS in 2015 | G10: Adopted IFRS in 2015
A11: Information to be filed in 2018 CoS Application | B11: 2018 | C11: Test | E11: MIFRS | F11: MIFRS | G11: MIFRS
B12: 2017 | C12: Bridge | E12: MIFRS | F12: MIFRS | G12: MIFRS
B13: 2016 | C13: Historical | E13: MIFRS | F13: MIFRS | G13: MIFRS
B14: 2015 | C14: Historical | E14: MIFRS | F14: MIFRS | G14: MIFRS
B15: 2014 | C15: Historical | E15: MIFRS and Revised CGAAP1 | F15: MIFRS and Revised CGAAP1 | G15: MIFRS and Revised CGAAP1
B16: 2013 | C16: Historical | E16: Revised CGAAP | F16: CGAAP and Revised CGAAP2 | G16: N/A
B17: 2012 | C17: Historical | E17: CGAAP and Revised CGAAP2 | F17: N/A | G17: N/A
A19: 1) For the transition year (2014), the applicant may file two appendices, one under Revised CGAAP and one under MIFRS, depending on the materiality of impacts. See the specific instructions under each appendix below for further details.
A20: 2) For applicants that are reflecting accounting policy changes for the first time in a rebasing application, the applicant must file two appendices in the year that the applicant implemented changes to its capitalization and depreciation policies (2012 or 2013), one before and one after the policy changes.
A21: 3) Applicants should provide CGAAP and Revised CGAAP schedules (i.e. as indicated in the first two columns of the above table) to support balances in Account 1576 if the account has yet to be disposed of.
A24: Appendix 2-BA - Fixed Asset Schedule
A26: Applicants are to provide Appendix 2-BA in accordance with the years and corresponding accounting standards noted in the above table to provide a year over year continuity in fixed assets.
A27: For the transition year (2014), the applicant should file two appendices, one under Revised CGAAP and one under MIFRS if the change between Revised CGAAP and MIFRS is material. If the change from the accounting standards is not material, the applicant may choose to only provide one appendix under MIFRS. However, the applicant must also indicate the fixed asset net book value balance under Revised CGAAP, the total dollar value of the change and explain why it is not material.
A31: The applicant must establish the continuity of historic cost for gross assets and accumulated depreciation by asset class by ensuring that the opening balance in the year agrees to the closing balance in the prior year.
A34: Appendix 2-Cx - Depreciation and Amortization
A36: Applicants are to provide Appendix 2-C in accordance with the years and corresponding accounting standards listed in the above table.
A37: Appendix 2-C is to be used under all three of the scenarios presented in the table above. In the appendix, the applicant will need to indicate which scenario applies. The appendix is to be duplicated for each year and accounting standard required under the scenario.
A38: Depreciation accounting policy changes were mandated by the Board by January 1, 2013. In general, no further changes to an applicant's depreciation policy (i.e. assets' service lives) are expected after the Board mandated changes by January 1, 2013. If the applicant has made any changes to its depreciation policy subsequent to the Board mandated changes, for the year of the change, applicants must complete Appendix 2-C before and after the change. Applicants must also explain the nature of the change, the reason for the change, quantify the impact of the change, and quantify the depreciation expense before and after the change.
A40: Appendix 2-E - Account 1575, IFRS-CGAAP Transitional PP&E Amounts (2-EA), Account 1576, Accounting Changes Under CGAAP (2-EB, 2-EC)
A42: 1) For an applicant that has a balance in Account 1576 to dispose:
A43: · | B43: If an applicant changed capitalization and depreciation policies effective January 1, 2012, the applicant must complete Appendix 2-EB
A44: · | B44: If an applicant changed capitalization and depreciation policies effective January 1, 2013, the applicant must complete Appendix 2-EC
A46: 2) For an applicant that has a balance in Account 1575 to dispose:
A47: · | B47: The applicant must complete 2-EA
A48: If the applicant did not make any further PP&E accounting policy changes beyond the capitalization and depreciation policy changes as mandated by the Board by January 1, 2013 (i.e. no further changes made on transition to IFRS), the applicant must indicate this and does not need to complete Appendix 2-EA.
A52: Appendix 2-Y - Summary of Impacts to Revenue Requirement from Transition to MIFRS
A54: An applicant must provide a summary of the dollar impacts of MIFRS to each component of the revenue requirement (e.g. rate base, operating costs, etc.), including the overall impact on the proposed revenue requirement. Accordingly, the applicant must identify financial differences and resulting revenue requirement impacts arising from the adoption of MIFRS as compared to CGAAP. If the applicant is reflecting the changes in capitalization and depreciation policies for the first time in a rebasing application, then a comparison between MIFRS and CGAAP before the change in accounting policies should be completed. If the applicant changed capitalization and depreciation policies and reflected these changes in a prior rebasing application, then a comparison between MIFRS and CGAAP after the change in accounting policies should be completed.

Sheet App.2-BA_Fixed Asset Cont
M1: File Number: | N1: =EBNUMBER -> EB-2017-0084
M2: Exhibit:
M3: Tab:
M4: Schedule:
M5: Page:
M7: Date:
A9: Appendix 2-BA
A10: Fixed Asset Continuity Schedule 1
E12: Year | F12: ='[1]0.1 LDC Info'!$E$27 -> 2013 | H12: CGAAP - with changes to policies
D14: Cost | K14: Accumulated Depreciation
A15: CCA Class | B15: OEB | C15: Description | D15: Opening Balance | E15: Additions | F15: Disposals | G15: Adjustments | H15: Closing Balance | J15: Opening Balance | K15: Additions | L15: Disposals | M15: Adjust. | N15: Closing Balance | O15: Net Book Value | Q15: AVG Gross Bal | R15: AVG AccDep
A16: 12 | B16: 1611 | C16: Computer Software (Formally known as Account 1925) | D16: 926779.53 | E16: 309216.89 | F16: 0 | G16: 0 | H16: =D16+E16+F16+G16 -> 1235996.42 | J16: 865905.55 | K16: 94472.84 | L16: 0 | M16: 51487.95 | N16: =J16+K16+L16+M16 -> 1011866.34 | O16: =H16-N16 -> 224130.08 | Q16: =AVERAGE(H16,D16) -> 1081387.975 | R16: =AVERAGE(N16,J16) -> 938885.945
A17: CEC | B17: 1612 | C17: Land Rights (Formally known as Account 1906 and 1806) | D17: 0 | E17: 0 | F17: 0 | G17: 0 | H17: =D17+E17+F17+G17 -> 0 | J17: 0 | K17: 0 | L17: 0 | M17: 0 | N17: =J17+K17+L17+M17 -> 0 | O17: =H17-N17 -> 0 | Q17: 0 | R17: 0
A18: N/A | B18: 1805 | C18: Land | D18: 227768.86 | E18: 0 | F18: 0 | G18: 0 | H18: 227768.86 | J18: 0 | K18: 0 | L18: 0 | M18: 0 | N18: 0 | O18: 227768.86 | Q18: 227768.86 | R18: 0
A19: 47 | B19: 1808 | C19: Buildings | D19: 2486318 | E19: 8091.26 | F19: 0 | G19: 0 | H19: 2494409.26 | J19: 275084.16 | K19: 52212.95 | L19: 0 | M19: -24297.48 | N19: 302999.63 | O19: 2191409.63 | Q19: 2490363.63 | R19: 289041.895
A20: 13 | B20: 1810 | C20: Leasehold Improvements | D20: 0 | E20: 0 | F20: 0 | G20: 0 | H20: 0 | J20: 0 | K20: 0 | L20: 0 | M20: 0 | N20: 0 | O20: 0 | Q20: 0 | R20: 0
A21: 47 | B21: 1815 | C21: Transformer Station Equipment >50 kV | D21: 0 | E21: 0 | F21: 0 | G21: 0 | H21: 0 | J21: 0 | K21: 0 | L21: 0 | M21: 0 | N21: 0 | O21: 0 | Q21: 0 | R21: 0
A22: 47 | B22: 1820 | C22: Distribution Station Equipment <50 kV | D22: 4179819.35 | E22: 30940 | F22: 0 | G22: 0 | H22: 4210759.35 | J22: 1697942.05 | K22: 290619.17 | L22: 0 | M22: -67859.83 | N22: 1920701.39 | O22: 2290057.96 | Q22: 4195289.35 | R22: 1809321.72
A23: 47 | B23: 1825 | C23: Storage Battery Equipment | D23: 0 | E23: 0 | F23: 0 | G23: 0 | H23: 0 | J23: 0 | K23: 0 | L23: 0 | M23: 0 | N23: 0 | O23: 0 | Q23: 0 | R23: 0
A24: 47 | B24: 1830 | C24: Poles, Towers & Fixtures | D24: 7760245.85 | E24: =823865.35-G24 -> 923362.03 | F24: 0 | G24: -99496.68 | H24: 8584111.2 | J24: 2671024.23 | K24: 113688.5 | L24: 0 | M24: -157300.15 | N24: 2627412.58 | O24: 5956698.62 | Q24: 8172178.525 | R24: 2649218.405
A25: 47 | B25: 1835 | C25: Overhead Conductors & Devices | D25: 11092581.42 | E25: =852013.1-G25 -> 1056694.51 | F25: 0 | G25: -204681.41 | H25: 11944594.52 | J25: 3791834.39 | K25: 149574.57 | L25: 0 | M25: -226721.44 | N25: 3714687.52 | O25: 8229907 | Q25: 11518587.97 | R25: 3753260.955
A26: 47 | B26: 1840 | C26: Underground Conduit | D26: 3072706.63 | E26: =147175.97-G26 -> 151445.46 | F26: 0 | G26: -4269.49 | H26: 3219882.6 | J26: 1091093.68 | K26: 28225.22 | L26: 0 | M26: -64064.89 | N26: 1055254.01 | O26: 2164628.59 | Q26: 3146294.615 | R26: 1073173.845
A27: 47 | B27: 1845 | C27: Underground Conductors & Devices | D27: 9459116.55 | E27: =246126.74-G27 -> 338983.21 | F27: 0 | G27: -92856.47 | H27: 9705243.29 | J27: 3047007.64 | K27: 202202.76 | L27: 0 | M27: -192623.25 | N27: 3056587.15 | O27: 6648656.14 | Q27: 9582179.92 | R27: 3051797.395
A28: 47 | B28: 1850 | C28: Line Transformers | D28: 8365268.26 | E28: =146901.55-G28 -> 201308.01 | F28: 0 | G28: -54406.46 | H28: 8512169.81 | J28: 3047552.46 | K28: 218231.37 | L28: 0 | M28: -173431.55 | N28: 3092352.28 | O28: 5419817.53 | Q28: 8438719.035 | R28: 3069952.37
A29: 47 | B29: 1855 | C29: Services (Overhead & Underground) | D29: 4791959.46 | E29: =206120.59-G29 -> 261100.42 | F29: 0 | G29: -54979.83 | H29: 4998080.05 | J29: 1510343.93 | K29: 85813.58 | L29: 0 | M29: -95230.56 | N29: 1500926.95 | O29: 3497153.1 | Q29: 4895019.755 | R29: 1505635.44
A30: 47 | B30: 1860 | C30: Meters | D30: 1679830.55 | E30: =69439.34-G30 -> 77974.71 | F30: -250593.51 | G30: -8535.37 | H30: 1498676.38 | J30: 502391.81 | K30: 78005.67 | L30: =-(15916.08+31832.37+26081.03+8436.79+6792.28+2058.13+1142.99+888.3+687.21+5293.91+1824.24+25.46+1700.47-25.46) -> -102653.8 | M30: =-37983.94+608408 -> 570424.06 | N30: =J30+K30+L30+M30 -> 1048167.74 | O30: 450508.64 | Q30: 1589253.465 | R30: 775279.775
A31: 47 | B31: 1860 | C31: Meters (Smart Meters) | D31: 150793.3 | E31: 3849691.9 | F31: 0 | G31: 0 | H31: 4000485.2 | J31: 12068.83 | K31: 250125.3 | L31: 0 | M31: =656471.93-608408 -> 48063.93 | N31: 310258.06 | O31: 3690227.14 | Q31: 2075639.25 | R31: 161163.445
A32: N/A | B32: 1905 | C32: Land | D32: 1634.63 | E32: 0 | F32: 0 | G32: 0 | H32: 1634.63 | J32: 0 | K32: 0 | L32: 0 | M32: 0 | N32: 0 | O32: 1634.63 | Q32: 1634.63 | R32: 0
A33: 47 | B33: 1908 | C33: Buildings & Fixtures | D33: 0 | E33: 0 | F33: 0 | G33: 0 | H33: 0 | J33: 0 | K33: 0 | L33: 0 | M33: 0 | N33: 0 | O33: 0 | Q33: 0 | R33: 0
A34: 13 | B34: 1910 | C34: Leasehold Improvements | D34: 0 | E34: 0 | F34: 0 | G34: 0 | H34: 0 | J34: 0 | K34: 0 | L34: 0 | M34: 0 | N34: 0 | O34: 0 | Q34: 0 | R34: 0
A35: 8 | B35: 1915 | C35: Office Furniture & Equipment (10 years) | D35: 265118.15 | E35: 12647.18 | F35: -10275.16 | G35: 0 | H35: 267490.17 | J35: 200994.97 | K35: 16204.52 | L35: -6695.69 | M35: -7289.43 | N35: 203214.37 | O35: 64275.8 | Q35: 266304.16 | R35: 202104.67
A36: 8 | B36: 1915 | C36: Office Furniture & Equipment (5 years) | D36: 0 | E36: 0 | F36: 0 | G36: 0 | H36: 0 | J36: 0 | K36: 0 | L36: 0 | M36: 0 | N36: 0 | O36: 0 | Q36: 0 | R36: 0
A37: 10 | B37: 1920 | C37: Computer Equipment - Hardware | D37: 275946.03 | E37: 0 | F37: 0 | G37: 0 | H37: 275946.03 | J37: 275946.03 | K37: 0 | L37: 0 | N37: 275946.03 | O37: 0 | Q37: 275946.03 | R37: 275946.03
A38: 45 | B38: 1920 | C38: Computer Equip.-Hardware(Post Mar. 22/04) | D38: 52211.63 | E38: 0 | F38: 0 | G38: 0 | H38: 52211.63 | J38: 52211.63 | K38: 0 | L38: 0 | N38: 52211.63 | O38: 0 | Q38: 52211.63 | R38: 52211.63
A39: 45.1 | B39: 1920 | C39: Computer Equip.-Hardware(Post Mar. 19/07) | D39: 163095.05 | E39: 82496.4 | F39: 0 | G39: 0 | H39: 245591.45 | J39: 104277.78 | K39: 85967.74 | L39: 0 | M39: -12580.54 | N39: 177664.98 | O39: 67926.47 | Q39: 204343.25 | R39: 140971.38
A40: 10 | B40: 1930 | C40: Transportation Equipment | D40: 2250267.34 | E40: 0 | F40: 0 | G40: 0 | H40: 2250267.34 | J40: 1288730.84 | K40: 104557.96 | L40: 0 | M40: -110224.43 | N40: 1283064.37 | O40: 967202.97 | Q40: 2250267.34 | R40: 1285897.605
A41: 8 | B41: 1935 | C41: Stores Equipment | D41: 86277.71 | E41: 0 | F41: 0 | G41: 0 | H41: 86277.71 | J41: 34523.91 | K41: 9753.1 | L41: 0 | M41: -4070.75 | N41: 40206.26 | O41: 46071.45 | Q41: 86277.71 | R41: 37365.085
A42: 8 | B42: 1940 | C42: Tools, Shop & Garage Equipment | D42: 297961.28 | E42: 41297.85 | F42: 0 | G42: 0 | H42: 339259.13 | J42: 203202.69 | K42: 20280.96 | L42: 0 | M42: -9167.69 | N42: 214315.96 | O42: 124943.17 | Q42: 318610.205 | R42: 208759.325
A43: 8 | B43: 1945 | C43: Measurement & Testing Equipment | D43: 80686.1 | E43: 0 | F43: 0 | G43: 0 | H43: 80686.1 | J43: 42291.42 | K43: 9184.28 | L43: 0 | M43: -3556.44 | N43: 47919.26 | O43: 32766.84 | Q43: 80686.1 | R43: 45105.34
A44: 8 | B44: 1950 | C44: Power Operated Equipment | D44: 89271.96 | E44: 0 | F44: 0 | G44: 0 | H44: 89271.96 | J44: 45364.45 | K44: 9508.86 | L44: 0 | M44: -3895.13 | N44: 50978.18 | O44: 38293.78 | Q44: 89271.96 | R44: 48171.315
A45: 8 | B45: 1955 | C45: Communications Equipment | D45: 176173.24 | E45: 0 | F45: 0 | G45: 0 | H45: 176173.24 | J45: 126372.64 | K45: 8564.95 | L45: 0 | M45: -9927.17 | N45: 125010.42 | O45: 51162.82 | Q45: 176173.24 | R45: 125691.53
A46: 8 | B46: 1955 | C46: Communication Equipment (Smart Meters) | D46: 0 | E46: 0 | F46: 0 | G46: 0 | H46: 0 | J46: 0 | K46: 0 | L46: 0 | N46: 0 | O46: 0 | Q46: 0 | R46: 0
A47: 8 | B47: 1960 | C47: Miscellaneous Equipment | D47: 60690.78 | E47: 26266.13 | F47: 0 | G47: 0 | H47: 86956.91 | J47: 33091.83 | K47: 5831.09 | L47: 0 | M47: -1533.57 | N47: 37389.35 | O47: =H47-N47 -> 49567.56 | Q47: 73823.845 | R47: 35240.59
A48: 47 | B48: 1970 | C48: Load Management Controls Customer Premises | D48: 0 | E48: 0 | F48: 0 | G48: 0 | H48: 0 | J48: 0 | K48: 0 | L48: 0 | N48: 0 | O48: 0 | Q48: 0 | R48: 0
A49: 47 | B49: 1975 | C49: Load Management Controls Utility Premises | D49: 258630.5 | E49: 0 | F49: 0 | G49: 0 | H49: 258630.5 | J49: 258630.5 | K49: 0 | L49: 0 | N49: 258630.5 | O49: 0 | Q49: 258630.5 | R49: 258630.5
A50: 47 | B50: 1980 | C50: System Supervisor Equipment | D50: 0 | E50: 0 | F50: 0 | G50: 0 | H50: 0 | J50: 0 | K50: 0 | L50: 0 | N50: 0 | O50: 0 | Q50: 0 | R50: 0
A51: 47 | B51: 1985 | C51: Miscellaneous Fixed Assets | D51: 1426.68 | E51: 0 | F51: 0 | G51: 0 | H51: 1426.68 | J51: 1426.68 | K51: 0 | L51: 0 | N51: =J51+K51+L51+M51 -> 1426.68 | O51: 0 | Q51: 1426.68 | R51: 1426.68
A52: 47 | B52: 1990 | C52: Other Tangible Property | D52: 0 | E52: 0 | F52: 0 | G52: 0 | H52: 0 | J52: 0 | K52: 0 | L52: 0 | N52: 0 | O52: 0 | Q52: 0 | R52: 0
A53: 47 | B53: 1995 | C53: Contributions & Grants | D53: -8896788.4 | E53: -473674 | F53: 0 | G53: 0 | H53: -9370462.4 | J53: -2062405.27 | K53: -153728.45 | L53: 0 | M53: 183363.23 | N53: -2032770.49 | O53: -7337691.91 | Q53: -9133625.4 | R53: -2047587.88
B54: etc. | D54: 0 | E54: 0 | F54: 0 | G54: 0 | H54: 0 | J54: 0 | K54: 0 | L54: 0 | N54: 0 | O54: 0 | Q54: 0 | R54: 0
B55: etc. | D55: 0 | E55: 0 | F55: 0 | G55: 0 | H55: 0 | J55: 0 | K55: 0 | L55: 0 | N55: 0 | O55: 0 | Q55: 0 | R55: 0
B56: etc. | D56: 0 | E56: 0 | F56: 0 | G56: 0 | H56: 0 | J56: 0 | K56: 0 | L56: 0 | N56: 0 | O56: 0 | Q56: 0 | R56: 0
B57: etc. | D57: 0 | E57: 0 | F57: 0 | G57: 0 | H57: 0 | J57: 0 | K57: 0 | L57: 0 | N57: 0 | O57: 0 | Q57: 0 | R57: 0
B58: etc. | D58: 0 | E58: 0 | F58: 0 | G58: 0 | H58: 0 | J58: 0 | K58: 0 | L58: 0 | N58: 0 | O58: 0 | Q58: 0 | R58: 0
B59: etc. | D59: 0 | E59: 0 | F59: 0 | G59: 0 | H59: 0 | J59: 0 | K59: 0 | L59: 0 | N59: 0 | O59: 0 | Q59: 0 | R59: 0
B60: etc. | D60: 0 | E60: 0 | F60: 0 | G60: 0 | H60: 0 | J60: 0 | K60: 0 | L60: 0 | N60: 0 | O60: 0 | Q60: 0 | R60: 0
B61: etc. | D61: 0 | E61: 0 | F61: 0 | G61: 0 | H61: 0 | J61: 0 | K61: 0 | L61: 0 | N61: 0 | O61: 0 | Q61: 0 | R61: 0
B62: etc. | D62: 0 | E62: 0 | F62: 0 | G62: 0 | H62: 0 | J62: 0 | K62: 0 | L62: 0 | N62: 0 | O62: 0 | Q62: 0 | R62: 0
B63: etc. | D63: 0 | E63: 0 | F63: 0 | G63: 0 | H63: 0 | J63: 0 | K63: 0 | L63: 0 | N63: 0 | O63: 0 | Q63: 0 | R63: 0
B64: etc. | D64: 0 | E64: 0 | F64: 0 | G64: 0 | H64: 0 | J64: 0 | K64: 0 | L64: 0 | N64: 0 | O64: 0 | Q64: 0 | R64: 0
H65: =D65+E65+F65 -> 0 | J65: 0 | K65: 0 | L65: 0 | N65: =J65+K65+L65+M65 -> 0 | O65: 0 | Q65: 0 | R65: 0
C66: Sub-Total | D66: =SUM(D16:D65) -> 49355790.44 | E66: =SUM(E16:E65) -> 6897841.96 | F66: =SUM(F16:F65) -> -260868.67 | G66: -519225.71 | H66: =SUM(H16:H65) -> 55473538.02 | J66: 19116908.83 | K66: =SUM(K16:K65) -> 1679296.94 | L66: -109349.49 | M66: =SUM(M16:M65) -> -310435.13 | N66: =SUM(N16:N65) -> 20376421.15 | O66: =SUM(O16:O65) -> 35097116.87 | Q66: =SUM(Q16:Q65) -> 52414664.23 | R66: =SUM(R16:R65) -> 19746664.99
C67: Less Socialized Renewable Energy Generation Investments (input as negative)Less Socialized Renewable Energy Generation Investments (input as negative) | H67: =D67+E67+F67+G67 -> 0 | N67: =J67+K67+L67+M67 -> 0 | O67: =H67+N67 -> 0
C68: Less Other Non Rate-Regulated Utility Assets (input as negative)Less Other Non Rate-Regulated Utility Assets (input as negative) | H68: =D68+E68+F68 -> 0 | N68: =J68+K68+L68+M68 -> 0 | O68: =H68+N68 -> 0
C69: Total PP&E | D69: =SUM(D66:D68) -> 49355790.44 | E69: =SUM(E66:E68) -> 6897841.96 | F69: =SUM(F66:F68) -> -260868.67 | G69: =SUM(G66:G68) -> -519225.71 | H69: =SUM(H66:H68) -> 55473538.02 | J69: =SUM(J66:J68) -> 19116908.83 | K69: 1679296.94 | L69: -109349.49 | M69: -310435.13 | N69: =SUM(N66:N68) -> 20376421.15 | O69: 35097116.87
C70: Depreciation Expense adj. from gain or loss on the retirement of assets (pool of like assets)
C71: Total | K71: =K69+K70 -> 1679296.94
K72: -134504 | L72: Net Adjustment to regulator account in year through amortization expense (IFRS Transition)
K73: 758531.77 | L73: Net Adjustment to regulator account in year through misc amortization expense (Stranded meters, Hardware, Software)
K74: 2303324.71 | L74: Depreciation Expense
H75: Less: Fully Allocated Depreciation
A76: 10 | C76: Transportation | H76: Transportation
A77: 8 | C77: Stores Equipment | H77: Stores Equipment
A78: 8 | C78: Tools, Shop | H78: Tools, Shop
A79: 8 | C79: Meas/Testing | H79: Meas/Testing
A80: 8 | C80: Communication | H80: Communication
H81: Net Depreciation | K81: =K74+K76+K80+K77+K78+K79 -> 2303324.71
E83: Year | F83: ='[1]0.1 LDC Info'!$E$27+1 -> 2014 | H83: Former CGAAP - without changes to the policies
D85: Cost | K85: Accumulated Depreciation
A86: CCA Class | B86: OEB | C86: Description | D86: Opening Balance | E86: Additions | F86: Disposals | H86: Closing Balance | J86: Opening Balance | K86: Additions | L86: Disposals | M86: Adjust. | N86: Closing Balance | O86: Net Book Value | Q86: AVG Gross Bal | R86: AVG AccDep
A87: 12 | B87: 1611 | C87: Computer Software (Formally known as Account 1925) | D87: =H16 -> 1235996.42 | E87: 115488.6 | F87: 0 | H87: =D87+E87+F87 -> 1351485.02 | J87: =N16 -> 1011866.34 | K87: 114868.57 | L87: 0 | N87: =J87+K87+L87+M87 -> 1126734.91 | O87: =H87-N87 -> 224750.11 | Q87: =AVERAGE(H87,D87) -> 1293740.72 | R87: =AVERAGE(N87,J87) -> 1069300.625
A88: CEC | B88: 1612 | C88: Land Rights (Formally known as Account 1906 and 1806) | D88: 0 | E88: 0 | F88: 0 | H88: =D88+E88+F88 -> 0 | J88: 0 | K88: 0 | L88: 0 | N88: =J88+K88+L88+M88 -> 0 | O88: =H88-N88 -> 0 | Q88: 0 | R88: 0
A89: N/A | B89: 1805 | C89: Land | D89: 227768.86 | E89: 0 | F89: 0 | H89: =D89+E89+F89 -> 227768.86 | J89: 0 | K89: 0 | L89: 0 | N89: 0 | O89: 227768.86 | Q89: 227768.86 | R89: 0
A90: 47 | B90: 1808 | C90: Buildings | D90: 2494409.26 | E90: 39428.96 | F90: 0 | H90: =D90+E90+F90 -> 2533838.22 | J90: 302999.63 | K90: 53024.53 | L90: 0 | N90: 356024.16 | O90: 2177814.06 | Q90: 2514123.74 | R90: 329511.895
A91: 13 | B91: 1810 | C91: Leasehold Improvements | D91: 0 | E91: 0 | F91: 0 | H91: 0 | J91: 0 | K91: 0 | L91: 0 | N91: 0 | O91: 0 | Q91: 0 | R91: 0
A92: 47 | B92: 1815 | C92: Transformer Station Equipment >50 kV | D92: 0 | E92: 0 | F92: 0 | H92: 0 | J92: 0 | K92: 0 | L92: 0 | N92: 0 | O92: 0 | Q92: 0 | R92: 0
A93: 47 | B93: 1820 | C93: Distribution Station Equipment <50 kV | D93: 4210759.35 | E93: 1810684.25 | F93: 0 | H93: 6021443.6 | J93: 1920701.39 | K93: 259437.48 | L93: 0 | N93: 2180138.87 | O93: 3841304.73 | Q93: 5116101.475 | R93: 2050420.13
A94: 47 | B94: 1825 | C94: Storage Battery Equipment | D94: 0 | E94: 0 | F94: 0 | H94: 0 | J94: 0 | K94: 0 | L94: 0 | N94: 0 | O94: 0 | Q94: 0 | R94: 0
A95: 47 | B95: 1830 | C95: Poles, Towers & Fixtures | D95: 8584111.2 | E95: 412617.51 | F95: 0 | H95: 8996728.71 | J95: 2627412.58 | K95: 126963.63 | L95: 0 | N95: 2754376.21 | O95: 6242352.5 | Q95: 8790419.955 | R95: 2690894.395
A96: 47 | B96: 1835 | C96: Overhead Conductors & Devices | D96: 11944594.52 | E96: 400614.53 | F96: 0 | H96: 12345209.05 | J96: 3714687.52 | K96: 153987.48 | L96: 0 | N96: 3868675 | O96: 8476534.05 | Q96: 12144901.79 | R96: 3791681.26
A97: 47 | B97: 1840 | C97: Underground Conduit | D97: 3219882.6 | E97: 67598.77 | F97: 0 | H97: 3287481.37 | J97: 1055254.01 | K97: 29521.41 | L97: 0 | N97: 1084775.42 | O97: 2202705.95 | Q97: 3253681.985 | R97: 1070014.715
A98: 47 | B98: 1845 | C98: Underground Conductors & Devices | D98: 9705243.29 | E98: 421513.2 | F98: 0 | H98: 10126756.49 | J98: 3056587.15 | K98: 210718.8 | L98: 0 | N98: 3267305.95 | O98: 6859450.54 | Q98: 9915999.89 | R98: 3161946.55
A99: 47 | B99: 1850 | C99: Line Transformers | D99: 8512169.81 | E99: 351724.97 | F99: 0 | H99: 8863894.78 | J99: 3092352.28 | K99: 225166.18 | L99: 0 | N99: 3317518.46 | O99: 5546376.32 | Q99: 8688032.295 | R99: 3204935.37
A100: 47 | B100: 1855 | C100: Services (Overhead & Underground) | D100: 4998080.05 | E100: 214778.07 | F100: 0 | H100: 5212858.12 | J100: 1500926.95 | K100: 90625.9 | L100: 0 | N100: 1591552.85 | O100: 3621305.27 | Q100: 5105469.085 | R100: 1546239.9
A101: 47 | B101: 1860 | C101: Meters | D101: 1498676.38 | E101: 79996.54 | F101: 0 | H101: 1578672.92 | J101: 1048167.74 | K101: 59260.87 | L101: 0 | N101: 1107428.61 | O101: 471244.31 | Q101: 1538674.65 | R101: 1077798.175
A102: 47 | B102: 1860 | C102: Meters (Smart Meters) | D102: 4000485.2 | E102: 298852.81 | F102: 0 | H102: 4299338.01 | J102: 310258.06 | K102: 288104.79 | L102: 0 | N102: 598362.85 | O102: 3700975.16 | Q102: 4149911.605 | R102: 454310.455
A103: N/A | B103: 1905 | C103: Land | D103: 1634.63 | E103: 0 | F103: 0 | H103: 1634.63 | J103: 0 | K103: 0 | L103: 0 | N103: 0 | O103: 1634.63 | Q103: 1634.63 | R103: 0
A104: 47 | B104: 1908 | C104: Buildings & Fixtures | D104: 0 | E104: 0 | F104: 0 | H104: 0 | J104: 0 | K104: 0 | L104: 0 | N104: 0 | O104: 0 | Q104: 0 | R104: 0
A105: 13 | B105: 1910 | C105: Leasehold Improvements | D105: 0 | E105: 0 | F105: 0 | H105: 0 | J105: 0 | K105: 0 | L105: 0 | N105: 0 | O105: 0 | Q105: 0 | R105: 0
A106: 8 | B106: 1915 | C106: Office Furniture & Equipment (10 years) | D106: 267490.17 | E106: 42233.98 | F106: -37368 | H106: 272356.15 | J106: 203214.37 | K106: 13262.6 | L106: -24794.04 | N106: 191682.93 | O106: 80673.22 | Q106: 269923.16 | R106: 197448.65
A107: 8 | B107: 1915 | C107: Office Furniture & Equipment (5 years) | D107: 0 | E107: 0 | F107: 0 | H107: 0 | J107: 0 | K107: 0 | L107: 0 | N107: 0 | O107: 0 | Q107: 0 | R107: 0
A108: 10 | B108: 1920 | C108: Computer Equipment - Hardware | D108: 275946.03 | E108: 0 | F108: 0 | H108: 275946.03 | J108: 275946.03 | K108: 0 | L108: 0 | N108: 275946.03 | O108: 0 | Q108: 275946.03 | R108: 275946.03
A109: 45 | B109: 1920 | C109: Computer Equip.-Hardware(Post Mar. 22/04) | D109: 52211.63 | E109: 0 | F109: 0 | H109: 52211.63 | J109: 52211.63 | K109: 0 | L109: 0 | N109: 52211.63 | O109: 0 | Q109: 52211.63 | R109: 52211.63
A110: 45.1 | B110: 1920 | C110: Computer Equip.-Hardware(Post Mar. 19/07) | D110: 245591.45 | E110: 2446.45 | F110: 0 | H110: 248037.9 | J110: 177664.98 | K110: 38195.43 | L110: 0 | N110: 215860.41 | O110: 32177.49 | Q110: 246814.675 | R110: 196762.695
A111: 10 | B111: 1930 | C111: Transportation Equipment | D111: 2250267.34 | E111: 371133.5 | F111: 0 | H111: 2621400.84 | J111: 1283064.37 | K111: 117351.09 | L111: 0 | N111: 1400415.46 | O111: 1220985.38 | Q111: 2435834.09 | R111: 1341739.915
A112: 8 | B112: 1935 | C112: Stores Equipment | D112: 86277.71 | E112: 580 | F112: 0 | H112: 86857.71 | J112: 40206.26 | K112: 9782.1 | L112: 0 | N112: 49988.36 | O112: 36869.35 | Q112: 86567.71 | R112: 45097.31
A113: 8 | B113: 1940 | C113: Tools, Shop & Garage Equipment | D113: 339259.13 | E113: 73831.78 | F113: 0 | H113: 413090.91 | J113: 214315.96 | K113: 26899.47 | L113: 0 | N113: 241215.43 | O113: 171875.48 | Q113: 376175.02 | R113: 227765.695
A114: 8 | B114: 1945 | C114: Measurement & Testing Equipment | D114: 80686.1 | E114: 0 | F114: 0 | H114: 80686.1 | J114: 47919.26 | K114: 9184.27 | L114: 0 | N114: 57103.53 | O114: 23582.57 | Q114: 80686.1 | R114: 52511.395
A115: 8 | B115: 1950 | C115: Power Operated Equipment | D115: 89271.96 | E115: 0 | F115: 0 | H115: 89271.96 | J115: 50978.18 | K115: 9508.84 | L115: 0 | N115: 60487.02 | O115: 28784.94 | Q115: 89271.96 | R115: 55732.6
A116: 8 | B116: 1955 | C116: Communications Equipment | D116: 176173.24 | E116: 545 | F116: 0 | H116: 176718.24 | J116: 125010.42 | K116: 8592.21 | L116: 0 | N116: 133602.63 | O116: 43115.61 | Q116: 176445.74 | R116: 129306.525
A117: 8 | B117: 1955 | C117: Communication Equipment (Smart Meters) | D117: 0 | E117: 0 | F117: 0 | H117: 0 | J117: 0 | K117: 0 | L117: 0 | N117: 0 | O117: 0 | Q117: 0 | R117: 0
A118: 8 | B118: 1960 | C118: Miscellaneous Equipment | D118: 86956.91 | E118: 17556 | F118: 0 | H118: 104512.91 | J118: 37389.35 | K118: 8168.11 | L118: 0 | N118: 45557.46 | O118: 58955.45 | Q118: 95734.91 | R118: 41473.405
A119: 47 | B119: 1970 | C119: Load Management Controls Customer Premises | D119: 0 | E119: 0 | F119: 0 | H119: 0 | J119: 0 | K119: 0 | L119: 0 | N119: 0 | O119: 0 | Q119: 0 | R119: 0
A120: 47 | B120: 1975 | C120: Load Management Controls Utility Premises | D120: 258630.5 | E120: 0 | F120: 0 | H120: 258630.5 | J120: 258630.5 | K120: 0 | L120: 0 | N120: 258630.5 | O120: 0 | Q120: 258630.5 | R120: 258630.5
A121: 47 | B121: 1980 | C121: System Supervisor Equipment | D121: 0 | E121: 0 | F121: 0 | H121: 0 | J121: 0 | K121: 0 | L121: 0 | N121: 0 | O121: 0 | Q121: 0 | R121: 0
A122: 47 | B122: 1985 | C122: Miscellaneous Fixed Assets | D122: 1426.68 | E122: 0 | F122: 0 | H122: 1426.68 | J122: 1426.68 | K122: 0 | L122: 0 | N122: 1426.68 | O122: 0 | Q122: 1426.68 | R122: 1426.68
A123: 47 | B123: 1990 | C123: Other Tangible Property | D123: 0 | E123: 0 | F123: 0 | H123: 0 | J123: 0 | K123: 0 | L123: 0 | N123: 0 | O123: 0 | Q123: 0 | R123: 0
A124: 47 | B124: 1995 | C124: Contributions & Grants | D124: -9370462.4 | E124: -394426 | F124: 37008 | H124: -9727880.4 | J124: -2032770.49 | K124: -175879.95 | L124: 0 | N124: -2208650.44 | O124: -7519229.96 | Q124: -9549171.4 | R124: -2120710.465
B125: etc. | D125: 0 | E125: 0 | F125: 0 | H125: 0 | K125: 0 | L125: 0 | N125: 0 | O125: 0 | Q125: 0 | R125: 0
B126: etc. | D126: 0 | E126: 0 | F126: 0 | H126: 0 | K126: 0 | L126: 0 | N126: 0 | O126: 0 | Q126: 0 | R126: 0
B127: etc. | D127: 0 | E127: 0 | F127: 0 | H127: 0 | K127: 0 | L127: 0 | N127: 0 | O127: 0 | Q127: 0 | R127: 0
B128: etc. | D128: 0 | E128: 0 | F128: 0 | H128: 0 | K128: 0 | L128: 0 | N128: 0 | O128: 0 | Q128: 0 | R128: 0
B129: etc. | D129: 0 | E129: 0 | F129: 0 | H129: 0 | K129: 0 | L129: 0 | N129: 0 | O129: 0 | Q129: 0 | R129: 0
B130: etc. | D130: 0 | E130: 0 | F130: 0 | H130: 0 | K130: 0 | L130: 0 | N130: 0 | O130: 0 | Q130: 0 | R130: 0
B131: etc. | D131: 0 | E131: 0 | F131: 0 | H131: 0 | K131: 0 | L131: 0 | N131: 0 | O131: 0 | Q131: 0 | R131: 0
B132: etc. | D132: 0 | E132: 0 | F132: 0 | H132: 0 | K132: 0 | L132: 0 | N132: 0 | O132: 0 | Q132: 0 | R132: 0
B133: etc. | D133: 0 | E133: 0 | F133: 0 | H133: 0 | K133: 0 | L133: 0 | N133: 0 | O133: 0 | Q133: 0 | R133: 0
B134: etc. | D134: 0 | E134: 0 | F134: 0 | H134: 0 | K134: 0 | L134: 0 | N134: 0 | O134: 0 | Q134: 0 | R134: 0
B135: etc. | D135: 0 | E135: 0 | F135: 0 | H135: =D135+E135+F135 -> 0 | K135: 0 | L135: 0 | N135: 0 | O135: 0 | Q135: 0 | R135: 0
D136: 0 | H136: =D136+E136+F136 -> 0 | J136: =N65 -> 0 | K136: 0 | L136: 0 | N136: 0 | O136: 0 | Q136: 0 | R136: 0
C137: Sub-Total | D137: =SUM(D87:D136) -> 55473538.02 | E137: =SUM(E87:E136) -> 4327198.92 | F137: =SUM(F87:F136) -> -360 | H137: =SUM(H87:H136) -> 59800376.94 | J137: =SUM(J87:J136) -> 20376421.15 | K137: =SUM(K87:K136) -> 1676743.81 | L137: =SUM(L87:L136) -> -24794.04 | N137: =SUM(N87:N136) -> 22028370.92 | O137: =SUM(O87:O136) -> 37772006.02 | Q137: =SUM(Q87:Q136) -> 57636957.48 | R137: =SUM(R87:R136) -> 21202396.03
C138: Less Socialized Renewable Energy Generation Investments (input as negative)Less Socialized Renewable Energy Generation Investments (input as negative) | H138: =D138+E138+F138 -> 0 | N138: =J138+K138+L138+M138 -> 0 | O138: =H138+N138 -> 0 | Q138: =Q137-R137 -> 36434561.45
C139: Less Other Non Rate-Regulated Utility Assets (input as negative)Less Other Non Rate-Regulated Utility Assets (input as negative) | H139: =D139+E139+F139 -> 0 | N139: =J139+K139+L139+M139 -> 0 | O139: =H139+N139 -> 0
C140: Total PP&E | D140: =SUM(D137:D139) -> 55473538.02 | E140: =SUM(E137:E139) -> 4327198.92 | F140: =SUM(F137:F139) -> -360 | H140: =SUM(H137:H139) -> 59800376.94 | J140: =SUM(J137:J139) -> 20376421.15 | K140: =SUM(K137:K139) -> 1676743.81 | L140: =SUM(L137:L139) -> -24794.04 | N140: =SUM(N137:N139) -> 22028370.92 | O140: =SUM(O137:O139) -> 37772006.02 | Q140: =(O140+O69)/2 -> 36434561.45
C141: Depreciation Expense adj. from gain or loss on the retirement of assets (pool of like assets)
C142: Total | K142: =K140+K141 -> 1676743.81
K143: -134503.8 | L143: Net Adjustment to regulator account in year through amortization expense (IFRS Transition)
K144: =K142+K143 -> 1542240.01 | L144: Depreciation Expense
H145: Less: Fully Allocated Depreciation
A146: 10 | C146: Transportation | H146: Transportation
A147: 8 | C147: Stores Equipment | H147: Stores Equipment
A148: 8 | C148: Tools, Shop | H148: Tools, Shop
A149: 8 | C149: Meas/Testing | H149: Meas/Testing
A150: 8 | C150: Communication | H150: Communication
H151: Net Depreciation | K151: =K144+K146+K150+K147+K148+K149 -> 1542240.01
E153: Year | F153: ='[1]0.1 LDC Info'!$E$27+2 -> 2015 | H153: CGAAP - with changes to policies
D155: Cost | K155: Accumulated Depreciation
A156: CCA Class | B156: OEB | C156: Description | D156: Opening Balance | E156: Additions | F156: Disposals | H156: Closing Balance | J156: Opening Balance | K156: Additions | L156: Disposals | M156: Adjust. | N156: Closing Balance | O156: Net Book Value | Q156: AVG Gross Bal | R156: AVG AccDep
A157: 12 | B157: 1611 | C157: Computer Software (Formally known as Account 1925) | D157: =H87 -> 1351485.02 | E157: 187989.61 | F157: 0 | H157: =D157+E157+F157 -> 1539474.63 | J157: =N87 -> 1126734.91 | K157: 124746.14 | L157: 0 | N157: =J157+K157+L157+M157 -> 1251481.05 | O157: =H157-N157 -> 287993.58 | Q157: =AVERAGE(H157,D157) -> 1445479.825 | R157: =AVERAGE(N157,J157) -> 1189107.98
A158: CEC | B158: 1612 | C158: Land Rights (Formally known as Account 1906 and 1806) | D158: 0 | E158: 0 | F158: 0 | H158: =D158+E158+F158 -> 0 | J158: 0 | K158: 0 | L158: 0 | N158: =J158+K158+L158+M158 -> 0 | O158: =H158-N158 -> 0 | Q158: 0 | R158: 0
A159: N/A | B159: 1805 | C159: Land | D159: 227768.86 | E159: 0 | F159: 0 | H159: =D159+E159+F159 -> 227768.86 | J159: 0 | K159: 0 | L159: 0 | N159: 0 | O159: 227768.86 | Q159: 227768.86 | R159: 0
A160: 47 | B160: 1808 | C160: Buildings | D160: 2533838.22 | E160: =40948.56 -> 40948.56 | F160: 0 | H160: =D160+E160+F160 -> 2574786.78 | J160: 356024.16 | K160: 53470 | L160: 0 | N160: 409494.16 | O160: 2165292.62 | Q160: 2554312.5 | R160: 382759.16
A161: 13 | B161: 1810 | C161: Leasehold Improvements | D161: 0 | F161: 0 | H161: 0 | J161: 0 | K161: 0 | L161: 0 | N161: 0 | O161: 0 | Q161: 0 | R161: 0
A162: 47 | B162: 1815 | C162: Transformer Station Equipment >50 kV | D162: 0 | E162: 0 | F162: 0 | H162: 0 | J162: 0 | K162: 0 | L162: 0 | N162: 0 | O162: 0 | Q162: 0 | R162: 0
A163: 47 | B163: 1820 | C163: Distribution Station Equipment <50 kV | D163: 6021443.6 | E163: =866730.72 -> 866730.72 | F163: 0 | H163: 6888174.32 | J163: 2180138.87 | K163: 300047.16 | L163: 0 | N163: 2480186.03 | O163: 4407988.29 | Q163: 6454808.96 | R163: 2330162.45
A164: 47 | B164: 1825 | C164: Storage Battery Equipment | D164: 0 | E164: 0 | F164: 0 | H164: 0 | J164: 0 | K164: 0 | L164: 0 | N164: 0 | O164: 0 | Q164: 0 | R164: 0
A165: 47 | B165: 1830 | C165: Poles, Towers & Fixtures | D165: 8996728.71 | E165: =563723.52 -> 563723.52 | F165: -5371.35 | H165: 9555080.88 | J165: 2754376.21 | K165: 142398.65 | L165: 0 | N165: 2896774.86 | O165: 6658306.02 | Q165: 9275904.795 | R165: 2825575.535
A166: 47 | B166: 1835 | C166: Overhead Conductors & Devices | D166: 12345209.05 | E166: =849171.06 -> 849171.06 | F166: -21928.11 | H166: 13172452 | J166: 3868675 | K166: 162665 | L166: 0 | N166: 4031340 | O166: 9141112 | Q166: 12758830.52 | R166: 3950007.5
A167: 47 | B167: 1840 | C167: Underground Conduit | D167: 3287481.37 | E167: =48936.47 -> 48936.47 | F167: 0 | H167: 3336417.84 | J167: 1084775.42 | K167: 30211.64 | L167: 0 | N167: 1114987.06 | O167: 2221430.78 | Q167: 3311949.605 | R167: 1099881.24
A168: 47 | B168: 1845 | C168: Underground Conductors & Devices | D168: 10126756.49 | E168: =539282.59 -> 539282.59 | F168: -38517.74 | H168: 10627521.34 | J168: 3267305.95 | K168: 215864 | L168: 0 | N168: 3483169.95 | O168: 7144351.39 | Q168: 10377138.91 | R168: 3375237.95
A169: 47 | B169: 1850 | C169: Line Transformers | D169: 8863894.78 | E169: =309609.13 -> 309609.13 | F169: -81409.07 | H169: 9092094.84 | J169: 3317518.46 | K169: 226572.07 | L169: 0 | N169: 3544090.53 | O169: 5548004.31 | Q169: 8977994.81 | R169: 3430804.495
A170: 47 | B170: 1855 | C170: Services (Overhead & Underground) | D170: 5212858.12 | E170: =196699.42 -> 196699.42 | F170: 0 | H170: 5409557.54 | J170: 1591552.85 | K170: 95000.5 | L170: 0 | N170: 1686553.35 | O170: 3723004.19 | Q170: 5311207.83 | R170: 1639053.1
A171: 47 | B171: 1860 | C171: Meters | D171: 1578672.92 | E171: =154402.09 -> 154402.09 | F171: 0 | H171: 1733075.01 | J171: 1107428.61 | K171: 58138.2 | L171: 0 | N171: 1165566.81 | O171: 567508.2 | Q171: 1655873.965 | R171: 1136497.71
A172: 47 | B172: 1860 | C172: Meters (Smart Meters) | D172: 4299338.01 | E172: 77709.22 | F172: -57253.52 | H172: 4319793.71 | J172: 598362.85 | K172: =349966.76-K171 -> 291828.56 | L172: 0 | N172: 890191.41 | O172: 3429602.3 | Q172: 4309565.86 | R172: 744277.13
A173: N/A | B173: 1905 | C173: Land | D173: 1634.63 | E173: 0 | F173: 0 | H173: 1634.63 | J173: 0 | K173: 0 | L173: 0 | N173: 0 | O173: 1634.63 | Q173: 1634.63 | R173: 0
A174: 47 | B174: 1908 | C174: Buildings & Fixtures | D174: 0 | E174: 0 | F174: 0 | H174: 0 | J174: 0 | K174: 0 | L174: 0 | N174: 0 | O174: 0 | Q174: 0 | R174: 0
A175: 13 | B175: 1910 | C175: Leasehold Improvements | D175: 0 | E175: 0 | F175: 0 | H175: 0 | J175: 0 | K175: 0 | L175: 0 | N175: 0 | O175: 0 | Q175: 0 | R175: 0
A176: 8 | B176: 1915 | C176: Office Furniture & Equipment (10 years) | D176: 272356.15 | E176: =21090.8 -> 21090.8 | F176: 0 | H176: 293446.95 | J176: 191682.93 | K176: 16663.47 | L176: 0 | N176: 208346.4 | O176: 85100.55 | Q176: 282901.55 | R176: 200014.665
A177: 8 | B177: 1915 | C177: Office Furniture & Equipment (5 years) | D177: 0 | E177: 0 | F177: 0 | H177: 0 | J177: 0 | K177: 0 | L177: 0 | N177: 0 | O177: 0 | Q177: 0 | R177: 0
A178: 10 | B178: 1920 | C178: Computer Equipment - Hardware | D178: 275946.03 | F178: 0 | H178: 275946.03 | J178: 275946.03 | K178: 0 | L178: 0 | N178: 275946.03 | O178: 0 | Q178: 275946.03 | R178: 275946.03
A179: 45 | B179: 1920 | C179: Computer Equip.-Hardware(Post Mar. 22/04) | D179: 52211.63 | F179: 0 | H179: 52211.63 | J179: 52211.63 | K179: 0 | L179: 0 | N179: 52211.63 | O179: 0 | Q179: 52211.63 | R179: 52211.63
A180: 45.1 | B180: 1920 | C180: Computer Equip.-Hardware(Post Mar. 19/07) | D180: 248037.9 | E180: =179867.06 -> 179867.06 | F180: 0 | H180: 427904.96 | J180: 215860.41 | K180: 37486.69 | L180: 0 | N180: 253347.1 | O180: 174557.86 | Q180: 337971.43 | R180: 234603.755
A181: 10 | B181: 1930 | C181: Transportation Equipment | D181: 2621400.84 | E181: =58226.24 -> 58226.24 | F181: 0 | H181: 2679627.08 | J181: 1400415.46 | K181: 131380.45 | L181: 0 | N181: 1531795.91 | O181: 1147831.17 | Q181: 2650513.96 | R181: 1466105.685
A182: 8 | B182: 1935 | C182: Stores Equipment | D182: 86857.71 | F182: 0 | H182: 86857.71 | J182: 49988.36 | K182: 9814.32 | L182: 0 | N182: 59802.68 | O182: 27055.03 | Q182: 86857.71 | R182: 54895.52
A183: 8 | B183: 1940 | C183: Tools, Shop & Garage Equipment | D183: 413090.91 | E183: =93460.02 -> 93460.02 | F183: 0 | H183: 506550.93 | J183: 241215.43 | K183: 33440.9 | L183: 0 | N183: 274656.33 | O183: 231894.6 | Q183: 459820.92 | R183: 257935.88
A184: 8 | B184: 1945 | C184: Measurement & Testing Equipment | D184: 80686.1 | F184: 0 | H184: 80686.1 | J184: 57103.53 | K184: 8049.41 | L184: 0 | N184: 65152.94 | O184: 15533.16 | Q184: 80686.1 | R184: 61128.235
A185: 8 | B185: 1950 | C185: Power Operated Equipment | D185: 89271.96 | F185: 0 | H185: 89271.96 | J185: 60487.02 | K185: 8301.67 | L185: 0 | N185: 68788.69 | O185: 20483.27 | Q185: 89271.96 | R185: 64637.855
A186: 8 | B186: 1955 | C186: Communications Equipment | D186: 176718.24 | E186: =20845.11 -> 20845.11 | F186: 0 | H186: 197563.35 | J186: 133602.63 | K186: 9664.74 | L186: 0 | N186: 143267.37 | O186: 54295.98 | Q186: 187140.795 | R186: 138435
A187: 8 | B187: 1955 | C187: Communication Equipment (Smart Meters) | D187: 0 | H187: 0 | J187: 0 | K187: 0 | L187: 0 | N187: 0 | O187: 0 | Q187: 0 | R187: 0
A188: 8 | B188: 1960 | C188: Miscellaneous Equipment | D188: 104512.91 | E188: =17800 -> 17800 | F188: -788.06 | H188: 121524.85 | J188: 45557.46 | K188: 8951.63 | L188: 0 | N188: 54509.09 | O188: 67015.76 | Q188: 113018.88 | R188: 50033.275
A189: 47 | B189: 1970 | C189: Load Management Controls Customer Premises | D189: 0 | F189: 0 | H189: 0 | J189: 0 | K189: 0 | L189: 0 | N189: 0 | O189: 0 | Q189: 0 | R189: 0
A190: 47 | B190: 1975 | C190: Load Management Controls Utility Premises | D190: 258630.5 | E190: 0 | F190: 0 | H190: 258630.5 | J190: 258630.5 | K190: 0 | L190: 0 | N190: 258630.5 | O190: 0 | Q190: 258630.5 | R190: 258630.5
A191: 47 | B191: 1980 | C191: System Supervisor Equipment | D191: 0 | F191: 0 | H191: 0 | J191: 0 | K191: 0 | L191: 0 | N191: 0 | O191: 0 | Q191: 0 | R191: 0
A192: 47 | B192: 1985 | C192: Miscellaneous Fixed Assets | D192: 1426.68 | E192: 0 | F192: 0 | H192: 1426.68 | J192: 1426.68 | K192: 0 | L192: 0 | N192: 1426.68 | O192: 0 | Q192: 1426.68 | R192: 1426.68
A193: 47 | B193: 1990 | C193: Other Tangible Property | D193: 0 | F193: 0 | H193: 0 | J193: 0 | K193: 0 | L193: 0 | N193: 0 | O193: 0 | Q193: 0 | R193: 0
A194: 47 | B194: 1995 | C194: Contributions & Grants | D194: -9727880.4 | E194: =-360794.47 -> -360794.47 | F194: 0 | H194: -10088674.87 | J194: -2208650.44 | K194: -184586.75 | L194: 0 | N194: -2393237.19 | O194: -7695437.68 | Q194: -9908277.635 | R194: -2300943.815
B195: etc. | D195: 0 | E195: 0 | F195: 0 | H195: 0 | J195: 0 | K195: 0 | L195: 0 | N195: 0 | O195: 0 | Q195: 0 | R195: 0
B196: etc. | D196: 0 | E196: 0 | F196: 0 | H196: 0 | J196: 0 | K196: 0 | L196: 0 | N196: 0 | O196: 0 | Q196: 0 | R196: 0
B197: etc. | D197: 0 | E197: 0 | F197: 0 | H197: 0 | J197: 0 | K197: 0 | L197: 0 | N197: 0 | O197: 0 | Q197: 0 | R197: 0
B198: etc. | D198: 0 | E198: 0 | F198: 0 | H198: 0 | J198: 0 | K198: 0 | L198: 0 | N198: 0 | O198: 0 | Q198: 0 | R198: 0
B199: etc. | D199: 0 | E199: 0 | F199: 0 | H199: 0 | J199: 0 | K199: 0 | L199: 0 | N199: 0 | O199: 0 | Q199: 0 | R199: 0
B200: etc. | D200: 0 | E200: 0 | F200: 0 | H200: 0 | J200: 0 | K200: 0 | L200: 0 | N200: 0 | O200: 0 | Q200: 0 | R200: 0
B201: etc. | D201: 0 | E201: 0 | F201: 0 | H201: 0 | J201: 0 | K201: 0 | L201: 0 | N201: 0 | O201: 0 | Q201: 0 | R201: 0
B202: etc. | D202: 0 | E202: 0 | F202: 0 | H202: 0 | J202: 0 | K202: 0 | L202: 0 | N202: 0 | O202: 0 | Q202: 0 | R202: 0
B203: etc. | D203: 0 | E203: 0 | F203: 0 | H203: 0 | J203: 0 | K203: 0 | L203: 0 | N203: 0 | O203: 0 | Q203: 0 | R203: 0
B204: etc. | D204: 0 | E204: 0 | F204: 0 | H204: 0 | J204: 0 | K204: 0 | L204: 0 | N204: 0 | O204: 0 | Q204: 0 | R204: 0
B205: etc. | D205: 0 | E205: 0 | F205: 0 | H205: =D205+E205+F205 -> 0 | J205: 0 | K205: 0 | L205: 0 | N205: 0 | O205: 0 | Q205: 0 | R205: 0
D206: 0 | H206: =D206+E206+F206 -> 0 | J206: 0 | K206: 0 | L206: 0 | N206: 0 | O206: 0 | Q206: 0 | R206: 0
C207: Sub-Total | D207: =SUM(D157:D206) -> 59800376.94 | E207: =SUM(E157:E206) -> 3865697.15 | F207: =SUM(F157:F206) -> -205267.85 | H207: =SUM(H157:H206) -> 63460806.24 | J207: =SUM(J157:J206) -> 22028370.92 | K207: =SUM(K157:K206) -> 1780108.45 | L207: =SUM(L157:L206) -> 0 | N207: =SUM(N157:N206) -> 23808479.37 | O207: =SUM(O157:O206) -> 39652326.87 | Q207: =SUM(Q157:Q206) -> 61630591.59 | R207: =SUM(R157:R206) -> 22918425.14
C208: Less Socialized Renewable Energy Generation Investments (input as negative)Less Socialized Renewable Energy Generation Investments (input as negative) | H208: =D208+E208+F208 -> 0 | N208: =J208+K208+L208+M208 -> 0 | O208: =H208+N208 -> 0 | Q208: =Q207-R207 -> 38712166.44
... 211 more rows

Sheet Appendix 2-BB Service Life
N1: File Number: | P1: ='LDC Info'!E16 -> EB-2017-0084
N2: Exhibit:
N3: Tab:
N4: Schedule:
N5: Page:
N7: Date:
A9: Appendix 2-BB
A10: Service Life Comparison
A11: Table F-1 from Kinetrics Report1
C15: Asset Details | F15: Useful Life | J15: USoA Account Number | K15: USoA Account Description | L15: Current | N15: Proposed | P15: Outside Range of Min, Max TUL?
A16: Parent* | B16: # | C16: Category| Component | Type | F16: MIN UL | G16: TUL | H16: MAX UL | L16: Years | M16: Rate | N16: Years | O16: Rate | P16: Below Min TUL | Q16: Above Max TUL
A17: OH | B17: 1 | C17: Fully Dressed Wood Poles | D17: Overall | F17: 35 | G17: 45 | H17: 75 | J17: 1830 | K17: Poles, Towers, and Fixtures - Wood | L17: 50 | M17: =IF(ISERROR(1/L17), "", 1/L17) -> 0.02 | N17: 50 | O17: =IF(ISERROR(1/N17), "", 1/N17) ->  | P17: =IF(ISBLANK(N17),"",IF(N17<F17,"Yes","No")) -> No | Q17: =IF(ISBLANK(N17),"",IF(N17>H17,"Yes","No")) -> Yes
D18: Cross Arm | E18: Wood | F18: 20 | G18: 40 | H18: 55 | J18: 1830 | K18: Poles, Towers, and Fixtures – Wood | L18: 50 | M18: =IF(ISERROR(1/L18), "", 1/L18) -> 0.02 | N18: 50 | O18: =IF(ISERROR(1/N18), "", 1/N18) -> 0.02 | P18: =IF(ISBLANK(N18),"",IF(N18<F18,"Yes","No")) -> No | Q18: =IF(ISBLANK(N18),"",IF(N18>H18,"Yes","No")) -> No
E19: Steel | F19: 30 | G19: 70 | H19: 95 | J19: 1830 | K19: Poles, Towers, and Fixtures – Wood | L19: 50 | M19: 0.02 | N19: 50 | O19: 0.02 | P19: No | Q19: No
B20: 2 | C20: Fully Dressed Concrete Poles | D20: Overall | F20: 50 | G20: 60 | H20: 80 | J20: N/A | L20: N/A | N20: N/A | P20: No | Q20: Yes
D21: Cross Arm | E21: Wood | F21: 20 | G21: 40 | H21: 55 | J21: N/A | L21: N/A | N21: N/A | P21: No | Q21: Yes
E22: Steel | F22: 30 | G22: 70 | H22: 95 | J22: N/A | L22: N/A | N22: N/A | P22: No | Q22: Yes
B23: 3 | C23: Fully Dressed Steel Poles | D23: Overall | F23: 60 | G23: 60 | H23: 80 | J23: 1830 | K23: Poles, Towers, and Fixtures - Steel | L23: 70 | M23: 0.01428571429 | N23: 70 | O23: 0.01428571429 | P23: No | Q23: No
D24: Cross Arm | E24: Wood | F24: 20 | G24: 40 | H24: 55 | J24: 1830 | K24: Poles, Towers, and Fixtures – Steel | L24: 70 | M24: 0.01428571429 | N24: 70 | O24: 0.01428571429 | P24: No | Q24: Yes
E25: Steel | F25: 30 | G25: 70 | H25: 95 | J25: 1830 | K25: Poles, Towers, and Fixtures – Steel | L25: 70 | M25: 0.01428571429 | N25: 70 | O25: 0.01428571429 | P25: No | Q25: No
B26: 4 | C26: OH Line Switch | F26: 30 | G26: 45 | H26: 55 | J26: 1835 | K26: Overhead Conductors & Devices | L26: 65 | M26: 0.01538461538 | N26: 65 | O26: 0.01538461538 | P26: No | Q26: Yes
B27: 5 | C27: OH Line Switch Motor | F27: 15 | G27: 25 | H27: 25 | J27: N/A | L27: N/A | N27: N/A | P27: No | Q27: Yes
B28: 6 | C28: OH Line Switch RTU | F28: 15 | G28: 20 | H28: 20 | J28: N/A | L28: N/A | N28: N/A | P28: No | Q28: Yes
B29: 7 | C29: OH Integral Switches | F29: 35 | G29: 45 | H29: 60 | J29: 1835 | K29: Overhead Conductors & Devices | L29: 65 | M29: 0.01538461538 | N29: 65 | O29: 0.01538461538 | P29: No | Q29: Yes
B30: 8 | C30: OH Conductors | F30: 50 | G30: 60 | H30: 75 | J30: 1835 | K30: Overhead Conductors & Devices | L30: 65 | M30: 0.01538461538 | N30: 65 | O30: 0.01538461538 | P30: No | Q30: No
B31: 9 | C31: OH Transformers & Voltage Regulators | F31: 30 | G31: 40 | H31: 60 | J31: 1850 | K31: Line Transformers | L31: 40 | M31: 0.025 | N31: 40 | O31: 0.025 | P31: No | Q31: No
B32: 10 | C32: OH Shunt Capacitor Banks | F32: 25 | G32: 30 | H32: 40 | J32: N/A | L32: N/A | N32: N/A | P32: No | Q32: Yes
B33: 11 | C33: Reclosers | F33: 25 | G33: 40 | H33: 55 | J33: 1835 | K33: Overhead Conductors & Devices | L33: 65 | M33: 0.01538461538 | N33: 65 | O33: 0.01538461538 | P33: No | Q33: Yes
A34: TS & MS | B34: 12 | C34: Power Transformers | D34: Overall | F34: 30 | G34: 45 | H34: 60 | J34: 1850 | K34: Line Transformers | L34: 40 | M34: 0.025 | N34: 40 | O34: 0.025 | P34: No | Q34: No
D35: Bushing | F35: 10 | G35: 20 | H35: 30 | J35: 1850 | K35: Line Transformers | L35: 40 | M35: 0.025 | N35: 40 | O35: 0.025 | P35: No | Q35: Yes
D36: Tap Changer | F36: 20 | G36: 30 | H36: 60 | J36: 1850 | K36: Line Transformers | L36: 40 | M36: 0.025 | N36: 40 | O36: 0.025 | P36: No | Q36: No
B37: 13 | C37: Station Service Transformer | F37: 30 | G37: 45 | H37: 55 | J37: 1820 | K37: Distribution Station Equipment | L37: 45 | M37: 0.02222222222 | N37: 45 | O37: 0.02222222222 | P37: No | Q37: No
B38: 14 | C38: Station Grounding Transformer | F38: 30 | G38: 40 | H38: 40 | J38: 1820 | K38: Distribution Station Equipment | L38: 45 | M38: 0.02222222222 | N38: 45 | O38: 0.02222222222 | P38: No | Q38: Yes
B39: 15 | C39: Station DC System | D39: Overall | F39: 10 | G39: 20 | H39: 30 | J39: N/A | L39: N/A | N39: N/A | P39: No | Q39: Yes
D40: Battery Bank | F40: 10 | G40: 15 | H40: 15 | J40: N/A | L40: N/A | N40: N/A | P40: No | Q40: Yes
D41: Charger | F41: 20 | G41: 20 | H41: 30 | J41: N/A | L41: N/A | N41: N/A | P41: No | Q41: Yes
B42: 16 | C42: Station Metal Clad Switchgear | D42: Overall | F42: 30 | G42: 40 | H42: 60 | J42: 1820 | K42: Distribution Station Equipment | L42: 45 | M42: 0.02222222222 | N42: 45 | O42: 0.02222222222 | P42: No | Q42: No
D43: Removable Breaker | F43: 25 | G43: 40 | H43: 60 | J43: 1820 | K43: Distribution Station Equipment | L43: 45 | M43: 0.02222222222 | N43: 45 | O43: 0.02222222222 | P43: No | Q43: No
B44: 17 | C44: Station Independent Breakers | F44: 35 | G44: 45 | H44: 65 | J44: 1820 | K44: Distribution Station Equipment | L44: 45 | M44: 0.02222222222 | N44: 45 | O44: 0.02222222222 | P44: No | Q44: No
B45: 18 | C45: Station Switch | F45: 30 | G45: 50 | H45: 60 | J45: 1820 | K45: Distribution Station Equipment | L45: 45 | M45: 0.02222222222 | N45: 45 | O45: 0.02222222222 | P45: No | Q45: No
B46: 19 | C46: Electromechanical Relays | F46: 25 | G46: 35 | H46: 50 | J46: 1820 | K46: Distribution Station Equipment | L46: 45 | M46: 0.02222222222 | N46: 45 | O46: 0.02222222222 | P46: No | Q46: No
B47: 20 | C47: Solid State Relays | F47: 10 | G47: 30 | H47: 45 | J47: 1820 | K47: Distribution Station Equipment | L47: 45 | M47: 0.02222222222 | N47: 45 | O47: 0.02222222222 | P47: No | Q47: No
B48: 21 | C48: Digital & Numeric Relays | F48: 15 | G48: 20 | H48: 20 | J48: 1820 | K48: Distribution Station Equipment | L48: 45 | M48: 0.02222222222 | N48: 45 | O48: 0.02222222222 | P48: No | Q48: Yes
B49: 22 | C49: Rigid Busbars | F49: 30 | G49: 55 | H49: 60 | J49: 1820 | K49: Distribution Station Equipment | L49: 45 | M49: 0.02222222222 | N49: 45 | O49: 0.02222222222 | P49: No | Q49: No
B50: 23 | C50: Steel Structure | F50: 35 | G50: 50 | H50: 90 | J50: 1820 | K50: Distribution Station Equipment | L50: 45 | M50: 0.02222222222 | N50: 45 | O50: 0.02222222222 | P50: No | Q50: No
A51: UG | B51: 24 | C51: Primary Paper Insulated Lead Covered (PILC) Cables | F51: 60 | G51: 65 | H51: 75 | J51: N/A | L51: N/A | N51: N/A | P51: No | Q51: Yes
B52: 25 | C52: Primary Ethylene-Propylene Rubber (EPR) Cables | F52: 20 | G52: 25 | H52: 25 | J52: 1845 | K52: Underground Conductors & Devices | L52: 60 | M52: 0.01666666667 | N52: 60 | O52: 0.01666666667 | P52: No | Q52: Yes
B53: 26 | C53: Primary Non-Tree Retardant (TR) Cross Linked Polyethylene (XLPE) Cables Direct Buried | F53: 20 | G53: 25 | H53: 30 | J53: 1845 | K53: Underground Conductors & Devices | L53: 45 | M53: 0.02222222222 | N53: 45 | O53: 0.02222222222 | P53: No | Q53: Yes
B54: 27 | C54: Primary Non-TR XLPE Cables in Duct | F54: 20 | G54: 25 | H54: 30 | J54: 1845 | K54: Underground Conductors & Devices | L54: 45 | M54: 0.02222222222 | N54: 45 | O54: 0.02222222222 | P54: No | Q54: Yes
B55: 30 | C55: Secondary PILC Cables | F55: 70 | G55: 75 | H55: 80 | J55: N/A | L55: N/A | N55: N/A | P55: No | Q55: Yes
B56: 31 | C56: Secondary Cables Direct Buried | F56: 25 | G56: 35 | H56: 40 | J56: 1855 | K56: Underground Services | L56: 45 | M56: 0.02222222222 | N56: 45 | O56: 0.02222222222 | P56: No | Q56: Yes
B57: 32 | C57: Secondary Cables in Duct | F57: 35 | G57: 40 | H57: 60 | J57: 1855 | K57: Underground Services | L57: 45 | M57: 0.02222222222 | N57: 45 | O57: 0.02222222222 | P57: No | Q57: No
B58: 33 | C58: Network Tranformers | D58: Overall | F58: 20 | G58: 35 | H58: 50 | J58: N/A | L58: N/A | N58: N/A | P58: No | Q58: Yes
D59: Protector | F59: 20 | G59: 35 | H59: 40 | J59: N/A | L59: N/A | N59: N/A | P59: No | Q59: Yes
B60: 34 | C60: Pad-Mounted Transformers | F60: 25 | G60: 40 | H60: 45 | J60: 1850 | K60: Line Transformers | L60: 40 | M60: 0.025 | N60: 40 | O60: 0.025 | P60: No | Q60: No
B61: 35 | C61: Submersible/Vault Transformers | F61: 25 | G61: 35 | H61: 45 | J61: N/A | L61: N/A | N61: N/A | P61: No | Q61: Yes
B62: 36 | C62: UG Foundation | F62: 35 | G62: 55 | H62: 70 | J62: 1845 | K62: Line Transformers | L62: 40 | M62: 0.025 | N62: 40 | O62: 0.025 | P62: No | Q62: No
B63: 37 | C63: UG Vaults | D63: Overall | F63: 40 | G63: 60 | H63: 80 | J63: N/A | L63: N/A | N63: N/A | P63: No | Q63: Yes
D64: Roof | F64: 20 | G64: 30 | H64: 45 | J64: N/A | L64: N/A | N64: N/A | P64: No | Q64: Yes
B65: 38 | C65: UG Vault Switches | F65: 20 | G65: 35 | H65: 50 | J65: N/A | L65: N/A | N65: N/A | P65: No | Q65: Yes
B66: 39 | C66: Pad-Mounted Switchgear | F66: 20 | G66: 30 | H66: 45 | J66: 1845 | K66: Underground Conductors & Devices | L66: 45 | M66: 0.02222222222 | N66: 45 | O66: 0.02222222222 | P66: No | Q66: No
B67: 40 | C67: Ducts | F67: 30 | G67: 50 | H67: 85 | J67: 1840 | K67: Underground Conduit | L67: 85 | M67: 0.01176470588 | N67: 85 | O67: 0.01176470588 | P67: No | Q67: No
B68: 41 | C68: Concrete Encased Duct Banks | F68: 35 | G68: 55 | H68: 80 | J68: 1840 | K68: Underground Conduit | L68: 85 | M68: 0.01176470588 | N68: 85 | O68: 0.01176470588 | P68: No | Q68: Yes
B69: 42 | C69: Cable Chambers | F69: 50 | G69: 60 | H69: 80 | J69: 1840 | K69: Underground Conduit | L69: 85 | M69: 0.01176470588 | N69: 85 | O69: 0.01176470588 | P69: No | Q69: Yes
A70: S | B70: 43 | C70: Remote SCADA | F70: 15 | G70: 20 | H70: 30 | J70: 1611 | K70: Computer Software | L70: 5 | M70: 0.2 | N70: 5 | O70: 0.2 | P70: Yes | Q70: No
A73: Table F-2 from Kinetrics Report1
C75: Asset Details | F75: Useful Life Range | J75: USoA Account Number | K75: USoA Account Description | L75: Current | N75: Proposed | P75: Outside Range of Min, Max TUL?
B76: # | C76: Category| Component | Type | L76: Years | M76: Rate | N76: Years | O76: Rate | P76: Below Min Range | Q76: Above Max Range
B77: 1 | C77: Office Equipment | F77: 5 | G77: 15 | J77: 1915 | K77: Office Furniture | L77: 10 | M77: =IF(ISERROR(1/L77), "", 1/L77) -> 0.1 | N77: 10 | O77: =IF(ISERROR(1/N77), "", 1/N77) -> 0.1 | P77: =IF(ISBLANK(N77),"",IF(N77<F77,"Yes","No")) -> No | Q77: =IF(ISBLANK(N77),"",IF(N77>G77,"Yes","No")) -> No
B78: 2 | C78: Vehicles | D78: Trucks & Buckets | F78: 5 | G78: 15 | J78: 1930 | K78: Transportation Equipment | L78: 15 | M78: =IF(ISERROR(1/L78), "", 1/L78) -> 0.06666666667 | N78: 15 | O78: =IF(ISERROR(1/N78), "", 1/N78) -> 0.06666666667 | P78: =IF(ISBLANK(N78),"",IF(N78<F78,"Yes","No")) -> No | Q78: =IF(ISBLANK(N78),"",IF(N78>G78,"Yes","No")) -> No
D79: Trailers | F79: 5 | G79: 20 | J79: 1930 | K79: Transportation Equipment | L79: 10 | M79: 0.1 | N79: 10 | O79: 0.1 | P79: No | Q79: No
D80: Vans | F80: 5 | G80: 10 | J80: 1930 | K80: Transportation Equipment | L80: 10 | M80: 0.1 | N80: 10 | O80: 0.1 | P80: No | Q80: No
B81: 3 | C81: Administrative Buildings | F81: 50 | G81: 75 | J81: 1808 | K81: Buildings | L81: 50 | M81: 0.02 | N81: 50 | O81: 0.02 | P81: No | Q81: No
B82: 4 | C82: Leasehold Improvements | F82: Lease dependent | J82: 1810 | K82: Leasehold Improvements | L82: N/A | N82: N/A
B83: 5 | C83: Station Buildings | D83: Station Buildings | F83: 50 | G83: 75 | J83: 1908 | K83: Buildings & Fixtures | L83: 50 | M83: 0.02 | N83: 50 | O83: 0.02 | P83: No | Q83: No
D84: Parking | F84: 25 | G84: 30 | J84: 1908 | K84: Buildings & Fixtures | L84: 50 | M84: 0.02 | N84: 50 | O84: 0.02 | P84: No | Q84: Yes
D85: Fence | F85: 25 | G85: 60 | J85: 1908 | K85: Buildings & Fixtures | L85: 50 | M85: 0.02 | N85: 50 | O85: 0.02 | P85: No | Q85: No
D86: Roof | F86: 20 | G86: 30 | J86: 1908 | K86: Buildings & Fixtures | L86: 50 | M86: 0.02 | N86: 50 | O86: 0.02 | P86: No | Q86: Yes
B87: 6 | C87: Computer Equipment | D87: Hardware | F87: 3 | G87: 5 | J87: 1920 | K87: Computer Equipment - Hardware | L87: 5 | M87: 0.2 | N87: 5 | O87: 0.2 | P87: No | Q87: No
D88: Software | F88: 2 | G88: 5 | J88: 1611 | K88: Computer Software | L88: 3 | M88: 0.3333333333 | N88: 3 | O88: 0.3333333333 | P88: No | Q88: No
B89: 7 | C89: Equipment | D89: Power Operated | F89: 5 | G89: 10 | J89: 1950 | K89: Power Operated Equipment | L89: 10 | M89: 0.1 | N89: 10 | O89: 0.1 | P89: No | Q89: No
D90: Stores | F90: 5 | G90: 10 | J90: 1935 | K90: Stores Equipment | L90: 10 | M90: 0.1 | N90: 10 | O90: 0.1 | P90: No | Q90: No
D91: Tools, Shop, Garage Equipment | F91: 5 | G91: 10 | J91: 1940 | K91: Tools, Shop & Garage Equipment | L91: 10 | M91: 0.1 | N91: 10 | O91: 0.1 | P91: No | Q91: No
D92: Measurement & Testing Equipment | F92: 5 | G92: 10 | J92: 1945 | K92: Measurement & Testing Equipment | L92: 10 | M92: 0.1 | N92: 10 | O92: 0.1 | P92: No | Q92: No
B93: 8 | C93: Communication | D93: Towers | F93: 60 | G93: 70 | J93: 1955 | K93: Communications Equipment | L93: 10 | M93: 0.1 | N93: 10 | O93: 0.1 | P93: Yes | Q93: No
D94: Wireless | F94: 2 | G94: 10 | J94: 1955 | K94: Communications Equipment | L94: 10 | M94: 0.1 | N94: 10 | O94: 0.1 | P94: No | Q94: No
B95: 9 | C95: Residential Energy Meters | F95: 25 | G95: 35 | J95: 1860 | K95: Meters | L95: 25 | M95: 0.04 | N95: 25 | O95: 0.04 | P95: No | Q95: No
B96: 10 | C96: Industrial/Commercial Energy Meters | F96: 25 | G96: 35 | J96: 1860 | K96: Meters | L96: 25 | M96: 0.04 | N96: 25 | O96: 0.04 | P96: No | Q96: No
B97: 11 | C97: Wholesale Energy Meters | F97: 15 | G97: 30 | J97: 1860 | K97: Meters | L97: 25 | M97: 0.04 | N97: 25 | O97: 0.04 | P97: No | Q97: No
B98: 12 | C98: Current & Potential Transformer (CT & PT) | F98: 35 | G98: 50 | J98: 1860 | K98: Meters | L98: 35 | M98: 0.02857142857 | N98: 35 | O98: 0.02857142857 | P98: No | Q98: No
B99: 13 | C99: Smart Meters | F99: 5 | G99: 15 | J99: 1860 | K99: Meters | L99: 15 | M99: 0.06666666667 | N99: 15 | O99: 0.06666666667 | P99: No | Q99: No
B100: 14 | C100: Repeaters - Smart Metering | F100: 10 | G100: 15 | J100: 1860 | K100: Meters | L100: 15 | M100: 0.06666666667 | N100: 15 | O100: 0.06666666667 | P100: No | Q100: No
B101: 15 | C101: Data Collectors - Smart Metering | F101: 15 | G101: 20 | J101: 1860 | K101: Meters | L101: 15 | M101: 0.06666666667 | N101: 15 | O101: 0.06666666667 | P101: No | Q101: No
A104: * TS & MS = Transformer and Municipal Stations UG = Underground Systems S = Monitoring and Control Systems
A106: Note 1: | B106: Tables F-1 and F-2 above are to be used as a reference in order to complete columns J, K, L and N.
B107: See pages 17-19 of Kinetrics Report

Sheet App.2-C_DepExp (2013)
A1: MRS: This sheet is new, you will need to populate and have it match your Data Vault.
A9: Appendix 2-C | Y9: CGAAP
A10: Depreciation and Amortization Expense | Y10: Revised CGAAP
Y11: MIFRS
A12: This appendix is to be completed in conjunction with the accounting instructions in Appendix 2-B
A14: Scenario that applies | C14: Applicable Years and Accounting Standard | R14: Year Reflected in Schedule Below | S14: Accounting Standard Reflected in Schedule Below | Y14: 2012
A15: Rebasing for the first time with depreciation policy changes made in 2012. | C15: This appendix must be duplicated and completed for the years 2012 to 2018. The appendix for 2012 is to be completed under CGAAP (prior to changes in depreciation policies). The appendix for 2012 to 2014 must be completed under Revised CGAAP (after changes in depreciation policies). The appendix for 2014 to 2018 is to be completed under MIFRS (2014 if changes to MIFRS are material). | Y15: 2013
A16: Rebasing for the first time with depreciation policy changes made in 2013. | C16: This appendix must be duplicated and completed for the years 2013 to 2018. The appendix for 2013 is to be completed under CGAAP (prior to changes in depreciation policies). The appendix for 2013 to 2014 must be completed under Revised CGAAP (after changes in depreciation policies). The appendix for 2014 to 2018 is to be completed under MIFRS (2014 if changes to MIFRS are material). | R16: 2013 | S16: Revised CGAAP | Y16: 2014
A17: Already rebased with depreciation policy changes in a prior rate application | C17: This appendix must be completed for 2014 to 2018. The appendix for 2014 is to be completed under Revised CGAAP (after changes in depreciation policies). The appendix for 2014 to 2018 is to be completed under MIFRS (2014 if changes to MIFRS are material). | Y17: 2015
Y18: 2016
Y19: 2017
C20: Book Values | J20: Service Lives | N20: Depreciation Expense | Y20: 2018
A21: Account | B21: Description | C21: Opening Net Book Value of Existing Assets as at Date of Policy Change (Jan. 1) 1 | D21: Less Fully Depreciated 7 | E21: Net Amount of Existing Assets Before Policy Change to be Depreciated | F21: Opening Gross Book Value of Assets Acquired After Policy Change 2 | G21: Less Fully Depreciated 8 | H21: Net Amount of Assets Acquired After Policy Change to be Depreciated | I21: Current Year Additions | J21: Average Remaining Life of Assets Existing Before Policy Change 3 | K21: Depreciation Rate Assets Acquired After Policy Change | L21: Life of Assets Acquired After Policy Change 4 | M21: Depreciation Rate on New Additions | N21: Depreciation Expense on Assets Existing Before Policy Change | O21: Depreciation Expense on Assets Acquired After Policy Change | P21: Depreciation Expense on Current Year Additions 5 | Q21: Total Current Year Depreciation Expense | R21: Depreciation Expense per Appendix 2-BA Fixed Assets, Column J | S21: Variance 6
C22: a | D22: b | E22: c = a-b | F22: d | G22: e | H22: f = d- e | I22: g | J22: h | K22: i = 1/h | L22: j | M22: k = 1/j | N22: l = c/h | O22: m = f/j | P22: n = g*0.5/j | Q22: o = l+m+n | R22: p | S22: q = p-o
A23: 1611 | B23: Computer Software (Formally known as Account 1925) | C23: 60873.98 | D23: 0 | E23: =C23-D23 -> 60873.98 | F23: 0 | G23: 0 | H23: =F23-G23 -> 0 | I23: 309216.89 | J23: =IF(R23=0,0,E23/(R23-P23-O23)) -> 1.417756022 | K23: =IF(J23=0,0,1/J23) -> 0.7053399772 | L23: 3 | M23: =IF(L23=0,0,1/L23) -> 0.3333333333 | N23: =IF(J23=0,0,+E23/J23) -> 42936.85167 | O23: =IF(L23=0,0,+H23/L23) -> 0 | P23: =IF(L23=0,0,+(I23*0.5)/L23) -> 51536.14833 | Q23: =IF(ISERROR(+N23+O23+P23), 0, +N23+O23+P23) -> 94473 | R23: 94473 | S23: =IF(ISERROR(+R23-122), 0, +R23-Q23) -> 0
A24: 1612 | B24: Land Rights (Formally known as Account 1906) | C24: 0 | D24: 0 | E24: =C24-D24 -> 0 | F24: 0 | G24: 0 | H24: =F24-G24 -> 0 | I24: 0 | J24: =IF(R24=0,0,E24/(R24-P24-O24)) -> 0 | K24: =IF(J24=0,0,1/J24) -> 0 | L24: 0 | M24: =IF(L24=0,0,1/L24) -> 0 | N24: =IF(J24=0,0,+E24/J24) -> 0 | O24: =IF(L24=0,0,+H24/L24) -> 0 | P24: =IF(L24=0,0,+(I24*0.5)/L24) -> 0 | Q24: =IF(ISERROR(+N24+O24+P24), 0, +N24+O24+P24) -> 0 | R24: 0 | S24: =IF(ISERROR(+R24-122), 0, +R24-Q24) -> 0
A25: 1805 | B25: Land | C25: 227768.86 | D25: 0 | E25: 227768.86 | F25: 0 | G25: 0 | H25: 0 | I25: 0 | J25: 0 | K25: 0 | L25: 0 | M25: 0 | N25: 0 | O25: =IF(L25=0,0,+H25/L25) -> 0 | P25: 0 | Q25: 0 | R25: 0 | S25: 0
A26: 1808 | B26: Buildings | C26: 2211233.84 | D26: 0 | E26: 2211233.84 | F26: 0 | G26: 0 | H26: 0 | I26: 8091.26 | J26: 42.41598505 | K26: 0.02357601736 | L26: 50 | M26: 0.02 | N26: 52132.0874 | O26: 0 | P26: 80.9126 | Q26: 52213 | R26: 52213 | S26: 0
A27: 1810 | B27: Leasehold Improvements | C27: 0 | D27: 0 | E27: 0 | F27: 0 | G27: 0 | H27: 0 | I27: 0 | J27: 0 | K27: 0 | L27: 0 | M27: 0 | N27: 0 | O27: 0 | P27: 0 | Q27: 0 | R27: 0 | S27: 0
A28: 1815 | B28: Transformer Station Equipment >50 kV | C28: 0 | D28: 0 | E28: 0 | F28: 0 | G28: 0 | H28: 0 | I28: 0 | J28: 0 | K28: 0 | L28: 0 | M28: 0 | N28: 0 | O28: 0 | P28: 0 | Q28: 0 | R28: 0 | S28: 0
A29: 1820 | B29: Distribution Station Equipment <50 kV | C29: 2481877.3 | D29: 0 | E29: 2481877.3 | F29: 0 | G29: 0 | H29: 0 | I29: 30940 | J29: 8.550083197 | K29: 0.1169579263 | L29: 45 | M29: 0.02222222222 | N29: 290275.2222 | O29: 0 | P29: 343.7777778 | Q29: 290619 | R29: 290619 | S29: -5.820766091e-11
A30: 1825 | B30: Storage Battery Equipment | C30: 0 | D30: 0 | E30: 0 | F30: 0 | G30: 0 | H30: 0 | I30: 0 | J30: 0 | K30: 0 | L30: 0 | M30: 0 | N30: 0 | O30: 0 | P30: 0 | Q30: 0 | R30: 0 | S30: 0
A31: 1830 | B31: Poles, Towers & Fixtures | C31: 5089221.62 | D31: 0 | E31: 5089221.62 | F31: 0 | G31: 0 | H31: 0 | I31: 923362 | K31: 0 | L31: 50 | M31: 0.02 | N31: 0 | O31: 0 | P31: 9233.62 | Q31: 9233.62 | R31: 113689 | S31: 104455.38
A32: 1835 | B32: Overhead Conductors & Devices | C32: 7300747.03 | D32: 0 | E32: 7300747.03 | F32: 0 | G32: 0 | H32: 0 | I32: 1056695 | K32: 0 | L32: 65 | M32: 0.01538461538 | N32: 0 | O32: 0 | P32: 8128.423077 | Q32: 8128.423077 | R32: 149575 | S32: 141446.5769
A33: 1840 | B33: Underground Conduit | C33: 1981612.95 | D33: 0 | E33: 1981612.95 | F33: 0 | G33: 0 | H33: 0 | I33: 151445 | K33: 0 | L33: 85 | M33: 0.01176470588 | N33: 0 | O33: 0 | P33: 890.8529412 | Q33: 890.8529412 | R33: 28225 | S33: 27334.14706
A34: 1845 | B34: Underground Conductors & Devices | C34: 6412108.91 | D34: 0 | E34: 6412108.91 | F34: 0 | G34: 0 | H34: 0 | I34: 338983 | J34: 32.16054105 | K34: 0.03109400424 | L34: 60 | M34: 0.01666666667 | N34: 199378.1417 | O34: 0 | P34: 2824.858333 | Q34: 202203 | R34: 202203 | S34: 0
A35: 1850 | B35: Line Transformers | C35: 5317715.8 | D35: 0 | E35: 5317715.8 | F35: 0 | G35: 0 | H35: 0 | I35: 201308 | J35: 24.65162102 | K35: 0.04056528369 | L35: 40 | M35: 0.025 | N35: 215714.65 | O35: 0 | P35: 2516.35 | Q35: 218231 | R35: 218231 | S35: 0
A36: 1855 | B36: Services (Overhead & Underground) | C36: 3281615.53 | D36: 0 | E36: 3281615.53 | F36: 0 | G36: 0 | H36: 0 | I36: 261100 | K36: 0 | L36: 55 | M36: 0.01818181818 | N36: 0 | O36: 0 | P36: 2373.636364 | Q36: 2373.636364 | R36: 85814 | S36: 83440.36364
A37: 1860 | B37: Meters | C37: 1177438.74 | D37: 0 | E37: 1177438.74 | F37: 0 | G37: 0 | H37: 0 | I37: 77975 | J37: 15.349938 | K37: 0.06514684294 | L37: 30 | M37: 0.03333333333 | N37: 76706.41667 | O37: 0 | P37: 1299.583333 | Q37: 78006 | R37: 78006 | S37: 0
A38: 1860 | B38: Meters (Smart Meters) | C38: 138724.47 | D38: 0 | E38: 138724.47 | F38: 0 | G38: 0 | H38: 0 | I38: 3849691.9 | J38: 1.138932041 | K38: 0.8780155128 | L38: 15 | M38: 0.06666666667 | N38: 121802.2367 | O38: 0 | P38: 128323.0633 | Q38: 250125.3 | R38: 250125.3 | S38: 0
A39: 1905 | B39: Land | C39: 1634.63 | D39: 0 | E39: 1634.63 | F39: 0 | G39: 0 | H39: 0 | I39: 0 | J39: 0 | K39: 0 | L39: 0 | M39: 0 | N39: 0 | O39: 0 | P39: 0 | Q39: 0 | R39: 0 | S39: 0
A40: 1908 | B40: Buildings & Fixtures | C40: 0 | D40: 0 | E40: 0 | F40: 0 | G40: 0 | H40: 0 | I40: 0 | J40: 0 | K40: 0 | L40: 50 | M40: 0.02 | N40: 0 | O40: 0 | P40: 0 | Q40: 0 | R40: 0 | S40: 0
A41: 1910 | B41: Leasehold Improvements | C41: 0 | D41: 0 | E41: 0 | F41: 0 | G41: 0 | H41: 0 | I41: 0 | J41: 0 | K41: 0 | L41: 0 | M41: 0 | N41: 0 | O41: 0 | P41: 0 | Q41: 0 | R41: 0 | S41: 0
A42: 1915 | B42: Office Furniture & Equipment (10 years) | C42: 64123.18 | D42: 0 | E42: 64123.18 | F42: 0 | G42: 0 | H42: 0 | I42: 12647.18 | J42: 4.117681773 | K42: 0.2428550955 | L42: 10 | M42: 0.1 | N42: 15572.641 | O42: 0 | P42: 632.359 | Q42: 16205 | R42: 16205 | S42: 1.818989404e-12
A43: 1915 | B43: Office Furniture & Equipment (5 years) | C43: 0 | D43: 0 | E43: 0 | F43: 0 | G43: 0 | H43: 0 | I43: 0 | J43: 0 | K43: 0 | L43: 10 | M43: 0.1 | N43: 0 | O43: 0 | P43: 0 | Q43: 0 | R43: 0 | S43: 0
A44: 1920 | B44: Computer Equipment - Hardware | C44: 0 | D44: 0 | E44: 0 | F44: 0 | G44: 0 | H44: 0 | I44: 0 | J44: 0 | K44: 0 | L44: 5 | M44: 0.2 | N44: 0 | O44: 0 | P44: 0 | Q44: 0 | R44: 0 | S44: 0
A45: 1920 | B45: Computer Equip.-Hardware(Post Mar. 22/04) | C45: 0 | D45: 0 | E45: 0 | F45: 0 | G45: 0 | H45: 0 | I45: 0 | J45: 0 | K45: 0 | L45: 5 | M45: 0.2 | N45: 0 | O45: 0 | P45: 0 | Q45: 0 | R45: 0 | S45: 0
A46: 1920 | B46: Computer Equip.-Hardware(Post Mar. 19/07) | C46: 58817.27 | D46: 0 | E46: 58817.27 | F46: 0 | G46: 0 | H46: 0 | I46: 82496.4 | J46: 0.756800195 | K46: 1.321352725 | L46: 5 | M46: 0.2 | N46: 77718.36 | O46: 0 | P46: 8249.64 | Q46: 85968 | R46: 85968 | S46: 0
A47: 1930 | B47: Transportation Equipment | C47: 961536.5 | D47: 0 | E47: 961536.5 | F47: 0 | G47: 0 | H47: 0 | I47: 0 | J47: 9.196202108 | K47: 0.1087405418 | L47: 12 | M47: 0.08333333333 | N47: 104558 | O47: 0 | P47: 0 | Q47: 104558 | R47: 104558 | S47: 0
A48: 1935 | B48: Stores Equipment | C48: 51753.8 | D48: 0 | E48: 51753.8 | F48: 0 | G48: 0 | H48: 0 | I48: 0 | J48: 5.306449298 | K48: 0.1884499302 | L48: 10 | M48: 0.1 | N48: 9753 | O48: 0 | P48: 0 | Q48: 9753 | R48: 9753 | S48: 0
A49: 1940 | B49: Tools, Shop & Garage Equipment | C49: 94758.59 | D49: 0 | E49: 94758.59 | F49: 0 | G49: 0 | H49: 0 | I49: 41297.85 | J49: 5.201912099 | K49: 0.1922370046 | L49: 10 | M49: 0.1 | N49: 18216.1075 | O49: 0 | P49: 2064.8925 | Q49: 20281 | R49: 20281 | S49: 0
A50: 1945 | B50: Measurement & Testing Equipment | C50: 38394.68 | D50: 0 | E50: 38394.68 | F50: 0 | G50: 0 | H50: 0 | I50: 0 | J50: 4.180605401 | K50: 0.2391998058 | L50: 10 | M50: 0.1 | N50: 9184 | O50: 0 | P50: 0 | Q50: 9184 | R50: 9184 | S50: 0
A51: 1950 | B51: Power Operated Equipment | C51: 43907.51 | D51: 0 | E51: 43907.51 | F51: 0 | G51: 0 | H51: 0 | I51: 0 | J51: 4.617468714 | K51: 0.216568874 | L51: 10 | M51: 0.1 | N51: 9509 | O51: 0 | P51: 0 | Q51: 9509 | R51: 9509 | S51: 0
A52: 1955 | B52: Communications Equipment | C52: 49800.6 | D52: 0 | E52: 49800.6 | F52: 0 | G52: 0 | H52: 0 | I52: 0 | J52: 5.814430823 | K52: 0.1719858797 | L52: 10 | M52: 0.1 | N52: 8565 | O52: 0 | P52: 0 | Q52: 8565 | R52: 8565 | S52: 0
A53: 1955 | B53: Communication Equipment (Smart Meters) | C53: 0 | D53: 0 | E53: 0 | F53: 0 | G53: 0 | H53: 0 | I53: 0 | J53: 0 | K53: 0 | L53: 10 | M53: 0.1 | N53: 0 | O53: 0 | P53: 0 | Q53: 0 | R53: 0 | S53: 0
A54: 1960 | B54: Miscellaneous Equipment | C54: 27598.95 | D54: 0 | E54: 27598.95 | F54: 0 | G54: 0 | H54: 0 | I54: 26266.13 | J54: 6.109079777 | K54: 0.1636907745 | L54: 10 | M54: 0.1 | N54: 4517.6935 | O54: 0 | P54: 1313.3065 | Q54: 5831 | R54: 5831 | S54: 0
A55: 1970 | B55: Load Management Controls Customer Premises | C55: 0 | D55: 0 | E55: 0 | F55: 0 | G55: 0 | H55: 0 | I55: 0 | J55: 0 | K55: 0 | L55: 0 | M55: 0 | N55: 0 | O55: 0 | P55: 0 | Q55: 0 | R55: 0 | S55: 0
A56: 1975 | B56: Load Management Controls Utility Premises | C56: 0 | D56: 0 | E56: 0 | F56: 0 | G56: 0 | H56: 0 | I56: 0 | J56: 0 | K56: 0 | L56: 0 | M56: 0 | N56: 0 | O56: 0 | P56: 0 | Q56: 0 | R56: 0 | S56: 0
A57: 1980 | B57: System Supervisor Equipment | C57: 0 | D57: 0 | E57: 0 | F57: 0 | G57: 0 | H57: 0 | I57: 0 | J57: 0 | K57: 0 | L57: 0 | M57: 0 | N57: 0 | O57: 0 | P57: 0 | Q57: 0 | R57: 0 | S57: 0
A58: 1985 | B58: Miscellaneous Fixed Assets | C58: 0 | D58: 0 | E58: 0 | F58: 0 | G58: 0 | H58: 0 | I58: 0 | J58: 0 | K58: 0 | L58: 0 | M58: 0 | N58: 0 | O58: 0 | P58: 0 | Q58: 0 | R58: 0 | S58: 0
A59: 1990 | B59: Other Tangible Property | C59: 0 | D59: 0 | E59: 0 | F59: 0 | G59: 0 | H59: 0 | I59: 0 | J59: 0 | K59: 0 | L59: 0 | M59: 0 | N59: 0 | O59: 0 | P59: 0 | Q59: 0 | R59: 0 | S59: 0
A60: 1995 | B60: Contributions & Grants | C60: -6834383.13 | D60: 0 | E60: -6834383.13 | F60: 0 | G60: 0 | H60: 0 | I60: -473674 | J60: 45.62925911 | K60: 0.02191576238 | L60: 60 | M60: 0.01666666667 | N60: -149780.7167 | O60: 0 | P60: -3947.283333 | Q60: -153728 | R60: -153728 | S60: 0
B61: Total | C61: =SUM(C23:C60) -> 30238881.61 | D61: 0 | E61: 30238881.61 | F61: 0 | G61: 0 | H61: 0 | I61: 6897841.61 | N61: =SUM(N23:N60) -> 1106758.692 | O61: 0 | P61: 215864.1408 | Q61: 1322622.832 | R61: 1679299.3 | S61: 356676.4676
A64: General: | B64: Applicants are to complete this appendix to show the reasonability of the depreciation expense that is included in rate base via. Accumulated depreciation and the revenue requirement.
B65: Applicants must provide a breakdown of depreciation and amortization expense in the above format for all relevant accounts. Balances presented in the table should exclude asset retirement obligations (AROs) and the related depreciation and accretion expense. These should be disclosed separately consistent with the Notes of historical Audited Financial Statements.
A68: Notes:
A69: 1 | B69: This is the net book value of assets that existed as at the date of the utility's change in depreciation policies (i.e. as at Jan. 1, 2012 or Jan. 1, 2013). These assets are to be depreciated at the average remaining service life. This amount will not change in years subsequent to the date of the utility's change in depreciation policies. This column is expected to be used until the assets that existed as at the date of the utility's change in depreciation policies are fully depreciated.
A70: 2 | B70: This is the opening gross book value of assets that have been acquired after the date of the utilities change in depreciation policies (i.e. additions starting in 2012/2013 for those who changed policies Jan. 1, 2012/2013). These assets are to be depreciated at the revised service life. The amount is expected to be equal to the gross book value of the prior year plus the prior year's additions.
A71: 3 | B71: A recalculation should be performed to determine the average remaining life of opening balance of assets (i.e. excluding current year's additions) under the change in policies under CGAAP. For example, Asset A had a useful life of 20 years under CGAAP without the change in policies. On January 1 of the year of policy changes, Asset A was 3 years depreciated. As a result, Asset A would have a remaining service life of 17 years (20 years less 3 years) as at January 1 of the year of policy changes. Due to making the change in policies under CGAAP, management re-assessed the asset useful lives and concluded that the revised useful life of Asset A is now 30 years. Therefore, the average remaining useful life of the opening balance of Asset A is determined to be 27 years (30 years less 3 years) under the revised CGAAP as at January 1 of the year of policy changes.
A72: 4 | B72: The useful life used should be consistent with the OEB's regulatory accounting policies as set out in the Accounting Procedures Handbook for Electricity Distributors, effective Jan. 1, 2012 and also with the Report of the Board, Transition to International Financial Reporting Standards, EB-2008-0408, and the Kinectrics Report.
A73: 5 | B73: Board policy of the "half-year" rule - the applicant must ensure that additions in the year attract a half-year depreciation expense in the first year. Deviations from this standard practice must be supported in the application.
A74: 6 | B74: The applicant must provide an explanation of material variances in evidence.
A75: 7 | B75: This should include assets in column a (excel column C) that become fully depreciated since the date of the policy change. The amount input in b (excel column D) should equal the net book value of the asset as at the date of depreciation policy change
A76: 8 | B76: This should include assets in column d (excel column f) that have become fully depreciated. The amount input in e (excel column G) should equal the gross book value of the asset

Sheet App.2-C_DepExp (2014)
A1: MRS: This sheet is new, you will need to populate and have it match your Data Vault.
A9: Appendix 2-C | Y9: CGAAP
A10: Depreciation and Amortization Expense | Y10: Revised CGAAP
Y11: MIFRS
A12: This appendix is to be completed in conjunction with the accounting instructions in Appendix 2-B
A14: Scenario that applies | C14: Applicable Years and Accounting Standard | R14: Year Reflected in Schedule Below | S14: Accounting Standard Reflected in Schedule Below | Y14: 2012
A15: Rebasing for the first time with depreciation policy changes made in 2012. | C15: This appendix must be duplicated and completed for the years 2012 to 2018. The appendix for 2012 is to be completed under CGAAP (prior to changes in depreciation policies). The appendix for 2012 to 2014 must be completed under Revised CGAAP (after changes in depreciation policies). The appendix for 2014 to 2018 is to be completed under MIFRS (2014 if changes to MIFRS are material). | Y15: 2013
A16: Rebasing for the first time with depreciation policy changes made in 2013. | C16: This appendix must be duplicated and completed for the years 2013 to 2018. The appendix for 2013 is to be completed under CGAAP (prior to changes in depreciation policies). The appendix for 2013 to 2014 must be completed under Revised CGAAP (after changes in depreciation policies). The appendix for 2014 to 2018 is to be completed under MIFRS (2014 if changes to MIFRS are material). | R16: 2014 | S16: Revised CGAAP | Y16: 2014
A17: Already rebased with depreciation policy changes in a prior rate application | C17: This appendix must be completed for 2014 to 2018. The appendix for 2014 is to be completed under Revised CGAAP (after changes in depreciation policies). The appendix for 2014 to 2018 is to be completed under MIFRS (2014 if changes to MIFRS are material). | Y17: 2015
Y18: 2016
Y19: 2017
C20: Book Values | J20: Service Lives | N20: Depreciation Expense | Y20: 2018
A21: Account | B21: Description | C21: Opening Net Book Value of Existing Assets as at Date of Policy Change (Jan. 1) 1 | D21: Less Fully Depreciated 7 | E21: Net Amount of Existing Assets Before Policy Change to be Depreciated | F21: Opening Gross Book Value of Assets Acquired After Policy Change 2 | G21: Less Fully Depreciated 8 | H21: Net Amount of Assets Acquired After Policy Change to be Depreciated | I21: Current Year Additions | J21: Average Remaining Life of Assets Existing Before Policy Change 3 | K21: Depreciation Rate Assets Acquired After Policy Change | L21: Life of Assets Acquired After Policy Change 4 | M21: Depreciation Rate on New Additions | N21: Depreciation Expense on Assets Existing Before Policy Change | O21: Depreciation Expense on Assets Acquired After Policy Change | P21: Depreciation Expense on Current Year Additions 5 | Q21: Total Current Year Depreciation Expense | R21: Depreciation Expense per Appendix 2-BA Fixed Assets, Column J | S21: Variance 6
C22: a | D22: b | E22: c = a-b | F22: d | G22: e | H22: f = d- e | I22: g | J22: h | K22: i = 1/h | L22: j | M22: k = 1/j | N22: l = c/h | O22: m = f/j | P22: n = g*0.5/j | Q22: o = l+m+n | R22: p | S22: q = p-o
A23: 1611 | B23: Computer Software (Formally known as Account 1925) | C23: 60873.98 | D23: 0 | E23: =C23-D23 -> 60873.98 | F23: ='App.2-C_DepExp (2013)'!I23 -> 309216.89 | G23: 0 | H23: =F23-G23 -> 309216.89 | I23: 115488.6 | J23: 1 | K23: =IF(J23=0,0,1/J23) -> 1 | L23: 3 | M23: =IF(L23=0,0,1/L23) -> 0.3333333333 | N23: =IF(J23=0,0,+E23/J23) -> 60873.98 | O23: =IF(L23=0,0,+H23/L23) -> 103072.2967 | P23: =IF(L23=0,0,+(I23*0.5)/L23) -> 19248.1 | Q23: =IF(ISERROR(+N23+O23+P23), 0, +N23+O23+P23) -> 183194.3767 | R23: 114868.57 | S23: =IF(ISERROR(+R23-122), 0, +R23-Q23) -> -68325.80667
A24: 1612 | B24: Land Rights (Formally known as Account 1906) | C24: 0 | D24: 0 | E24: =C24-D24 -> 0 | F24: ='App.2-C_DepExp (2013)'!I24 -> 0 | G24: 0 | H24: =F24-G24 -> 0 | I24: 0 | J24: =IF(R24=0,0,E24/(R24-P24-O24)) -> 0 | K24: =IF(J24=0,0,1/J24) -> 0 | L24: 0 | M24: =IF(L24=0,0,1/L24) -> 0 | N24: =IF(J24=0,0,+E24/J24) -> 0 | O24: =IF(L24=0,0,+H24/L24) -> 0 | P24: =IF(L24=0,0,+(I24*0.5)/L24) -> 0 | Q24: =IF(ISERROR(+N24+O24+P24), 0, +N24+O24+P24) -> 0 | R24: 0 | S24: =IF(ISERROR(+R24-122), 0, +R24-Q24) -> 0
A25: 1805 | B25: Land | C25: 227768.86 | D25: 0 | E25: 227768.86 | F25: ='App.2-C_DepExp (2013)'!I25 -> 0 | G25: 0 | H25: 0 | I25: 0 | J25: 0 | K25: 0 | L25: 0 | M25: 0 | N25: 0 | O25: =IF(L25=0,0,+H25/L25) -> 0 | P25: 0 | Q25: 0 | R25: 0 | S25: 0
A26: 1808 | B26: Buildings | C26: 2211233.84 | D26: 0 | E26: 2211233.84 | F26: ='App.2-C_DepExp (2013)'!I26 -> 8091.26 | G26: 0 | H26: 8091.26 | I26: 39428.96 | J26: 42.14409434 | K26: 0.02372811697 | L26: 50 | M26: 0.02 | N26: 52468.4152 | O26: 161.8252 | P26: 394.2896 | Q26: 53024.53 | R26: 53024.53 | S26: 0
A27: 1810 | B27: Leasehold Improvements | C27: 0 | D27: 0 | E27: 0 | F27: ='App.2-C_DepExp (2013)'!I27 -> 0 | G27: 0 | H27: 0 | I27: 0 | J27: 0 | K27: 0 | L27: 0 | M27: 0 | N27: 0 | O27: 0 | P27: 0 | Q27: 0 | R27: 0 | S27: 0
A28: 1815 | B28: Transformer Station Equipment >50 kV | C28: 0 | D28: 0 | E28: 0 | F28: ='App.2-C_DepExp (2013)'!I28 -> 0 | G28: 0 | H28: 0 | I28: 0 | J28: 0 | K28: 0 | L28: 0 | M28: 0 | N28: 0 | O28: 0 | P28: 0 | Q28: 0 | R28: 0 | S28: 0
A29: 1820 | B29: Distribution Station Equipment <50 kV | C29: 2481877.3 | D29: =68376 -> 68376 | E29: 2413501.3 | F29: ='App.2-C_DepExp (2013)'!I29 -> 30940 | G29: 0 | H29: 30940 | I29: 1810684.25 | J29: 10.11393813 | K29: 0.09887345433 | L29: 45 | M29: 0.02222222222 | N29: 238631.2106 | O29: 687.5555556 | P29: 20118.71389 | Q29: 259437.48 | R29: 259437.48 | S29: 0
A30: 1825 | B30: Storage Battery Equipment | C30: 0 | D30: 0 | E30: 0 | F30: ='App.2-C_DepExp (2013)'!I30 -> 0 | G30: 0 | H30: 0 | I30: 0 | J30: 0 | K30: 0 | L30: 0 | M30: 0 | N30: 0 | O30: 0 | P30: 0 | Q30: 0 | R30: 0 | S30: 0
A31: 1830 | B31: Poles, Towers & Fixtures | C31: 5089221.62 | D31: 0 | E31: 5089221.62 | F31: ='App.2-C_DepExp (2013)'!I31 -> 923362 | G31: 0 | H31: 923362 | I31: 412617.51 | J31: 48.76124501 | K31: 0.02050808998 | L31: 50 | M31: 0.02 | N31: 104370.2149 | O31: 18467.24 | P31: 4126.1751 | Q31: 126963.63 | R31: 126963.63 | S31: 0
A32: 1835 | B32: Overhead Conductors & Devices | C32: 7300747.03 | D32: 0 | E32: 7300747.03 | F32: ='App.2-C_DepExp (2013)'!I32 -> 1056695 | G32: 0 | H32: 1056695 | I32: 400614.53 | J32: 54.22058774 | K32: 0.01844317891 | L32: 65 | M32: 0.01538461538 | N32: 134648.9836 | O32: 16256.84615 | P32: 3081.650231 | Q32: 153987.48 | R32: 153987.48 | S32: 0
A33: 1840 | B33: Underground Conduit | C33: 1981612.95 | D33: 0 | E33: 1981612.95 | F33: ='App.2-C_DepExp (2013)'!I33 -> 151445 | G33: 0 | H33: 151445 | I33: 67598.77 | J33: 72.47488444 | K33: 0.01379788333 | L33: 85 | M33: 0.01176470588 | N33: 27342.06429 | O33: 1781.705882 | P33: 397.6398235 | Q33: 29521.41 | R33: 29521.41 | S33: 0
A34: 1845 | B34: Underground Conductors & Devices | C34: 6412108.91 | D34: 0 | E34: 6412108.91 | F34: ='App.2-C_DepExp (2013)'!I34 -> 338983 | G34: 0 | H34: 338983 | I34: 421513.2 | J34: 31.8129644 | K34: 0.03143372581 | L34: 60 | M34: 0.01666666667 | N34: 201556.4733 | O34: 5649.716667 | P34: 3512.61 | Q34: 210718.8 | R34: 210718.8 | S34: 0
A35: 1850 | B35: Line Transformers | C35: 5317715.8 | D35: 0 | E35: 5317715.8 | F35: ='App.2-C_DepExp (2013)'!I35 -> 201308 | G35: 0 | H35: 201308 | I35: 351724.97 | J35: 24.64907653 | K35: 0.04056947118 | L35: 40 | M35: 0.025 | N35: 215736.9179 | O35: 5032.7 | P35: 4396.562125 | Q35: 225166.18 | R35: 225166.18 | S35: 0
A36: 1855 | B36: Services (Overhead & Underground) | C36: 3281615.53 | D36: 0 | E36: 3281615.53 | F36: ='App.2-C_DepExp (2013)'!I36 -> 261100 | G36: 0 | H36: 261100 | I36: 214778.07 | J36: 39.10125164 | K36: 0.0255746289 | L36: 55 | M36: 0.01818181818 | N36: 83926.09936 | O36: 4747.272727 | P36: 1952.527909 | Q36: 90625.9 | R36: 90625.9 | S36: 0
A37: 1860 | B37: Meters | C37: 1177438.74 | D37: 0 | E37: 1177438.74 | F37: ='App.2-C_DepExp (2013)'!I37 -> 77975 | G37: 0 | H37: 77975 | I37: 79996.54 | J37: 21.28090007 | K37: 0.04699049368 | L37: 30 | M37: 0.03333333333 | N37: 55328.42767 | O37: 2599.166667 | P37: 1333.275667 | Q37: 59260.87 | R37: 59260.87 | S37: 7.275957614e-12
A38: 1860 | B38: Meters (Smart Meters) | C38: 138724.47 | D38: 0 | E38: 138724.47 | F38: ='App.2-C_DepExp (2013)'!I38 -> 3849691.9 | G38: 0 | H38: 3849691.9 | I38: 298852.81 | J38: 6.453230496 | K38: 0.1549611471 | L38: 15 | M38: 0.06666666667 | N38: 21496.903 | O38: 256646.1267 | P38: 9961.760333 | Q38: 288104.79 | R38: 288104.79 | S38: 0
A39: 1905 | B39: Land | C39: 1634.63 | D39: 0 | E39: 1634.63 | F39: ='App.2-C_DepExp (2013)'!I39 -> 0 | G39: 0 | H39: 0 | I39: 0 | J39: 0 | K39: 0 | L39: 0 | M39: 0 | N39: 0 | O39: 0 | P39: 0 | Q39: 0 | R39: 0 | S39: 0
A40: 1908 | B40: Buildings & Fixtures | C40: 0 | D40: 0 | E40: 0 | F40: ='App.2-C_DepExp (2013)'!I40 -> 0 | G40: 0 | H40: 0 | I40: 0 | J40: 0 | K40: 0 | L40: 50 | M40: 0.02 | N40: 0 | O40: 0 | P40: 0 | Q40: 0 | R40: 0 | S40: 0
A41: 1910 | B41: Leasehold Improvements | C41: 0 | D41: 0 | E41: 0 | F41: ='App.2-C_DepExp (2013)'!I41 -> 0 | G41: 0 | H41: 0 | I41: 0 | J41: 0 | K41: 0 | L41: 0 | M41: 0 | N41: 0 | O41: 0 | P41: 0 | Q41: 0 | R41: 0 | S41: 0
A42: 1915 | B42: Office Furniture & Equipment (10 years) | C42: 64123.18 | D42: =725.75 -> 725.75 | E42: 63397.43 | F42: ='App.2-C_DepExp (2013)'!I42 -> 12647.18 | G42: 0 | H42: 12647.18 | I42: 42233.98 | J42: 6.412730778 | K42: 0.155939807 | L42: 10 | M42: 0.1 | N42: 9886.183 | O42: 1264.718 | P42: 2111.699 | Q42: 13262.6 | R42: 13262.6 | S42: 0
A43: 1915 | B43: Office Furniture & Equipment (5 years) | C43: 0 | D43: 0 | E43: 0 | F43: ='App.2-C_DepExp (2013)'!I43 -> 0 | G43: 0 | H43: 0 | I43: 0 | J43: 0 | K43: 0 | L43: 10 | M43: 0.1 | N43: 0 | O43: 0 | P43: 0 | Q43: 0 | R43: 0 | S43: 0
A44: 1920 | B44: Computer Equipment - Hardware | C44: 0 | D44: 0 | E44: 0 | F44: ='App.2-C_DepExp (2013)'!I44 -> 0 | G44: 0 | H44: 0 | I44: 0 | J44: 0 | K44: 0 | L44: 5 | M44: 0.2 | N44: 0 | O44: 0 | P44: 0 | Q44: 0 | R44: 0 | S44: 0
A45: 1920 | B45: Computer Equip.-Hardware(Post Mar. 22/04) | C45: 0 | D45: 0 | E45: 0 | F45: ='App.2-C_DepExp (2013)'!I45 -> 0 | G45: 0 | H45: 0 | I45: 0 | J45: 0 | K45: 0 | L45: 5 | M45: 0.2 | N45: 0 | O45: 0 | P45: 0 | Q45: 0 | R45: 0 | S45: 0
A46: 1920 | B46: Computer Equip.-Hardware(Post Mar. 19/07) | C46: 58817.27 | D46: =4001+7273 -> 11274 | E46: 47543.27 | F46: ='App.2-C_DepExp (2013)'!I46 -> 82496.4 | G46: 0 | H46: 82496.4 | I46: 2446.45 | J46: 2.21631396 | K46: 0.4511996125 | L46: 5 | M46: 0.2 | N46: 21451.505 | O46: 16499.28 | P46: 244.645 | Q46: 38195.43 | R46: 38195.43 | S46: 0
A47: 1930 | B47: Transportation Equipment | C47: 961536.5 | D47: 0 | E47: 961536.5 | F47: ='App.2-C_DepExp (2013)'!I47 -> 0 | G47: 0 | H47: 0 | I47: 371133.5 | J47: 9.437265476 | K47: 0.1059628981 | L47: 12 | M47: 0.08333333333 | N47: 101887.1942 | O47: 0 | P47: 15463.89583 | Q47: 117351.09 | R47: 117351.09 | S47: -1.455191523e-11
A48: 1935 | B48: Stores Equipment | C48: 51753.8 | D48: 0 | E48: 51753.8 | F48: ='App.2-C_DepExp (2013)'!I48 -> 0 | G48: 0 | H48: 0 | I48: 580 | J48: 5.30639489 | K48: 0.1884518625 | L48: 10 | M48: 0.1 | N48: 9753.1 | O48: 0 | P48: 29 | Q48: 9782.1 | R48: 9782.1 | S48: 0
A49: 1940 | B49: Tools, Shop & Garage Equipment | C49: 94758.59 | D49: 1071 | E49: 93687.59 | F49: ='App.2-C_DepExp (2013)'!I49 -> 41297.85 | G49: 0 | H49: 41297.85 | I49: 73831.78 | J49: 4.910741093 | K49: 0.203635252 | L49: 10 | M49: 0.1 | N49: 19078.096 | O49: 4129.785 | P49: 3691.589 | Q49: 26899.47 | R49: 26899.47 | S49: 0
A50: 1945 | B50: Measurement & Testing Equipment | C50: 38394.68 | D50: 0 | E50: 38394.68 | F50: ='App.2-C_DepExp (2013)'!I50 -> 0 | G50: 0 | H50: 0 | I50: 0 | J50: 4.180482499 | K50: 0.239206838 | L50: 10 | M50: 0.1 | N50: 9184.27 | O50: 0 | P50: 0 | Q50: 9184.27 | R50: 9184.27 | S50: 0
A51: 1950 | B51: Power Operated Equipment | C51: 43907.51 | D51: 0 | E51: 43907.51 | F51: ='App.2-C_DepExp (2013)'!I51 -> 0 | G51: 0 | H51: 0 | I51: 0 | J51: 4.617546409 | K51: 0.21656523 | L51: 10 | M51: 0.1 | N51: 9508.84 | O51: 0 | P51: 0 | Q51: 9508.84 | R51: 9508.84 | S51: 0
A52: 1955 | B52: Communications Equipment | C52: 49800.6 | D52: 0 | E52: 49800.6 | F52: ='App.2-C_DepExp (2013)'!I52 -> 0 | G52: 0 | H52: 0 | I52: 545 | J52: 5.814457978 | K52: 0.1719850765 | L52: 10 | M52: 0.1 | N52: 8564.96 | O52: 0 | P52: 27.25 | Q52: 8592.21 | R52: 8592.21 | S52: 0
A53: 1955 | B53: Communication Equipment (Smart Meters) | C53: 0 | D53: 0 | E53: 0 | F53: ='App.2-C_DepExp (2013)'!I53 -> 0 | G53: 0 | H53: 0 | I53: 0 | J53: 0 | K53: 0 | L53: 10 | M53: 0.1 | N53: 0 | O53: 0 | P53: 0 | Q53: 0 | R53: 0 | S53: 0
A54: 1960 | B54: Miscellaneous Equipment | C54: 27598.95 | D54: 0 | E54: 27598.95 | F54: ='App.2-C_DepExp (2013)'!I54 -> 26266.13 | G54: 0 | H54: 26266.13 | I54: 17556 | J54: 5.917826565 | K54: 0.1689809576 | L54: 10 | M54: 0.1 | N54: 4663.697 | O54: 2626.613 | P54: 877.8 | Q54: 8168.11 | R54: 8168.11 | S54: 0
A55: 1970 | B55: Load Management Controls Customer Premises | C55: 0 | D55: 0 | E55: 0 | F55: ='App.2-C_DepExp (2013)'!I55 -> 0 | G55: 0 | H55: 0 | I55: 0 | J55: 0 | K55: 0 | L55: 0 | M55: 0 | N55: 0 | O55: 0 | P55: 0 | Q55: 0 | R55: 0 | S55: 0
A56: 1975 | B56: Load Management Controls Utility Premises | C56: 0 | D56: 0 | E56: 0 | F56: ='App.2-C_DepExp (2013)'!I56 -> 0 | G56: 0 | H56: 0 | I56: 0 | J56: 0 | K56: 0 | L56: 0 | M56: 0 | N56: 0 | O56: 0 | P56: 0 | Q56: 0 | R56: 0 | S56: 0
A57: 1980 | B57: System Supervisor Equipment | C57: 0 | D57: 0 | E57: 0 | F57: ='App.2-C_DepExp (2013)'!I57 -> 0 | G57: 0 | H57: 0 | I57: 0 | J57: 0 | K57: 0 | L57: 0 | M57: 0 | N57: 0 | O57: 0 | P57: 0 | Q57: 0 | R57: 0 | S57: 0
A58: 1985 | B58: Miscellaneous Fixed Assets | C58: 0 | D58: 0 | E58: 0 | F58: ='App.2-C_DepExp (2013)'!I58 -> 0 | G58: 0 | H58: 0 | I58: 0 | J58: 0 | K58: 0 | L58: 0 | M58: 0 | N58: 0 | O58: 0 | P58: 0 | Q58: 0 | R58: 0 | S58: 0
A59: 1990 | B59: Other Tangible Property | C59: 0 | D59: 0 | E59: 0 | F59: ='App.2-C_DepExp (2013)'!I59 -> 0 | G59: 0 | H59: 0 | I59: 0 | J59: 0 | K59: 0 | L59: 0 | M59: 0 | N59: 0 | O59: 0 | P59: 0 | Q59: 0 | R59: 0 | S59: 0
A60: 1995 | B60: Contributions & Grants | C60: -6834383.13 | D60: 0 | E60: -6834383.13 | F60: ='App.2-C_DepExp (2013)'!I60 -> -473674 | G60: 0 | H60: -473674 | I60: -394426 | J60: 41.49632893 | K60: 0.02409851729 | L60: 60 | M60: 0.01666666667 | N60: -164698.5 | O60: -7894.566667 | P60: -3286.883333 | Q60: -175879.95 | R60: -175879.95 | S60: 0
B61: Total | C61: =SUM(C23:C60) -> 30238881.61 | D61: 81446.75 | E61: 30157434.86 | F61: 6897841.61 | G61: 0 | H61: 6897841.61 | I61: 4327198.92 | N61: =SUM(N23:N60) -> 1225659.035 | O61: 431728.2815 | P61: 87682.30018 | Q61: 1745069.617 | R61: 1676743.81 | S61: -68325.80667
A64: General: | B64: Applicants are to complete this appendix to show the reasonability of the depreciation expense that is included in rate base via. Accumulated depreciation and the revenue requirement.
B65: Applicants must provide a breakdown of depreciation and amortization expense in the above format for all relevant accounts. Balances presented in the table should exclude asset retirement obligations (AROs) and the related depreciation and accretion expense. These should be disclosed separately consistent with the Notes of historical Audited Financial Statements.
A68: Notes:
A69: 1 | B69: This is the net book value of assets that existed as at the date of the utility's change in depreciation policies (i.e. as at Jan. 1, 2012 or Jan. 1, 2013). These assets are to be depreciated at the average remaining service life. This amount will not change in years subsequent to the date of the utility's change in depreciation policies. This column is expected to be used until the assets that existed as at the date of the utility's change in depreciation policies are fully depreciated.
A70: 2 | B70: This is the opening gross book value of assets that have been acquired after the date of the utilities change in depreciation policies (i.e. additions starting in 2012/2013 for those who changed policies Jan. 1, 2012/2013). These assets are to be depreciated at the revised service life. The amount is expected to be equal to the gross book value of the prior year plus the prior year's additions.
A71: 3 | B71: A recalculation should be performed to determine the average remaining life of opening balance of assets (i.e. excluding current year's additions) under the change in policies under CGAAP. For example, Asset A had a useful life of 20 years under CGAAP without the change in policies. On January 1 of the year of policy changes, Asset A was 3 years depreciated. As a result, Asset A would have a remaining service life of 17 years (20 years less 3 years) as at January 1 of the year of policy changes. Due to making the change in policies under CGAAP, management re-assessed the asset useful lives and concluded that the revised useful life of Asset A is now 30 years. Therefore, the average remaining useful life of the opening balance of Asset A is determined to be 27 years (30 years less 3 years) under the revised CGAAP as at January 1 of the year of policy changes.
A72: 4 | B72: The useful life used should be consistent with the OEB's regulatory accounting policies as set out in the Accounting Procedures Handbook for Electricity Distributors, effective Jan. 1, 2012 and also with the Report of the Board, Transition to International Financial Reporting Standards, EB-2008-0408, and the Kinectrics Report.
A73: 5 | B73: Board policy of the "half-year" rule - the applicant must ensure that additions in the year attract a half-year depreciation expense in the first year. Deviations from this standard practice must be supported in the application.
A74: 6 | B74: The applicant must provide an explanation of material variances in evidence.
A75: 7 | B75: This should include assets in column a (excel column C) that become fully depreciated since the date of the policy change. The amount input in b (excel column D) should equal the net book value of the asset as at the date of depreciation policy change
A76: 8 | B76: This should include assets in column d (excel column f) that have become fully depreciated. The amount input in e (excel column G) should equal the gross book value of the asset

Sheet App.2-C_DepExp (2015)
A1: MRS: This sheet is new, you will need to populate and have it match your Data Vault.
A9: Appendix 2-C | Y9: CGAAP
A10: Depreciation and Amortization Expense | Y10: Revised CGAAP
Y11: MIFRS
A12: This appendix is to be completed in conjunction with the accounting instructions in Appendix 2-B
A14: Scenario that applies | C14: Applicable Years and Accounting Standard | R14: Year Reflected in Schedule Below | S14: Accounting Standard Reflected in Schedule Below | Y14: 2012
A15: Rebasing for the first time with depreciation policy changes made in 2012. | C15: This appendix must be duplicated and completed for the years 2012 to 2018. The appendix for 2012 is to be completed under CGAAP (prior to changes in depreciation policies). The appendix for 2012 to 2014 must be completed under Revised CGAAP (after changes in depreciation policies). The appendix for 2014 to 2018 is to be completed under MIFRS (2014 if changes to MIFRS are material). | Y15: 2013
A16: Rebasing for the first time with depreciation policy changes made in 2013. | C16: This appendix must be duplicated and completed for the years 2013 to 2018. The appendix for 2013 is to be completed under CGAAP (prior to changes in depreciation policies). The appendix for 2013 to 2014 must be completed under Revised CGAAP (after changes in depreciation policies). The appendix for 2014 to 2018 is to be completed under MIFRS (2014 if changes to MIFRS are material). | R16: 2015 | S16: MIFRS | Y16: 2014
A17: Already rebased with depreciation policy changes in a prior rate application | C17: This appendix must be completed for 2014 to 2018. The appendix for 2014 is to be completed under Revised CGAAP (after changes in depreciation policies). The appendix for 2014 to 2018 is to be completed under MIFRS (2014 if changes to MIFRS are material). | Y17: 2015
Y18: 2016
Y19: 2017
C20: Book Values | J20: Service Lives | N20: Depreciation Expense | Y20: 2018
A21: Account | B21: Description | C21: Opening Net Book Value of Existing Assets as at Date of Policy Change (Jan. 1) 1 | D21: Less Fully Depreciated 7 | E21: Net Amount of Existing Assets Before Policy Change to be Depreciated | F21: Opening Gross Book Value of Assets Acquired After Policy Change 2 | G21: Less Fully Depreciated 8 | H21: Net Amount of Assets Acquired After Policy Change to be Depreciated | I21: Current Year Additions | J21: Average Remaining Life of Assets Existing Before Policy Change 3 | K21: Depreciation Rate Assets Acquired After Policy Change | L21: Life of Assets Acquired After Policy Change 4 | M21: Depreciation Rate on New Additions | N21: Depreciation Expense on Assets Existing Before Policy Change | O21: Depreciation Expense on Assets Acquired After Policy Change | P21: Depreciation Expense on Current Year Additions 5 | Q21: Total Current Year Depreciation Expense | R21: Depreciation Expense per Appendix 2-BA Fixed Assets, Column J | S21: Variance 6
C22: a | D22: b | E22: c = a-b | F22: d | G22: e | H22: f = d- e | I22: g | J22: h | K22: i = 1/h | L22: j | M22: k = 1/j | N22: l = c/h | O22: m = f/j | P22: n = g*0.5/j | Q22: o = l+m+n | R22: p | S22: q = p-o
A23: 1611 | B23: Computer Software (Formally known as Account 1925) | C23: 60873.98 | D23: =7802+1741+4512 -> 14055 | E23: =C23-D23 -> 46818.98 | F23: ='App.2-C_DepExp (2014)'!F23+'App.2-C_DepExp (2014)'!I23 -> 424705.49 | H23: =F23-G23 -> 424705.49 | I23: 187989.61 | J23: 1 | K23: =IF(J23=0,0,1/J23) -> 1 | L23: 3 | M23: =IF(L23=0,0,1/L23) -> 0.3333333333 | N23: =IF(J23=0,0,+E23/J23) -> 46818.98 | O23: =IF(L23=0,0,+H23/L23) -> 141568.4967 | P23: =IF(L23=0,0,+(I23*0.5)/L23) -> 31331.60167 | Q23: =IF(ISERROR(+N23+O23+P23), 0, +N23+O23+P23) -> 219719.0783 | R23: 124746.14 | S23: =IF(ISERROR(+R23-122), 0, +R23-Q23) -> -94972.93833
A24: 1612 | B24: Land Rights (Formally known as Account 1906) | C24: 0 | D24: 0 | E24: =C24-D24 -> 0 | F24: ='App.2-C_DepExp (2014)'!F24+'App.2-C_DepExp (2014)'!I24 -> 0 | H24: =F24-G24 -> 0 | I24: 0 | J24: =IF(R24=0,0,E24/(R24-P24-O24)) -> 0 | K24: =IF(J24=0,0,1/J24) -> 0 | L24: 0 | M24: =IF(L24=0,0,1/L24) -> 0 | N24: =IF(J24=0,0,+E24/J24) -> 0 | O24: =IF(L24=0,0,+H24/L24) -> 0 | P24: =IF(L24=0,0,+(I24*0.5)/L24) -> 0 | Q24: =IF(ISERROR(+N24+O24+P24), 0, +N24+O24+P24) -> 0 | R24: 0 | S24: =IF(ISERROR(+R24-122), 0, +R24-Q24) -> 0
A25: 1805 | B25: Land | C25: 227768.86 | D25: 0 | E25: 227768.86 | F25: ='App.2-C_DepExp (2014)'!F25+'App.2-C_DepExp (2014)'!I25 -> 0 | H25: 0 | I25: 0 | J25: 0 | K25: 0 | L25: 0 | M25: 0 | N25: 0 | O25: =IF(L25=0,0,+H25/L25) -> 0 | P25: 0 | Q25: 0 | R25: 0 | S25: 0
A26: 1808 | B26: Buildings | C26: 2211233.84 | D26: 0 | E26: 2211233.84 | F26: ='App.2-C_DepExp (2014)'!F26+'App.2-C_DepExp (2014)'!I26 -> 47520.22 | H26: 47520.22 | I26: =40948.56 -> 40948.56 | J26: 42.43387396 | K26: 0.02356607838 | L26: 50 | M26: 0.02 | N26: 52110.11 | O26: 950.4044 | P26: 409.4856 | Q26: 53470 | R26: 53470 | S26: 0
A27: 1810 | B27: Leasehold Improvements | C27: 0 | D27: 0 | E27: 0 | F27: ='App.2-C_DepExp (2014)'!F27+'App.2-C_DepExp (2014)'!I27 -> 0 | H27: 0 | J27: 0 | K27: 0 | L27: 0 | M27: 0 | N27: 0 | O27: 0 | P27: 0 | Q27: 0 | R27: 0 | S27: 0
A28: 1815 | B28: Transformer Station Equipment >50 kV | C28: 0 | D28: 0 | E28: 0 | F28: ='App.2-C_DepExp (2014)'!F28+'App.2-C_DepExp (2014)'!I28 -> 0 | H28: 0 | I28: 0 | J28: 0 | K28: 0 | L28: 0 | M28: 0 | N28: 0 | O28: 0 | P28: 0 | Q28: 0 | R28: 0 | S28: 0
A29: 1820 | B29: Distribution Station Equipment <50 kV | C29: 2481877.3 | D29: ='App.2-C_DepExp (2014)'!D29 -> 68376 | E29: 2413501.3 | F29: ='App.2-C_DepExp (2014)'!F29+'App.2-C_DepExp (2014)'!I29 -> 1841624.25 | H29: 1841624.25 | I29: =866730.72 -> 866730.72 | J29: 9.673668466 | K29: 0.1033734 | L29: 45 | M29: 0.02222222222 | N29: 249491.8353 | O29: 40924.98333 | P29: 9630.341333 | Q29: 300047.16 | R29: 300047.16 | S29: 0
A30: 1825 | B30: Storage Battery Equipment | C30: 0 | D30: 0 | E30: 0 | F30: ='App.2-C_DepExp (2014)'!F30+'App.2-C_DepExp (2014)'!I30 -> 0 | H30: 0 | I30: 0 | J30: 0 | K30: 0 | L30: 0 | M30: 0 | N30: 0 | O30: 0 | P30: 0 | Q30: 0 | R30: 0 | S30: 0
A31: 1830 | B31: Poles, Towers & Fixtures | C31: 5089221.62 | D31: 0 | E31: 5089221.62 | F31: ='App.2-C_DepExp (2014)'!F31+'App.2-C_DepExp (2014)'!I31 -> 1335979.51 | H31: 1335979.51 | I31: =563723.52 -> 563723.52 | J31: 46.24806648 | K31: 0.02162252557 | L31: 50 | M31: 0.02 | N31: 110041.8246 | O31: 26719.5902 | P31: 5637.2352 | Q31: 142398.65 | R31: 142398.65 | S31: 0
A32: 1835 | B32: Overhead Conductors & Devices | C32: 7300747.03 | D32: 0 | E32: 7300747.03 | F32: ='App.2-C_DepExp (2014)'!F32+'App.2-C_DepExp (2014)'!I32 -> 1457309.53 | H32: 1457309.53 | I32: =849171.06 -> 849171.06 | J32: 54.60022347 | K32: 0.01831494336 | L32: 65 | M32: 0.01538461538 | N32: 133712.7683 | O32: 22420.14662 | P32: 6532.085077 | Q32: 162665 | R32: 162665 | S32: 0
A33: 1840 | B33: Underground Conduit | C33: 1981612.95 | D33: 0 | E33: 1981612.95 | F33: ='App.2-C_DepExp (2014)'!F33+'App.2-C_DepExp (2014)'!I33 -> 219043.77 | H33: 219043.77 | I33: =48936.47 -> 48936.47 | J33: 72.46235266 | K33: 0.01380026956 | L33: 85 | M33: 0.01176470588 | N33: 27346.79288 | O33: 2576.985529 | P33: 287.8615882 | Q33: 30211.64 | R33: 30211.64 | S33: 0
A34: 1845 | B34: Underground Conductors & Devices | C34: 6412108.91 | D34: 0 | E34: 6412108.91 | F34: ='App.2-C_DepExp (2014)'!F34+'App.2-C_DepExp (2014)'!I34 -> 760496.2 | H34: 760496.2 | I34: =539282.59 -> 539282.59 | J34: 32.27110679 | K34: 0.03098747144 | L34: 60 | M34: 0.01666666667 | N34: 198695.0418 | O34: 12674.93667 | P34: 4494.021583 | Q34: 215864 | R34: 215864 | S34: 0
A35: 1850 | B35: Line Transformers | C35: 5317715.8 | D35: 0 | E35: 5317715.8 | F35: ='App.2-C_DepExp (2014)'!F35+'App.2-C_DepExp (2014)'!I35 -> 553032.97 | H35: 553032.97 | I35: =309609.13 -> 309609.13 | J35: 25.45870492 | K35: 0.03927929575 | L35: 40 | M35: 0.025 | N35: 208876.1316 | O35: 13825.82425 | P35: 3870.114125 | Q35: 226572.07 | R35: 226572.07 | S35: 0
A36: 1855 | B36: Services (Overhead & Underground) | C36: 3281615.53 | D36: 0 | E36: 3281615.53 | F36: ='App.2-C_DepExp (2014)'!F36+'App.2-C_DepExp (2014)'!I36 -> 475878.07 | H36: 475878.07 | I36: =196699.42 -> 196699.42 | J36: 38.80813301 | K36: 0.02576779459 | L36: 55 | M36: 0.01818181818 | N36: 84559.99491 | O36: 8652.328545 | P36: 1788.176545 | Q36: 95000.5 | R36: 95000.5 | S36: 0
A37: 1860 | B37: Meters | C37: 1177438.74 | D37: 0 | E37: 1177438.74 | F37: ='App.2-C_DepExp (2014)'!F37+'App.2-C_DepExp (2014)'!I37 -> 157971.54 | H37: 157971.54 | I37: =154402.09 -> 154402.09 | J37: 23.40873726 | K37: 0.04271909198 | L37: 30 | M37: 0.03333333333 | N37: 50299.11383 | O37: 5265.718 | P37: 2573.368167 | Q37: 58138.2 | R37: 58138.2 | S37: 0
A38: 1860 | B38: Meters (Smart Meters) | C38: 138724.47 | D38: 0 | E38: 138724.47 | F38: ='App.2-C_DepExp (2014)'!F38+'App.2-C_DepExp (2014)'!I38 -> 4148544.71 | H38: 4148544.71 | I38: 77709.22 | J38: 10.95025588 | K38: 0.09132206692 | L38: 15 | M38: 0.06666666667 | N38: 12668.60533 | O38: 276569.6473 | P38: 2590.307333 | Q38: 291828.56 | R38: 291828.56 | S38: 0
A39: 1905 | B39: Land | C39: 1634.63 | D39: 0 | E39: 1634.63 | F39: ='App.2-C_DepExp (2014)'!F39+'App.2-C_DepExp (2014)'!I39 -> 0 | H39: 0 | I39: 0 | J39: 0 | K39: 0 | L39: 0 | M39: 0 | N39: 0 | O39: 0 | P39: 0 | Q39: 0 | R39: 0 | S39: 0
A40: 1908 | B40: Buildings & Fixtures | C40: 0 | D40: 0 | E40: 0 | F40: ='App.2-C_DepExp (2014)'!F40+'App.2-C_DepExp (2014)'!I40 -> 0 | H40: 0 | I40: 0 | J40: 0 | K40: 0 | L40: 50 | M40: 0.02 | N40: 0 | O40: 0 | P40: 0 | Q40: 0 | R40: 0 | S40: 0
A41: 1910 | B41: Leasehold Improvements | C41: 0 | D41: 0 | E41: 0 | F41: ='App.2-C_DepExp (2014)'!F41+'App.2-C_DepExp (2014)'!I41 -> 0 | H41: 0 | I41: 0 | J41: 0 | K41: 0 | L41: 0 | M41: 0 | N41: 0 | O41: 0 | P41: 0 | Q41: 0 | R41: 0 | S41: 0
A42: 1915 | B42: Office Furniture & Equipment (10 years) | C42: 64123.18 | D42: ='App.2-C_DepExp (2014)'!D42 -> 725.75 | E42: 63397.43 | F42: ='App.2-C_DepExp (2014)'!F42+'App.2-C_DepExp (2014)'!I42 -> 54881.16 | H42: 54881.16 | I42: =21090.8 -> 21090.8 | J42: 6.264064333 | K42: 0.1596407615 | L42: 10 | M42: 0.1 | N42: 10120.814 | O42: 5488.116 | P42: 1054.54 | Q42: 16663.47 | R42: 16663.47 | S42: 0
A43: 1915 | B43: Office Furniture & Equipment (5 years) | C43: 0 | D43: 0 | E43: 0 | F43: ='App.2-C_DepExp (2014)'!F43+'App.2-C_DepExp (2014)'!I43 -> 0 | H43: 0 | I43: 0 | J43: 0 | K43: 0 | L43: 10 | M43: 0.1 | N43: 0 | O43: 0 | P43: 0 | Q43: 0 | R43: 0 | S43: 0
A44: 1920 | B44: Computer Equipment - Hardware | C44: 0 | D44: 0 | E44: 0 | F44: ='App.2-C_DepExp (2014)'!F44+'App.2-C_DepExp (2014)'!I44 -> 0 | H44: 0 | J44: 0 | K44: 0 | L44: 5 | M44: 0.2 | N44: 0 | O44: 0 | P44: 0 | Q44: 0 | R44: 0 | S44: 0
A45: 1920 | B45: Computer Equip.-Hardware(Post Mar. 22/04) | C45: 0 | D45: 0 | E45: 0 | F45: ='App.2-C_DepExp (2014)'!F45+'App.2-C_DepExp (2014)'!I45 -> 0 | H45: 0 | J45: 0 | K45: 0 | L45: 5 | M45: 0.2 | N45: 0 | O45: 0 | P45: 0 | Q45: 0 | R45: 0 | S45: 0
A46: 1920 | B46: Computer Equip.-Hardware(Post Mar. 19/07) | C46: 58817.27 | D46: ='App.2-C_DepExp (2014)'!D46+7440 -> 18714 | E46: 40103.27 | F46: ='App.2-C_DepExp (2014)'!F46+'App.2-C_DepExp (2014)'!I46 -> 84942.85 | H46: 84942.85 | I46: =179867.06 -> 179867.06 | J46: 15.96840266 | K46: 0.06262367134 | L46: 5 | M46: 0.2 | N46: 2511.414 | O46: 16988.57 | P46: 17986.706 | Q46: 37486.69 | R46: 37486.69 | S46: 0
A47: 1930 | B47: Transportation Equipment | C47: 961536.5 | D47: 0 | E47: 961536.5 | F47: ='App.2-C_DepExp (2014)'!F47+'App.2-C_DepExp (2014)'!I47 -> 371133.5 | H47: 371133.5 | I47: =58226.24 -> 58226.24 | J47: 9.808938016 | K47: 0.1019478356 | L47: 12 | M47: 0.08333333333 | N47: 98026.565 | O47: 30927.79167 | P47: 2426.093333 | Q47: 131380.45 | R47: 131380.45 | S47: 0
A48: 1935 | B48: Stores Equipment | C48: 51753.8 | D48: 0 | E48: 51753.8 | F48: ='App.2-C_DepExp (2014)'!F48+'App.2-C_DepExp (2014)'!I48 -> 580 | H48: 580 | J48: 5.304643554 | K48: 0.1885140801 | L48: 10 | M48: 0.1 | N48: 9756.32 | O48: 58 | P48: 0 | Q48: 9814.32 | R48: 9814.32 | S48: 0
A49: 1940 | B49: Tools, Shop & Garage Equipment | C49: 94758.59 | D49: ='App.2-C_DepExp (2014)'!D49+3592 -> 4663 | E49: 90095.59 | F49: ='App.2-C_DepExp (2014)'!F49+'App.2-C_DepExp (2014)'!I49 -> 115129.63 | H49: 115129.63 | I49: =93460.02 -> 93460.02 | J49: 5.221438665 | K49: 0.1915180976 | L49: 10 | M49: 0.1 | N49: 17254.936 | O49: 11512.963 | P49: 4673.001 | Q49: 33440.9 | R49: 33440.9 | S49: 0
A50: 1945 | B50: Measurement & Testing Equipment | C50: 38394.68 | D50: 1825 | E50: 36569.68 | F50: ='App.2-C_DepExp (2014)'!F50+'App.2-C_DepExp (2014)'!I50 -> 0 | H50: 0 | J50: 4.543150368 | K50: 0.2201115788 | L50: 10 | M50: 0.1 | N50: 8049.41 | O50: 0 | P50: 0 | Q50: 8049.41 | R50: 8049.41 | S50: -9.094947018e-13
A51: 1950 | B51: Power Operated Equipment | C51: 43907.51 | D51: =433+1508 -> 1941 | E51: 41966.51 | F51: ='App.2-C_DepExp (2014)'!F51+'App.2-C_DepExp (2014)'!I51 -> 0 | H51: 0 | J51: 5.055188896 | K51: 0.1978165447 | L51: 10 | M51: 0.1 | N51: 8301.67 | O51: 0 | P51: 0 | Q51: 8301.67 | R51: 8301.67 | S51: 0
A52: 1955 | B52: Communications Equipment | C52: 49800.6 | D52: 0 | E52: 49800.6 | F52: ='App.2-C_DepExp (2014)'!F52+'App.2-C_DepExp (2014)'!I52 -> 545 | H52: 545 | I52: =20845.11 -> 20845.11 | J52: 5.812405473 | K52: 0.1720458087 | L52: 10 | M52: 0.1 | N52: 8567.9845 | O52: 54.5 | P52: 1042.2555 | Q52: 9664.74 | R52: 9664.74 | S52: 0
A53: 1955 | B53: Communication Equipment (Smart Meters) | C53: 0 | D53: 0 | E53: 0 | F53: ='App.2-C_DepExp (2014)'!F53+'App.2-C_DepExp (2014)'!I53 -> 0 | H53: 0 | J53: 0 | K53: 0 | L53: 10 | M53: 0.1 | N53: 0 | O53: 0 | P53: 0 | Q53: 0 | R53: 0 | S53: 0
A54: 1960 | B54: Miscellaneous Equipment | C54: 27598.95 | D54: 1361 | E54: 26237.95 | F54: ='App.2-C_DepExp (2014)'!F54+'App.2-C_DepExp (2014)'!I54 -> 43822.13 | H54: 43822.13 | I54: =17800 -> 17800 | J54: 7.131007439 | K54: 0.1402326401 | L54: 10 | M54: 0.1 | N54: 3679.417 | O54: 4382.213 | P54: 890 | Q54: 8951.63 | R54: 8951.63 | S54: 0
A55: 1970 | B55: Load Management Controls Customer Premises | C55: 0 | D55: 0 | E55: 0 | F55: ='App.2-C_DepExp (2014)'!F55+'App.2-C_DepExp (2014)'!I55 -> 0 | H55: 0 | J55: 0 | K55: 0 | L55: 0 | M55: 0 | N55: 0 | O55: 0 | P55: 0 | Q55: 0 | R55: 0 | S55: 0
A56: 1975 | B56: Load Management Controls Utility Premises | C56: 0 | D56: 0 | E56: 0 | F56: ='App.2-C_DepExp (2014)'!F56+'App.2-C_DepExp (2014)'!I56 -> 0 | H56: 0 | I56: 0 | J56: 0 | K56: 0 | L56: 0 | M56: 0 | N56: 0 | O56: 0 | P56: 0 | Q56: 0 | R56: 0 | S56: 0
A57: 1980 | B57: System Supervisor Equipment | C57: 0 | D57: 0 | E57: 0 | F57: ='App.2-C_DepExp (2014)'!F57+'App.2-C_DepExp (2014)'!I57 -> 0 | H57: 0 | J57: 0 | K57: 0 | L57: 0 | M57: 0 | N57: 0 | O57: 0 | P57: 0 | Q57: 0 | R57: 0 | S57: 0
A58: 1985 | B58: Miscellaneous Fixed Assets | C58: 0 | D58: 0 | E58: 0 | F58: ='App.2-C_DepExp (2014)'!F58+'App.2-C_DepExp (2014)'!I58 -> 0 | H58: 0 | I58: 0 | J58: 0 | K58: 0 | L58: 0 | M58: 0 | N58: 0 | O58: 0 | P58: 0 | Q58: 0 | R58: 0 | S58: 0
A59: 1990 | B59: Other Tangible Property | C59: 0 | D59: 0 | E59: 0 | F59: ='App.2-C_DepExp (2014)'!F59+'App.2-C_DepExp (2014)'!I59 -> 0 | H59: 0 | J59: 0 | K59: 0 | L59: 0 | M59: 0 | N59: 0 | O59: 0 | P59: 0 | Q59: 0 | R59: 0 | S59: 0
A60: 1995 | B60: Contributions & Grants | C60: -6834383.13 | D60: 0 | E60: -6834383.13 | F60: ='App.2-C_DepExp (2014)'!F60+'App.2-C_DepExp (2014)'!I60 -> -868100 | H60: -868100 | I60: =-360794.47 -> -360794.47 | J60: 40.89707184 | K60: 0.02445162832 | L60: 60 | M60: 0.01666666667 | N60: -167111.7961 | O60: -14468.33333 | P60: -3006.620583 | Q60: -184586.75 | R60: -184586.75 | S60: 0
B61: Total | C61: =SUM(C23:C60) -> 30238881.61 | D61: 111660.75 | E61: 30127220.86 | F61: 11225040.53 | G61: 0 | H61: 11225040.53 | I61: 3865697.15 | N61: =SUM(N23:N60) -> 1173777.933 | O61: 607092.8819 | P61: 94210.57347 | Q61: 1875081.388 | R61: 1780108.45 | S61: -94972.93833
A64: General: | B64: Applicants are to complete this appendix to show the reasonability of the depreciation expense that is included in rate base via. Accumulated depreciation and the revenue requirement.
B65: Applicants must provide a breakdown of depreciation and amortization expense in the above format for all relevant accounts. Balances presented in the table should exclude asset retirement obligations (AROs) and the related depreciation and accretion expense. These should be disclosed separately consistent with the Notes of historical Audited Financial Statements.
A68: Notes:
A69: 1 | B69: This is the net book value of assets that existed as at the date of the utility's change in depreciation policies (i.e. as at Jan. 1, 2012 or Jan. 1, 2013). These assets are to be depreciated at the average remaining service life. This amount will not change in years subsequent to the date of the utility's change in depreciation policies. This column is expected to be used until the assets that existed as at the date of the utility's change in depreciation policies are fully depreciated.
A70: 2 | B70: This is the opening gross book value of assets that have been acquired after the date of the utilities change in depreciation policies (i.e. additions starting in 2012/2013 for those who changed policies Jan. 1, 2012/2013). These assets are to be depreciated at the revised service life. The amount is expected to be equal to the gross book value of the prior year plus the prior year's additions.
A71: 3 | B71: A recalculation should be performed to determine the average remaining life of opening balance of assets (i.e. excluding current year's additions) under the change in policies under CGAAP. For example, Asset A had a useful life of 20 years under CGAAP without the change in policies. On January 1 of the year of policy changes, Asset A was 3 years depreciated. As a result, Asset A would have a remaining service life of 17 years (20 years less 3 years) as at January 1 of the year of policy changes. Due to making the change in policies under CGAAP, management re-assessed the asset useful lives and concluded that the revised useful life of Asset A is now 30 years. Therefore, the average remaining useful life of the opening balance of Asset A is determined to be 27 years (30 years less 3 years) under the revised CGAAP as at January 1 of the year of policy changes.
A72: 4 | B72: The useful life used should be consistent with the OEB's regulatory accounting policies as set out in the Accounting Procedures Handbook for Electricity Distributors, effective Jan. 1, 2012 and also with the Report of the Board, Transition to International Financial Reporting Standards, EB-2008-0408, and the Kinectrics Report.
A73: 5 | B73: Board policy of the "half-year" rule - the applicant must ensure that additions in the year attract a half-year depreciation expense in the first year. Deviations from this standard practice must be supported in the application.
A74: 6 | B74: The applicant must provide an explanation of material variances in evidence.
A75: 7 | B75: This should include assets in column a (excel column C) that become fully depreciated since the date of the policy change. The amount input in b (excel column D) should equal the net book value of the asset as at the date of depreciation policy change
A76: 8 | B76: This should include assets in column d (excel column f) that have become fully depreciated. The amount input in e (excel column G) should equal the gross book value of the asset

Sheet App.2-C_DepExp (2016)
A1: MRS: This sheet is new, you will need to populate and have it match your Data Vault.
A9: Appendix 2-C | Y9: CGAAP
A10: Depreciation and Amortization Expense | Y10: Revised CGAAP
Y11: MIFRS
A12: This appendix is to be completed in conjunction with the accounting instructions in Appendix 2-B
A14: Scenario that applies | C14: Applicable Years and Accounting Standard | R14: Year Reflected in Schedule Below | S14: Accounting Standard Reflected in Schedule Below | Y14: 2012
A15: Rebasing for the first time with depreciation policy changes made in 2012. | C15: This appendix must be duplicated and completed for the years 2012 to 2018. The appendix for 2012 is to be completed under CGAAP (prior to changes in depreciation policies). The appendix for 2012 to 2014 must be completed under Revised CGAAP (after changes in depreciation policies). The appendix for 2014 to 2018 is to be completed under MIFRS (2014 if changes to MIFRS are material). | Y15: 2013
A16: Rebasing for the first time with depreciation policy changes made in 2013. | C16: This appendix must be duplicated and completed for the years 2013 to 2018. The appendix for 2013 is to be completed under CGAAP (prior to changes in depreciation policies). The appendix for 2013 to 2014 must be completed under Revised CGAAP (after changes in depreciation policies). The appendix for 2014 to 2018 is to be completed under MIFRS (2014 if changes to MIFRS are material). | R16: 2016 | S16: MIFRS | Y16: 2014
A17: Already rebased with depreciation policy changes in a prior rate application | C17: This appendix must be completed for 2014 to 2018. The appendix for 2014 is to be completed under Revised CGAAP (after changes in depreciation policies). The appendix for 2014 to 2018 is to be completed under MIFRS (2014 if changes to MIFRS are material). | Y17: 2015
Y18: 2016
Y19: 2017
C20: Book Values | J20: Service Lives | N20: Depreciation Expense | Y20: 2018
A21: Account | B21: Description | C21: Opening Net Book Value of Existing Assets as at Date of Policy Change (Jan. 1) 1 | D21: Less Fully Depreciated 7 | E21: Net Amount of Existing Assets Before Policy Change to be Depreciated | F21: Opening Gross Book Value of Assets Acquired After Policy Change 2 | G21: Less Fully Depreciated 8 | H21: Net Amount of Assets Acquired After Policy Change to be Depreciated | I21: Current Year Additions | J21: Average Remaining Life of Assets Existing Before Policy Change 3 | K21: Depreciation Rate Assets Acquired After Policy Change | L21: Life of Assets Acquired After Policy Change 4 | M21: Depreciation Rate on New Additions | N21: Depreciation Expense on Assets Existing Before Policy Change | O21: Depreciation Expense on Assets Acquired After Policy Change | P21: Depreciation Expense on Current Year Additions 5 | Q21: Total Current Year Depreciation Expense | R21: Depreciation Expense per Appendix 2-BA Fixed Assets, Column J | S21: Variance 6
C22: a | D22: b | E22: c = a-b | F22: d | G22: e | H22: f = d- e | I22: g | J22: h | K22: i = 1/h | L22: j | M22: k = 1/j | N22: l = c/h | O22: m = f/j | P22: n = g*0.5/j | Q22: o = l+m+n | R22: p | S22: q = p-o
A23: 1611 | B23: Computer Software (Formally known as Account 1925) | C23: 60873.98 | D23: ='App.2-C_DepExp (2015)'!D23+549+1488+1998+30353+1750+8746 -> 58939 | E23: =C23-D23 -> 1934.98 | F23: ='App.2-C_DepExp (2015)'!F23+'App.2-C_DepExp (2015)'!I23 -> 612695.1 | G23: ='App.2-C_DepExp (2013)'!I23 -> 309216.89 | H23: =F23-G23 -> 303478.21 | I23: 406812 | J23: 1 | K23: =IF(J23=0,0,1/J23) -> 1 | L23: 3 | M23: =IF(L23=0,0,1/L23) -> 0.3333333333 | N23: =IF(J23=0,0,+E23/J23) -> 1934.98 | O23: =IF(L23=0,0,+H23/L23) -> 101159.4033 | P23: =IF(L23=0,0,+(I23*0.5)/L23) -> 67802 | Q23: =IF(ISERROR(+N23+O23+P23), 0, +N23+O23+P23) -> 170896.3833 | R23: 51311 | S23: =IF(ISERROR(+R23-122), 0, +R23-Q23) -> -119585.3833
A24: 1612 | B24: Land Rights (Formally known as Account 1906) | C24: 0 | D24: 0 | E24: =C24-D24 -> 0 | F24: ='App.2-C_DepExp (2015)'!F24+'App.2-C_DepExp (2015)'!I24 -> 0 | G24: 0 | H24: =F24-G24 -> 0 | J24: =IF(R24=0,0,E24/(R24-P24-O24)) -> 0 | K24: =IF(J24=0,0,1/J24) -> 0 | L24: 0 | M24: =IF(L24=0,0,1/L24) -> 0 | N24: =IF(J24=0,0,+E24/J24) -> 0 | O24: =IF(L24=0,0,+H24/L24) -> 0 | P24: =IF(L24=0,0,+(I24*0.5)/L24) -> 0 | Q24: =IF(ISERROR(+N24+O24+P24), 0, +N24+O24+P24) -> 0 | S24: =IF(ISERROR(+R24-122), 0, +R24-Q24) -> 0
A25: 1805 | B25: Land | C25: 227768.86 | D25: 0 | E25: 227768.86 | F25: ='App.2-C_DepExp (2015)'!F25+'App.2-C_DepExp (2015)'!I25 -> 0 | G25: 0 | H25: 0 | J25: 0 | K25: 0 | L25: 0 | M25: 0 | N25: 0 | O25: =IF(L25=0,0,+H25/L25) -> 0 | P25: 0 | Q25: 0 | S25: 0
A26: 1808 | B26: Buildings | C26: 2211233.84 | D26: 0 | E26: 2211233.84 | F26: ='App.2-C_DepExp (2015)'!F26+'App.2-C_DepExp (2015)'!I26 -> 88468.78 | G26: 0 | H26: 88468.78 | I26: 7144 | J26: 42.41265189 | K26: 0.02357787017 | L26: 50 | M26: 0.02 | N26: 52136.1844 | O26: 1769.3756 | P26: 71.44 | Q26: 53977 | R26: 53977 | S26: -7.275957614e-12
A27: 1810 | B27: Leasehold Improvements | C27: 0 | D27: 0 | E27: 0 | F27: ='App.2-C_DepExp (2015)'!F27+'App.2-C_DepExp (2015)'!I27 -> 0 | G27: 0 | H27: 0 | J27: 0 | K27: 0 | L27: 0 | M27: 0 | N27: 0 | O27: 0 | P27: 0 | Q27: 0 | S27: 0
A28: 1815 | B28: Transformer Station Equipment >50 kV | C28: 0 | D28: 0 | E28: 0 | F28: ='App.2-C_DepExp (2015)'!F28+'App.2-C_DepExp (2015)'!I28 -> 0 | G28: 0 | H28: 0 | J28: 0 | K28: 0 | L28: 0 | M28: 0 | N28: 0 | O28: 0 | P28: 0 | Q28: 0 | S28: 0
A29: 1820 | B29: Distribution Station Equipment <50 kV | C29: 2481877.3 | D29: ='App.2-C_DepExp (2015)'!D29+133846 -> 202222 | E29: 2279655.3 | F29: ='App.2-C_DepExp (2015)'!F29+'App.2-C_DepExp (2015)'!I29 -> 2708354.97 | G29: 0 | H29: 2708354.97 | I29: 2315620 | J29: 9.290449063 | K29: 0.1076374235 | L29: 45 | M29: 0.02222222222 | N29: 245376.2229 | O29: 60185.666 | P29: 25729.11111 | Q29: 331291 | R29: 331291 | S29: 0
A30: 1825 | B30: Storage Battery Equipment | C30: 0 | D30: 0 | E30: 0 | F30: ='App.2-C_DepExp (2015)'!F30+'App.2-C_DepExp (2015)'!I30 -> 0 | G30: 0 | H30: 0 | J30: 0 | K30: 0 | L30: 0 | M30: 0 | N30: 0 | O30: 0 | P30: 0 | Q30: 0 | S30: 0
A31: 1830 | B31: Poles, Towers & Fixtures | C31: 5089221.62 | D31: 0 | E31: 5089221.62 | F31: ='App.2-C_DepExp (2015)'!F31+'App.2-C_DepExp (2015)'!I31 -> 1899703.03 | G31: 0 | H31: 1899703.03 | I31: 677325 | J31: 46.2762991 | K31: 0.02160933392 | L31: 50 | M31: 0.02 | N31: 109974.6894 | O31: 37994.0606 | P31: 6773.25 | Q31: 154742 | R31: 154742 | S31: 0
A32: 1835 | B32: Overhead Conductors & Devices | C32: 7300747.03 | D32: 0 | E32: 7300747.03 | F32: ='App.2-C_DepExp (2015)'!F32+'App.2-C_DepExp (2015)'!I32 -> 2306480.59 | G32: 0 | H32: 2306480.59 | I32: 856408 | J32: 54.61853912 | K32: 0.01830880167 | L32: 65 | M32: 0.01538461538 | N32: 133667.9294 | O32: 35484.31677 | P32: 6587.753846 | Q32: 175740 | R32: 175740 | S32: 0
A33: 1840 | B33: Underground Conduit | C33: 1981612.95 | D33: 0 | E33: 1981612.95 | F33: ='App.2-C_DepExp (2015)'!F33+'App.2-C_DepExp (2015)'!I33 -> 267980.24 | G33: 0 | H33: 267980.24 | I33: 56706 | J33: 72.45457989 | K33: 0.01380175003 | L33: 85 | M33: 0.01176470588 | N33: 27349.72659 | O33: 3152.708706 | P33: 333.5647059 | Q33: 30836 | R33: 30836 | S33: 3.637978807e-12
A34: 1845 | B34: Underground Conductors & Devices | C34: 6412108.91 | D34: 0 | E34: 6412108.91 | F34: ='App.2-C_DepExp (2015)'!F34+'App.2-C_DepExp (2015)'!I34 -> 1299778.79 | G34: 0 | H34: 1299778.79 | I34: 258280 | J34: 31.9588058 | K34: 0.03129028057 | L34: 60 | M34: 0.01666666667 | N34: 200636.6868 | O34: 21662.97983 | P34: 2152.333333 | Q34: 224452 | R34: 224452 | S34: 0
A35: 1850 | B35: Line Transformers | C35: 5317715.8 | D35: 0 | E35: 5317715.8 | F35: ='App.2-C_DepExp (2015)'!F35+'App.2-C_DepExp (2015)'!I35 -> 862642.1 | G35: 0 | H35: 862642.1 | I35: 607982 | J35: 26.50783976 | K35: 0.03772468858 | L35: 40 | M35: 0.025 | N35: 200609.1725 | O35: 21566.0525 | P35: 7599.775 | Q35: 229775 | R35: 229775 | S35: 0
A36: 1855 | B36: Services (Overhead & Underground) | C36: 3281615.53 | D36: 0 | E36: 3281615.53 | F36: ='App.2-C_DepExp (2015)'!F36+'App.2-C_DepExp (2015)'!I36 -> 672577.49 | G36: 0 | H36: 672577.49 | I36: 254476 | J36: 38.58141459 | K36: 0.02591921552 | L36: 55 | M36: 0.01818181818 | N36: 85056.90018 | O36: 12228.68164 | P36: 2313.418182 | Q36: 99599 | R36: 99599 | S36: 0
A37: 1860 | B37: Meters | C37: 1177438.74 | D37: 358957 | E37: 818481.74 | F37: ='App.2-C_DepExp (2015)'!F37+'App.2-C_DepExp (2015)'!I37 -> 312373.63 | G37: 0 | H37: 312373.63 | I37: 291747 | J37: 2.386744482 | K37: 0.4189807529 | L37: 30 | M37: 0.03333333333 | N37: 342928.0957 | O37: 10412.45433 | P37: 4862.45 | Q37: 358203 | R37: 358203 | S37: 0
A38: 1860 | B38: Meters (Smart Meters) | C38: 138724.47 | D38: 0 | E38: 138724.47 | F38: ='App.2-C_DepExp (2015)'!F38+'App.2-C_DepExp (2015)'!I38 -> 4226253.93 | G38: 0 | H38: 4226253.93 | J38: 0 | K38: 0 | L38: 15 | M38: 0.06666666667 | N38: 0 | O38: 281750.262 | P38: 0 | Q38: 281750.262 | S38: -281750.262
A39: 1905 | B39: Land | C39: 1634.63 | D39: 0 | E39: 1634.63 | F39: ='App.2-C_DepExp (2015)'!F39+'App.2-C_DepExp (2015)'!I39 -> 0 | G39: 0 | H39: 0 | J39: 0 | K39: 0 | L39: 0 | M39: 0 | N39: 0 | O39: 0 | P39: 0 | Q39: 0 | S39: 0
A40: 1908 | B40: Buildings & Fixtures | C40: 0 | D40: 0 | E40: 0 | F40: ='App.2-C_DepExp (2015)'!F40+'App.2-C_DepExp (2015)'!I40 -> 0 | G40: 0 | H40: 0 | J40: 0 | K40: 0 | L40: 50 | M40: 0.02 | N40: 0 | O40: 0 | P40: 0 | Q40: 0 | S40: 0
A41: 1910 | B41: Leasehold Improvements | C41: 0 | D41: 0 | E41: 0 | F41: ='App.2-C_DepExp (2015)'!F41+'App.2-C_DepExp (2015)'!I41 -> 0 | G41: 0 | H41: 0 | J41: 0 | K41: 0 | L41: 0 | M41: 0 | N41: 0 | O41: 0 | P41: 0 | Q41: 0 | S41: 0
A42: 1915 | B42: Office Furniture & Equipment (10 years) | C42: 64123.18 | D42: ='App.2-C_DepExp (2015)'!D42+4794 -> 5519.75 | E42: 58603.43 | F42: ='App.2-C_DepExp (2015)'!F42+'App.2-C_DepExp (2015)'!I42 -> 75971.96 | G42: 0 | H42: 75971.96 | I42: 6259 | J42: 6.121834721 | K42: 0.163349722 | L42: 10 | M42: 0.1 | N42: 9572.854 | O42: 7597.196 | P42: 312.95 | Q42: 17483 | R42: 17483 | S42: 0
A43: 1915 | B43: Office Furniture & Equipment (5 years) | C43: 0 | D43: 0 | E43: 0 | F43: ='App.2-C_DepExp (2015)'!F43+'App.2-C_DepExp (2015)'!I43 -> 0 | G43: 0 | H43: 0 | J43: 0 | K43: 0 | L43: 10 | M43: 0.1 | N43: 0 | O43: 0 | P43: 0 | Q43: 0 | S43: 0
A44: 1920 | B44: Computer Equipment - Hardware | C44: 0 | D44: 0 | E44: 0 | F44: ='App.2-C_DepExp (2015)'!F44+'App.2-C_DepExp (2015)'!I44 -> 0 | G44: 0 | H44: 0 | I44: 35314 | J44: 0 | K44: 0 | L44: 5 | M44: 0.2 | N44: 0 | O44: 0 | P44: 3531.4 | Q44: 3531.4 | R44: 51163 | S44: 47631.6
A45: 1920 | B45: Computer Equip.-Hardware(Post Mar. 22/04) | C45: 0 | D45: 0 | E45: 0 | F45: ='App.2-C_DepExp (2015)'!F45+'App.2-C_DepExp (2015)'!I45 -> 0 | G45: 0 | H45: 0 | J45: 0 | K45: 0 | L45: 5 | M45: 0.2 | N45: 0 | O45: 0 | P45: 0 | Q45: 0 | S45: 0
A46: 1920 | B46: Computer Equip.-Hardware(Post Mar. 19/07) | C46: 58817.27 | D46: ='App.2-C_DepExp (2015)'!D46+4374+2870+13877+1970+7713+967 -> 50485 | E46: 8332.27 | F46: ='App.2-C_DepExp (2015)'!F46+'App.2-C_DepExp (2015)'!I46 -> 264809.91 | G46: 0 | H46: 264809.91 | J46: 0 | K46: 0 | L46: 5 | M46: 0.2 | N46: 0 | O46: 52961.982 | P46: 0 | Q46: 52961.982 | S46: -52961.982
A47: 1930 | B47: Transportation Equipment | C47: 961536.5 | D47: =5739+4193+4193 -> 14125 | E47: 947411.5 | F47: ='App.2-C_DepExp (2015)'!F47+'App.2-C_DepExp (2015)'!I47 -> 429359.74 | G47: 0 | H47: 429359.74 | I47: 93165 | J47: 10.53579123 | K47: 0.09491456106 | L47: 12 | M47: 0.08333333333 | N47: 89923.14667 | O47: 35779.97833 | P47: 3881.875 | Q47: 129585 | R47: 129585 | S47: 0
A48: 1935 | B48: Stores Equipment | C48: 51753.8 | D48: 0 | E48: 51753.8 | F48: ='App.2-C_DepExp (2015)'!F48+'App.2-C_DepExp (2015)'!I48 -> 580 | G48: 0 | H48: 580 | J48: 5.304817548 | K48: 0.188507897 | L48: 10 | M48: 0.1 | N48: 9756 | O48: 58 | P48: 0 | Q48: 9814 | R48: 9814 | S48: 0
A49: 1940 | B49: Tools, Shop & Garage Equipment | C49: 94758.59 | D49: ='App.2-C_DepExp (2015)'!D49+1984 -> 6647 | E49: 88111.59 | F49: ='App.2-C_DepExp (2015)'!F49+'App.2-C_DepExp (2015)'!I49 -> 208589.65 | G49: 0 | H49: 208589.65 | I49: 1275 | J49: 5.181423893 | K49: 0.1929971415 | L49: 10 | M49: 0.1 | N49: 17005.285 | O49: 20858.965 | P49: 63.75 | Q49: 37928 | R49: 37928 | S49: 0
A50: 1945 | B50: Measurement & Testing Equipment | C50: 38394.68 | D50: ='App.2-C_DepExp (2015)'!D50+9694 -> 11519 | E50: 26875.68 | F50: ='App.2-C_DepExp (2015)'!F50+'App.2-C_DepExp (2015)'!I50 -> 0 | G50: 0 | H50: 0 | J50: 6.260349406 | K50: 0.1597354932 | L50: 10 | M50: 0.1 | N50: 4293 | O50: 0 | P50: 0 | Q50: 4293 | R50: 4293 | S50: 0
A51: 1950 | B51: Power Operated Equipment | C51: 43907.51 | D51: ='App.2-C_DepExp (2015)'!D51 -> 1941 | E51: 41966.51 | F51: ='App.2-C_DepExp (2015)'!F51+'App.2-C_DepExp (2015)'!I51 -> 0 | G51: 0 | H51: 0 | J51: 5.054987955 | K51: 0.1978244081 | L51: 10 | M51: 0.1 | N51: 8302 | O51: 0 | P51: 0 | Q51: 8302 | R51: 8302 | S51: 0
A52: 1955 | B52: Communications Equipment | C52: 49800.6 | D52: 0 | E52: 49800.6 | F52: ='App.2-C_DepExp (2015)'!F52+'App.2-C_DepExp (2015)'!I52 -> 21390.11 | G52: 0 | H52: 21390.11 | I52: 763 | J52: 5.734859893 | K52: 0.1743721762 | L52: 10 | M52: 0.1 | N52: 8683.839 | O52: 2139.011 | P52: 38.15 | Q52: 10861 | R52: 10861 | S52: 0
A53: 1955 | B53: Communication Equipment (Smart Meters) | C53: 0 | D53: 0 | E53: 0 | F53: ='App.2-C_DepExp (2015)'!F53+'App.2-C_DepExp (2015)'!I53 -> 0 | G53: 0 | H53: 0 | J53: 0 | K53: 0 | L53: 10 | M53: 0.1 | N53: 0 | O53: 0 | P53: 0 | Q53: 0 | S53: 0
A54: 1960 | B54: Miscellaneous Equipment | C54: 27598.95 | D54: ='App.2-C_DepExp (2015)'!D54 -> 1361 | E54: 26237.95 | F54: ='App.2-C_DepExp (2015)'!F54+'App.2-C_DepExp (2015)'!I54 -> 61622.13 | G54: 0 | H54: 61622.13 | I54: 100662 | J54: 6.939995297 | K54: 0.1440923167 | L54: 10 | M54: 0.1 | N54: 3780.687 | O54: 6162.213 | P54: 5033.1 | Q54: 14976 | R54: 14976 | S54: 0
A55: 1970 | B55: Load Management Controls Customer Premises | C55: 0 | D55: 0 | E55: 0 | F55: ='App.2-C_DepExp (2015)'!F55+'App.2-C_DepExp (2015)'!I55 -> 0 | G55: 0 | H55: 0 | J55: 0 | K55: 0 | L55: 0 | M55: 0 | N55: 0 | O55: 0 | P55: 0 | Q55: 0 | S55: 0
A56: 1975 | B56: Load Management Controls Utility Premises | C56: 0 | D56: 0 | E56: 0 | F56: ='App.2-C_DepExp (2015)'!F56+'App.2-C_DepExp (2015)'!I56 -> 0 | G56: 0 | H56: 0 | J56: 0 | K56: 0 | L56: 0 | M56: 0 | N56: 0 | O56: 0 | P56: 0 | Q56: 0 | S56: 0
A57: 1980 | B57: System Supervisor Equipment | C57: 0 | D57: 0 | E57: 0 | F57: ='App.2-C_DepExp (2015)'!F57+'App.2-C_DepExp (2015)'!I57 -> 0 | G57: 0 | H57: 0 | J57: 0 | K57: 0 | L57: 0 | M57: 0 | N57: 0 | O57: 0 | P57: 0 | Q57: 0 | S57: 0
A58: 1985 | B58: Miscellaneous Fixed Assets | C58: 0 | D58: 0 | E58: 0 | F58: ='App.2-C_DepExp (2015)'!F58+'App.2-C_DepExp (2015)'!I58 -> 0 | G58: 0 | H58: 0 | J58: 0 | K58: 0 | L58: 0 | M58: 0 | N58: 0 | O58: 0 | P58: 0 | Q58: 0 | S58: 0
A59: 1990 | B59: Other Tangible Property | C59: 0 | D59: 0 | E59: 0 | F59: ='App.2-C_DepExp (2015)'!F59+'App.2-C_DepExp (2015)'!I59 -> 0 | G59: 0 | H59: 0 | J59: 0 | K59: 0 | L59: 0 | M59: 0 | N59: 0 | O59: 0 | P59: 0 | Q59: 0 | S59: 0
A60: 1995 | B60: Contributions & Grants | C60: -6834383.13 | D60: 0 | E60: -6834383.13 | F60: ='App.2-C_DepExp (2015)'!F60+'App.2-C_DepExp (2015)'!I60 -> -1228894.47 | G60: 0 | H60: -1228894.47 | I60: =-584438 -> -584438 | J60: 39.97297137 | K60: 0.02501690432 | L60: 60 | M60: 0.01666666667 | N60: -170975.1088 | O60: -20481.5745 | P60: -4870.316667 | Q60: -196327 | R60: -196327 | S60: 0
B61: Total | C61: =SUM(C23:C60) -> 30238881.61 | D61: 711715.75 | E61: 29527165.86 | F61: 15090737.68 | G61: 309216.89 | H61: 14781520.79 | I61: 5385500 | N61: =SUM(N23:N60) -> 1380012.291 | O61: 692441.7321 | P61: 132216.0045 | Q61: 2204670.027 | R61: 1798004 | S61: -406666.0273
A64: General: | B64: Applicants are to complete this appendix to show the reasonability of the depreciation expense that is included in rate base via. Accumulated depreciation and the revenue requirement.
B65: Applicants must provide a breakdown of depreciation and amortization expense in the above format for all relevant accounts. Balances presented in the table should exclude asset retirement obligations (AROs) and the related depreciation and accretion expense. These should be disclosed separately consistent with the Notes of historical Audited Financial Statements.
A68: Notes:
A69: 1 | B69: This is the net book value of assets that existed as at the date of the utility's change in depreciation policies (i.e. as at Jan. 1, 2012 or Jan. 1, 2013). These assets are to be depreciated at the average remaining service life. This amount will not change in years subsequent to the date of the utility's change in depreciation policies. This column is expected to be used until the assets that existed as at the date of the utility's change in depreciation policies are fully depreciated.
A70: 2 | B70: This is the opening gross book value of assets that have been acquired after the date of the utilities change in depreciation policies (i.e. additions starting in 2012/2013 for those who changed policies Jan. 1, 2012/2013). These assets are to be depreciated at the revised service life. The amount is expected to be equal to the gross book value of the prior year plus the prior year's additions.
A71: 3 | B71: A recalculation should be performed to determine the average remaining life of opening balance of assets (i.e. excluding current year's additions) under the change in policies under CGAAP. For example, Asset A had a useful life of 20 years under CGAAP without the change in policies. On January 1 of the year of policy changes, Asset A was 3 years depreciated. As a result, Asset A would have a remaining service life of 17 years (20 years less 3 years) as at January 1 of the year of policy changes. Due to making the change in policies under CGAAP, management re-assessed the asset useful lives and concluded that the revised useful life of Asset A is now 30 years. Therefore, the average remaining useful life of the opening balance of Asset A is determined to be 27 years (30 years less 3 years) under the revised CGAAP as at January 1 of the year of policy changes.
A72: 4 | B72: The useful life used should be consistent with the OEB's regulatory accounting policies as set out in the Accounting Procedures Handbook for Electricity Distributors, effective Jan. 1, 2012 and also with the Report of the Board, Transition to International Financial Reporting Standards, EB-2008-0408, and the Kinectrics Report.
A73: 5 | B73: Board policy of the "half-year" rule - the applicant must ensure that additions in the year attract a half-year depreciation expense in the first year. Deviations from this standard practice must be supported in the application.
A74: 6 | B74: The applicant must provide an explanation of material variances in evidence.
A75: 7 | B75: This should include assets in column a (excel column C) that become fully depreciated since the date of the policy change. The amount input in b (excel column D) should equal the net book value of the asset as at the date of depreciation policy change
A76: 8 | B76: This should include assets in column d (excel column f) that have become fully depreciated. The amount input in e (excel column G) should equal the gross book value of the asset

Sheet App.2-C_DepExp (2017)
A1: MRS: This sheet is new, you will need to populate and have it match your Data Vault.
A9: Appendix 2-C | Y9: CGAAP
A10: Depreciation and Amortization Expense | Y10: Revised CGAAP
Y11: MIFRS
A12: This appendix is to be completed in conjunction with the accounting instructions in Appendix 2-B
A14: Scenario that applies | C14: Applicable Years and Accounting Standard | R14: Year Reflected in Schedule Below | S14: Accounting Standard Reflected in Schedule Below | Y14: 2012
A15: Rebasing for the first time with depreciation policy changes made in 2012. | C15: This appendix must be duplicated and completed for the years 2012 to 2018. The appendix for 2012 is to be completed under CGAAP (prior to changes in depreciation policies). The appendix for 2012 to 2014 must be completed under Revised CGAAP (after changes in depreciation policies). The appendix for 2014 to 2018 is to be completed under MIFRS (2014 if changes to MIFRS are material). | Y15: 2013
A16: Rebasing for the first time with depreciation policy changes made in 2013. | C16: This appendix must be duplicated and completed for the years 2013 to 2018. The appendix for 2013 is to be completed under CGAAP (prior to changes in depreciation policies). The appendix for 2013 to 2014 must be completed under Revised CGAAP (after changes in depreciation policies). The appendix for 2014 to 2018 is to be completed under MIFRS (2014 if changes to MIFRS are material). | R16: 2017 | S16: MIFRS | Y16: 2014
A17: Already rebased with depreciation policy changes in a prior rate application | C17: This appendix must be completed for 2014 to 2018. The appendix for 2014 is to be completed under Revised CGAAP (after changes in depreciation policies). The appendix for 2014 to 2018 is to be completed under MIFRS (2014 if changes to MIFRS are material). | Y17: 2015
Y18: 2016
Y19: 2017
C20: Book Values | J20: Service Lives | N20: Depreciation Expense | Y20: 2018
A21: Account | B21: Description | C21: Opening Net Book Value of Existing Assets as at Date of Policy Change (Jan. 1) 1 | D21: Less Fully Depreciated 7 | E21: Net Amount of Existing Assets Before Policy Change to be Depreciated | F21: Opening Gross Book Value of Assets Acquired After Policy Change 2 | G21: Less Fully Depreciated 8 | H21: Net Amount of Assets Acquired After Policy Change to be Depreciated | I21: Current Year Additions | J21: Average Remaining Life of Assets Existing Before Policy Change 3 | K21: Depreciation Rate Assets Acquired After Policy Change | L21: Life of Assets Acquired After Policy Change 4 | M21: Depreciation Rate on New Additions | N21: Depreciation Expense on Assets Existing Before Policy Change | O21: Depreciation Expense on Assets Acquired After Policy Change | P21: Depreciation Expense on Current Year Additions 5 | Q21: Total Current Year Depreciation Expense | R21: Depreciation Expense per Appendix 2-BA Fixed Assets, Column J | S21: Variance 6
C22: a | D22: b | E22: c = a-b | F22: d | G22: e | H22: f = d- e | I22: g | J22: h | K22: i = 1/h | L22: j | M22: k = 1/j | N22: l = c/h | O22: m = f/j | P22: n = g*0.5/j | Q22: o = l+m+n | R22: p | S22: q = p-o
A23: 1611 | B23: Computer Software (Formally known as Account 1925) | C23: 60873.98 | D23: ='App.2-C_DepExp (2016)'!D23+1934.98 -> 60873.98 | E23: =C23-D23 -> -1.382431947e-10 | F23: ='App.2-C_DepExp (2016)'!F23+'App.2-C_DepExp (2016)'!I23 -> 1019507.1 | G23: ='App.2-C_DepExp (2016)'!G23+'App.2-C_DepExp (2014)'!I23 -> 424705.49 | H23: =F23-G23 -> 594801.61 | I23: 11766 | J23: 0 | K23: =IF(J23=0,0,1/J23) -> 0 | L23: 3 | M23: =IF(L23=0,0,1/L23) -> 0.3333333333 | N23: =IF(J23=0,0,+E23/J23) -> 0 | O23: =IF(L23=0,0,+H23/L23) -> 198267.2033 | P23: =IF(L23=0,0,+(I23*0.5)/L23) -> 1961 | Q23: =IF(ISERROR(+N23+O23+P23), 0, +N23+O23+P23) -> 200228.2033 | R23: 154073 | S23: =IF(ISERROR(+R23-122), 0, +R23-Q23) -> -46155.20333
A24: 1612 | B24: Land Rights (Formally known as Account 1906) | C24: 0 | D24: 0 | E24: =C24-D24 -> 0 | F24: ='App.2-C_DepExp (2016)'!F24+'App.2-C_DepExp (2016)'!I24 -> 0 | G24: 0 | H24: =F24-G24 -> 0 | J24: =IF(R24=0,0,E24/(R24-P24-O24)) -> 0 | K24: =IF(J24=0,0,1/J24) -> 0 | L24: 0 | M24: =IF(L24=0,0,1/L24) -> 0 | N24: =IF(J24=0,0,+E24/J24) -> 0 | O24: =IF(L24=0,0,+H24/L24) -> 0 | P24: =IF(L24=0,0,+(I24*0.5)/L24) -> 0 | Q24: =IF(ISERROR(+N24+O24+P24), 0, +N24+O24+P24) -> 0 | S24: =IF(ISERROR(+R24-122), 0, +R24-Q24) -> 0
A25: 1805 | B25: Land | C25: 227768.86 | D25: 0 | E25: 227768.86 | F25: ='App.2-C_DepExp (2016)'!F25+'App.2-C_DepExp (2016)'!I25 -> 0 | G25: 0 | H25: 0 | J25: 0 | K25: 0 | L25: 0 | M25: 0 | N25: 0 | O25: =IF(L25=0,0,+H25/L25) -> 0 | P25: 0 | Q25: 0 | S25: 0
A26: 1808 | B26: Buildings | C26: 2211233.84 | D26: 0 | E26: 2211233.84 | F26: ='App.2-C_DepExp (2016)'!F26+'App.2-C_DepExp (2016)'!I26 -> 95612.78 | G26: 0 | H26: 95612.78 | I26: 19406 | J26: 42.43992158 | K26: 0.02356272026 | L26: 50 | M26: 0.02 | N26: 52102.6844 | O26: 1912.2556 | P26: 194.06 | Q26: 54209 | R26: 54209 | S26: 0
A27: 1810 | B27: Leasehold Improvements | C27: 0 | D27: 0 | E27: 0 | F27: ='App.2-C_DepExp (2016)'!F27+'App.2-C_DepExp (2016)'!I27 -> 0 | G27: 0 | H27: 0 | J27: 0 | K27: 0 | L27: 0 | M27: 0 | N27: 0 | O27: 0 | P27: 0 | Q27: 0 | S27: 0
A28: 1815 | B28: Transformer Station Equipment >50 kV | C28: 0 | D28: 0 | E28: 0 | F28: ='App.2-C_DepExp (2016)'!F28+'App.2-C_DepExp (2016)'!I28 -> 0 | G28: 0 | H28: 0 | J28: 0 | K28: 0 | L28: 0 | M28: 0 | N28: 0 | O28: 0 | P28: 0 | Q28: 0 | S28: 0
A29: 1820 | B29: Distribution Station Equipment <50 kV | C29: 2481877.3 | D29: ='App.2-C_DepExp (2016)'!D29+105831 -> 308053 | E29: 2173824.3 | F29: ='App.2-C_DepExp (2016)'!F29+'App.2-C_DepExp (2016)'!I29 -> 5023974.97 | G29: 0 | H29: 5023974.97 | I29: 1830652 | J29: 16.26072094 | K29: 0.06149788831 | L29: 45 | M29: 0.02222222222 | N29: 133685.604 | O29: 111643.8882 | P29: 20340.57778 | Q29: 265670.07 | R29: 265670.07 | S29: 0
A30: 1825 | B30: Storage Battery Equipment | C30: 0 | D30: 0 | E30: 0 | F30: ='App.2-C_DepExp (2016)'!F30+'App.2-C_DepExp (2016)'!I30 -> 0 | G30: 0 | H30: 0 | J30: 0 | K30: 0 | L30: 0 | M30: 0 | N30: 0 | O30: 0 | P30: 0 | Q30: 0 | S30: 0
A31: 1830 | B31: Poles, Towers & Fixtures | C31: 5089221.62 | D31: 0 | E31: 5089221.62 | F31: ='App.2-C_DepExp (2016)'!F31+'App.2-C_DepExp (2016)'!I31 -> 2577028.03 | G31: 0 | H31: 2577028.03 | I31: 922521 | J31: =IF(R31=0,0,E31/(R31-P31-O31)) -> 46.46535522 | K31: 0.02152141085 | L31: 50 | M31: 0.02 | N31: 109527.2294 | O31: 51540.5606 | P31: 9225.21 | Q31: 170293 | R31: 170293 | S31: 0
A32: 1835 | B32: Overhead Conductors & Devices | C32: 7300747.03 | D32: 0 | E32: 7300747.03 | F32: ='App.2-C_DepExp (2016)'!F32+'App.2-C_DepExp (2016)'!I32 -> 3162888.59 | G32: 0 | H32: 3162888.59 | I32: 904958 | J32: 54.718915 | K32: 0.01827521617 | L32: 65 | M32: 0.01538461538 | N32: 133422.7302 | O32: 48659.82446 | P32: 6961.215385 | Q32: 189043.77 | R32: 189043.77 | S32: 0
A33: 1840 | B33: Underground Conduit | C33: 1981612.95 | D33: 0 | E33: 1981612.95 | F33: ='App.2-C_DepExp (2016)'!F33+'App.2-C_DepExp (2016)'!I33 -> 324686.24 | G33: 0 | H33: 324686.24 | I33: 48342 | J33: 57.24270595 | K33: 0.01746947464 | L33: 85 | M33: 0.01176470588 | N33: 34617.73718 | O33: 3819.838118 | P33: 284.3647059 | Q33: 38721.94 | R33: 38721.94 | S33: 0
A34: 1845 | B34: Underground Conductors & Devices | C34: 6412108.91 | D34: 0 | E34: 6412108.91 | F34: ='App.2-C_DepExp (2016)'!F34+'App.2-C_DepExp (2016)'!I34 -> 1558058.79 | G34: 0 | H34: 1558058.79 | I34: 447767 | J34: 33.1808629 | K34: 0.03013785395 | L34: 60 | M34: 0.01666666667 | N34: 193247.2018 | O34: 25967.6465 | P34: 3731.391667 | Q34: 222946.24 | R34: 222946.24 | S34: 0
A35: 1850 | B35: Line Transformers | C35: 5317715.8 | D35: 0 | E35: 5317715.8 | F35: ='App.2-C_DepExp (2016)'!F35+'App.2-C_DepExp (2016)'!I35 -> 1470624.1 | G35: 0 | H35: 1470624.1 | I35: 463324 | J35: 31.59517443 | K35: 0.03165040289 | L35: 40 | M35: 0.025 | N35: 168307.8475 | O35: 36765.6025 | P35: 5791.55 | Q35: 210865 | R35: 210865 | S35: 0
A36: 1855 | B36: Services (Overhead & Underground) | C36: 3281615.53 | D36: 0 | E36: 3281615.53 | F36: ='App.2-C_DepExp (2016)'!F36+'App.2-C_DepExp (2016)'!I36 -> 927053.49 | G36: 0 | H36: 927053.49 | I36: 249266 | J36: 38.40268288 | K36: 0.02603984735 | L36: 55 | M36: 0.01818181818 | N36: 85452.76745 | O36: 16855.518 | P36: 2266.054545 | Q36: 104574.34 | R36: 104574.34 | S36: 0
A37: 1860 | B37: Meters | C37: 1177438.74 | D37: ='App.2-C_DepExp (2016)'!D37 -> 358957 | E37: 818481.74 | F37: ='App.2-C_DepExp (2016)'!F37+'App.2-C_DepExp (2016)'!I37 -> 604120.63 | G37: 0 | H37: 604120.63 | J37: 4.095221182 | K37: 0.244187055 | L37: 30 | M37: 0.03333333333 | N37: =IF(J37=0,0,+E37/J37) -> 199862.6457 | O37: =IF(L37=0,0,+H37/L37) -> 20137.35433 | P37: 0 | Q37: 220000 | R37: =360218-60218-80000 -> 220000 | S37: 0
A38: 1860 | B38: Meters (Smart Meters) | C38: 138724.47 | D38: 0 | E38: 138724.47 | F38: ='App.2-C_DepExp (2016)'!F38+'App.2-C_DepExp (2016)'!I38 -> 4226253.93 | G38: 0 | H38: 4226253.93 | I38: 217543 | J38: -0.9323902709 | K38: -1.072512264 | L38: 15 | M38: 0.06666666667 | N38: -148783.6953 | O38: 281750.262 | P38: 7251.433333 | Q38: 140218 | R38: =60218+80000 -> 140218 | S38: =IF(ISERROR(+R38-122), 0, +R38-Q38) -> 0
A39: 1905 | B39: Land | C39: 1634.63 | D39: 0 | E39: 1634.63 | F39: ='App.2-C_DepExp (2016)'!F39+'App.2-C_DepExp (2016)'!I39 -> 0 | G39: 0 | H39: 0 | J39: 0 | K39: 0 | L39: 0 | M39: 0 | N39: 0 | O39: 0 | P39: 0 | Q39: 0 | S39: 0
A40: 1908 | B40: Buildings & Fixtures | C40: 0 | D40: 0 | E40: 0 | F40: ='App.2-C_DepExp (2016)'!F40+'App.2-C_DepExp (2016)'!I40 -> 0 | G40: 0 | H40: 0 | J40: 0 | K40: 0 | L40: 50 | M40: 0.02 | N40: 0 | O40: 0 | P40: 0 | Q40: 0 | S40: 0
A41: 1910 | B41: Leasehold Improvements | C41: 0 | D41: 0 | E41: 0 | F41: ='App.2-C_DepExp (2016)'!F41+'App.2-C_DepExp (2016)'!I41 -> 0 | G41: 0 | H41: 0 | J41: 0 | K41: 0 | L41: 0 | M41: 0 | N41: 0 | O41: 0 | P41: 0 | Q41: 0 | S41: 0
A42: 1915 | B42: Office Furniture & Equipment (10 years) | C42: 64123.18 | D42: ='App.2-C_DepExp (2016)'!D42+31874 -> 37393.75 | E42: 26729.43 | F42: ='App.2-C_DepExp (2016)'!F42+'App.2-C_DepExp (2016)'!I42 -> 82230.96 | G42: 0 | H42: 82230.96 | I42: 19285 | J42: 5.499142708 | K42: 0.1818465265 | L42: 10 | M42: 0.1 | N42: 4860.654 | O42: 8223.096 | P42: 964.25 | Q42: 14048 | R42: 14048 | S42: 0
A43: 1915 | B43: Office Furniture & Equipment (5 years) | C43: 0 | D43: 0 | E43: 0 | F43: ='App.2-C_DepExp (2016)'!F43+'App.2-C_DepExp (2016)'!I43 -> 0 | G43: 0 | H43: 0 | J43: 0 | K43: 0 | L43: 10 | M43: 0.1 | N43: 0 | O43: 0 | P43: 0 | Q43: 0 | S43: 0
A44: 1920 | B44: Computer Equipment - Hardware | C44: 0 | D44: 0 | E44: 0 | F44: ='App.2-C_DepExp (2016)'!F44+'App.2-C_DepExp (2016)'!I44 -> 35314 | G44: 0 | H44: 35314 | J44: =IF(R44=0,0,E44/(R44-P44-O44)) -> 0 | K44: 0 | L44: 5 | M44: 0.2 | N44: =IF(J44=0,0,+E44/J44) -> 0 | O44: 7062.8 | P44: 0 | Q44: 7062.8 | S44: =IF(ISERROR(+R44-122), 0, +R44-Q44) -> -7062.8
A45: 1920 | B45: Computer Equip.-Hardware(Post Mar. 22/04) | C45: 0 | D45: 0 | E45: 0 | F45: ='App.2-C_DepExp (2016)'!F45+'App.2-C_DepExp (2016)'!I45 -> 0 | G45: 0 | H45: 0 | J45: 0 | K45: 0 | L45: 5 | M45: 0.2 | N45: 0 | O45: 0 | P45: 0 | Q45: 0 | S45: 0
A46: 1920 | B46: Computer Equip.-Hardware(Post Mar. 19/07) | C46: 58817.27 | D46: ='App.2-C_DepExp (2016)'!D46+6012+2321 -> 58818 | E46: -0.73 | F46: ='App.2-C_DepExp (2016)'!F46+'App.2-C_DepExp (2016)'!I46 -> 264809.91 | G46: 0 | H46: 264809.91 | I46: 10796 | J46: 0.002520874916 | K46: 396.6876712 | L46: 5 | M46: 0.2 | N46: -289.582 | O46: =IF(L46=0,0,+H46/L46) -> 52961.982 | P46: 1079.6 | Q46: 53752 | R46: 53752 | S46: 0
A47: 1930 | B47: Transportation Equipment | C47: 961536.5 | D47: ='App.2-C_DepExp (2016)'!D47+4193 -> 18318 | E47: 943218.5 | F47: ='App.2-C_DepExp (2016)'!F47+'App.2-C_DepExp (2016)'!I47 -> 522524.74 | G47: 0 | H47: 522524.74 | J47: 10.34034983 | K47: 0.09670852689 | L47: 12 | M47: 0.08333333333 | N47: 91217.27167 | O47: 43543.72833 | P47: 0 | Q47: 134761 | R47: 134761 | S47: 0
A48: 1935 | B48: Stores Equipment | C48: 51753.8 | D48: =4743 -> 4743 | E48: 47010.8 | F48: ='App.2-C_DepExp (2016)'!F48+'App.2-C_DepExp (2016)'!I48 -> 580 | G48: 0 | H48: 580 | I48: 2608 | J48: 5.578857428 | K48: 0.1792481728 | L48: 10 | M48: 0.1 | N48: 8426.6 | O48: 58 | P48: 130.4 | Q48: 8615 | R48: 8615 | S48: 0
A49: 1940 | B49: Tools, Shop & Garage Equipment | C49: 94758.59 | D49: ='App.2-C_DepExp (2016)'!D49+9623 -> 16270 | E49: 78488.59 | F49: ='App.2-C_DepExp (2016)'!F49+'App.2-C_DepExp (2016)'!I49 -> 209864.65 | G49: 0 | H49: 209864.65 | I49: 4473 | J49: 5.513432428 | K49: 0.1813752164 | L49: 10 | M49: 0.1 | N49: 14235.885 | O49: 20986.465 | P49: 223.65 | Q49: 35446 | R49: 35446 | S49: 0
A50: 1945 | B50: Measurement & Testing Equipment | C50: 38394.68 | D50: ='App.2-C_DepExp (2016)'!D50+3566 -> 15085 | E50: 23309.68 | F50: ='App.2-C_DepExp (2016)'!F50+'App.2-C_DepExp (2016)'!I50 -> 0 | G50: 0 | H50: 0 | J50: 7.07855451 | K50: 0.1412717807 | L50: 10 | M50: 0.1 | N50: 3293 | O50: 0 | P50: 0 | Q50: 3293 | R50: 3293 | S50: 0
A51: 1950 | B51: Power Operated Equipment | C51: 43907.51 | D51: ='App.2-C_DepExp (2016)'!D51 -> 1941 | E51: 41966.51 | F51: ='App.2-C_DepExp (2016)'!F51+'App.2-C_DepExp (2016)'!I51 -> 0 | G51: 0 | H51: 0 | I51: 2724 | J51: 5.055109735 | K51: 0.1978196424 | L51: 10 | M51: 0.1 | N51: 8301.8 | O51: 0 | P51: 136.2 | Q51: 8438 | R51: 8438 | S51: 0
A52: 1955 | B52: Communications Equipment | C52: 49800.6 | D52: 0 | E52: 49800.6 | F52: ='App.2-C_DepExp (2016)'!F52+'App.2-C_DepExp (2016)'!I52 -> 22153.11 | G52: 0 | H52: 22153.11 | J52: 5.732318457 | K52: 0.1744494845 | L52: 10 | M52: 0.1 | N52: 8687.689 | O52: 2215.311 | P52: 0 | Q52: 10903 | R52: 10903 | S52: 0
A53: 1955 | B53: Communication Equipment (Smart Meters) | C53: 0 | D53: 0 | E53: 0 | F53: ='App.2-C_DepExp (2016)'!F53+'App.2-C_DepExp (2016)'!I53 -> 0 | G53: 0 | H53: 0 | J53: 0 | K53: 0 | L53: 10 | M53: 0.1 | N53: 0 | O53: 0 | P53: 0 | Q53: 0 | S53: 0
A54: 1960 | B54: Miscellaneous Equipment | C54: 27598.95 | D54: ='App.2-C_DepExp (2016)'!D54 -> 1361 | E54: 26237.95 | F54: ='App.2-C_DepExp (2016)'!F54+'App.2-C_DepExp (2016)'!I54 -> 162284.13 | G54: 0 | H54: 162284.13 | J54: 6.098180002 | K54: 0.1639833524 | L54: 10 | M54: 0.1 | N54: 4302.587 | O54: 16228.413 | P54: 0 | Q54: 20531 | R54: 20531 | S54: 0
A55: 1970 | B55: Load Management Controls Customer Premises | C55: 0 | D55: 0 | E55: 0 | F55: ='App.2-C_DepExp (2016)'!F55+'App.2-C_DepExp (2016)'!I55 -> 0 | G55: 0 | H55: 0 | J55: 0 | K55: 0 | L55: 0 | M55: 0 | N55: 0 | O55: 0 | P55: 0 | Q55: 0 | S55: 0
A56: 1975 | B56: Load Management Controls Utility Premises | C56: 0 | D56: 0 | E56: 0 | F56: ='App.2-C_DepExp (2016)'!F56+'App.2-C_DepExp (2016)'!I56 -> 0 | G56: 0 | H56: 0 | J56: 0 | K56: 0 | L56: 0 | M56: 0 | N56: 0 | O56: 0 | P56: 0 | Q56: 0 | S56: 0
A57: 1980 | B57: System Supervisor Equipment | C57: 0 | D57: 0 | E57: 0 | F57: ='App.2-C_DepExp (2016)'!F57+'App.2-C_DepExp (2016)'!I57 -> 0 | G57: 0 | H57: 0 | J57: 0 | K57: 0 | L57: 0 | M57: 0 | N57: 0 | O57: 0 | P57: 0 | Q57: 0 | S57: 0
A58: 1985 | B58: Miscellaneous Fixed Assets | C58: 0 | D58: 0 | E58: 0 | F58: ='App.2-C_DepExp (2016)'!F58+'App.2-C_DepExp (2016)'!I58 -> 0 | G58: 0 | H58: 0 | J58: 0 | K58: 0 | L58: 0 | M58: 0 | N58: 0 | O58: 0 | P58: 0 | Q58: 0 | S58: 0
A59: 1990 | B59: Other Tangible Property | C59: 0 | D59: 0 | E59: 0 | F59: ='App.2-C_DepExp (2016)'!F59+'App.2-C_DepExp (2016)'!I59 -> 0 | G59: 0 | H59: 0 | J59: 0 | K59: 0 | L59: 0 | M59: 0 | N59: 0 | O59: 0 | P59: 0 | Q59: 0 | S59: 0
A60: 1995 | B60: Contributions & Grants | C60: -6834383.13 | D60: 808 | E60: -6835191.13 | F60: ='App.2-C_DepExp (2016)'!F60+'App.2-C_DepExp (2016)'!I60 -> -1813332.47 | G60: 0 | H60: -1813332.47 | I60: -572358 | J60: 49.62813716 | K60: 0.02014985968 | L60: 60 | M60: 0.01666666667 | N60: -137728.1422 | O60: -30222.20783 | P60: -4769.65 | Q60: -172720 | R60: -172720 | S60: 2.910383046e-11
B61: Total | C61: =SUM(C23:C60) -> 30238881.61 | D61: 882621.73 | E61: 29356259.88 | F61: 20476237.68 | G61: 424705.49 | H61: 20051532.19 | I61: 4583073 | N61: =SUM(N23:N60) -> 966750.5148 | O61: 918377.5412 | P61: 55771.30741 | Q61: 1940899.363 | R61: 1887681.36 | S61: -53218.00333
A64: General: | B64: Applicants are to complete this appendix to show the reasonability of the depreciation expense that is included in rate base via. Accumulated depreciation and the revenue requirement.
B65: Applicants must provide a breakdown of depreciation and amortization expense in the above format for all relevant accounts. Balances presented in the table should exclude asset retirement obligations (AROs) and the related depreciation and accretion expense. These should be disclosed separately consistent with the Notes of historical Audited Financial Statements.
A68: Notes:
A69: 1 | B69: This is the net book value of assets that existed as at the date of the utility's change in depreciation policies (i.e. as at Jan. 1, 2012 or Jan. 1, 2013). These assets are to be depreciated at the average remaining service life. This amount will not change in years subsequent to the date of the utility's change in depreciation policies. This column is expected to be used until the assets that existed as at the date of the utility's change in depreciation policies are fully depreciated.
A70: 2 | B70: This is the opening gross book value of assets that have been acquired after the date of the utilities change in depreciation policies (i.e. additions starting in 2012/2013 for those who changed policies Jan. 1, 2012/2013). These assets are to be depreciated at the revised service life. The amount is expected to be equal to the gross book value of the prior year plus the prior year's additions.
A71: 3 | B71: A recalculation should be performed to determine the average remaining life of opening balance of assets (i.e. excluding current year's additions) under the change in policies under CGAAP. For example, Asset A had a useful life of 20 years under CGAAP without the change in policies. On January 1 of the year of policy changes, Asset A was 3 years depreciated. As a result, Asset A would have a remaining service life of 17 years (20 years less 3 years) as at January 1 of the year of policy changes. Due to making the change in policies under CGAAP, management re-assessed the asset useful lives and concluded that the revised useful life of Asset A is now 30 years. Therefore, the average remaining useful life of the opening balance of Asset A is determined to be 27 years (30 years less 3 years) under the revised CGAAP as at January 1 of the year of policy changes.
A72: 4 | B72: The useful life used should be consistent with the OEB's regulatory accounting policies as set out in the Accounting Procedures Handbook for Electricity Distributors, effective Jan. 1, 2012 and also with the Report of the Board, Transition to International Financial Reporting Standards, EB-2008-0408, and the Kinectrics Report.
A73: 5 | B73: Board policy of the "half-year" rule - the applicant must ensure that additions in the year attract a half-year depreciation expense in the first year. Deviations from this standard practice must be supported in the application.
A74: 6 | B74: The applicant must provide an explanation of material variances in evidence.
A75: 7 | B75: This should include assets in column a (excel column C) that become fully depreciated since the date of the policy change. The amount input in b (excel column D) should equal the net book value of the asset as at the date of depreciation policy change
A76: 8 | B76: This should include assets in column d (excel column f) that have become fully depreciated. The amount input in e (excel column G) should equal the gross book value of the asset

Sheet App.2-C_DepExp (2018)
A1: MRS: This sheet is new, you will need to populate and have it match your Data Vault.
A9: Appendix 2-C | Y9: CGAAP
A10: Depreciation and Amortization Expense | Y10: Revised CGAAP
Y11: MIFRS
A12: This appendix is to be completed in conjunction with the accounting instructions in Appendix 2-B
A14: Scenario that applies | C14: Applicable Years and Accounting Standard | R14: Year Reflected in Schedule Below | S14: Accounting Standard Reflected in Schedule Below | Y14: 2012
A15: Rebasing for the first time with depreciation policy changes made in 2012. | C15: This appendix must be duplicated and completed for the years 2012 to 2018. The appendix for 2012 is to be completed under CGAAP (prior to changes in depreciation policies). The appendix for 2012 to 2014 must be completed under Revised CGAAP (after changes in depreciation policies). The appendix for 2014 to 2018 is to be completed under MIFRS (2014 if changes to MIFRS are material). | Y15: 2013
A16: Rebasing for the first time with depreciation policy changes made in 2013. | C16: This appendix must be duplicated and completed for the years 2013 to 2018. The appendix for 2013 is to be completed under CGAAP (prior to changes in depreciation policies). The appendix for 2013 to 2014 must be completed under Revised CGAAP (after changes in depreciation policies). The appendix for 2014 to 2018 is to be completed under MIFRS (2014 if changes to MIFRS are material). | Y16: 2014
A17: Already rebased with depreciation policy changes in a prior rate application | C17: This appendix must be completed for 2014 to 2018. The appendix for 2014 is to be completed under Revised CGAAP (after changes in depreciation policies). The appendix for 2014 to 2018 is to be completed under MIFRS (2014 if changes to MIFRS are material). | Y17: 2015
Y18: 2016
Y19: 2017
C20: Book Values | J20: Service Lives | N20: Depreciation Expense | Y20: 2018
A21: Account | B21: Description | C21: Opening Net Book Value of Existing Assets as at Date of Policy Change (Jan. 1) 1 | D21: Less Fully Depreciated 7 | E21: Net Amount of Existing Assets Before Policy Change to be Depreciated | F21: Opening Gross Book Value of Assets Acquired After Policy Change 2 | G21: Less Fully Depreciated 8 | H21: Net Amount of Assets Acquired After Policy Change to be Depreciated | I21: Current Year Additions | J21: Average Remaining Life of Assets Existing Before Policy Change 3 | K21: Depreciation Rate Assets Acquired After Policy Change | L21: Life of Assets Acquired After Policy Change 4 | M21: Depreciation Rate on New Additions | N21: Depreciation Expense on Assets Existing Before Policy Change | O21: Depreciation Expense on Assets Acquired After Policy Change | P21: Depreciation Expense on Current Year Additions 5 | Q21: Total Current Year Depreciation Expense | R21: Depreciation Expense per Appendix 2-BA Fixed Assets, Column J | S21: Variance 6
C22: a | D22: b | E22: c = a-b | F22: d | G22: e | H22: f = d- e | I22: g | J22: h | K22: i = 1/h | L22: j | M22: k = 1/j | N22: l = c/h | O22: m = f/j | P22: n = g*0.5/j | Q22: o = l+m+n | R22: p | S22: q = p-o
A23: 1611 | B23: Computer Software (Formally known as Account 1925) | C23: 60873.98 | D23: 60874 | E23: =C23-D23 -> -0.02000000014 | F23: ='App.2-C_DepExp (2017)'!F23+'App.2-C_DepExp (2017)'!I23 -> 1031273.1 | G23: ='App.2-C_DepExp (2017)'!G23+'App.2-C_DepExp (2015)'!I23 -> 612695.1 | H23: =F23-G23 -> 418578 | I23: 30000 | J23: 0 | K23: =IF(J23=0,0,1/J23) -> 0 | L23: 3 | M23: =IF(L23=0,0,1/L23) -> 0.3333333333 | N23: =IF(J23=0,0,+E23/J23) -> 0 | O23: =IF(L23=0,0,+H23/L23) -> 139526 | P23: =IF(L23=0,0,+(I23*0.5)/L23) -> 5000 | Q23: =IF(ISERROR(+N23+O23+P23), 0, +N23+O23+P23) -> 144526 | R23: 136281 | S23: =IF(ISERROR(+R23-122), 0, +R23-Q23) -> -8245
A24: 1612 | B24: Land Rights (Formally known as Account 1906) | C24: 0 | D24: 0 | E24: =C24-D24 -> 0 | F24: ='App.2-C_DepExp (2017)'!F24+'App.2-C_DepExp (2017)'!I24 -> 0 | G24: 0 | H24: =F24-G24 -> 0 | J24: =IF(R24=0,0,E24/(R24-P24-O24)) -> 0 | K24: =IF(J24=0,0,1/J24) -> 0 | L24: 0 | M24: =IF(L24=0,0,1/L24) -> 0 | N24: =IF(J24=0,0,+E24/J24) -> 0 | O24: =IF(L24=0,0,+H24/L24) -> 0 | P24: =IF(L24=0,0,+(I24*0.5)/L24) -> 0 | Q24: =IF(ISERROR(+N24+O24+P24), 0, +N24+O24+P24) -> 0 | S24: =IF(ISERROR(+R24-122), 0, +R24-Q24) -> 0
A25: 1805 | B25: Land | C25: 227768.86 | D25: 0 | E25: 227768.86 | F25: ='App.2-C_DepExp (2017)'!F25+'App.2-C_DepExp (2017)'!I25 -> 0 | G25: 0 | H25: 0 | J25: 0 | K25: 0 | L25: 0 | M25: 0 | N25: 0 | O25: =IF(L25=0,0,+H25/L25) -> 0 | P25: 0 | Q25: 0 | S25: 0
A26: 1808 | B26: Buildings | C26: 2211233.84 | D26: 0 | E26: 2211233.84 | F26: ='App.2-C_DepExp (2017)'!F26+'App.2-C_DepExp (2017)'!I26 -> 115018.78 | G26: 0 | H26: 115018.78 | I26: 35000 | J26: 43.92750762 | K26: 0.02276477893 | L26: 65 | M26: 0.01538461538 | N26: 50338.24954 | O26: 1769.519692 | P26: 269.2307692 | Q26: 52377 | R26: 52377 | S26: 0
A27: 1810 | B27: Leasehold Improvements | C27: 0 | D27: 0 | E27: 0 | F27: ='App.2-C_DepExp (2017)'!F27+'App.2-C_DepExp (2017)'!I27 -> 0 | G27: 0 | H27: 0 | J27: 0 | K27: 0 | L27: 0 | M27: 0 | N27: 0 | O27: 0 | P27: 0 | Q27: 0 | S27: 0
A28: 1815 | B28: Transformer Station Equipment >50 kV | C28: 0 | D28: 0 | E28: 0 | F28: ='App.2-C_DepExp (2017)'!F28+'App.2-C_DepExp (2017)'!I28 -> 0 | G28: 0 | H28: 0 | J28: 0 | K28: 0 | L28: 0 | M28: 0 | N28: 0 | O28: 0 | P28: 0 | Q28: 0 | S28: 0
A29: 1820 | B29: Distribution Station Equipment <50 kV | C29: 2481877.3 | D29: ='App.2-C_DepExp (2017)'!D29+91704+98129+3866+10465+8332 -> 520549 | E29: 1961328.3 | F29: ='App.2-C_DepExp (2017)'!F29+'App.2-C_DepExp (2017)'!I29 -> 6854626.97 | G29: 0 | H29: 6854626.97 | I29: =1310000+352000 -> 1662000 | J29: 25.09206211 | K29: 0.03985324107 | L29: 45 | M29: 0.02222222222 | N29: 78165.28956 | O29: 152325.0438 | P29: 18466.66667 | Q29: 248957 | R29: 248957 | S29: 0
A30: 1825 | B30: Storage Battery Equipment | C30: 0 | D30: 0 | E30: 0 | F30: ='App.2-C_DepExp (2017)'!F30+'App.2-C_DepExp (2017)'!I30 -> 0 | G30: 0 | H30: 0 | J30: 0 | K30: 0 | L30: 0 | M30: 0 | N30: 0 | O30: 0 | P30: 0 | Q30: 0 | S30: 0
A31: 1830 | B31: Poles, Towers & Fixtures | C31: 5089221.62 | D31: 0 | E31: 5089221.62 | F31: ='App.2-C_DepExp (2017)'!F31+'App.2-C_DepExp (2017)'!I31 -> 3499549.03 | G31: 0 | H31: 3499549.03 | I31: 545775 | J31: 48.71649976 | K31: 0.0205269263 | L31: 45 | M31: 0.02222222222 | N31: 104466.0771 | O31: 77767.75622 | P31: 6064.166667 | Q31: 188298 | R31: 188298 | S31: 0
A32: 1835 | B32: Overhead Conductors & Devices | C32: 7300747.03 | D32: 0 | E32: 7300747.03 | F32: ='App.2-C_DepExp (2017)'!F32+'App.2-C_DepExp (2017)'!I32 -> 4067846.59 | G32: 0 | H32: 4067846.59 | I32: 676998 | J32: 44.35288606 | K32: 0.02254644712 | L32: 60 | M32: 0.01666666667 | N32: 164605.9068 | O32: 67797.44317 | P32: 5641.65 | Q32: 238045 | R32: 238045 | S32: 0
A33: 1840 | B33: Underground Conduit | C33: 1981612.95 | D33: 0 | E33: 1981612.95 | F33: ='App.2-C_DepExp (2017)'!F33+'App.2-C_DepExp (2017)'!I33 -> 373028.24 | G33: 0 | H33: 373028.24 | I33: 94896 | J33: 60.62485899 | K33: 0.01649488373 | L33: 50 | M33: 0.02 | N33: 32686.4752 | O33: 7460.5648 | P33: 948.96 | Q33: 41096 | R33: 41096 | S33: 0
A34: 1845 | B34: Underground Conductors & Devices | C34: 6412108.91 | D34: 0 | E34: 6412108.91 | F34: ='App.2-C_DepExp (2017)'!F34+'App.2-C_DepExp (2017)'!I34 -> 2005825.79 | G34: 0 | H34: 2005825.79 | I34: 512174 | J34: 46.42950632 | K34: 0.02153802785 | L34: 40 | M34: 0.025 | N34: 138104.1803 | O34: 50145.64475 | P34: 6402.175 | Q34: 194652 | R34: 194652 | S34: 0
A35: 1850 | B35: Line Transformers | C35: 5317715.8 | D35: 0 | E35: 5317715.8 | F35: ='App.2-C_DepExp (2017)'!F35+'App.2-C_DepExp (2017)'!I35 -> 1933948.1 | G35: 0 | H35: 1933948.1 | I35: 491367 | J35: 25.97438734 | K35: 0.03849946438 | L35: 40 | M35: 0.025 | N35: 204729.21 | O35: 48348.7025 | P35: 6142.0875 | Q35: 259220 | R35: 259220 | S35: -2.910383046e-11
A36: 1855 | B36: Services (Overhead & Underground) | C36: 3281615.53 | D36: 0 | E36: 3281615.53 | F36: ='App.2-C_DepExp (2017)'!F36+'App.2-C_DepExp (2017)'!I36 -> 1176319.49 | G36: 0 | H36: 1176319.49 | I36: 388306 | J36: 37.14901162 | K36: 0.02691861658 | L36: 50 | M36: 0.02 | N36: 88336.5502 | O36: 23526.3898 | P36: 3883.06 | Q36: 115746 | R36: 115746 | S36: 0
A37: 1860 | B37: Meters | C37: 1177438.74 | D37: ='App.2-C_DepExp (2017)'!D37 -> 358957 | E37: 818481.74 | F37: ='App.2-C_DepExp (2017)'!F37+'App.2-C_DepExp (2017)'!I37 -> 604120.63 | G37: 0 | H37: 604120.63 | J37: 17.37451607 | K37: 0.05755555988 | L37: 25 | M37: 0.04 | N37: 47108.1748 | O37: 24164.8252 | P37: 0 | Q37: 71273 | R37: 71273 | S37: 0
A38: 1860 | B38: Meters (Smart Meters) | C38: 138724.47 | D38: 0 | E38: 138724.47 | F38: ='App.2-C_DepExp (2017)'!F38+'App.2-C_DepExp (2017)'!I38 -> 4443796.93 | G38: 0 | H38: 4443796.93 | I38: 50229 | J38: -0.8823020024 | K38: -1.133398765 | L38: 10 | M38: 0.1 | N38: -157230.143 | O38: 444379.693 | P38: 2511.45 | Q38: 289661 | R38: 289661 | S38: 0
A39: 1905 | B39: Land | C39: 1634.63 | D39: 0 | E39: 1634.63 | F39: ='App.2-C_DepExp (2017)'!F39+'App.2-C_DepExp (2017)'!I39 -> 0 | G39: 0 | H39: 0 | J39: 0 | K39: 0 | L39: 0 | M39: 0 | N39: 0 | O39: 0 | P39: 0 | Q39: 0 | S39: 0
A40: 1908 | B40: Buildings & Fixtures | C40: 0 | D40: 0 | E40: 0 | F40: ='App.2-C_DepExp (2017)'!F40+'App.2-C_DepExp (2017)'!I40 -> 0 | G40: 0 | H40: 0 | J40: 0 | K40: 0 | L40: 65 | M40: 0.01538461538 | N40: 0 | O40: 0 | P40: 0 | Q40: 0 | S40: 0
A41: 1910 | B41: Leasehold Improvements | C41: 0 | D41: 0 | E41: 0 | F41: ='App.2-C_DepExp (2017)'!F41+'App.2-C_DepExp (2017)'!I41 -> 0 | G41: 0 | H41: 0 | J41: 0 | K41: 0 | L41: 0 | M41: 0 | N41: 0 | O41: 0 | P41: 0 | Q41: 0 | S41: 0
A42: 1915 | B42: Office Furniture & Equipment (10 years) | C42: 64123.18 | D42: ='App.2-C_DepExp (2017)'!D42+9343 -> 46736.75 | E42: 17386.43 | F42: ='App.2-C_DepExp (2017)'!F42+'App.2-C_DepExp (2017)'!I42 -> 101515.96 | G42: 0 | H42: 101515.96 | I42: 35000 | J42: 4.567678575 | K42: 0.2189295905 | L42: 10 | M42: 0.1 | N42: 3806.404 | O42: 10151.596 | P42: 1750 | Q42: 15708 | R42: 15708 | S42: 0
A43: 1915 | B43: Office Furniture & Equipment (5 years) | C43: 0 | D43: 0 | E43: 0 | F43: ='App.2-C_DepExp (2017)'!F43+'App.2-C_DepExp (2017)'!I43 -> 0 | G43: 0 | H43: 0 | J43: 0 | K43: 0 | L43: 5 | M43: 0.2 | N43: 0 | O43: 0 | P43: 0 | Q43: 0 | R43: 0 | S43: 0
A44: 1920 | B44: Computer Equipment - Hardware | C44: 0 | D44: 0 | E44: 0 | F44: ='App.2-C_DepExp (2017)'!F44+'App.2-C_DepExp (2017)'!I44 -> 35314 | G44: ='App.2-C_DepExp (2013)'!I44 -> 0 | H44: 35314 | J44: 0 | K44: 0 | L44: 4 | M44: 0.25 | N44: 0 | O44: 8828.5 | P44: 0 | Q44: 8828.5 | R44: 9222 | S44: 393.5
A45: 1920 | B45: Computer Equip.-Hardware(Post Mar. 22/04) | C45: 0 | D45: 0 | E45: 0 | F45: ='App.2-C_DepExp (2017)'!F45+'App.2-C_DepExp (2017)'!I45 -> 0 | G45: ='App.2-C_DepExp (2013)'!I45 -> 0 | H45: 0 | J45: 0 | K45: 0 | L45: 4 | M45: 0.25 | N45: 0 | O45: 0 | P45: 0 | Q45: 0 | R45: 0 | S45: 0
A46: 1920 | B46: Computer Equip.-Hardware(Post Mar. 19/07) | C46: 58817.27 | D46: 0 | E46: 58817.27 | F46: ='App.2-C_DepExp (2017)'!F46+'App.2-C_DepExp (2017)'!I46 -> 275605.91 | G46: ='App.2-C_DepExp (2013)'!I46 -> 82496.4 | H46: 193109.51 | J46: -9.740575179 | K46: -0.1026633419 | L46: 4 | M46: 0.25 | N46: -6038.3775 | O46: 48277.3775 | P46: 0 | Q46: 42239 | R46: 42239 | S46: 0
A47: 1930 | B47: Transportation Equipment | C47: 961536.5 | D47: ='App.2-C_DepExp (2017)'!D47+10932+12288+12288+817+817 -> 55460 | E47: 906076.5 | F47: ='App.2-C_DepExp (2017)'!F47+'App.2-C_DepExp (2017)'!I47 -> 522524.74 | G47: 0 | H47: 522524.74 | I47: 450000 | J47: 6.879354345 | K47: 0.1453624788 | L47: 10 | M47: 0.1 | N47: 131709.526 | O47: 52252.474 | P47: 22500 | Q47: 206462 | R47: 206462 | S47: 0
A48: 1935 | B48: Stores Equipment | C48: 51753.8 | D48: ='App.2-C_DepExp (2017)'!D48+2005 -> 6748 | E48: 45005.8 | F48: ='App.2-C_DepExp (2017)'!F48+'App.2-C_DepExp (2017)'!I48 -> 3188 | G48: 0 | H48: 3188 | J48: 6.222114693 | K48: 0.1607170631 | L48: 10 | M48: 0.1 | N48: 7233.2 | O48: 318.8 | P48: 0 | Q48: 7552 | R48: 7552 | S48: -9.094947018e-13
A49: 1940 | B49: Tools, Shop & Garage Equipment | C49: 94758.59 | D49: ='App.2-C_DepExp (2017)'!D49+16367 -> 32637 | E49: 62121.59 | F49: ='App.2-C_DepExp (2017)'!F49+'App.2-C_DepExp (2017)'!I49 -> 214337.65 | G49: 0 | H49: 214337.65 | I49: 35000 | J49: 5.471226375 | K49: 0.1827743784 | L49: 10 | M49: 0.1 | N49: 11354.235 | O49: 21433.765 | P49: 1750 | Q49: 34538 | R49: 34538 | S49: 0
A50: 1945 | B50: Measurement & Testing Equipment | C50: 38394.68 | D50: ='App.2-C_DepExp (2017)'!D50+4546 -> 19631 | E50: 18763.68 | F50: ='App.2-C_DepExp (2017)'!F50+'App.2-C_DepExp (2017)'!I50 -> 0 | G50: 0 | H50: 0 | J50: 6.425002465 | K50: 0.1556419636 | L50: 10 | M50: 0.1 | N50: 2920.416 | O50: 0 | P50: 0 | Q50: 2920.416 | R50: 2920.416 | S50: 0
A51: 1950 | B51: Power Operated Equipment | C51: 43907.51 | D51: ='App.2-C_DepExp (2017)'!D51+20310 -> 22251 | E51: 21656.51 | F51: ='App.2-C_DepExp (2017)'!F51+'App.2-C_DepExp (2017)'!I51 -> 2724 | G51: 0 | H51: 2724 | J51: 3.082513949 | K51: 0.3244105352 | L51: 10 | M51: 0.1 | N51: 7025.6 | O51: 272.4 | P51: 0 | Q51: 7298 | R51: 7298 | S51: 0
A52: 1955 | B52: Communications Equipment | C52: 49800.6 | D52: 287 | E52: 49513.6 | F52: ='App.2-C_DepExp (2017)'!F52+'App.2-C_DepExp (2017)'!I52 -> 22153.11 | G52: 0 | H52: 22153.11 | J52: 6.20802039 | K52: 0.1610819452 | L52: 5 | M52: 0.2 | N52: 7975.747 | O52: 4430.622 | P52: 0 | Q52: 12406.369 | R52: 12406.369 | S52: 0
A53: 1955 | B53: Communication Equipment (Smart Meters) | C53: 0 | D53: 0 | E53: 0 | F53: ='App.2-C_DepExp (2017)'!F53+'App.2-C_DepExp (2017)'!I53 -> 0 | G53: 0 | H53: 0 | J53: 0 | K53: 0 | L53: 15 | M53: 0.06666666667 | N53: 0 | O53: 0 | P53: 0 | Q53: 0 | R53: 0 | S53: 0
A54: 1960 | B54: Miscellaneous Equipment | C54: 27598.95 | D54: ='App.2-C_DepExp (2017)'!D54+2710 -> 4071 | E54: 23527.95 | F54: ='App.2-C_DepExp (2017)'!F54+'App.2-C_DepExp (2017)'!I54 -> 162284.13 | G54: 0 | H54: 162284.13 | J54: 7.367984773 | K54: 0.1357223217 | L54: 10 | M54: 0.1 | N54: 3193.268 | O54: 16228.413 | P54: 0 | Q54: 19421.681 | R54: 19421.681 | S54: 0
A55: 1970 | B55: Load Management Controls Customer Premises | C55: 0 | D55: 0 | E55: 0 | F55: ='App.2-C_DepExp (2017)'!F55+'App.2-C_DepExp (2017)'!I55 -> 0 | G55: 0 | H55: 0 | J55: 0 | K55: 0 | L55: 0 | M55: 0 | N55: 0 | O55: 0 | P55: 0 | Q55: 0 | S55: 0
A56: 1975 | B56: Load Management Controls Utility Premises | C56: 0 | D56: 0 | E56: 0 | F56: ='App.2-C_DepExp (2017)'!F56+'App.2-C_DepExp (2017)'!I56 -> 0 | G56: 0 | H56: 0 | J56: 0 | K56: 0 | L56: 0 | M56: 0 | N56: 0 | O56: 0 | P56: 0 | Q56: 0 | R56: 0 | S56: 0
A57: 1980 | B57: System Supervisor Equipment | C57: 0 | D57: 0 | E57: 0 | F57: ='App.2-C_DepExp (2017)'!F57+'App.2-C_DepExp (2017)'!I57 -> 0 | G57: 0 | H57: 0 | J57: 0 | K57: 0 | L57: 0 | M57: 0 | N57: 0 | O57: 0 | P57: 0 | Q57: 0 | S57: 0
A58: 1985 | B58: Miscellaneous Fixed Assets | C58: 0 | D58: 0 | E58: 0 | F58: ='App.2-C_DepExp (2017)'!F58+'App.2-C_DepExp (2017)'!I58 -> 0 | G58: 0 | H58: 0 | J58: 0 | K58: 0 | L58: 0 | M58: 0 | N58: 0 | O58: 0 | P58: 0 | Q58: 0 | R58: 0 | S58: 0
A59: 1990 | B59: Other Tangible Property | C59: 0 | D59: 0 | E59: 0 | F59: ='App.2-C_DepExp (2017)'!F59+'App.2-C_DepExp (2017)'!I59 -> 0 | G59: 0 | H59: 0 | J59: 0 | K59: 0 | L59: 0 | M59: 0 | N59: 0 | O59: 0 | P59: 0 | Q59: 0 | R59: 0 | S59: 0
A60: 1995 | B60: Contributions & Grants | C60: -6834383.13 | D60: ='App.2-C_DepExp (2017)'!D60 -> 808 | E60: -6835191.13 | F60: ='App.2-C_DepExp (2017)'!F60+'App.2-C_DepExp (2017)'!I60 -> -2385690.47 | G60: 0 | H60: -2385690.47 | I60: -565541 | J60: 41.13975364 | K60: 0.02430738912 | L60: 60 | M60: 0.01666666667 | N60: -166145.6505 | O60: -39761.50783 | P60: -4712.841667 | Q60: -210620 | R60: -210620 | S60: 0
B61: Total | C61: =SUM(C23:C60) -> 30238881.61 | D61: 1129009.75 | E61: 29109871.86 | F61: 25059310.68 | G61: 695191.5 | H61: 24364119.18 | I61: 4441204 | N61: =SUM(N23:N60) -> 754344.3385 | O61: 1159644.023 | P61: 76616.60494 | Q61: 1990604.966 | R61: 1982753.466 | S61: -7851.5
A64: General: | B64: Applicants are to complete this appendix to show the reasonability of the depreciation expense that is included in rate base via. Accumulated depreciation and the revenue requirement.
B65: Applicants must provide a breakdown of depreciation and amortization expense in the above format for all relevant accounts. Balances presented in the table should exclude asset retirement obligations (AROs) and the related depreciation and accretion expense. These should be disclosed separately consistent with the Notes of historical Audited Financial Statements.
A68: Notes:
A69: 1 | B69: This is the net book value of assets that existed as at the date of the utility's change in depreciation policies (i.e. as at Jan. 1, 2012 or Jan. 1, 2013). These assets are to be depreciated at the average remaining service life. This amount will not change in years subsequent to the date of the utility's change in depreciation policies. This column is expected to be used until the assets that existed as at the date of the utility's change in depreciation policies are fully depreciated.
A70: 2 | B70: This is the opening gross book value of assets that have been acquired after the date of the utilities change in depreciation policies (i.e. additions starting in 2012/2013 for those who changed policies Jan. 1, 2012/2013). These assets are to be depreciated at the revised service life. The amount is expected to be equal to the gross book value of the prior year plus the prior year's additions.
A71: 3 | B71: A recalculation should be performed to determine the average remaining life of opening balance of assets (i.e. excluding current year's additions) under the change in policies under CGAAP. For example, Asset A had a useful life of 20 years under CGAAP without the change in policies. On January 1 of the year of policy changes, Asset A was 3 years depreciated. As a result, Asset A would have a remaining service life of 17 years (20 years less 3 years) as at January 1 of the year of policy changes. Due to making the change in policies under CGAAP, management re-assessed the asset useful lives and concluded that the revised useful life of Asset A is now 30 years. Therefore, the average remaining useful life of the opening balance of Asset A is determined to be 27 years (30 years less 3 years) under the revised CGAAP as at January 1 of the year of policy changes.
A72: 4 | B72: The useful life used should be consistent with the OEB's regulatory accounting policies as set out in the Accounting Procedures Handbook for Electricity Distributors, effective Jan. 1, 2012 and also with the Report of the Board, Transition to International Financial Reporting Standards, EB-2008-0408, and the Kinectrics Report.
A73: 5 | B73: Board policy of the "half-year" rule - the applicant must ensure that additions in the year attract a half-year depreciation expense in the first year. Deviations from this standard practice must be supported in the application.
A74: 6 | B74: The applicant must provide an explanation of material variances in evidence.
A75: 7 | B75: This should include assets in column a (excel column C) that become fully depreciated since the date of the policy change. The amount input in b (excel column D) should equal the net book value of the asset as at the date of depreciation policy change
A76: 8 | B76: This should include assets in column d (excel column f) that have become fully depreciated. The amount input in e (excel column G) should equal the gross book value of the asset

Sheet App.2-D_Overhead
A1: MRS: Not Required as your last CoS included any transition related to overhead capitalization | F1: File Number: | G1: =EBNUMBER -> EB-2017-0084
F2: Exhibit:
F3: Tab:
F4: Schedule:
F5: Page:
F7: Date:
A9: Appendix 2-D
A10: Overhead Expense
A12: Applicants are to provide a breakdown of OM&A before capitalization in the below table. OM&A before capitalization may be broken down by cost center, program, drivers or another format best suited to focus on capitalized vs. uncapitalized OM&A.
A14: OM&A Before Capitalization
B15: =F15-4 -> 2014 | C15: =F15-3 -> 2015 | D15: =F15-2 -> 2016 | E15: =F15-1 -> 2017 | F15: =TestYear -> 2018
B16: Historical Year | C16: Historical Year | D16: Historical Year | E16: Bridge Year | F16: Test Year
A27: Total OM&A Before Capitalization (B) | B27: =SUM(B17:B26) -> 0 | C27: =SUM(C17:C26) -> 0 | D27: 0 | E27: 0 | F27: 0
A29: Applicants are to provide a breakdown of capitalized OM&A in the below table. Capitalized OM&A may be broken down using the categories listed in the table below if possible. Otherwise, applicants are to provide its own break down of capitalized OM&A.
A31: Capitalized OM&A | G31: Directly | H31: Explanation for Change in Overhead Capitalized
B32: =F32-4 -> 2014 | C32: =F32-3 -> 2015 | D32: =F32-2 -> 2016 | E32: =F32-1 -> 2017 | F32: =TestYear -> 2018 | G32: Attributable?
B33: Historical Year | C33: Historical Year | D33: Historical Year | E33: Bridge Year | F33: Test Year | G33: (Yes/No)
A34: employee benefits
A35: costs of site preparation
A36: initial delivery and handling costs
A37: costs of testing whether the asset is functioning properly
A38: professional fees
A40: costs of opening a new facility
A41: costs of introducing a new product or service (including costs of advertising and promotional activities)
A42: costs of conducting business in a new location or with a new class of customer (including costs of staff training)
A43: administration and other general overhead costs
A45: Insert description of additional item(s) and new rows if needed
A47: Total Capitalized OM&A (A) | B47: =SUM(B34:B46) -> 0 | C47: =SUM(C34:C46) -> 0 | D47: =SUM(D34:D46) -> 0 | E47: =SUM(E34:E46) -> 0 | F47: =SUM(F34:F46) -> 0
A49: % of Capitalized OM&A (=A/B) | B49: =IF(ISERROR(B47/B27),"0%",B47/B27) -> 0% | C49: =IF(ISERROR(C47/C27),"0%",C47/C27) -> 0% | D49: 0% | E49: 0% | F49: 0%

Sheet App.2-EA_Account 1575 (2015)
A1: MRS: Not Required | H1: File Number: | I1: =EBNUMBER -> EB-2017-0084
H2: Exhibit:
H3: Tab:
H4: Schedule:
H5: Page:
H7: Date:
A9: Appendix 2-EA
A10: Account 1575 - IFRS-CGAAP Transitional PP&E Amounts
A11: 2015 Adopters of IFRS for Financial Reporting Purposes
A13: For applicants that adopted IFRS on January 1, 2015 for financial reporting purposes
B17: 2014 | C17: =TestYear-3 -> 2015 | D17: =TestYear-2 -> 2016 | E17: =CONCATENATE(TestYear-1," Bridge Year") -> 2017 Bridge Year | F17: =CONCATENATE(TestYear," Rebasing Year") -> 2018 Rebasing Year
A18: Reporting Basis | B18: CGAAP | C18: CGAAP | D18: CGAAP | E18: MIFRS | F18: MIFRS
B19: Actual | C19: Actual | D19: Actual | E19: Forecast | F19: Forecast
D20: $ | E20: $
A21: PP&E Values under CGAAP
A22: Opening net PP&E - Note 1 | C22: =+B25 -> 0 | D22: =+C25 -> 0 | E22: =+D25 -> 0
A23: Net Additions - Note 4
A24: Net Depreciation (amounts should be negative) - Note 4
A25: Closing net PP&E (1) | B25: =SUM(B22:B24) -> 0 | C25: =SUM(C22:C24) -> 0 | D25: =SUM(D22:D24) -> 0 | E25: =SUM(E22:E24) -> 0
A27: PP&E Values under MIFRS (Starts from 2014, the transition year)
A28: Opening net PP&E - Note 1 | C28: =+B31 -> 0 | D28: =+C31 -> 0 | E28: =+D31 -> 0
A29: Net Additions - Note 4
A30: Net Depreciation (amounts should be negative) - Note 4
A31: Closing net PP&E (2) | B31: =SUM(B28:B30) -> 0 | C31: =SUM(C28:C30) -> 0 | D31: =SUM(D28:D30) -> 0 | E31: =SUM(E28:E30) -> 0
A33: Difference in Closing net PP&E, former CGAAP vs. revised CGAAP | B33: =B25-B31 -> 0 | C33: =C25-C31 -> 0 | D33: =D25-D31 -> 0 | E33: =E25-E31 -> 0
A36: Effect on Deferral and Variance Account Rate Riders
A37: Closing balance in Account 1575 | F37: =IF(ISERROR(E33), 0, E33) -> 0 | H37: WACC
A38: Return on Rate Base Associated with Account 1575 balance at WACC - Note 2 | F38: =E33*I37*I38 -> 0 | G38: # of years of rate rider disposition period
A39: Amount included in Deferral and Variance Account Rate Rider Calculation | F39: =F37+F38 -> 0
A41: Notes:
A42: 1 For an applicant that adopted IFRS on January 1, 2015, the PP&E values as of January 1, 2014 under both CGAAP and MIFRS should be the same.
A43: 2 Return on rate base associated with deferred balance is calculated as:
A44: the deferral account closing balance as of 2017 x WACC X # of years of rate rider disposition period
A45: * Please note that the calculation should be adjusted once WACC is updated and finalized in the rate application.
A46: 3 The PP&E deferral account is cleared by including the total balance in the deferral and variance account rate rider calculation.
A47: 4 Net additions are additions net of disposals; Net depreciation is additions to depreciation net of disposals.

Sheet App.2-EB_Account 1576 (2012)
A1: MRS: Not Required | K1: File Number: | L1: =EBNUMBER -> EB-2017-0084
K2: Exhibit:
K3: Tab:
K4: Schedule:
K5: Page:
K7: Date:
A9: Appendix 2-EB
A10: Account 1576 - Accounting Changes under CGAAP
A11: 2012 Changes in Accounting Policies under CGAAP
A13: For applicants with a balance in Account 1576 and made capitalization and depreciation expense accounting policy changes under CGAAP effective January 1, 2012. This is the first time the applicant is rebasing with changes in these accounting policies.
B17: Prior Years Rebasing | C17: 2012 | D17: 2013 | E17: 2014 | F17: 2015 | G17: 2016 | H17: 2017 | I17: 2018 Rebasing Year
A18: Reporting Basis | B18: CGAAP | C18: CGAAP | D18: CGAAP | E18: CGAAP | F18: MIFRS - Note 5 | G18: MIFRS | H18: MIFRS | I18: MIFRS
B19: Forecast | C19: Actual | D19: Actual | E19: Actual | F19: Actual | G19: Actual | H19: Forecast | I19: Forecast
C20: $ | D20: $ | E20: $ | F20: $ | G20: $ | H20: $
A21: PP&E Values under former CGAAP
A22: Opening net PP&E - Note 1 | D22: =+C25 -> 0 | E22: =+D25 -> 0 | F22: =+E25 -> 0 | G22: =+F25 -> 0 | H22: =+G25 -> 0
A23: Net Additions - Note 4
A24: Net Depreciation (amounts should be negative) - Note 4
A25: Closing net PP&E (1) | C25: =C22+C23+C24 -> 0 | D25: 0 | E25: 0 | F25: 0 | G25: 0 | H25: 0
A27: PP&E Values under revised CGAAP (Starts from 2012)
A28: Opening net PP&E - Note 1 | D28: =+C31 -> 0 | E28: =+D31 -> 0 | F28: =+E31 -> 0 | G28: =+F31 -> 0 | H28: =+G31 -> 0
A29: Net Additions - Note 4
A30: Net Depreciation (amounts should be negative) - Note 4
A31: Closing net PP&E (2) | C31: =SUM(C28:C30) -> 0 | D31: 0 | E31: 0 | F31: 0 | G31: 0 | H31: 0
A33: Difference in Closing net PP&E, former CGAAP vs. revised CGAAP | C33: =C25-C31 -> 0 | D33: 0 | E33: 0 | F33: 0 | G33: 0 | H33: 0
A36: Effect on Deferral and Variance Account Rate Riders
A37: Closing balance in Account 1576 | I37: =IF(ISERROR(H33), 0, H33) -> 0 | K37: WACC
A38: Return on Rate Base Associated with Account 1576 balance at WACC - Note 2 | I38: =H33*L37*L38 -> 0 | J38: # of years of rate rider disposition period
A39: Amount included in Deferral and Variance Account Rate Rider Calculation | I39: =I37+I38 -> 0
A41: Notes:
A42: 1 For an applicant that made the capitalization and depreciation expense accounting policy changes on January 1, 2012, the PP&E values as of January 1, 2012 under both former CGAAP and revised CGAAP should be the same.
A43: 2 Return on rate base associated with Account 1576 balance is calculated as:
A44: the variance account ending balance as of 2017 x WACC X # of years of rate rider disposition period
A45: * Please note that the calculation should be adjusted once WACC is updated and finalized in the rate application.
A46: 3 Account 1576 is cleared by including the total balance in the deferral and variance account rate rider calculation.
A47: 4 Net additions are additions net of disposals; Net depreciation is additions to depreciation net of disposals.
A48: 5 Differences due to the adoption of MIFRS are to be shown separately in Account 1575 in Appendix 2-EA as Accounts 1575 and 1576 cannot be used interchangably.

Sheet App.2-EC_Account 1576 (2013)
A1: MRS: Not Required | J1: File Number: | K1: =EBNUMBER -> EB-2017-0084
J2: Exhibit:
J3: Tab:
J4: Schedule:
J5: Page:
J7: Date:
A9: Appendix 2-EC
A10: Account 1576 - Accounting Changes under CGAAP
A11: 2013 Changes in Accounting Policies under CGAAP
A13: For applicants with a balance in Account 1576 and made capitalization and depreciation expense accounting policy changes under CGAAP effective January 1, 2013. This is the first time the applicant is rebasing with changes in these accounting policies.
B17: Prior Years Rebasing | C17: 2013 | D17: 2014 | E17: 2015 | F17: 2016 | G17: 2017 | H17: 2018 Rebasing Year
A18: Reporting Basis | B18: CGAAP | C18: CGAAP | D18: CGAAP | E18: MIFRS - Note 5 | F18: MIFRS | G18: MIFRS | H18: MIFRS
B19: Actual | C19: Actual | D19: Actual | E19: Actual | F19: Actual | G19: Forecast | H19: Forecast
C20: $ | D20: $ | F20: $
A21: PP&E Values under former CGAAP
A22: Opening net PP&E - Note 1 | D22: =+C25 -> 0 | E22: =+D25 -> 0 | F22: =+E25 -> 0 | G22: =+F25 -> 0
A23: Net Additions - Note 4
A24: Net Depreciation (amounts should be negative) - Note 4
A25: Closing net PP&E (1) | C25: =C22+C23+C24 -> 0 | D25: =D22+D23+D24 -> 0 | E25: =E22+E23+E24 -> 0 | F25: =F22+F23+F24 -> 0 | G25: =G22+G23+G24 -> 0
A27: PP&E Values under revised CGAAP (Starts from 2012)
A28: Opening net PP&E - Note 1 | D28: =+C31 -> 0 | E28: =+D31 -> 0 | F28: =+E31 -> 0 | G28: =+F31 -> 0
A29: Net Additions - Note 4
A30: Net Depreciation (amounts should be negative) - Note 4
A31: Closing net PP&E (2) | C31: =SUM(C28:C30) -> 0 | D31: =SUM(D28:D30) -> 0 | E31: =SUM(E28:E30) -> 0 | F31: =SUM(F28:F30) -> 0 | G31: =SUM(G28:G30) -> 0
A33: Difference in Closing net PP&E, former CGAAP vs. revised CGAAP | C33: =C25-C31 -> 0 | D33: =D25-D31 -> 0 | E33: =E25-E31 -> 0 | F33: =F25-F31 -> 0 | G33: =G25-G31 -> 0
A36: Effect on Deferral and Variance Account Rate Riders
A37: Closing balance in Account 1576 | H37: =IF(ISERROR(G33), 0, G33) -> 0 | J37: WACC
A38: Return on Rate Base Associated with Account 1576 balance at WACC - Note 2 | H38: =G33*K37*K38 -> 0 | I38: # of years of rate rider disposition period
A39: Amount included in Deferral and Variance Account Rate Rider Calculation | H39: =H37+H38 -> 0
A41: Notes:
A42: 1 For an applicant that made the capitalization and depreciation expense accounting policy changes on January 1, 2013, the PP&E values as of January 1, 2013 under both former CGAAP and revised CGAAP should be the same.
A43: 2 Return on rate base associated with Account 1576 balance is calculated as:
A44: the variance account ending balance as of 2017 x WACC X # of years of rate rider disposition period
A45: * Please note that the calculation should be adjusted once WACC is updated and finalized in the rate application.
A46: 3 Account 1576 is cleared by including the total balance in the deferral and variance account rate rider calculation.
A47: 4 Net additions are additions net of disposals; Net depreciation is additions to depreciation net of disposals.
A48: 5 Differences due to the adoption of MIFRS are to be shown separately in Account 1575 in Appendix 2-EA as Accounts 1575 and 1576 cannot be used interchangably.

Sheet App.2-FA Proposed REG Invest.
A1: MRS: Not Required | J1: File Number: | K1: =EBNUMBER -> EB-2017-0084
J2: Exhibit:
J3: Tab:
J4: Schedule:
J5: Page:
J7: Date:
A9: Appendix 2-FA
A10: Renewable Generation Connection Investment Summary (past investments or over the future rate setting period)
A12: Enter the details of the Renewable Generation Connection projects as described in the appropriate section of the Filing Requirements.
A13: All costs entered on this page will be transferred to the appropriate cells in the appendices that follow.
A14: For Part A, Renewable Enabling Improvements (REI), these amounts will be transferred to Appendix 2 - FB
A15: For Part B, Expansions, these amounts will be transferred to Appendix 2 - FC
A17: If there are more than five projects proposed to be in-service in a certain year, please amend the tables below and ensure that the formulae for the Total Amounts in any given rate year are updated.
A18: Based on the current methodology and allocation, amounts allocated represent 6% for REI Connection Investments and 17% for Expansion Investments. (EB-2009-0349, 6-10-2010, p. 15, note 9)
A20: There are two scenarios described below. Separate sets of spreadsheets (2-FA, 2-FB, 2-FC) should be submited for each scenario as required.
A21: Scenario 1: Past Investments with No Recovery. The distributor has made investments in the past (during the IRM Years), but has not received approval for these projects and therefore did not receive
A22: revenue from the IESO under Regulation 330/09 and did not receive ratepayer revenue for the direct benefit portion of the investment.
A23: The WCA percentage, debt percentages, interest rates, kWh, tax rates, amortization period, CCA Class and percentage should correspond to the distributor's last Cost of Service approval.
A24: The Direct Benefit portion of the calculated Revenue Requirement for each year should be summed and can be applied for recovery from the distributor's ratepayers through a rate rider.
A25: The Provincial Recovery portion of the calculated Revenue Requirement for each year should be summed and can be applied for recovery from the IESO through a separate order.
A27: Scenario 2: Investments in the Test Year and Beyond. Distributor plans to make investments in 2017 and/or beyond. These investments should be added to 2-FA in the appropriate year.
A28: The WCA percentage, debt percentages, interest rates, kWh, tax rates, amortization period, CCA Class and percentage should correspond to the distributor's current application.
A30: Part A | G30: Test Year
A31: REI Investments (Direct Benefit at 6%) | C31: =D31-1 -> 2014 | D31: =E31-1 -> 2015 | E31: =F31-1 -> 2016 | F31: =G31-1 -> 2017 | G31: =TestYear -> 2018 | H31: =G31+1 -> 2019 | I31: =H31+1 -> 2020 | J31: =I31+1 -> 2021 | K31: =J31+1 -> 2022
A32: Project 1
A33: Name: REI Connection Project
A34: Capital Costs | C34: 0 | D34: 0 | E34: 0 | F34: 0 | G34: 0 | H34: 0 | I34: 0 | J34: 0 | K34: 0
A35: OM&A (Start-Up) | C35: 0 | D35: 0 | E35: 0 | F35: 0 | G35: 0 | H35: 0 | I35: 0 | J35: 0 | K35: 0
A36: OM&A (Ongoing) | C36: 0 | D36: 0 | E36: 0 | F36: 0 | G36: 0 | H36: 0 | I36: 0 | J36: 0 | K36: 0
A38: Project 2
A39: Name: REI Connection Project
A40: Capital Costs | C40: 0 | D40: 0 | E40: 0 | F40: 0 | G40: 0 | H40: 0 | I40: 0 | J40: 0 | K40: 0
A41: OM&A (Start-Up) | C41: 0 | D41: 0 | E41: 0 | F41: 0 | G41: 0 | H41: 0 | I41: 0 | J41: 0 | K41: 0
A42: OM&A (Ongoing) | C42: 0 | D42: 0 | E42: 0 | F42: 0 | G42: 0 | H42: 0 | I42: 0 | J42: 0 | K42: 0
A44: Project 3
A45: Name: REI Connection Project
A46: Capital Costs | C46: 0 | D46: 0 | E46: 0 | F46: 0 | G46: 0 | H46: 0 | I46: 0 | J46: 0 | K46: 0
A47: OM&A (Start-Up) | C47: 0 | D47: 0 | E47: 0 | F47: 0 | G47: 0 | H47: 0 | I47: 0 | J47: 0 | K47: 0
A48: OM&A (Ongoing) | C48: 0 | D48: 0 | E48: 0 | F48: 0 | G48: 0 | H48: 0 | I48: 0 | J48: 0 | K48: 0
A50: Project 4
A51: Name: REI Connection Project
A52: Capital Costs | C52: 0 | D52: 0 | E52: 0 | F52: 0 | G52: 0 | H52: 0 | I52: 0 | J52: 0 | K52: 0
A53: OM&A (Start-Up) | C53: 0 | D53: 0 | E53: 0 | F53: 0 | G53: 0 | H53: 0 | I53: 0 | J53: 0 | K53: 0
A54: OM&A (Ongoing) | C54: 0 | D54: 0 | E54: 0 | F54: 0 | G54: 0 | H54: 0 | I54: 0 | J54: 0 | K54: 0
A56: Project 5
A57: Name: REI Connection Project
A58: Capital Costs | C58: 0 | D58: 0 | E58: 0 | F58: 0 | G58: 0 | H58: 0 | I58: 0 | J58: 0 | K58: 0
A59: OM&A (Start-Up) | C59: 0 | D59: 0 | E59: 0 | F59: 0 | G59: 0 | H59: 0 | I59: 0 | J59: 0 | K59: 0
A60: OM&A (Ongoing) | C60: 0 | D60: 0 | E60: 0 | F60: 0 | G60: 0 | H60: 0 | I60: 0 | J60: 0 | K60: 0
A62: Total Capital Costs | C62: =SUM(C58,C52,C46,C40,C34) -> 0 | D62: 0 | E62: 0 | F62: 0 | G62: =SUM(G58,G52,G46,G40,G34) -> 0 | H62: =SUM(H58,H52,H46,H40,H34) -> 0 | I62: 0 | J62: 0 | K62: 0
A63: Total OM&A (Start-Up) | C63: 0 | D63: 0 | E63: 0 | F63: 0 | G63: =SUM(G59,G53,G47,G41,G35) -> 0 | H63: 0 | I63: 0 | J63: 0 | K63: 0
A64: Total OM&A (Ongoing) | C64: 0 | D64: 0 | E64: 0 | F64: 0 | G64: =SUM(G60,G54,G48,G42,G36) -> 0 | H64: 0 | I64: 0 | J64: 0 | K64: 0
A67: Part B | G67: Test Year
A68: Expansion Investments (Direct Benefit at 17%) | C68: =D68-1 -> 2014 | D68: =E68-1 -> 2015 | E68: =F68-1 -> 2016 | F68: =G68-1 -> 2017 | G68: =TestYear -> 2018 | H68: =G68+1 -> 2019 | I68: =H68+1 -> 2020 | J68: 2021 | K68: 2022
A69: Project 1
A70: Name: Expansion Connection Project
A71: Capital Costs | C71: 0 | D71: 0 | E71: 0 | F71: 0 | G71: 0 | H71: 0 | I71: 0 | J71: 0 | K71: 0
A72: OM&A (Start-Up) | C72: 0 | D72: 0 | E72: 0 | F72: 0 | G72: 0 | H72: 0 | I72: 0 | J72: 0 | K72: 0
A73: OM&A (Ongoing) | C73: 0 | D73: 0 | E73: 0 | F73: 0 | G73: 0 | H73: 0 | I73: 0 | J73: 0 | K73: 0
A75: Project 2
A76: Name: Expansion Connection Project
A77: Capital Costs | C77: 0 | D77: 0 | E77: 0 | F77: 0 | G77: 0 | H77: 0 | I77: 0 | J77: 0 | K77: 0
A78: OM&A (Start-Up) | C78: 0 | D78: 0 | E78: 0 | F78: 0 | G78: 0 | H78: 0 | I78: 0 | J78: 0 | K78: 0
A79: OM&A (Ongoing) | C79: 0 | D79: 0 | E79: 0 | F79: 0 | G79: 0 | H79: 0 | I79: 0 | J79: 0 | K79: 0
A81: Project 3
A82: Name: Expansion Connection Project
A83: Capital Costs | C83: 0 | D83: 0 | E83: 0 | F83: 0 | G83: 0 | H83: 0 | I83: 0 | J83: 0 | K83: 0
A84: OM&A (Start-Up) | C84: 0 | D84: 0 | E84: 0 | F84: 0 | G84: 0 | H84: 0 | I84: 0 | J84: 0 | K84: 0
A85: OM&A (Ongoing) | C85: 0 | D85: 0 | E85: 0 | F85: 0 | G85: 0 | H85: 0 | I85: 0 | J85: 0 | K85: 0
A87: Project 4
A88: Name: Expansion Connection Project
A89: Capital Costs | C89: 0 | D89: 0 | E89: 0 | F89: 0 | G89: 0 | H89: 0 | I89: 0 | J89: 0 | K89: 0
A90: OM&A (Start-Up) | C90: 0 | D90: 0 | E90: 0 | F90: 0 | G90: 0 | H90: 0 | I90: 0 | J90: 0 | K90: 0
A91: OM&A (Ongoing) | C91: 0 | D91: 0 | E91: 0 | F91: 0 | G91: 0 | H91: 0 | I91: 0 | J91: 0 | K91: 0
A93: Project 5
A94: Name: Expansion Connection Project
A95: Capital Costs | C95: 0 | D95: 0 | E95: 0 | F95: 0 | G95: 0 | H95: 0 | I95: 0 | J95: 0 | K95: 0
A96: OM&A (Start-Up) | C96: 0 | D96: 0 | E96: 0 | F96: 0 | G96: 0 | H96: 0 | I96: 0 | J96: 0 | K96: 0
A97: OM&A (Ongoing) | C97: 0 | D97: 0 | E97: 0 | F97: 0 | G97: 0 | H97: 0 | I97: 0 | J97: 0 | K97: 0
A99: Total Capital Costs | C99: =SUM(C95,C89,C83,C77,C71) -> 0 | D99: 0 | E99: 0 | F99: 0 | G99: =SUM(G95,G89,G83,G77,G71) -> 0 | H99: =SUM(H95,H89,H83,H77,H71) -> 0 | I99: 0 | J99: 0 | K99: 0
A100: Total OM&A (Start-Up) | C100: 0 | D100: 0 | E100: 0 | F100: 0 | G100: =SUM(G96,G90,G84,G78,G72) -> 0 | H100: 0 | I100: 0 | J100: 0 | K100: 0
A101: Total OM&A (Ongoing) | C101: 0 | D101: 0 | E101: 0 | F101: 0 | G101: =SUM(G97,G91,G85,G79,G73) -> 0 | H101: 0 | I101: 0 | J101: 0 | K101: 0

Sheet App.2-FB Calc of REG Improvemnt
D1: MRS: Not Required | N1: File Number: | O1: =EBNUMBER -> EB-2017-0084
N2: Exhibit:
N3: Tab:
N4: Schedule:
N5: Page:
N7: Date:
A9: Appendix 2-FB
A10: Calculation of Renewable Generation Connection Direct Benefits/Provincial Amount: Renewable Enabling Improvement Investments
A12: This table will calculate the distributor/provincial shares of the investments entered in Part A of Appendix 2-FA.
A13: Enter values in green shaded cells: WCA percentage, debt percentages, interest rates, kWh, tax rates, amortization period, CCA Class and percentage.
A14: For historical investments, enter these variables for your last cost of service test year. For 2017 and beyond, enter variables as in the application.
A15: Rate Riders are not calculated for the Test Year as these assets and costs are already in the distributor's rate base/revenue requirement.
C17: =F17-1 -> 2014 | F17: =I17-1 -> 2015 | I17: =L17-1 -> 2016 | L17: =BridgeYear -> 2017 | O17: =CONCATENATE(TestYear," Test Year") -> 2018 Test Year | R17: =TestYear+1 -> 2019 | U17: =R17+1 -> 2020 | V17: 2016 | X17: =U17+1 -> 2021 | AA17: =X17+1 -> 2022
D18: Direct Benefit | E18: Provincial | G18: Direct Benefit | H18: Provincial | J18: Direct Benefit | K18: Provincial | M18: Direct Benefit | N18: Provincial | P18: Direct Benefit | Q18: Provincial | S18: Direct Benefit | T18: Provincial | V18: Direct Benefit | W18: Provincial | Y18: Direct Benefit | Z18: Provincial | AB18: Direct Benefit | AC18: Provincial
C19: Total | D19: 0.06 | E19: 0.94 | F19: Total | G19: 0.06 | H19: 0.94 | I19: Total | J19: 0.06 | K19: 0.94 | L19: Total | M19: 0.06 | N19: 0.94 | O19: Total | P19: 0.06 | Q19: 0.94 | R19: Total | S19: 0.06 | T19: 0.94 | U19: Total | V19: 0.06 | W19: 0.94 | X19: Total | Y19: 0.06 | Z19: 0.94 | AA19: Total | AB19: 0.06 | AC19: 0.94
A20: Net Fixed Assets (average) | C20: =D82 -> 0 | D20: =C20*D19 -> 0 | E20: =C20*E19 -> 0 | F20: =E82 -> 0 | G20: =F20*G19 -> 0 | H20: =F20*H19 -> 0 | I20: =F82 -> 0 | J20: =I20*J19 -> 0 | K20: =I20*K19 -> 0 | L20: =G82 -> 0 | M20: =L20*M19 -> 0 | N20: =L20*N19 -> 0 | O20: =H82 -> 0 | P20: =O20*P19 -> 0 | Q20: =O20*Q19 -> 0 | R20: =I82 -> 0 | S20: =R20*S19 -> 0 | T20: =R20*T19 -> 0 | U20: =J82 -> 0 | V20: =U20*V19 -> 0 | W20: =U20*W19 -> 0 | X20: =K82 -> 0 | Y20: =X20*Y19 -> 0 | Z20: =X20*Z19 -> 0 | AA20: =L82 -> 0 | AB20: =AA20*AB19 -> 0 | AC20: =AA20*AC19 -> 0
A21: Incremental OM&A (on-going, N/A for Provincial Recovery) | C21: ='App.2-FA Proposed REG Invest.'!C64 -> 0 | D21: =C21 -> 0 | F21: ='App.2-FA Proposed REG Invest.'!D64 -> 0 | G21: =F21 -> 0 | I21: ='App.2-FA Proposed REG Invest.'!E64 -> 0 | J21: =I21 -> 0 | L21: ='App.2-FA Proposed REG Invest.'!F64 -> 0 | M21: =L21 -> 0 | O21: ='App.2-FA Proposed REG Invest.'!G64 -> 0 | P21: =O21 -> 0 | R21: ='App.2-FA Proposed REG Invest.'!H64 -> 0 | S21: =R21 -> 0 | U21: ='App.2-FA Proposed REG Invest.'!I64 -> 0 | V21: =U21 -> 0 | X21: ='App.2-FA Proposed REG Invest.'!J64 -> 0 | Y21: =X21 -> 0 | AA21: ='App.2-FA Proposed REG Invest.'!K64 -> 0 | AB21: =AA21 -> 0
A22: Incremental OM&A (start-up, applicable for Provincial Recovery) | C22: ='App.2-FA Proposed REG Invest.'!C63 -> 0 | D22: =C22*D19 -> 0 | E22: =C22*E19 -> 0 | F22: ='App.2-FA Proposed REG Invest.'!D63 -> 0 | G22: =F22*G19 -> 0 | H22: =F22*H19 -> 0 | I22: ='App.2-FA Proposed REG Invest.'!E63 -> 0 | J22: =I22*J19 -> 0 | K22: =I22*K19 -> 0 | L22: ='App.2-FA Proposed REG Invest.'!F63 -> 0 | M22: =L22*M19 -> 0 | N22: =L22*N19 -> 0 | O22: ='App.2-FA Proposed REG Invest.'!G63 -> 0 | P22: =O22*P19 -> 0 | Q22: =O22*Q19 -> 0 | R22: ='App.2-FA Proposed REG Invest.'!H63 -> 0 | S22: =R22*S19 -> 0 | T22: =R22*T19 -> 0 | U22: ='App.2-FA Proposed REG Invest.'!I63 -> 0 | V22: =U22*V19 -> 0 | W22: =U22*W19 -> 0 | X22: ='App.2-FA Proposed REG Invest.'!J63 -> 0 | Y22: =X22*Y19 -> 0 | Z22: =X22*Z19 -> 0 | AA22: ='App.2-FA Proposed REG Invest.'!K63 -> 0 | AB22: =AA22*AB19 -> 0 | AC22: =AA22*AC19 -> 0
A23: WCA | D23: =(D21+D22)*$B$23 -> 0 | E23: =E22*$B$23 -> 0 | G23: =(G21+G22)*$B$23 -> 0 | H23: =H22*$B$23 -> 0 | J23: =(J21+J22)*$B$23 -> 0 | K23: =K22*$B$23 -> 0 | M23: =(M21+M22)*$B$23 -> 0 | N23: =N22*$B$23 -> 0 | P23: =(P21+P22)*$B$23 -> 0 | Q23: =Q22*$B$23 -> 0 | S23: =(S21+S22)*$B$23 -> 0 | T23: =T22*$B$23 -> 0 | V23: =(V21+V22)*$B$23 -> 0 | W23: =W22*$B$23 -> 0 | Y23: =(Y21+Y22)*$B$23 -> 0 | Z23: =Z22*$B$23 -> 0 | AB23: =(AB21+AB22)*$B$23 -> 0 | AC23: =AC22*$B$23 -> 0
A24: Rate Base | D24: =SUM(D20+D23) -> 0 | E24: =SUM(E20+E23) -> 0 | G24: =SUM(G20+G23) -> 0 | H24: =SUM(H20+H23) -> 0 | J24: =SUM(J20+J23) -> 0 | K24: =SUM(K20+K23) -> 0 | M24: =SUM(M20+M23) -> 0 | N24: =SUM(N20+N23) -> 0 | P24: =SUM(P20+P23) -> 0 | Q24: =SUM(Q20+Q23) -> 0 | S24: =SUM(S20+S23) -> 0 | T24: =SUM(T20+T23) -> 0 | V24: =SUM(V20+V23) -> 0 | W24: =SUM(W20+W23) -> 0 | Y24: =SUM(Y20+Y23) -> 0 | Z24: =SUM(Z20+Z23) -> 0 | AB24: =SUM(AB20+AB23) -> 0 | AC24: =SUM(AC20+AC23) -> 0
A27: Deemed ST Debt | D27: =D24*$B$27 -> 0 | E27: =E24*$B$27 -> 0 | G27: =G24*$B$27 -> 0 | H27: =H24*$B$27 -> 0 | J27: =J24*$B$27 -> 0 | K27: =K24*$B$27 -> 0 | M27: =M24*$B$27 -> 0 | N27: =N24*$B$27 -> 0 | P27: =P24*$B$27 -> 0 | Q27: =Q24*$B$27 -> 0 | S27: =S24*$B$27 -> 0 | T27: =T24*$B$27 -> 0 | V27: =V24*$B$27 -> 0 | W27: =W24*$B$27 -> 0 | Y27: =Y24*$B$27 -> 0 | Z27: =Z24*$B$27 -> 0 | AB27: =AB24*$B$27 -> 0 | AC27: =AC24*$B$27 -> 0
A28: Deemed LT Debt | D28: =D24*$B$28 -> 0 | E28: =E24*$B$28 -> 0 | G28: =G24*$B$28 -> 0 | H28: =H24*$B$28 -> 0 | J28: =J24*$B$28 -> 0 | K28: =K24*$B$28 -> 0 | M28: =M24*$B$28 -> 0 | N28: =N24*$B$28 -> 0 | P28: =P24*$B$28 -> 0 | Q28: =Q24*$B$28 -> 0 | S28: =S24*$B$28 -> 0 | T28: =T24*$B$28 -> 0 | V28: =V24*$B$28 -> 0 | W28: =W24*$B$28 -> 0 | Y28: =Y24*$B$28 -> 0 | Z28: =Z24*$B$28 -> 0 | AB28: =AB24*$B$28 -> 0 | AC28: =AC24*$B$28 -> 0
A29: Deemed Equity | D29: =D24*$B$29 -> 0 | E29: =E24*$B$29 -> 0 | G29: =G24*$B$29 -> 0 | H29: =H24*$B$29 -> 0 | J29: =J24*$B$29 -> 0 | K29: =K24*$B$29 -> 0 | M29: =M24*$B$29 -> 0 | N29: =N24*$B$29 -> 0 | P29: =P24*$B$29 -> 0 | Q29: =Q24*$B$29 -> 0 | S29: =S24*$B$29 -> 0 | T29: =T24*$B$29 -> 0 | V29: =V24*$B$29 -> 0 | W29: =W24*$B$29 -> 0 | Y29: =Y24*$B$29 -> 0 | Z29: =Z24*$B$29 -> 0 | AB29: =AB24*$B$29 -> 0 | AC29: =AC24*$B$29 -> 0
A31: ST Interest | D31: =D27*$B31 -> 0 | E31: =E27*$B31 -> 0 | G31: =G27*$B31 -> 0 | H31: =H27*$B31 -> 0 | J31: =J27*$B31 -> 0 | K31: =K27*$B31 -> 0 | M31: =M27*$B31 -> 0 | N31: =N27*$B31 -> 0 | P31: =P27*$B31 -> 0 | Q31: =Q27*$B31 -> 0 | S31: =S27*$B31 -> 0 | T31: =T27*$B31 -> 0 | V31: =V27*$B31 -> 0 | W31: =W27*$B31 -> 0 | Y31: =Y27*$B31 -> 0 | Z31: =Z27*$B31 -> 0 | AB31: =AB27*$B31 -> 0 | AC31: =AC27*$B31 -> 0
A32: LT Interest | D32: =D28*$B32 -> 0 | E32: 0 | G32: =G28*$B32 -> 0 | H32: 0 | J32: =J28*$B32 -> 0 | K32: 0 | M32: =M28*$B32 -> 0 | N32: 0 | P32: =P28*$B32 -> 0 | Q32: 0 | S32: =S28*$B32 -> 0 | T32: 0 | V32: =V28*$B32 -> 0 | W32: 0 | Y32: =Y28*$B32 -> 0 | Z32: 0 | AB32: =AB28*$B32 -> 0 | AC32: 0
A33: ROE | D33: 0 | E33: 0 | G33: 0 | H33: 0 | J33: 0 | K33: 0 | M33: 0 | N33: 0 | P33: 0 | Q33: 0 | S33: 0 | T33: 0 | V33: 0 | W33: 0 | Y33: 0 | Z33: 0 | AB33: 0 | AC33: 0
A34: Cost of Capital Total | D34: =SUM(D31:D33) -> 0 | E34: =SUM(E31:E33) -> 0 | G34: =SUM(G31:G33) -> 0 | H34: =SUM(H31:H33) -> 0 | J34: =SUM(J31:J33) -> 0 | K34: =SUM(K31:K33) -> 0 | M34: =SUM(M31:M33) -> 0 | N34: =SUM(N31:N33) -> 0 | P34: =SUM(P31:P33) -> 0 | Q34: =SUM(Q31:Q33) -> 0 | S34: =SUM(S31:S33) -> 0 | T34: =SUM(T31:T33) -> 0 | V34: =SUM(V31:V33) -> 0 | W34: =SUM(W31:W33) -> 0 | Y34: =SUM(Y31:Y33) -> 0 | Z34: =SUM(Z31:Z33) -> 0 | AB34: =SUM(AB31:AB33) -> 0 | AC34: =SUM(AC31:AC33) -> 0
A36: OM&A | D36: =D21+D22 -> 0 | E36: =E22 -> 0 | G36: =G21+G22 -> 0 | H36: =H22 -> 0 | J36: =J21+J22 -> 0 | K36: =K22 -> 0 | M36: =M21+M22 -> 0 | N36: =N22 -> 0 | P36: =P21+P22 -> 0 | Q36: =Q22 -> 0 | S36: =S21+S22 -> 0 | T36: =T22 -> 0 | V36: =V21+V22 -> 0 | W36: =W22 -> 0 | Y36: =Y21+Y22 -> 0 | Z36: =Z22 -> 0 | AB36: =AB21+AB22 -> 0 | AC36: =AC22 -> 0
A37: Amortization | C37: =D77 -> 0 | D37: =C37*D$19 -> 0 | E37: =C37*E$19 -> 0 | F37: =E77 -> 0 | G37: =F37*G$19 -> 0 | H37: =F37*H$19 -> 0 | I37: =F77 -> 0 | J37: =I37*J$19 -> 0 | K37: =I37*K$19 -> 0 | L37: =G77 -> 0 | M37: =L37*M$19 -> 0 | N37: =L37*N$19 -> 0 | O37: =H77 -> 0 | P37: =O37*P$19 -> 0 | Q37: =O37*Q$19 -> 0 | R37: =I76+I77 -> 0 | S37: =R37*S$19 -> 0 | T37: =R37*T$19 -> 0 | U37: =J76+J77 -> 0 | V37: =U37*V$19 -> 0 | W37: =U37*W$19 -> 0 | X37: =K76+K77 -> 0 | Y37: =X37*Y$19 -> 0 | Z37: =X37*Z$19 -> 0 | AA37: =L76+L77 -> 0 | AB37: =AA37*AB$19 -> 0 | AC37: =AA37*AC$19 -> 0
A38: Grossed-up PILs | D38: =D65 -> 0 | E38: =E65 -> 0 | G38: =G65 -> 0 | H38: =H65 -> 0 | J38: =J65 -> 0 | K38: =K65 -> 0 | M38: =M65 -> 0 | N38: =N65 -> 0 | P38: =P65 -> 0 | Q38: =Q65 -> 0 | S38: =S65 -> 0 | T38: =T65 -> 0 | V38: =V65 -> 0 | W38: =W65 -> 0 | Y38: =Y65 -> 0 | Z38: =Z65 -> 0 | AB38: =AB65 -> 0 | AC38: =AC65 -> 0
A40: Revenue Requirement | D40: =SUM(D34:D38) -> 0 | E40: =SUM(E34:E38) -> 0 | G40: =SUM(G34:G38) -> 0 | H40: =SUM(H34:H38) -> 0 | J40: =SUM(J34:J38) -> 0 | K40: =SUM(K34:K38) -> 0 | M40: =SUM(M34:M38) -> 0 | N40: =SUM(N34:N38) -> 0 | P40: =SUM(P34:P38) -> 0 | Q40: =SUM(Q34:Q38) -> 0 | S40: =SUM(S34:S38) -> 0 | T40: =SUM(T34:T38) -> 0 | V40: =SUM(V34:V38) -> 0 | W40: =SUM(W34:W38) -> 0 | Y40: =SUM(Y34:Y38) -> 0 | Z40: =SUM(Z34:Z38) -> 0 | AB40: =SUM(AB34:AB38) -> 0 | AC40: =SUM(AC34:AC38) -> 0
A43: Provincial Rate Protection | E43: =E40 -> 0 | H43: =H40 -> 0 | K43: =K40 -> 0 | N43: =N40 -> 0 | Q43: =Q40 -> 0 | T43: =T40 -> 0 | W43: =W40 -> 0 | Z43: =Z40 -> 0 | AC43: =AC40 -> 0
A45: Monthly Amount Paid by IESO | E45: =E43/12 -> 0 | H45: =H43/12 -> 0 | K45: =K43/12 -> 0 | N45: =N43/12 -> 0 | Q45: =Q43/12 -> 0 | T45: =T43/12 -> 0 | W45: =W43/12 -> 0 | Z45: =Z43/12 -> 0 | AC45: =AC43/12 -> 0
A47: Note 1: The difference between the actual costs of approved eligible investments and revenue received from the IESO should be recorded in a variance account. The Board may provide
A48: regulatory accounting guidance regarding a variance account either in an individual proceeding or on a generic basis.
A49: Note 2: For the 2016 Test Year, Costs and Revenues of the Direct Benefit are to be included in the test year applicant Rate Base and Revenues.
A51: PILs Calculation
D52: =C17 -> 2014 | G52: =F17 -> 2015 | J52: =I17 -> 2016 | M52: =L17 -> 2017 | P52: =O17 -> 2018 Test Year | S52: =R17 -> 2019 | V52: =U17 -> 2020 | Y52: =X17 -> 2021 | AB52: =AA17 -> 2022
A53: Income Tax | D53: Direct Benefit | E53: Provincial | G53: Direct Benefit | H53: Provincial | J53: Direct Benefit | K53: Provincial | M53: Direct Benefit | N53: Provincial | P53: Direct Benefit | Q53: Provincial | S53: Direct Benefit | T53: Provincial | V53: Direct Benefit | W53: Provincial | Y53: Direct Benefit | Z53: Provincial | AB53: Direct Benefit | AC53: Provincial
X54: Total | AA54: Total
A55: Net Income - ROE on Rate Base | D55: =D33 -> 0 | E55: =E33 -> 0 | G55: =G33 -> 0 | H55: =H33 -> 0 | J55: =J33 -> 0 | K55: =K33 -> 0 | M55: =M33 -> 0 | N55: =N33 -> 0 | P55: =P33 -> 0 | Q55: =Q33 -> 0 | S55: =S33 -> 0 | T55: =T33 -> 0 | V55: =V33 -> 0 | W55: =W33 -> 0 | Y55: =Y33 -> 0 | Z55: =Z33 -> 0 | AB55: =AB33 -> 0 | AC55: =AC33 -> 0
A56: Amortization (6% DB and 94% P) | D56: =D37 -> 0 | E56: =E37 -> 0 | G56: =G37 -> 0 | H56: =H37 -> 0 | J56: =J37 -> 0 | K56: =K37 -> 0 | M56: =M37 -> 0 | N56: =N37 -> 0 | P56: =P37 -> 0 | Q56: =Q37 -> 0 | S56: =S37 -> 0 | T56: =T37 -> 0 | V56: =V37 -> 0 | W56: =W37 -> 0 | Y56: =Y37 -> 0 | Z56: =Z37 -> 0 | AB56: =AB37 -> 0 | AC56: =AC37 -> 0
A57: CCA (6% DB and 94% P) | D57: =-D94*D$19 -> 0 | E57: =-D94*E$19 -> 0 | G57: =-E94*G19 -> 0 | H57: =-E94*H$19 -> 0 | J57: =-F94*J$19 -> 0 | K57: =-F94*K$19 -> 0 | M57: =-G94*M$19 -> 0 | N57: =-G94*N$19 -> 0 | P57: =-H94*P$19 -> 0 | Q57: =-H94*Q$19 -> 0 | S57: =-I94*S$19 -> 0 | T57: =-I94*T$19 -> 0 | V57: =-J94*V$19 -> 0 | W57: =-J94*W$19 -> 0 | Y57: =-K94*Y$19 -> 0 | Z57: =-K94*Z$19 -> 0 | AB57: =-L94*AB$19 -> 0 | AC57: =-L94*AC$19 -> 0
A58: Taxable income | D58: =SUM(D55:D57) -> 0 | E58: =SUM(E55:E57) -> 0 | G58: =SUM(G55:G57) -> 0 | H58: =SUM(H55:H57) -> 0 | J58: =SUM(J55:J57) -> 0 | K58: =SUM(K55:K57) -> 0 | M58: =SUM(M55:M57) -> 0 | N58: =SUM(N55:N57) -> 0 | P58: =SUM(P55:P57) -> 0 | Q58: =SUM(Q55:Q57) -> 0 | S58: =SUM(S55:S57) -> 0 | T58: =SUM(T55:T57) -> 0 | V58: =SUM(V55:V57) -> 0 | W58: =SUM(W55:W57) -> 0 | Y58: =SUM(Y55:Y57) -> 0 | Z58: =SUM(Z55:Z57) -> 0 | AB58: =SUM(AB55:AB57) -> 0 | AC58: =SUM(AC55:AC57) -> 0
A60: Tax Rate (to be entered)
A62: Income Taxes Payable | D62: =D58*D60 -> 0 | E62: =E58*E60 -> 0 | G62: =G58*G60 -> 0 | H62: =H58*H60 -> 0 | J62: =J58*J60 -> 0 | K62: =K58*K60 -> 0 | M62: =M58*M60 -> 0 | N62: =N58*N60 -> 0 | P62: =P58*P60 -> 0 | Q62: =Q58*Q60 -> 0 | S62: =S58*S60 -> 0 | T62: =T58*T60 -> 0 | V62: =V58*V60 -> 0 | W62: =W58*W60 -> 0 | Y62: =Y58*Y60 -> 0 | Z62: =Z58*Z60 -> 0 | AB62: =AB58*AB60 -> 0 | AC62: =AC58*AC60 -> 0
A63: Gross Up
A64: Income Taxes Payable | D64: =D62/(1-D60) -> 0 | E64: =E62/(1-E60) -> 0 | G64: =G62/(1-G60) -> 0 | H64: =H62/(1-H60) -> 0 | J64: =J62/(1-J60) -> 0 | K64: =K62/(1-K60) -> 0 | M64: =M62/(1-M60) -> 0 | N64: =N62/(1-N60) -> 0 | P64: =P62/(1-P60) -> 0 | Q64: =Q62/(1-Q60) -> 0 | S64: =S62/(1-S60) -> 0 | T64: =T62/(1-T60) -> 0 | V64: =V62/(1-V60) -> 0 | W64: =W62/(1-W60) -> 0 | Y64: =Y62/(1-Y60) -> 0 | Z64: =Z62/(1-Z60) -> 0 | AB64: =AB62/(1-AB60) -> 0 | AC64: =AC62/(1-AC60) -> 0
A65: Grossed Up PILs | D65: =SUM(D64:D64) -> 0 | E65: =SUM(E64:E64) -> 0 | G65: =SUM(G64:G64) -> 0 | H65: =SUM(H64:H64) -> 0 | J65: =SUM(J64:J64) -> 0 | K65: =SUM(K64:K64) -> 0 | M65: =SUM(M64:M64) -> 0 | N65: =SUM(N64:N64) -> 0 | P65: =SUM(P64:P64) -> 0 | Q65: =SUM(Q64:Q64) -> 0 | S65: =SUM(S64:S64) -> 0 | T65: =SUM(T64:T64) -> 0 | V65: =SUM(V64:V64) -> 0 | W65: =SUM(W64:W64) -> 0 | Y65: =SUM(Y64:Y64) -> 0 | Z65: =SUM(Z64:Z64) -> 0 | AB65: =SUM(AB64:AB64) -> 0 | AC65: =SUM(AC64:AC64) -> 0
D68: =E68-1 -> 2014 | E68: =F68-1 -> 2015 | F68: =G68-1 -> 2016 | G68: =H68-1 -> 2017 | H68: =TestYear -> 2018 | I68: =H68+1 -> 2019 | J68: =I68+1 -> 2020 | K68: =J68+1 -> 2021 | L68: =K68+1 -> 2022
A69: Net Fixed Assets
B70: Enter applicable amortization in years: | C70: 25
A71: Opening Gross Fixed Assets | E71: =D73 -> 0 | F71: 0 | G71: 0 | H71: 0 | I71: =H73 -> 0 | J71: =I73 -> 0 | K71: =J73 -> 0 | L71: =K73 -> 0
A72: Gross Capital Additions | D72: ='App.2-FA Proposed REG Invest.'!C62 -> 0 | E72: ='App.2-FA Proposed REG Invest.'!D62 -> 0 | F72: ='App.2-FA Proposed REG Invest.'!E62 -> 0 | G72: ='App.2-FA Proposed REG Invest.'!F62 -> 0 | H72: ='App.2-FA Proposed REG Invest.'!G62 -> 0 | I72: ='App.2-FA Proposed REG Invest.'!H62 -> 0 | J72: ='App.2-FA Proposed REG Invest.'!I62 -> 0 | K72: ='App.2-FA Proposed REG Invest.'!J62 -> 0 | L72: ='App.2-FA Proposed REG Invest.'!K62 -> 0
A73: Closing Gross Fixed Assets | D73: =SUM(D71:D72) -> 0 | E73: 0 | F73: 0 | G73: 0 | H73: =SUM(H71:H72) -> 0 | I73: =SUM(I71:I72) -> 0 | J73: 0 | K73: 0 | L73: 0
A75: Opening Accumulated Amortization | E75: =+D78 -> 0 | F75: =E78 -> 0 | G75: 0 | H75: 0 | I75: 0 | J75: 0 | K75: 0 | L75: 0
A76: Current Year Amortization (before additions) | D76: =IF(ISERROR(D71/$C$70), 0, D71/$C$70) -> 0 | E76: 0 | F76: 0 | G76: 0 | H76: 0 | I76: =IF(ISERROR(I71/$C$70), 0, I71/$C$70) -> 0 | J76: =IF(ISERROR(J71/$C$70), 0, J71/$C$70) -> 0 | K76: =IF(ISERROR(K71/$C$70), 0, K71/$C$70) -> 0 | L76: =IF(ISERROR(L71/$C$70), 0, L71/$C$70) -> 0
A77: Additions (half year) | D77: =D72/$C$70/2 -> 0 | E77: =E72/$C$70/2 -> 0 | F77: =F72/$C$70/2 -> 0 | G77: 0 | H77: =H72/$C$70/2 -> 0 | I77: =I72/C70/2 -> 0 | J77: =J72/C70/2 -> 0 | K77: =K72/C70/2 -> 0 | L77: =L72/C70/2 -> 0
A78: Closing Accumulated Amortization | D78: =SUM(D75+D76+D77) -> 0 | E78: =SUM(E75+E76+E77) -> 0 | F78: =SUM(F75+F76+F77) -> 0 | G78: =SUM(G75+G76+G77) -> 0 | H78: =SUM(H75+H76+H77) -> 0 | I78: =SUM(I75:I77) -> 0 | J78: =SUM(J75:J77) -> 0 | K78: =SUM(K75:K77) -> 0 | L78: =SUM(L75:L77) -> 0
A80: Opening Net Fixed Assets | D80: =D71-D75 -> 0 | E80: 0 | F80: =F71-F75 -> 0 | G80: 0 | H80: =H71-H75 -> 0 | I80: =H81 -> 0 | J80: =I81 -> 0 | K80: =J81 -> 0 | L80: =K81 -> 0
A81: Closing Net Fixed Assets | D81: =D73-D78 -> 0 | E81: =E73-E78 -> 0 | F81: 0 | G81: 0 | H81: =H73-H78 -> 0 | I81: =I73-I78 -> 0 | J81: =J73-J78 -> 0 | K81: =K73-K78 -> 0 | L81: =L73-L78 -> 0
A82: Average Net Fixed Assets | D82: =SUM(D80:D81)/2 -> 0 | E82: 0 | F82: 0 | G82: 0 | H82: =SUM(H80:H81)/2 -> 0 | I82: =SUM(I80:I81)/2 -> 0 | J82: =SUM(J80:J81)/2 -> 0 | K82: =SUM(K80:K81)/2 -> 0 | L82: =SUM(L80:L81)/2 -> 0
A84: UCC for PILs Calculation
D85: =D68 -> 2014 | E85: =E68 -> 2015 | F85: 2016 | G85: 2017 | H85: 2018 | I85: 2019 | J85: 2020 | K85: 2021 | L85: 2022
A87: Opening UCC | E87: =D95 -> 0 | F87: 0 | G87: 0 | H87: 0 | I87: 0 | J87: 0 | K87: 0 | L87: 0
A88: Capital Additions (from Appendix 2-FA) | D88: =D72 -> 0 | E88: 0 | F88: 0 | G88: 0 | H88: =H72 -> 0 | I88: =I72 -> 0 | J88: 0 | K88: 0 | L88: 0
A89: UCC Before Half Year Rule | D89: =SUM(D87:D88) -> 0 | E89: 0 | F89: 0 | G89: 0 | H89: =SUM(H87:H88) -> 0 | I89: =SUM(I87:I88) -> 0 | J89: =SUM(J87:J88) -> 0 | K89: =SUM(K87:K88) -> 0 | L89: =SUM(L87:L88) -> 0
A90: Half Year Rule (1/2 Additions - Disposals) | D90: =D88/2 -> 0 | E90: 0 | F90: 0 | G90: 0 | H90: =H88/2 -> 0 | I90: =I88/2 -> 0 | J90: =J88/2 -> 0 | K90: =K88/2 -> 0 | L90: =L88/2 -> 0
A91: Reduced UCC | D91: =D89-D90 -> 0 | E91: 0 | F91: 0 | G91: 0 | H91: =H89-H90 -> 0 | I91: =I89-I90 -> 0 | J91: =J89-J90 -> 0 | K91: =K89-K90 -> 0 | L91: =L89-L90 -> 0
A92: CCA Rate Class (to be entered) | C92: 47 | D92: =C92 -> 47 | E92: =D92 -> 47 | F92: 47 | G92: 47 | H92: 47 | I92: 47 | J92: 47 | K92: 47 | L92: 47
A93: CCA Rate (to be entered) | C93: 0.08 | D93: =C93 -> 0.08 | E93: 0.08 | F93: 0.08 | G93: 0.08 | H93: 0.08 | I93: 0.08 | J93: 0.08 | K93: 0.08 | L93: 0.08
A94: CCA | D94: =D91*D93 -> 0 | E94: 0 | F94: 0 | G94: 0 | H94: =H91*H93 -> 0 | I94: =I91*I93 -> 0 | J94: 0 | K94: 0 | L94: =L91*L93 -> 0
A95: Closing UCC | D95: =D89-D94 -> 0 | E95: 0 | F95: 0 | G95: 0 | H95: =H89-H94 -> 0 | I95: =I89-I94 -> 0 | J95: =J89-J94 -> 0 | K95: =K89-K94 -> 0 | L95: =L89-L94 -> 0

Sheet App.2-FC Calc of REG Expansion
A1: MRS: Not Required | N1: File Number: | O1: =EBNUMBER -> EB-2017-0084
N2: Exhibit:
N3: Tab:
N4: Schedule:
N5: Page:
N7: Date:
A9: Appendix 2-FC
A10: Calculation of Renewable Generation Connection Direct Benefits/Provincial Amount: Renewable Expansion Investments
A12: This table will calculate the distributor/provincial shares of the investments entered in Part B of Appendix 2-FA.
A13: Enter values in green shaded cells: WCA percentage, debt percentages, interest rates, kWh, tax rates, amortization period, CCA Class and percentage.
A14: For historical investments, enter these variables for your last cost of service test year. For 2016 and beyond, enter variables as in the application.
A15: Rate Riders are not calculated for the Test Year as these assets and costs are already in the distributor's rate base.
D18: =G18-1 -> 2014 | G18: =J18-1 -> 2015 | J18: =M18-1 -> 2016 | M18: =BridgeYear -> 2017 | P18: =CONCATENATE(TestYear," Test Year") -> 2018 Test Year | S18: =TestYear+1 -> 2019 | T18: 2016 | V18: =S18+1 -> 2020 | Y18: =V18+1 -> 2021 | AB18: =Y18+1 -> 2022
E19: Direct Benefit | F19: Provincial | H19: Direct Benefit | I19: Provincial | K19: Direct Benefit | L19: Provincial | N19: Direct Benefit | O19: Provincial | Q19: Direct Benefit | R19: Provincial | T19: Direct Benefit | U19: Provincial | W19: Direct Benefit | X19: Provincial | Z19: Direct Benefit | AA19: Provincial | AC19: Direct Benefit | AD19: Provincial
D20: Total | E20: 0.17 | F20: 0.83 | G20: Total | H20: 0.17 | I20: 0.83 | J20: Total | K20: 0.17 | L20: 0.83 | M20: Total | N20: 0.17 | O20: 0.83 | P20: Total | Q20: 0.17 | R20: 0.83 | S20: Total | T20: 0.17 | U20: 0.83 | V20: Total | W20: 0.17 | X20: 0.83 | Y20: Total | Z20: 0.17 | AA20: 0.83 | AB20: Total | AC20: 0.17 | AD20: 0.83
A21: Net Fixed Assets (average) | D21: =D82 -> 0 | E21: =D21*E20 -> 0 | F21: =D21*F20 -> 0 | G21: =E82 -> 0 | H21: =G21*H20 -> 0 | I21: =G21*I20 -> 0 | J21: =F82 -> 0 | K21: =J21*K20 -> 0 | L21: =J21*L20 -> 0 | M21: =G82 -> 0 | N21: =M21*N20 -> 0 | O21: =M21*O20 -> 0 | P21: =H82 -> 0 | Q21: =P21*Q20 -> 0 | R21: =P21*R20 -> 0 | S21: =I82 -> 0 | T21: =S21*T20 -> 0 | U21: =S21*U20 -> 0 | V21: =J82 -> 0 | W21: =V21*W20 -> 0 | X21: =V21*X20 -> 0 | Y21: =K82 -> 0 | Z21: =Y21*Z20 -> 0 | AA21: =Y21*AA20 -> 0 | AB21: =L82 -> 0 | AC21: =AB21*AC20 -> 0 | AD21: =AB21*AD20 -> 0
A22: Incremental OM&A (on-going, N/A for Provincial Recovery) | D22: ='App.2-FA Proposed REG Invest.'!C101 -> 0 | E22: =D22 -> 0 | G22: ='App.2-FA Proposed REG Invest.'!D$101 -> 0 | H22: =G22 -> 0 | J22: ='App.2-FA Proposed REG Invest.'!E$101 -> 0 | K22: =J22 -> 0 | M22: ='App.2-FA Proposed REG Invest.'!F$101 -> 0 | N22: =M22 -> 0 | P22: ='App.2-FA Proposed REG Invest.'!G$101 -> 0 | Q22: =P22 -> 0 | S22: ='App.2-FA Proposed REG Invest.'!H$101 -> 0 | T22: =S22 -> 0 | V22: ='App.2-FA Proposed REG Invest.'!I$101 -> 0 | W22: =V22 -> 0 | Y22: ='App.2-FA Proposed REG Invest.'!J$101 -> 0 | Z22: =Y22 -> 0 | AB22: ='App.2-FA Proposed REG Invest.'!K$101 -> 0 | AC22: =AB22 -> 0
A23: Incremental OM&A (start-up, applicable for Provincial Recovery) | D23: ='App.2-FA Proposed REG Invest.'!C100 -> 0 | E23: =D23*E20 -> 0 | F23: =D23*F20 -> 0 | G23: ='App.2-FA Proposed REG Invest.'!D$100 -> 0 | H23: =G23*H20 -> 0 | I23: =G23*I20 -> 0 | J23: ='App.2-FA Proposed REG Invest.'!E$100 -> 0 | K23: =J23*K20 -> 0 | L23: =J23*L20 -> 0 | M23: ='App.2-FA Proposed REG Invest.'!F$100 -> 0 | N23: =M23*N20 -> 0 | O23: =M23*O20 -> 0 | P23: ='App.2-FA Proposed REG Invest.'!G$100 -> 0 | Q23: =P23*Q20 -> 0 | R23: =P23*R20 -> 0 | S23: ='App.2-FA Proposed REG Invest.'!H$100 -> 0 | T23: =S23*T20 -> 0 | U23: =S23*U20 -> 0 | V23: ='App.2-FA Proposed REG Invest.'!I$100 -> 0 | W23: =V23*W20 -> 0 | X23: =V23*X20 -> 0 | Y23: ='App.2-FA Proposed REG Invest.'!J$100 -> 0 | Z23: =Y23*Z20 -> 0 | AA23: =Y23*AA20 -> 0 | AB23: ='App.2-FA Proposed REG Invest.'!K$100 -> 0 | AC23: =AB23*AC20 -> 0 | AD23: =AB23*AD20 -> 0
A24: WCA | E24: =(E22+E23)*$B$24 -> 0 | F24: =F23*$B$24 -> 0 | H24: =(H22+H23)*$B$24 -> 0 | I24: =I23*$B$24 -> 0 | K24: =(K22+K23)*$B$24 -> 0 | L24: =L23*$B$24 -> 0 | N24: =(N22+N23)*$B$24 -> 0 | O24: =O23*$B$24 -> 0 | Q24: =(Q22+Q23)*$B$24 -> 0 | R24: =R23*$B$24 -> 0 | T24: =(T22+T23)*$B$24 -> 0 | U24: =U23*$B$24 -> 0 | W24: =(W22+W23)*$B$24 -> 0 | X24: =X23*$B$24 -> 0 | Z24: =(Z22+Z23)*$B$24 -> 0 | AA24: =AA23*$B$24 -> 0 | AC24: =(AC22+AC23)*$B$24 -> 0 | AD24: =AD23*$B$24 -> 0
A25: Rate Base | E25: =SUM(E21+E24) -> 0 | F25: =SUM(F21+F24) -> 0 | H25: =SUM(H21+H24) -> 0 | I25: =SUM(I21+I24) -> 0 | K25: =SUM(K21+K24) -> 0 | L25: =SUM(L21+L24) -> 0 | N25: =SUM(N21+N24) -> 0 | O25: =SUM(O21+O24) -> 0 | Q25: =SUM(Q21+Q24) -> 0 | R25: =SUM(R21+R24) -> 0 | T25: =SUM(T21+T24) -> 0 | U25: =SUM(U21+U24) -> 0 | W25: =SUM(W21+W24) -> 0 | X25: =SUM(X21+X24) -> 0 | Z25: =SUM(Z21+Z24) -> 0 | AA25: =SUM(AA21+AA24) -> 0 | AC25: =SUM(AC21+AC24) -> 0 | AD25: =SUM(AD21+AD24) -> 0
A28: Deemed ST Debt | E28: =E25*$B$28 -> 0 | F28: =F25*$B$28 -> 0 | H28: =H25*$B$28 -> 0 | I28: =I25*$B$28 -> 0 | K28: =K25*$B$28 -> 0 | L28: =L25*$B$28 -> 0 | N28: =N25*$B$28 -> 0 | O28: =O25*$B$28 -> 0 | Q28: =Q25*$B$28 -> 0 | R28: =R25*$B$28 -> 0 | T28: =T25*$B$28 -> 0 | U28: =U25*$B$28 -> 0 | W28: =W25*$B$28 -> 0 | X28: =X25*$B$28 -> 0 | Z28: =Z25*$B$28 -> 0 | AA28: =AA25*$B$28 -> 0 | AC28: =AC25*$B$28 -> 0 | AD28: =AD25*$B$28 -> 0
A29: Deemed LT Debt | E29: =E25*$B$29 -> 0 | F29: =F25*$B$29 -> 0 | H29: =H25*$B$29 -> 0 | I29: =I25*$B$29 -> 0 | K29: =K25*$B$29 -> 0 | L29: =L25*$B$29 -> 0 | N29: =N25*$B$29 -> 0 | O29: =O25*$B$29 -> 0 | Q29: =Q25*$B$29 -> 0 | R29: =R25*$B$29 -> 0 | T29: =T25*$B$29 -> 0 | U29: =U25*$B$29 -> 0 | W29: =W25*$B$29 -> 0 | X29: =X25*$B$29 -> 0 | Z29: =Z25*$B$29 -> 0 | AA29: =AA25*$B$29 -> 0 | AC29: =AC25*$B$29 -> 0 | AD29: =AD25*$B$29 -> 0
A30: Deemed Equity | E30: =E25*$B$30 -> 0 | F30: =F25*$B$30 -> 0 | H30: =H25*$B$30 -> 0 | I30: =I25*$B$30 -> 0 | K30: =K25*$B$30 -> 0 | L30: =L25*$B$30 -> 0 | N30: =N25*$B$30 -> 0 | O30: =O25*$B$30 -> 0 | Q30: =Q25*$B$30 -> 0 | R30: =R25*$B$30 -> 0 | T30: =T25*$B$30 -> 0 | U30: =U25*$B$30 -> 0 | W30: =W25*$B$30 -> 0 | X30: =X25*$B$30 -> 0 | Z30: =Z25*$B$30 -> 0 | AA30: =AA25*$B$30 -> 0 | AC30: =AC25*$B$30 -> 0 | AD30: =AD25*$B$30 -> 0
A32: ST Interest | E32: =E28*$B$32 -> 0 | F32: =F28*$B$32 -> 0 | H32: =H28*$B$32 -> 0 | I32: =I28*$B$32 -> 0 | K32: =K28*$B$32 -> 0 | L32: =L28*$B$32 -> 0 | N32: =N28*$B$32 -> 0 | O32: =O28*$B$32 -> 0 | Q32: =Q28*$B$32 -> 0 | R32: =R28*$B$32 -> 0 | T32: =T28*$B$32 -> 0 | U32: =U28*$B$32 -> 0 | W32: =W28*$B$32 -> 0 | X32: =X28*$B$32 -> 0 | Z32: =Z28*$B$32 -> 0 | AA32: =AA28*$B$32 -> 0 | AC32: =AC28*$B$32 -> 0 | AD32: =AD28*$B$32 -> 0
A33: LT Interest | E33: =E29*$B$33 -> 0 | F33: =F29*$B$33 -> 0 | H33: =H29*$B$33 -> 0 | I33: =I29*$B$33 -> 0 | K33: =K29*$B$33 -> 0 | L33: =L29*$B$33 -> 0 | N33: =N29*$B$33 -> 0 | O33: =O29*$B$33 -> 0 | Q33: =Q29*$B$33 -> 0 | R33: =R29*$B$33 -> 0 | T33: =T29*$B$33 -> 0 | U33: =U29*$B$33 -> 0 | W33: =W29*$B$33 -> 0 | X33: =X29*$B$33 -> 0 | Z33: =Z29*$B$33 -> 0 | AA33: =AA29*$B$33 -> 0 | AC33: =AC29*$B$33 -> 0 | AD33: =AD29*$B$33 -> 0
A34: ROE | E34: =E30*$B$34 -> 0 | F34: =F30*$B$34 -> 0 | H34: =H30*$B$34 -> 0 | I34: =I30*$B$34 -> 0 | K34: =K30*$B$34 -> 0 | L34: =L30*$B$34 -> 0 | N34: =N30*$B$34 -> 0 | O34: =O30*$B$34 -> 0 | Q34: =Q30*$B$34 -> 0 | R34: =R30*$B$34 -> 0 | T34: =T30*$B$34 -> 0 | U34: =U30*$B$34 -> 0 | W34: =W30*$B$34 -> 0 | X34: =X30*$B$34 -> 0 | Z34: =Z30*$B$34 -> 0 | AA34: =AA30*$B$34 -> 0 | AC34: =AC30*$B$34 -> 0 | AD34: =AD30*$B$34 -> 0
A35: Cost of Capital Total | E35: =SUM(E32:E34) -> 0 | F35: =SUM(F32:F34) -> 0 | H35: =SUM(H32:H34) -> 0 | I35: =SUM(I32:I34) -> 0 | K35: =SUM(K32:K34) -> 0 | L35: =SUM(L32:L34) -> 0 | N35: =SUM(N32:N34) -> 0 | O35: =SUM(O32:O34) -> 0 | Q35: =SUM(Q32:Q34) -> 0 | R35: =SUM(R32:R34) -> 0 | T35: =SUM(T32:T34) -> 0 | U35: =SUM(U32:U34) -> 0 | W35: =SUM(W32:W34) -> 0 | X35: =SUM(X32:X34) -> 0 | Z35: =SUM(Z32:Z34) -> 0 | AA35: =SUM(AA32:AA34) -> 0 | AC35: =SUM(AC32:AC34) -> 0 | AD35: =SUM(AD32:AD34) -> 0
A37: OM&A | E37: =E22+E23 -> 0 | F37: =F23 -> 0 | H37: =H22+H23 -> 0 | I37: =I23 -> 0 | K37: =K22+K23 -> 0 | L37: =L23 -> 0 | N37: =N22+N23 -> 0 | O37: =O23 -> 0 | Q37: =Q22+Q23 -> 0 | R37: =R23 -> 0 | T37: =T22+T23 -> 0 | U37: =U23 -> 0 | W37: =W22+W23 -> 0 | X37: =X23 -> 0 | Z37: =Z22+Z23 -> 0 | AA37: =AA23 -> 0 | AC37: =AC22+AC23 -> 0 | AD37: =AD23 -> 0
A38: Amortization | D38: =D78 -> 0 | E38: =D38*E$20 -> 0 | F38: =D38*F$20 -> 0 | G38: =E78 -> 0 | H38: =G38*H$20 -> 0 | I38: =G38*I$20 -> 0 | J38: =F78 -> 0 | K38: =J38*K$20 -> 0 | L38: =J38*L$20 -> 0 | M38: =G78 -> 0 | N38: =M38*N$20 -> 0 | O38: =M38*O$20 -> 0 | P38: =H76+H77 -> 0 | Q38: =P38*Q$20 -> 0 | R38: =P38*R$20 -> 0 | S38: =I76+I77 -> 0 | T38: =S38*T$20 -> 0 | U38: =S38*U$20 -> 0 | V38: =J76+J77 -> 0 | W38: =V38*W$20 -> 0 | X38: =V38*X$20 -> 0 | Y38: =K76+K77 -> 0 | Z38: =Y38*Z$20 -> 0 | AA38: =Y38*AA$20 -> 0 | AB38: =L76+L77 -> 0 | AC38: =AB38*AC$20 -> 0 | AD38: =AB38*AD$20 -> 0
A39: Grossed-up PILs | E39: =E66 -> 0 | F39: =F66 -> 0 | H39: =H66 -> 0 | I39: =I66 -> 0 | K39: =K66 -> 0 | L39: =L66 -> 0 | N39: =N66 -> 0 | O39: =O66 -> 0 | Q39: =Q66 -> 0 | R39: =R66 -> 0 | T39: =T66 -> 0 | U39: =U66 -> 0 | W39: =W66 -> 0 | X39: =X66 -> 0 | Z39: =Z66 -> 0 | AA39: =AA66 -> 0 | AC39: =AC66 -> 0 | AD39: =AD66 -> 0
A41: Revenue Requirement | E41: =SUM(E35:E39) -> 0 | F41: =SUM(F35:F39) -> 0 | H41: =SUM(H35:H39) -> 0 | I41: =SUM(I35:I39) -> 0 | K41: =SUM(K35:K39) -> 0 | L41: =SUM(L35:L39) -> 0 | N41: =SUM(N35:N39) -> 0 | O41: =SUM(O35:O39) -> 0 | Q41: =SUM(Q35:Q39) -> 0 | R41: =SUM(R35:R39) -> 0 | T41: =SUM(T35:T39) -> 0 | U41: =SUM(U35:U39) -> 0 | W41: =SUM(W35:W39) -> 0 | X41: =SUM(X35:X39) -> 0 | Z41: =SUM(Z35:Z39) -> 0 | AA41: =SUM(AA35:AA39) -> 0 | AC41: =SUM(AC35:AC39) -> 0 | AD41: =SUM(AD35:AD39) -> 0
A44: Provincial Rate Protection | F44: =F41 -> 0 | I44: =I41 -> 0 | L44: =L41 -> 0 | O44: =O41 -> 0 | R44: =R41 -> 0 | U44: =U41 -> 0 | X44: =X41 -> 0 | AA44: =AA41 -> 0 | AD44: =AD41 -> 0
A46: Monthly Amount Paid by IESO | F46: =F44/12 -> 0 | I46: =I44/12 -> 0 | L46: =L44/12 -> 0 | O46: =O44/12 -> 0 | R46: =R44/12 -> 0 | U46: =U44/12 -> 0 | X46: =X44/12 -> 0 | AA46: =AA44/12 -> 0 | AD46: =AD44/12 -> 0
A48: Note 1: The difference between the actual costs of approved eligible investments and revenue received from the IESO should be recorded in a variance account. The Board may provide
A49: regulatory accounting guidance regarding a variance account either in an individual proceeding or on a generic basis.
A50: Note 2: For the 2016 Test Year, Costs and Revenues of the Direct Benefit are to be included in the test year applicant Rate Base and Revenues.
A52: PILs Calculation
E53: =D18 -> 2014 | H53: =G18 -> 2015 | K53: =J18 -> 2016 | N53: =M18 -> 2017 | Q53: =P18 -> 2018 Test Year | T53: =S18 -> 2019 | W53: =V18 -> 2020 | Z53: =Y18 -> 2021 | AC53: =AB18 -> 2022
A54: Income Tax | E54: Direct Benefit | F54: Provincial | H54: Direct Benefit | I54: Provincial | K54: Direct Benefit | L54: Provincial | N54: Direct Benefit | O54: Provincial | Q54: Direct Benefit | R54: Provincial | T54: Direct Benefit | U54: Provincial | W54: Direct Benefit | X54: Provincial | Z54: Direct Benefit | AA54: Provincial | AC54: Direct Benefit | AD54: Provincial
V55: Total | Y55: Total | AB55: Total
A56: Net Income - ROE on Rate Base | E56: =E34 -> 0 | F56: =F34 -> 0 | H56: =H34 -> 0 | I56: =I34 -> 0 | K56: =K34 -> 0 | L56: =L34 -> 0 | N56: =N34 -> 0 | O56: =O34 -> 0 | Q56: =Q34 -> 0 | R56: =R34 -> 0 | T56: =T34 -> 0 | U56: =U34 -> 0 | W56: =W34 -> 0 | X56: =X34 -> 0 | Z56: =Z34 -> 0 | AA56: =AA34 -> 0 | AC56: =AC34 -> 0 | AD56: =AD34 -> 0
A57: Amortization (17% DB and 83% P) | E57: =E38 -> 0 | F57: =F38 -> 0 | H57: =H38 -> 0 | I57: =I38 -> 0 | K57: =K38 -> 0 | L57: =L38 -> 0 | N57: =N38 -> 0 | O57: =O38 -> 0 | Q57: =Q38 -> 0 | R57: =R38 -> 0 | T57: =T38 -> 0 | U57: =U38 -> 0 | W57: =W38 -> 0 | X57: =X38 -> 0 | Z57: =Z38 -> 0 | AA57: =AA38 -> 0 | AC57: =AC38 -> 0 | AD57: =AD38 -> 0
A58: CCA (17% DB and 83% P) | E58: =-D94*E$20 -> 0 | F58: =-D94*F$20 -> 0 | H58: =-E94*H$20 -> 0 | I58: =-E94*I$20 -> 0 | K58: =-F94*K$20 -> 0 | L58: =-F94*L$20 -> 0 | N58: =-G94*N$20 -> 0 | O58: =-G94*O$20 -> 0 | Q58: =-H94*Q$20 -> 0 | R58: =-H94*R$20 -> 0 | T58: =-I94*T$20 -> 0 | U58: =-I94*U$20 -> 0 | W58: =-J94*W$20 -> 0 | X58: =-J94*X$20 -> 0 | Z58: =-K94*Z$20 -> 0 | AA58: =-K94*AA$20 -> 0 | AC58: =-L94*AC$20 -> 0 | AD58: =-L94*AD$20 -> 0
A59: Taxable income | E59: =SUM(E56:E58) -> 0 | F59: =SUM(F56:F58) -> 0 | H59: =SUM(H56:H58) -> 0 | I59: =SUM(I56:I58) -> 0 | K59: =SUM(K56:K58) -> 0 | L59: =SUM(L56:L58) -> 0 | N59: =SUM(N56:N58) -> 0 | O59: =SUM(O56:O58) -> 0 | Q59: =SUM(Q56:Q58) -> 0 | R59: =SUM(R56:R58) -> 0 | T59: =SUM(T56:T58) -> 0 | U59: =SUM(U56:U58) -> 0 | W59: =SUM(W56:W58) -> 0 | X59: =SUM(X56:X58) -> 0 | Z59: =SUM(Z56:Z58) -> 0 | AA59: =SUM(AA56:AA58) -> 0 | AC59: =SUM(AC56:AC58) -> 0 | AD59: =SUM(AD56:AD58) -> 0
A61: Tax Rate (to be entered)
A63: Income Taxes Payable | E63: =E59*E61 -> 0 | F63: =F59*F61 -> 0 | H63: =H59*H61 -> 0 | I63: =I59*I61 -> 0 | K63: =K59*K61 -> 0 | L63: =L59*L61 -> 0 | N63: =N59*N61 -> 0 | O63: =O59*O61 -> 0 | Q63: =Q59*Q61 -> 0 | R63: =R59*R61 -> 0 | T63: =T59*T61 -> 0 | U63: =U59*U61 -> 0 | W63: =W59*W61 -> 0 | X63: =X59*X61 -> 0 | Z63: =Z59*Z61 -> 0 | AA63: =AA59*AA61 -> 0 | AC63: =AC59*AC61 -> 0 | AD63: =AD59*AD61 -> 0
A64: Gross Up
A65: Income Taxes Payable | E65: =E63/(1-E61) -> 0 | F65: =F63/(1-F61) -> 0 | H65: =H63/(1-H61) -> 0 | I65: =I63/(1-I61) -> 0 | K65: =K63/(1-K61) -> 0 | L65: =L63/(1-L61) -> 0 | N65: =N63/(1-N61) -> 0 | O65: =O63/(1-O61) -> 0 | Q65: =Q63/(1-Q61) -> 0 | R65: =R63/(1-R61) -> 0 | T65: =T63/(1-T61) -> 0 | U65: =U63/(1-U61) -> 0 | W65: =W63/(1-W61) -> 0 | X65: =X63/(1-X61) -> 0 | Z65: =Z63/(1-Z61) -> 0 | AA65: =AA63/(1-AA61) -> 0 | AC65: =AC63/(1-AC61) -> 0 | AD65: =AD63/(1-AD61) -> 0
A66: Grossed Up PILs | E66: =SUM(E65:E65) -> 0 | F66: =SUM(F65:F65) -> 0 | H66: =SUM(H65:H65) -> 0 | I66: =SUM(I65:I65) -> 0 | K66: =SUM(K65:K65) -> 0 | L66: =SUM(L65:L65) -> 0 | N66: =SUM(N65:N65) -> 0 | O66: =SUM(O65:O65) -> 0 | Q66: =SUM(Q65:Q65) -> 0 | R66: =SUM(R65:R65) -> 0 | T66: =SUM(T65:T65) -> 0 | U66: =SUM(U65:U65) -> 0 | W66: =SUM(W65:W65) -> 0 | X66: =SUM(X65:X65) -> 0 | Z66: =SUM(Z65:Z65) -> 0 | AA66: =SUM(AA65:AA65) -> 0 | AC66: =SUM(AC65:AC65) -> 0 | AD66: =SUM(AD65:AD65) -> 0
A69: Net Fixed Assets | D69: 2011 | E69: 2012 | F69: 2013 | G69: 2014 | H69: 2015 | I69: 2016 | J69: 2017 | K69: 2018 | L69: 2019
B70: Enter applicable amortization in years: | C70: 25
A71: Opening Gross Fixed Assets | E71: =D73 -> 0 | F71: 0 | G71: 0 | H71: 0 | I71: 0 | J71: 0 | K71: 0 | L71: 0
A72: Gross Capital Additions | D72: ='App.2-FA Proposed REG Invest.'!C99 -> 0 | E72: ='App.2-FA Proposed REG Invest.'!D99 -> 0 | F72: ='App.2-FA Proposed REG Invest.'!E99 -> 0 | G72: ='App.2-FA Proposed REG Invest.'!F99 -> 0 | H72: ='App.2-FA Proposed REG Invest.'!G99 -> 0 | I72: ='App.2-FA Proposed REG Invest.'!H99 -> 0 | J72: ='App.2-FA Proposed REG Invest.'!I99 -> 0 | K72: ='App.2-FA Proposed REG Invest.'!J99 -> 0 | L72: ='App.2-FA Proposed REG Invest.'!K99 -> 0
A73: Closing Gross Fixed Assets | D73: =SUM(D71:D72) -> 0 | E73: 0 | F73: 0 | G73: 0 | H73: 0 | I73: 0 | J73: 0 | K73: 0 | L73: 0
A75: Opening Accumulated Amortization | E75: =+D78 -> 0 | F75: =E78 -> 0 | G75: 0 | H75: =G78 -> 0 | I75: =H78 -> 0 | J75: =I78 -> 0 | K75: =J78 -> 0 | L75: =K78 -> 0
A76: Current Year Amortization (before additions) | E76: =IF(ISERROR(E71/$C$70), 0, E71/$C$70) -> 0 | F76: 0 | G76: 0 | H76: =H71/$C$70 -> 0 | I76: =I71/$C$70 -> 0 | J76: =J71/$C$70 -> 0 | K76: =K71/$C$70 -> 0 | L76: =L71/$C$70 -> 0
A77: Additions (half year) | D77: =D72/C70/2 -> 0 | E77: =E72/C70/2 -> 0 | F77: =F72/C70/2 -> 0 | G77: =G72/C70/2 -> 0 | H77: =H72/C70/2 -> 0 | I77: =I72/C70/2 -> 0 | J77: =J72/C70/2 -> 0 | K77: =K72/C70/2 -> 0 | L77: =L72/C70/2 -> 0
A78: Closing Accumulated Amortization | D78: =SUM(D75+D77) -> 0 | E78: =SUM(E75:E77) -> 0 | F78: 0 | G78: 0 | H78: 0 | I78: 0 | J78: 0 | K78: 0 | L78: 0
A80: Opening Net Fixed Assets | D80: =D71-D75 -> 0 | E80: =E71-E75 -> 0 | F80: =F71-F75 -> 0 | G80: =G71-G75 -> 0 | H80: =G81 -> 0 | I80: =H81 -> 0 | J80: =I81 -> 0 | K80: =J81 -> 0 | L80: =K81 -> 0
A81: Closing Net Fixed Assets | D81: =D73-D78 -> 0 | E81: 0 | F81: 0 | G81: 0 | H81: 0 | I81: 0 | J81: 0 | K81: 0 | L81: 0
A82: Average Net Fixed Assets | D82: =SUM(D80:D81)/2 -> 0 | E82: 0 | F82: 0 | G82: 0 | H82: 0 | I82: 0 | J82: 0 | K82: 0 | L82: 0
A84: UCC for PILs Calculation
D85: 2014 | E85: 2014 | F85: 2014 | G85: 2014 | H85: 2015 | I85: 2016 | J85: 2017 | K85: 2018 | L85: 2019
A87: Opening UCC | E87: =D95 -> 0 | F87: 0 | G87: 0 | H87: 0 | I87: 0 | J87: 0 | K87: 0 | L87: 0
A88: Capital Additions (from Appendix 2-FA) | D88: =D72 -> 0 | E88: 0 | F88: 0 | G88: 0 | H88: 0 | I88: 0 | J88: 0 | K88: 0 | L88: 0
A89: UCC Before Half Year Rule | D89: =SUM(D87:D88) -> 0 | E89: 0 | F89: 0 | G89: 0 | H89: 0 | I89: 0 | J89: 0 | K89: 0 | L89: 0
A90: Half Year Rule (1/2 Additions - Disposals) | D90: =D88/2 -> 0 | E90: 0 | F90: 0 | G90: 0 | H90: 0 | I90: 0 | J90: 0 | K90: 0 | L90: 0
A91: Reduced UCC | D91: =D89-D90 -> 0 | E91: 0 | F91: 0 | G91: 0 | H91: 0 | I91: 0 | J91: 0 | K91: 0 | L91: 0
A92: CCA Rate Class (to be entered) | C92: 47 | D92: =$C$92 -> 47 | E92: =$C$92 -> 47 | F92: 47 | G92: 47 | H92: 47 | I92: 47 | J92: 47 | K92: 47 | L92: 47
A93: CCA Rate (to be entered) | C93: 0.08 | D93: =$C$93 -> 0.08 | E93: =$C$93 -> 0.08 | F93: 0.08 | G93: 0.08 | H93: 0.08 | I93: 0.08 | J93: 0.08 | K93: 0.08 | L93: 0.08
A94: CCA | D94: =D91*D$93 -> 0 | E94: =E91*E$93 -> 0 | F94: =F91*F$93 -> 0 | G94: =G91*G$93 -> 0 | H94: =H91*H$93 -> 0 | I94: 0 | J94: 0 | K94: 0 | L94: 0
A95: Closing UCC | D95: =D89-D94 -> 0 | E95: 0 | F95: 0 | G95: 0 | H95: 0 | I95: 0 | J95: 0 | K95: 0 | L95: 0

Sheet App.2-G SQI
A1: MRS: If you have reported any major events in your RRR, you'll need to update this sheet | M1: File Number: | O1: =EBNUMBER -> EB-2017-0084
M2: Exhibit:
M3: Tab:
M4: Schedule:
M5: Page:
M7: Date:
A9: Appendix 2-G
A10: Service Reliability and Quality Indicators
A11: 2011 - 2015
A13: Service Reliability
A15: Index | B15: Including outages caused by loss of supply | G15: Excluding outages caused by loss of supply | L15: Excluding Major Event Days
B16: =TestYear-6 -> 2012 | C16: =TestYear-5 -> 2013 | D16: =TestYear-4 -> 2014 | E16: =TestYear-3 -> 2015 | F16: =TestYear-2 -> 2016 | G16: =B16 -> 2012 | H16: 2013 | I16: 2014 | J16: 2015 | K16: 2016 | L16: 2012 | M16: 2013 | N16: 2014 | O16: 2015 | P16: 2016
A17: SAIDI | B17: 4.784592 | C17: 9.453516 | D17: 6.389918 | E17: 6.91404 | F17: 5.968686 | G17: 0.825933 | H17: 2.644013 | I17: 3.393938 | J17: 0.87851 | K17: 2.414019 | L17: 0.825933 | M17: 2.644013 | N17: 3.393938 | O17: 0.87851 | P17: 2.414019
A18: SAIFI | B18: 1.431218 | C18: 1.525831 | D18: 1.703006 | E18: 2.29598 | F18: 1.67468 | G18: 0.336721 | H18: 0.654166 | I18: 0.827616 | J18: 0.36934 | K18: 0.627075 | L18: 0.336721 | M18: 0.654166 | N18: 0.827616 | O18: 0.36934 | P18: 0.627075
A20: 5 Year Historical Average
A21: SAIDI | F21: =IF(ISERROR(AVERAGE(B17:F17)), "", AVERAGE(B17:F17)) -> 6.7021504 | K21: =IF(ISERROR(AVERAGE(G17:K17)), "", AVERAGE(G17:K17)) -> 2.0312826 | P21: =IF(ISERROR(AVERAGE(L17:P17)), "", AVERAGE(L17:P17)) -> 2.0312826
A22: SAIFI | F22: =IF(ISERROR(AVERAGE(B18:F18)), "", AVERAGE(B18:F18)) -> 1.726143 | K22: =IF(ISERROR(AVERAGE(G18:K18)), "", AVERAGE(G18:K18)) -> 0.5629836 | P22: =IF(ISERROR(AVERAGE(L18:P18)), "", AVERAGE(L18:P18)) -> 0.5629836
A24: SAIDI = System Average Interruption Duration Index
A25: SAIFI = System Average Interruption Frequency Index
A27: Service Quality
A29: Indicator | E29: OEB Minimum Standard | G29: =B16 -> 2012 | H29: =C16 -> 2013 | I29: =D16 -> 2014 | J29: =E16 -> 2015 | K29: =F16 -> 2016
A30: Low Voltage Connections | E30: 0.9 | G30: 1 | H30: 0.9 | I30: 1 | J30: 0.93 | K30: 0.921
A31: High Voltage Connections | E31: 0.9 | G31: N/A | H31: N/A | I31: N/A | J31: N/A | K31: N/A
A32: Telephone Accessibility | E32: 0.65 | G32: 0.96 | H32: 0.7510905125 | I32: 0.8 | J32: 0.87 | K32: 0.829
A33: Appointments Met | E33: 0.9 | G33: 0.983 | H33: 0.97 | I33: 1 | J33: 1 | K33: 1
A34: Written Response to Enquires | E34: 0.8 | G34: 1 | H34: 0.9342948718 | I34: 0.8948035488 | J34: 0.8556291391 | K34: 0.96
A35: Emergency Urban Response | E35: 0.8 | G35: 0.88 | H35: 0.91 | I35: 1 | J35: 0.8333333333 | K35: 0.571
A36: Emergency Rural Response | E36: 0.8 | G36: N/A | H36: N/A | I36: N/A | J36: N/A | K36: N/A
A37: Telephone Call Abandon Rate | E37: 0.1 | G37: 0.04 | H37: 0.03575184017 | I37: 0.09943597243 | J37: 0.05504480391 | K37: 0.017
A38: Appointment Scheduling | E38: 0.9 | G38: 0.985 | H38: 1 | I38: 0.98 | J38: 0.97 | K38: 0.997
A39: Rescheduling a Missed Appointment | E39: 1 | G39: 1 | H39: 1 | I39: 1 | J39: 1 | K39: N/A
A40: Reconnection Performance Standard | E40: 0.85 | G40: 0.9055944056 | H40: 1 | I40: 1 | J40: 1 | K40: 1

Sheet App.2-H_Other_Oper_Rev
A1: MRS: Complete bottom of page - Account 4405 | H1: File Number: | I1: =EBNUMBER -> EB-2017-0084
H2: Exhibit:
H3: Tab:
H4: Schedule:
H5: Page:
H7: Date:
A9: Appendix 2-H
A10: Other Operating Revenue
A12: USoA # | B12: USoA Description | C12: =F13-3 & " BA" & CHAR(178) -> 2012 BA² | D12: =G13-3 & " Actual" & CHAR(178) -> 2013 Actual² | E12: =E13&" Actual"&CHAR(178) -> 2014 Actual² | F12: =F13 & " Actual" & CHAR(178) -> 2015 Actual² | G12: ="Actual Year" -> Actual Year | H12: ="Bridge Year" -> Bridge Year | I12: Test Year
C13: 2013 | D13: 2013 | E13: =F13-1 -> 2014 | F13: =G13-1 -> 2015 | G13: =H13-1 -> 2016 | H13: =BridgeYear -> 2017 | I13: =TestYear -> 2018
B14: Reporting Basis
A15: 4235 | B15: 4235-Miscellaneous Service Revenues | C15: -130636 | D15: -20362 | E15: -10387 | F15: -92445 | G15: -99504 | H15: -97985 | I15: -100000
A16: 4225 | B16: 4225-Late Payment Charges | C16: -89685 | D16: -81746 | E16: -90433 | F16: -208407 | G16: -204775 | H16: -117924 | I16: -200000
A17: =LEFT(B17,4) -> 4082 | B17: ='[1]1.2 TB Historical Balances'!B318 -> 4082-Retail Services Revenues | C17: -19900 | D17: -12372 | E17: -11425 | F17: -10873.77 | G17: -12037 | H17: -14249 | I17: -14545.66
A18: 4084 | B18: ='[1]1.2 TB Historical Balances'!B319 -> 4084-Service Transaction Requests (STR) Revenues | C18: -115125 | D18: -451 | E18: -475 | F18: -361.5 | G18: -327 | H18: -195 | I18: -170.98
A19: 4086 | B19: ='[1]1.2 TB Historical Balances'!B320 -> 4086-SSS Administration Revenue | C19: 0 | D19: 0 | E19: 0 | F19: -65188.52 | G19: -66102 | H19: -67143 | I19: -68500
A20: 4205 | B20: ='[1]1.2 TB Historical Balances'!B326 -> 4205-Interdepartmental Rents | C20: 0 | D20: 0 | E20: 0 | F20: 0 | G20: 0 | H20: 0 | I20: 0
A21: 4210 | B21: ='[1]1.2 TB Historical Balances'!B327 -> 4210-Rent from Electric Property | C21: -105000 | D21: -105257 | E21: -105257 | F21: -105257.06 | G21: -92373 | H21: -121998 | I21: -130774
A22: 4215 | B22: ='[1]1.2 TB Historical Balances'!B328 -> 4215-Other Utility Operating Income | C22: 0 | D22: 0 | E22: 0 | F22: 0 | G22: 0 | H22: 0 | I22: 0
A23: 4220 | B23: ='[1]1.2 TB Historical Balances'!B329 -> 4220-Other Electric Revenues | C23: 0 | D23: -222978 | E23: -223688 | F23: 0 | G23: -113382 | H23: 1529 | I23: -42
A24: 4240 | B24: ='[1]1.2 TB Historical Balances'!B333 -> 4240-Provision for Rate Refunds | C24: 0 | D24: 0 | E24: 0 | F24: 0 | G24: 0 | H24: 0 | I24: 0
A25: 4245 | B25: ='[1]1.2 TB Historical Balances'!B334 -> 4245-Government Assistance Directly Credited to Income | C25: 0 | D25: 0 | E25: 0 | F25: -8361 | G25: -57851 | H25: -6436 | I25: -35747
A26: 4305 | B26: ='[1]1.2 TB Historical Balances'!B337 -> 4305-Regulatory Debits | C26: 0 | D26: 0 | E26: 0 | F26: 0 | G26: 0 | I26: 0
A27: 4310 | B27: ='[1]1.2 TB Historical Balances'!B338 -> 4310-Regulatory Credits | C27: 0 | D27: 0 | E27: 0 | F27: 0 | G27: 0 | I27: 0
A28: 4315 | B28: ='[1]1.2 TB Historical Balances'!B339 -> 4315-Revenues from Electric Plant Leased to Others | C28: 0 | D28: 0 | E28: 0 | F28: 0 | G28: 0 | I28: 0
A29: 4320 | B29: ='[1]1.2 TB Historical Balances'!B340 -> 4320-Expenses of Electric Plant Leased to Others | C29: 0 | D29: 0 | E29: 0 | F29: 0 | G29: 0 | I29: 0
A30: 4324 | B30: ='[1]1.2 TB Historical Balances'!B341 -> 4324-Special Purpose Charge Recovery | C30: 0 | D30: 52 | E30: 0 | F30: 0 | G30: 25 | H30: 0 | I30: 0
A31: 4325 | B31: ='[1]1.2 TB Historical Balances'!B342 -> 4325-Revenues from Merchandise Jobbing, Etc. | C31: -210938 | D31: -209580 | E31: -698373 | F31: -127904 | G31: -46084 | H31: -34123 | I31: -59500
A32: 4330 | B32: ='[1]1.2 TB Historical Balances'!B343 -> 4330-Costs and Expenses of Merchandising Jobbing, Etc. | C32: 167000 | D32: 56990 | E32: 582679 | F32: 61684 | G32: 28050 | H32: 44227 | I32: 59500.01
A33: 4335 | B33: ='[1]1.2 TB Historical Balances'!B344 -> 4335-Profits and Losses from Financial Instrument Hedges | C33: 0 | D33: 0 | E33: 0 | F33: -13321.1 | G33: 0 | H33: -805 | I33: 0
A34: 4340 | B34: ='[1]1.2 TB Historical Balances'!B345 -> 4340-Profits and Losses from Financial Instrument Investments | C34: 0 | D34: 0 | E34: 0 | F34: 0 | G34: 0 | I34: 0
A35: 4345 | B35: ='[1]1.2 TB Historical Balances'!B346 -> 4345-Gains from Disposition of Future Use Utility Plant | C35: 0 | D35: 0 | E35: 0 | F35: 0 | G35: 0 | I35: 0
A36: 4350 | B36: ='[1]1.2 TB Historical Balances'!B347 -> 4350-Losses from Disposition of Future Use Utility Plant | C36: 0 | D36: 0 | E36: 0 | F36: 0 | G36: 0 | I36: 0
A37: 4355 | B37: ='[1]1.2 TB Historical Balances'!B348 -> 4355-Gain on Disposition of Utility and Other Property | C37: -8000 | D37: 0 | E37: 0 | F37: 0 | G37: -3750 | I37: -1244.24
A38: 4360 | B38: ='[1]1.2 TB Historical Balances'!B349 -> 4360-Loss on Disposition of Utility and Other Property | C38: 0 | D38: 45079 | E38: 12574 | F38: 813.06 | G38: 0 | I38: 0
A39: 4362 | B39: ='[1]1.2 TB Historical Balances'!B350 -> 4362 - Loss from retirement of utility and other property | C39: 0 | D39: 0 | E39: 0 | F39: 201444 | G39: 146493 | H39: 103677 | I39: 140000
A40: 4370 | B40: ='[1]1.2 TB Historical Balances'!B351 -> 4370-Losses from Disposition of Allowances for Emission | C40: 0 | D40: 0 | E40: 0 | F40: 0 | G40: 0 | I40: 0
A41: 4375 | B41: ='[1]1.2 TB Historical Balances'!B352 -> 4375-Revenues from Non-Utility Operations | C41: 0 | D41: 0 | E41: 0 | F41: 0 | G41: 0 | I41: 0
A42: 4375 | B42: ='[1]1.2 TB Historical Balances'!B353 -> 4375-Sub-account Generation Facility Revenues | C42: -200000 | D42: -33207 | E42: -53970 | F42: -155226.37 | G42: 0 | I42: 0
A43: 4380 | B43: ='[1]1.2 TB Historical Balances'!B354 -> 4380-Expenses of Non-Utility Operations | C43: 200000 | D43: 0 | E43: 0 | F43: 0 | G43: 0 | I43: 0
A44: 4380 | B44: ='[1]1.2 TB Historical Balances'!B355 -> 4380-Sub-account Generation Facility Expenses | C44: 0 | D44: 0 | E44: 0 | F44: 0 | G44: 0 | I44: 0
A45: 4385 | B45: ='[1]1.2 TB Historical Balances'!B356 -> 4385-Non-Utility Rental Income | C45: 0 | D45: 0 | E45: 0 | F45: 0 | G45: 0 | I45: 0
A46: 4390 | B46: ='[1]1.2 TB Historical Balances'!B357 -> 4390-Miscellaneous Non-Operating Income | C46: 0 | D46: -4252 | E46: 0 | F46: 0 | G46: -5021 | H46: -12712 | I46: -20600
A47: 4395 | B47: ='[1]1.2 TB Historical Balances'!B358 -> 4395-Rate-Payer Benefit Including Interest | C47: -20000 | D47: 0 | E47: -10561 | F47: -10720 | G47: 0 | H47: 0 | I47: 0
A48: 4398 | B48: ='[1]1.2 TB Historical Balances'!B359 -> 4398-Foreign Exchange Gains and Losses, Including Amortization | C48: 0 | D48: 0 | E48: 0 | F48: 0 | G48: 0 | I48: 0
A49: 4405 | B49: ='[1]1.2 TB Historical Balances'!B362 -> 4405-Interest and Dividend Income | C49: -55000 | D49: 16240 | E49: -91544 | F49: -65638.02 | G49: -37792 | H49: -48741 | I49: -30000
A50: 4415 | B50: ='[1]1.2 TB Historical Balances'!B363 -> 4415-Equity in Earnings of Subsidiary Companies | C50: 0 | D50: 0 | E50: 0 | F50: 0 | G50: 0 | I50: 0
A53: Specific Service Charges | C53: =C15 -> -130636 | D53: -20362 | E53: -10387 | F53: -92445 | G53: -99504 | H53: -97985 | I53: -100000
A54: Late Payment Charges | C54: -89685 | D54: -81746 | E54: -90433 | F54: -208407 | G54: -204775 | H54: -117924 | I54: -200000
A55: Other Operating Revenues | C55: =SUM(C17:C25) -> -240025 | D55: -341058 | E55: -340845 | F55: -190041.85 | G55: -342072 | H55: -208492 | I55: -249779.64
A56: Other Income or Deductions | C56: =SUM(C26:C50) -> -126938 | D56: =SUM(D26:D50) -> -128678 | E56: -259195 | F56: -108868.43 | G56: 81921 | H56: 51523 | I56: 88155.77
A57: Total | D57: =SUM(D53:D56) -> -571844 | E57: -700860 | F57: -599762.28 | G57: -564430 | H57: -372878 | I57: -461623.87
A59: Description | D59: Account(s)
A60: Specific Service Charges: | D60: 4235
A61: Late Payment Charges: | D61: 4225
A62: Other Distribution Revenues: | D62: 4080, 4082, 4084, 4090, 4205, 4210, 4215, 4220, 4240, 4245
A63: Other Income and Expenses: | D63: 4305, 4310, 4315, 4320, 4325, 4330, 4335, 4340, 4345, 4350, 4355, 4360, 4365, 4370, 4375, 4380, 4385, 4390, 4395, 4398, 4405, 4415
A66: Note: Add all applicable accounts listed above to the table and include all relevant information.
A68: Account Breakdown Details
A70: For each "Other Operating Revenue" and "Other Income or Deductions" Account, a detailed breakdown of the account components is required. See the example below for Account 4405, Interest and Dividend Income.
A73: Account 4405 - Interest and Dividend Income
D74: =D12 -> 2013 Actual² | E74: 2014 Actual² | F74: 2015 Actual² | G74: Actual Year | H74: Bridge Year | I74: Test Year
G75: =G13 -> 2016 | H75: =H13 -> 2017 | I75: =I13 -> 2018
A76: Reporting Basis | D76: =IF(D14=0, "", D14) -> 
A77: Short-term Investment Interest
A78: Bank Deposit Interest
A79: Miscellaneous Interest Revenue | D79: 16240 | E79: -91544 | F79: -65638 | G79: -37792 | H79: -37792 | I79: -37792
A80: etc.1
A82: Total | D82: =SUM(D77:D81) -> 16240 | E82: -91544 | F82: -65638 | G82: -37792 | H82: -37792 | I82: -37792
A85: Notes:
A86: 1 | B86: List and specify any other interest revenue.
A87: 2 | B87: In the transition year to IFRS, the applicant is to present information in both MIFRS and CGAAP. For the typical applicant that adopted IFRS on January 1, 2015, 2014 must be presented in both a CGAAP and MIFRS basis.

Sheet App.2-IB_Load_Forecast_Analysis
A1: MRS: Missing 2012 Revenues (from Fixed & Variable) for all classes | T1: File Number: | U1: =EBNUMBER -> EB-2017-0084
T2: Exhibit:
T3: Tab:
T4: Schedule:
T5: Page:
T7: Date:
B9: Appendix 2-IB
B10: Customer, Connections, Load Forecast and Revenues Data and Analysis
B12: This sheet requires no inputs, but serves as a summary of the hiostorical and forecasted data to be provided with respect to:
B14: 1) | C14: Customers and connections
B15: 2) | C15: Consumption (kWh)
B16: 3) | C16: Demand (kW or kCA) for applicable demand-billed customer classes
B17: 4) | C17: Revenues
B19: The spreadsheet summarizes the data provided and the analyses (variance or year-over-year) that are required. Data are required to be provided on a customer class level. Consumption (kWh) must also be provided on a total distribution system level.
B21: Appendix 2-IB (formerly 2-IA) is the appendix spreadsheet that the distributor populates, and the spreadsheet is laid out for inputting the necessary data. The spreadsheet also calculates necessary statistics such as average consumption per customer/connection per year, and variances and % annual changes, as necessary.
B23: The distributor is required to provide suitable documentation in Exhibit 3 of its Application, in accordance with section 2.3.2 of Chaoter 2 of the Filing Requirements. This would include explanations for material variations or of trends in the data.
B25: The distributor is also required to input its test year customer/connection and load forecast in Sheet 10 - Load Forecast of the Revenue Requirement Work Form. This sheet should also be updated to reflect changes in the load forecast made through the stages of processing of the rates application.
B27: The applicant must demonstrate the historical accuracy of its load forecast approach for at least the past 5 years. Such analysis will cover both customer/connections and consumption (kWh) and demand (kW or kVA) by providing the following, as shown in the following table:
B29: This sheet is to be filled in accordance with the instructions documented in section 2.3.2 of Chapter 2 of the Filing Requirements for Distribution Rate Applications, in terms of one set of tables per customer class.
B31: Color coding for Cells: | F31: Data input | K31: Drop-down List
F33: No data entry required | K33: Blank or calculated value
B35: Distribution System (Total)
D37: Calendar Year | K37: Consumption (kWh) (3)
D38: =CONCATENATE("(for ",TestYear," Cost of Service") -> (for 2018 Cost of Service | L38: Actual (Weather actual) | M38: Weather-normalized | O38: Weather-normalized
C39: Historical | D39: =D40-1 -> 2012 | K39: Actual | L39: 440029541.1 | M39: 449716193.5 | N39: =IF(D39=RebaseYear,"Board-approved","") -> 
C40: Historical | D40: 2013 | K40: Actual | L40: 454992226.1 | M40: 442403161.4 | N40: Board-approved
C41: Historical | D41: 2014 | K41: Actual | L41: 453005451 | M41: 452753342.3
C42: Historical | D42: 2015 | K42: Actual | L42: 455412606.6 | M42: 457414376.4
C43: Historical | D43: 2016 | K43: Actual | L43: 438815150.1 | M43: 448118872.7
C44: Bridge Year | D44: 2017 | K44: Forecast | M44: 445344873.2
C45: Test Year | D45: =TestYear -> 2018 | K45: Forecast | M45: 449401281.7
O46: =SUM(O39:O44) -> 0
C47: Variance Analysis | K47: Year | L47: Year-over-year | O47: Versus Board-approved
D48: =D39 -> 2012 | K48: =D48 -> 2012
D49: 2013 | K49: =D49 -> 2013 | L49: =IF(L39=0,"",L40/L39-1) -> 0.03400381916 | M49: -0.01626143823
D50: 2014 | K50: 2014 | L50: -0.004366613205 | M50: 0.02339535913
D51: 2015 | K51: 2015 | L51: 0.005313745154 | M51: 0.01029486418
D52: 2016 | K52: 2016 | L52: -0.03644487702 | M52: -0.02032184426
D53: 2017 | K53: 2017 | L53: =IF(K44="Forecast","",IF(L43=0,"",L44/L43-1)) ->  | M53: =IF(M43=0,"",M44/M43-1) -> -0.006190320765
D54: 2018 | K54: 2018 | L54: =IF(K45="Forecast","",IF(L44=0,"",L45/L44-1)) ->  | M54: =IF(M44=0,"",M45/M44-1) -> 0.009108465678 | O54: =IF(O46=0,"",M45/O46-1) -> 
D55: Geometric Mean | K55: Geometric Mean | L55: =IF(L39=0,"",(L43/L39)^(1/($D43-$D39-1))-1) -> -0.0009207790224 | M55: =IF(M39=0,"",(M45/M39)^(1/($D45-$D39-1))-1) -> -0.0001400884112 | O55: =IF(O46=0,"",(M45/O46)^(1/(TestYear-RebaseYear-1))-1) -> 
B57: Customer Class Analysis (one for each Customer Class, excluding MicroFIT and Standby)
B59: 1 | C59: Customer Class: | D59: Residential | H59: Is the customer class billed on consumption (kWh) or demand (kW or kVA)? | N59: kWh
D61: Calendar Year | F61: Customers | K61: Consumption (kWh) (3) | Q61: =CONCATENATE("Consumption (kWh) per ",LEFT(F61,LEN(F61)-1)) -> Consumption (kWh) per Customer
D62: =CONCATENATE("(for ",TestYear," Cost of Service") -> (for 2018 Cost of Service | L62: Actual (Weather actual) | M62: Weather-normalized | O62: Weather-normalized | R62: =L62 -> Actual (Weather actual) | S62: =M62 -> Weather-normalized | U62: =O62 -> Weather-normalized
C63: Historical | D63: =D64-1 -> 2012 | F63: =K39 -> Actual | G63: 19780.25 | H63: =IF(D63=RebaseYear,"Board-approved","") ->  | K63: =F63 -> Actual | L63: 186953800.8 | M63: 191069334.7 | N63: =H63 ->  | Q63: =K63 -> Actual | R63: =IF(G63=0,"",L63/G63) -> 9451.538823 | S63: =IF(G63=0,"",M63/G63) -> 9659.601607 | T63: =N63 ->  | U63: =IF(T63="","",IF(I63=0,"",O63/I63)) -> 
C64: Historical | D64: 2013 | F64: =K40 -> Actual | G64: 19780.25 | H64: Board-approved | K64: =F64 -> Actual | L64: 194642138 | M64: 189256633.9 | N64: =H64 -> Board-approved | O64: 204299044 | Q64: =K64 -> Actual | R64: =IF(G64=0,"",L64/G64) -> 9840.226385 | S64: =IF(G64=0,"",M64/G64) -> 9567.959654 | T64: =N64 -> Board-approved | U64: =IF(T64="","",IF(I64=0,"",O64/I64)) -> 
C65: Historical | D65: 2014 | F65: Actual | G65: 20032.33333 | K65: Actual | L65: 193528854.2 | M65: 193421150.6 | Q65: Actual | R65: 9660.824379 | S65: 9655.447891
C66: Historical | D66: 2015 | F66: Actual | G66: 19927.25 | K66: Actual | L66: 188956241.8 | M66: 189786800.6 | Q66: Actual | R66: 9482.303972 | S66: 9523.983518
C67: Historical | D67: 2016 | F67: Actual | G67: 20269.16667 | K67: Actual | L67: 179260363.4 | M67: 183061026.8 | Q67: Actual | R67: 8843.992768 | S67: 9031.502373
C68: Bridge Year | D68: 2017 | F68: Forecast | G68: 20534.75 | K68: Forecast | M68: 181603332.1 | Q68: Forecast | R68: 0 | S68: 8843.707965
C69: Test Year | D69: =TestYear -> 2018 | F69: Forecast | G69: 20749.18835 | K69: Forecast | M69: 191595093.8 | Q69: Forecast | R69: 0 | S69: 9233.859687
I70: =SUM(I63:I68) -> 0 | O70: =SUM(O63:O68) -> 204299044 | U70: =SUM(U63:U68) -> 0
C71: Variance Analysis | D71: Year | G71: Year-over-year | I71: Test Year Versus Board-approved | K71: Year | L71: Year-over-year | O71: =I71 -> Test Year Versus Board-approved | Q71: Year | R71: Year-over-year | U71: =O71 -> Test Year Versus Board-approved
D72: =D63 -> 2012 | K72: =D72 -> 2012 | Q72: =K72 -> 2012
D73: 2013 | G73: =IF(G63=0,"",G64/G63-1) -> 0 | K73: =D73 -> 2013 | L73: =IF(L63=0,"",L64/L63-1) -> 0.04112426231 | M73: -0.009487135887 | Q73: =K73 -> 2013 | R73: =IF(R63="","",IF(R63=0,"",R64/R63-1)) -> 0.04112426231 | S73: =IF(S63="","",IF(S63=0,"",S64/S63-1)) -> -0.009487135887
D74: 2014 | G74: 0.01274419349 | K74: 2014 | L74: -0.005719643926 | M74: 0.02200460087 | Q74: 2014 | R74: =IF(R64="","",IF(R64=0,"",R65/R64-1)) -> -0.01823149176 | S74: 0.009143876048
D75: 2015 | G75: -0.005245686141 | K75: 2015 | L75: -0.02362754857 | M75: -0.01878982759 | Q75: 2015 | R75: -0.01847879639 | S75: -0.01361556443
D76: 2016 | G76: 0.01715824645 | K76: 2016 | L76: -0.05131282418 | M76: -0.03543857469 | Q76: 2016 | R76: -0.06731604533 | S76: -0.05170957551
D77: 2017 | G77: 0.01310282449 | K77: 2017 | L77: =IF(K68="Forecast","",IF(L67=0,"",L68/L67-1)) ->  | M77: =IF(M67=0,"",M68/M67-1) -> -0.007962889474 | Q77: 2017 | R77: =IF(Q68="Forecast","",IF(R67=0,"",R68/R67-1)) ->  | S77: =IF(S67="","",IF(S67=0,"",S68/S67-1)) -> -0.02079326348
D78: 2018 | G78: 0.0104427056 | I78: =IF(I70=0,"",G69/I70-1) ->  | K78: 2018 | L78: =IF(K69="Forecast","",IF(L68=0,"",L69/L68-1)) ->  | M78: =IF(M68=0,"",M69/M68-1) -> 0.05501970467 | O78: =IF(O70=0,"",M69/O70-1) -> -0.06218311122 | Q78: 2018 | R78: =IF(Q69="Forecast","",IF(R68=0,"",R69/R68-1)) ->  | S78: 0.04411630548 | U78: =IF(U70=0,"",S69/U70-1) -> 
D79: Geometric Mean | G79: =IF(G63=0,"",(G69/G63)^(1/($D69-$D63-1))-1) -> 0.009610520293 | I79: =IF(I70=0,"",(G69/I70)^(1/(TestYear-RebaseYear-1))-1) ->  | K79: Geometric Mean | L79: =IF(L63=0,"",(L67/L63)^(1/($D67-$D63-1))-1) -> -0.01390976552 | M79: =IF(M63=0,"",(M69/M63)^(1/($D69-$D63-1))-1) -> 0.0005497286251 | O79: =IF(O70=0,"",(M69/O70)^(1/(TestYear-RebaseYear-1))-1) -> -0.01592202372 | Q79: Geometric Mean | R79: =IF(R63="","",IF(R63=0,"",(R67/R63)^(1/($D67-$D63-1))-1)) -> -0.02190294322 | S79: =IF(S63="","",IF(S63=0,"",(S69/S63)^(1/($D69-$D63-1))-1)) -> -0.008974541653 | U79: =IF(U70=0,"",(S69/U70)^(1/(TestYear-RebaseYear-1))-1) -> 
D82: Calendar Year | F82: Revenues | K82: =IF(ISBLANK(N59),"",CONCATENATE("Demand (",N59,")")) -> Demand (kWh) | Q82: =CONCATENATE("Demand (",N59,") per ",LEFT(F61,LEN(F61)-1)) -> Demand (kWh) per Customer
D83: =CONCATENATE("(for ",TestYear," Cost of Service") -> (for 2018 Cost of Service | L83: Actual (Weather actual) | M83: Weather-normalized | O83: =M83 -> Weather-normalized | R83: =L83 -> Actual (Weather actual) | S83: =M83 -> Weather-normalized | U83: =O83 -> Weather-normalized
C84: Historical | D84: =D85-1 -> 2012 | F84: =F63 -> Actual | H84: =IF(D84=RebaseYear,"Board-approved","") ->  | K84: =K63 -> Actual | N84: =N63 ->  | Q84: =K84 -> Actual | R84: =IF(G84=0,"",L84/G84) ->  | S84: =IF(G84=0,"",M84/G84) ->  | T84: =N84 ->  | U84: =IF(T84="","",IF(I84=0,"",O84/I84)) -> 
C85: Historical | D85: 2013 | F85: Actual | G85: 5946628 | H85: Board-approved | I85: 6116745 | K85: Actual | N85: Board-approved | Q85: =K85 -> Actual | R85: =IF(G85=0,"",L85/G85) -> 0 | S85: =IF(G85=0,"",M85/G85) -> 0 | T85: =N85 -> Board-approved | U85: =IF(T85="","",IF(I85=0,"",O85/I85)) -> 0
C86: Historical | D86: 2014 | F86: Actual | G86: 6025050 | K86: Actual | Q86: Actual | R86: 0 | S86: 0
C87: Historical | D87: 2015 | F87: Actual | G87: 6037430 | K87: Actual | Q87: Actual | R87: 0 | S87: 0
C88: Historical | D88: 2016 | F88: Actual | G88: 6140503 | K88: Actual | Q88: Actual | R88: 0 | S88: 0
C89: Bridge Year (Forecast) | D89: 2017 | F89: Forecast | G89: 6451131 | K89: Forecast | Q89: Forecast | R89: 0 | S89: 0
C90: Test Year (Forecast) | D90: =TestYear -> 2018 | F90: Forecast | G90: 6993799.711 | K90: Forecast | Q90: Forecast | R90: 0 | S90: 0
I91: =SUM(I84:I89) -> 6116745 | O91: =SUM(O84:O89) -> 0 | U91: =SUM(U84:U89) -> 0
C92: Variance Analysis | D92: Year | G92: Year-over-year | I92: =I71 -> Test Year Versus Board-approved | K92: Year | L92: Year-over-year | O92: =I92 -> Test Year Versus Board-approved | Q92: Year | R92: Year-over-year | U92: =O92 -> Test Year Versus Board-approved
D93: =D84 -> 2012 | K93: =D93 -> 2012 | Q93: =K93 -> 2012
D94: =D85 -> 2013 | G94: =IF(G84=0,"",G85/G84-1) ->  | K94: =D94 -> 2013 | L94: =IF(L84=0,"",L85/L84-1) ->  | M94: =IF(M84=0,"",M85/M84-1) ->  | Q94: =K94 -> 2013 | R94: =IF(R84="","",IF(R84=0,"",R85/R84-1)) ->  | S94: =IF(S84="","",IF(S84=0,"",S85/S84-1)) -> 
D95: =D86 -> 2014 | G95: =IF(G85=0,"",G86/G85-1) -> 0.0131876418 | K95: 2014 | L95: =IF(L85=0,"",L86/L85-1) ->  | Q95: 2014 | R95: =IF(R85="","",IF(R85=0,"",R86/R85-1)) -> 
D96: 2015 | G96: 0.002054754732 | K96: 2015 | L96: =IF(L86=0,"",L87/L86-1) ->  | Q96: 2015
D97: 2016 | G97: 0.01707233045 | K97: 2016 | L97: =IF(L87=0,"",L88/L87-1) ->  | Q97: 2016
D98: 2017 | G98: 0.05058673532 | K98: 2017 | L98: =IF(K89="Forecast","",IF(L88=0,"",L89/L88-1)) ->  | M98: =IF(M88=0,"",M89/M88-1) ->  | Q98: 2017 | R98: =IF(Q89="Forecast","",IF(R88=0,"",R89/R88-1)) ->  | S98: =IF(S88="","",IF(S88=0,"",S89/S88-1)) -> 
D99: 2018 | G99: 0.08411993353 | I99: =IF(I91=0,"",G90/I91-1) -> 0.1433858549 | K99: 2018 | L99: =IF(K90="Forecast","",IF(L89=0,"",L90/L89-1)) ->  | M99: =IF(M89=0,"",M90/M89-1) ->  | O99: =IF(O91=0,"",M90/O91-1) ->  | Q99: 2018 | R99: =IF(Q90="Forecast","",IF(R89=0,"",R90/R89-1)) ->  | U99: =IF(U91=0,"",S90/U91-1) -> 
D100: Geometric Mean | G100: =IF(G84=0,"",(G90/G84)^(1/($D90-$D84-1))-1) ->  | I100: =IF(I91=0,"",(G90/I91)^(1/(TestYear-RebaseYear-1))-1) -> 0.03406586902 | K100: Geometric Mean | L100: =IF(L84=0,"",(L88/L84)^(1/($D88-$D84-1))-1) ->  | M100: =IF(M84=0,"",(M90/M84)^(1/($D90-$D84-1))-1) ->  | O100: =IF(O91=0,"",(M90/O91)^(1/(TestYear-RebaseYear-1))-1) ->  | Q100: Geometric Mean | R100: =IF(R84="","",IF(R84=0,"",(R88/R84)^(1/($D88-$D84-1))-1)) ->  | S100: =IF(S84="","",IF(S84=0,"",(S90/S84)^(1/($D90-$D84-1))-1)) ->  | U100: =IF(U91=0,"",(S90/U91)^(1/(TestYear-RebaseYear-1))-1) -> 
B102: 2 | C102: Customer Class: | D102: GS < 50 kW | H102: Is the customer class billed on consumption (kWh) or demand (kW or kVA)? | N102: kWh
D104: Calendar Year | F104: Customers | K104: Consumption (kWh) (3) | Q104: =CONCATENATE("Consumption (kWh) per ",LEFT(F104,LEN(F104)-1)) -> Consumption (kWh) per Customer
D105: =CONCATENATE("(for ",TestYear," Cost of Service") -> (for 2018 Cost of Service | L105: Actual (Weather actual) | M105: Weather-normalized | O105: Weather-normalized | R105: =L105 -> Actual (Weather actual) | S105: =M105 -> Weather-normalized | U105: =O105 -> Weather-normalized
C106: Historical | D106: =D107-1 -> 2012 | F106: =F63 -> Actual | G106: 2467.333333 | H106: =IF(D106=RebaseYear,"Board-approved","") ->  | K106: =F106 -> Actual | L106: 64968677.51 | M106: 66398874.66 | N106: =H106 ->  | Q106: =K106 -> Actual | R106: =IF(G106=0,"",L106/G106) -> 26331.53641 | S106: =IF(G106=0,"",M106/G106) -> 26911.18941 | T106: =N106 ->  | U106: =IF(T106="","",IF(I106=0,"",O106/I106)) -> 
C107: Historical | D107: 2013 | F107: =F64 -> Actual | G107: 2467.333333 | H107: Board-approved | I107: 2471 | K107: =F107 -> Actual | L107: 65332254.52 | M107: 63524592.92 | N107: =H107 -> Board-approved | O107: 64934164 | Q107: =K107 -> Actual | R107: =IF(G107=0,"",L107/G107) -> 26478.89267 | S107: =IF(G107=0,"",M107/G107) -> 25746.2549 | T107: =N107 -> Board-approved | U107: =IF(T107="","",IF(I107=0,"",O107/I107)) -> 26278.49616
C108: Historical | D108: 2014 | F108: Actual | G108: 2531 | K108: Actual | L108: 67617018.08 | M108: 67579387.53 | Q108: Actual | R108: 26715.5346 | S108: 26700.66675
C109: Historical | D109: 2015 | F109: Actual | G109: 2499.166667 | K109: Actual | L109: 66434815.7 | M109: 66726830.49 | Q109: Actual | R109: 26582.78721 | S109: 26699.63207
C110: Historical | D110: 2016 | F110: Actual | G110: 2545.833333 | K110: Actual | L110: 65187474.84 | M110: 66569574.3 | Q110: Actual | R110: 25605.55477 | S110: 26148.44163
C111: Bridge Year | D111: 2017 | F111: Forecast | G111: 2576.166667 | K111: Forecast | M111: 75511197.21 | Q111: Forecast | R111: 0 | S111: 29311.45651
C112: Test Year | D112: =TestYear -> 2018 | F112: Forecast | G112: 2599.271437 | K112: Forecast | M112: 67281630 | Q112: Forecast | R112: 0 | S112: 25884.80335
I113: =SUM(I106:I111) -> 2471 | O113: =SUM(O106:O111) -> 64934164 | U113: =SUM(U106:U111) -> 26278.49616
C114: Variance Analysis | D114: Year | G114: Year-over-year | I114: Test Year Versus Board-approved | K114: Year | L114: Year-over-year | O114: =I114 -> Test Year Versus Board-approved | Q114: Year | R114: Year-over-year | U114: =O114 -> Test Year Versus Board-approved
D115: =D106 -> 2012 | K115: =D115 -> 2012 | Q115: =K115 -> 2012
D116: 2013 | G116: =IF(G106=0,"",G107/G106-1) -> 0 | K116: =D116 -> 2013 | L116: =IF(L106=0,"",L107/L106-1) -> 0.005596189143 | M116: -0.0432881093 | Q116: =K116 -> 2013 | R116: =IF(R106="","",IF(R106=0,"",R107/R106-1)) -> 0.005596189143 | S116: =IF(S106="","",IF(S106=0,"",S107/S106-1)) -> -0.0432881093
D117: 2014 | G117: 0.0258038368 | K117: 2014 | L117: =IF(L107=0,"",L108/L107-1) -> 0.03497144824 | M117: 0.06383031245 | Q117: 2014 | R117: =IF(R107="","",IF(R107=0,"",R108/R107-1)) -> 0.008937002485 | S117: 0.03706992925
D118: 2015 | G118: -0.0125773739 | K118: 2015 | L118: =IF(L108=0,"",L109/L108-1) -> -0.01748379935 | M118: -0.01261563739 | Q118: 2015 | R118: =IF(R108="","",IF(R108=0,"",R109/R108-1)) -> -0.004968921439 | S118: -3.875087604e-05
D119: 2016 | G119: 0.01867289096 | K119: 2016 | L119: =IF(L109=0,"",L110/L109-1) -> -0.01877540937 | M119: -0.002356715889 | Q119: 2016 | R119: =IF(R109="","",IF(R109=0,"",R110/R109-1)) -> -0.03676185031 | S119: -0.02064412142
D120: 2017 | G120: 0.01191489362 | K120: 2017 | L120: =IF(K111="Forecast","",IF(L110=0,"",L111/L110-1)) ->  | M120: =IF(M110=0,"",M111/M110-1) -> 0.1343199652 | Q120: 2017 | R120: =IF(Q111="Forecast","",IF(R110=0,"",R111/R110-1)) ->  | S120: 0.1209638008
D121: 2018 | G121: 0.008968662759 | I121: =IF(I113=0,"",G112/I113-1) -> 0.05191073926 | K121: 2018 | L121: =IF(K112="Forecast","",IF(L111=0,"",L112/L111-1)) ->  | M121: =IF(M111=0,"",M112/M111-1) -> -0.108984727 | O121: =IF(O113=0,"",M112/O113-1) -> 0.03615147791 | Q121: 2018 | R121: =IF(Q112="Forecast","",IF(R111=0,"",R112/R111-1)) ->  | S121: -0.1169049091 | U121: =IF(U113=0,"",S112/U113-1) -> -0.01498155761
D122: Geometric Mean | G122: =IF(G106=0,"",(G112/G106)^(1/($D112-$D106-1))-1) -> 0.01047311186 | I122: =IF(I113=0,"",(G112/I113)^(1/(TestYear-RebaseYear-1))-1) -> 0.01273244152 | K122: Geometric Mean | L122: =IF(L106=0,"",(L110/L106)^(1/($D110-$D106-1))-1) -> 0.001121320697 | M122: =IF(M106=0,"",(M112/M106)^(1/($D112-$D106-1))-1) -> 0.002644918425 | O122: =IF(O113=0,"",(M112/O113)^(1/(TestYear-RebaseYear-1))-1) -> 0.008917866169 | Q122: Geometric Mean | R122: =IF(R106="","",IF(R106=0,"",(R110/R106)^(1/($D110-$D106-1))-1)) -> -0.009276047248 | S122: =IF(S106="","",IF(S106=0,"",(S112/S106)^(1/($D112-$D106-1))-1)) -> -0.007747057637 | U122: =IF(U113=0,"",(S112/U113)^(1/(TestYear-RebaseYear-1))-1) -> -0.003766617122
D125: Calendar Year | F125: Revenues | K125: =IF(ISBLANK(N102),"",CONCATENATE("Demand (",N102,")")) -> Demand (kWh) | Q125: =CONCATENATE("Demand (",N102,") per ",LEFT(F104,LEN(F104)-1)) -> Demand (kWh) per Customer
D126: =CONCATENATE("(for ",TestYear," Cost of Service") -> (for 2018 Cost of Service | L126: Actual (Weather actual) | M126: Weather-normalized | O126: =M126 -> Weather-normalized | R126: =L126 -> Actual (Weather actual) | S126: =M126 -> Weather-normalized | U126: =O126 -> Weather-normalized
C127: Historical | D127: =D128-1 -> 2012 | F127: =F106 -> Actual | H127: =IF(D127=RebaseYear,"Board-approved","") ->  | K127: =K106 -> Actual | N127: =N106 ->  | Q127: =K127 -> Actual | R127: =IF(G127=0,"",L127/G127) ->  | S127: =IF(G127=0,"",M127/G127) ->  | T127: =N127 ->  | U127: =IF(T127="","",IF(I127=0,"",O127/I127)) -> 
C128: Historical | D128: 2013 | F128: Actual | G128: 1409991 | H128: Board-approved | I128: 1399405 | K128: Actual | N128: Board-approved | Q128: =K128 -> Actual | R128: =IF(G128=0,"",L128/G128) -> 0 | S128: =IF(G128=0,"",M128/G128) -> 0 | T128: =N128 -> Board-approved | U128: =IF(T128="","",IF(I128=0,"",O128/I128)) -> 0
C129: Historical | D129: 2014 | F129: Actual | G129: 1459464 | K129: Actual | Q129: Actual | R129: 0 | S129: 0
C130: Historical | D130: 2015 | F130: Actual | G130: 1462325 | K130: Actual | Q130: Actual | R130: 0 | S130: 0
C131: Historical | D131: 2016 | F131: Actual | G131: 1476617 | K131: Actual | Q131: Actual | R131: 0 | S131: 0
C132: Bridge Year (Forecast) | D132: 2017 | F132: Forecast | G132: 1496945 | K132: Forecast | Q132: Forecast | R132: 0 | S132: 0
C133: Test Year (Forecast) | D133: =TestYear -> 2018 | F133: Forecast | G133: 1655939.671 | K133: Forecast | Q133: Forecast | R133: 0 | S133: 0
I134: =SUM(I127:I132) -> 1399405 | O134: =SUM(O127:O132) -> 0 | U134: =SUM(U127:U132) -> 0
C135: Variance Analysis | D135: Year | G135: Year-over-year | I135: =I114 -> Test Year Versus Board-approved | K135: Year | L135: Year-over-year | O135: =I135 -> Test Year Versus Board-approved | Q135: Year | R135: Year-over-year | U135: =O135 -> Test Year Versus Board-approved
D136: =D127 -> 2012 | K136: =D136 -> 2012 | Q136: =K136 -> 2012
D137: =D128 -> 2013 | G137: =IF(G127=0,"",G128/G127-1) ->  | K137: =D137 -> 2013 | L137: =IF(L127=0,"",L128/L127-1) ->  | M137: =IF(M127=0,"",M128/M127-1) ->  | Q137: =K137 -> 2013 | R137: =IF(R127="","",IF(R127=0,"",R128/R127-1)) ->  | S137: =IF(S127="","",IF(S127=0,"",S128/S127-1)) -> 
D138: =D129 -> 2014 | G138: =IF(G128=0,"",G129/G128-1) -> 0.03508745801 | K138: 2014 | L138: =IF(L128=0,"",L129/L128-1) ->  | Q138: 2014 | R138: =IF(R128="","",IF(R128=0,"",R129/R128-1)) -> 
D139: 2015 | G139: 0.001960308716 | K139: 2015 | L139: =IF(L129=0,"",L130/L129-1) ->  | Q139: 2015 | R139: =IF(R129="","",IF(R129=0,"",R130/R129-1)) -> 
D140: 2016 | G140: 0.009773477168 | K140: 2016 | L140: =IF(L130=0,"",L131/L130-1) ->  | Q140: 2016 | R140: =IF(R130="","",IF(R130=0,"",R131/R130-1)) -> 
D141: 2017 | G141: 0.01376660299 | K141: 2017 | L141: =IF(K132="Forecast","",IF(L131=0,"",L132/L131-1)) ->  | Q141: 2017 | R141: =IF(Q132="Forecast","",IF(R131=0,"",R132/R131-1)) -> 
D142: 2018 | G142: 0.1062127672 | I142: =IF(I134=0,"",G133/I134-1) -> 0.1833169603 | K142: 2018 | L142: =IF(K133="Forecast","",IF(L132=0,"",L133/L132-1)) ->  | O142: =IF(O134=0,"",M133/O134-1) ->  | Q142: 2018 | R142: =IF(Q133="Forecast","",IF(R132=0,"",R133/R132-1)) ->  | U142: =IF(U134=0,"",S133/U134-1) -> 
D143: Geometric Mean | G143: =IF(G127=0,"",(G133/G127)^(1/($D133-$D127-1))-1) ->  | I143: =IF(I134=0,"",(G133/I134)^(1/(TestYear-RebaseYear-1))-1) -> 0.04297829911 | K143: Geometric Mean | L143: =IF(L127=0,"",(L131/L127)^(1/($D131-$D127-1))-1) ->  | M143: =IF(M127=0,"",(M133/M127)^(1/($D133-$D127-1))-1) ->  | O143: =IF(O134=0,"",(M133/O134)^(1/(TestYear-RebaseYear-1))-1) ->  | Q143: Geometric Mean | R143: =IF(R127="","",IF(R127=0,"",(R131/R127)^(1/($D131-$D127-1))-1)) ->  | S143: =IF(S127="","",IF(S127=0,"",(S133/S127)^(1/($D133-$D127-1))-1)) ->  | U143: =IF(U134=0,"",(S133/U134)^(1/(TestYear-RebaseYear-1))-1) -> 
B145: 3 | C145: Customer Class: | D145: GS > 50 kW | H145: Is the customer class billed on consumption (kWh) or demand (kW or kVA)? | N145: kW
D147: Calendar Year | F147: Customers | K147: Consumption (kWh) (3) | Q147: =CONCATENATE("Consumption (kWh) per ",LEFT(F147,LEN(F147)-1)) -> Consumption (kWh) per Customer
D148: =CONCATENATE("(for ",TestYear," Cost of Service") -> (for 2018 Cost of Service | L148: Actual (Weather actual) | M148: Weather-normalized | O148: Weather-normalized | R148: =L148 -> Actual (Weather actual) | S148: =M148 -> Weather-normalized | U148: =O148 -> Weather-normalized
C149: Historical | D149: =D150-1 -> 2012 | F149: =F106 -> Actual | G149: 279.4166667 | H149: =IF(D149=RebaseYear,"Board-approved","") ->  | K149: =F149 -> Actual | L149: 167412860.1 | M149: 171098226.8 | N149: =H149 ->  | Q149: =K149 -> Actual | R149: =IF(G149=0,"",L149/G149) -> 599151.3038 | S149: =IF(G149=0,"",M149/G149) -> 612340.8056 | T149: =N149 ->  | U149: =IF(T149="","",IF(I149=0,"",O149/I149)) -> 
C150: Historical | D150: 2013 | F150: =F107 -> Actual | G150: 279.4166667 | H150: Board-approved | I150: 280 | K150: =F150 -> Actual | L150: 170762457.8 | M150: 166037674.6 | N150: =H150 -> Board-approved | O150: 170954545 | Q150: =K150 -> Actual | R150: =IF(G150=0,"",L150/G150) -> 611139.1272 | S150: =IF(G150=0,"",M150/G150) -> 594229.6735 | T150: =N150 -> Board-approved | U150: =IF(T150="","",IF(I150=0,"",O150/I150)) -> 610551.9464
C151: Historical | D151: 2014 | F151: Actual | G151: 235.6666667 | K151: Actual | L151: 170816517.6 | M151: 170721454 | Q151: Actual | R151: 724822.5642 | S151: 724419.1825
C152: Historical | D152: 2015 | F152: Actual | G152: 270.8333333 | K152: Actual | L152: 176860411 | M152: 177637802.4 | Q152: Actual | R152: 653023.056 | S152: 655893.4242
C153: Historical | D153: 2016 | F153: Actual | G153: 233.8333333 | K153: Actual | L153: 178050371.8 | M153: 181825381.1 | Q153: Actual | R153: 761441.362 | S153: 777585.379
C154: Bridge Year | D154: 2017 | F154: Forecast | G154: 198.5 | K154: Forecast | M154: 176803683.6 | Q154: Forecast | R154: 0 | S154: 890698.6579
C155: Test Year | D155: =TestYear -> 2018 | F155: Forecast | G155: 193.455564 | K155: Forecast | M155: 170402518.9 | Q155: Forecast | R155: 0 | S155: 880835.451
I156: =SUM(I149:I154) -> 280 | O156: =SUM(O149:O154) -> 170954545 | U156: =SUM(U149:U154) -> 610551.9464
C157: Variance Analysis | D157: Year | G157: Year-over-year | I157: Test Year Versus Board-approved | K157: Year | L157: Year-over-year | O157: =I157 -> Test Year Versus Board-approved | Q157: Year | R157: Year-over-year | U157: =O157 -> Test Year Versus Board-approved
D158: =D149 -> 2012 | K158: =D158 -> 2012 | Q158: =K158 -> 2012
D159: 2013 | G159: =IF(G149=0,"",G150/G149-1) -> 0 | K159: =D159 -> 2013 | L159: =IF(L149=0,"",L150/L149-1) -> 0.0200080068 | M159: -0.02957688259 | Q159: =K159 -> 2013 | R159: =IF(R149="","",IF(R149=0,"",R150/R149-1)) -> 0.0200080068 | S159: =IF(S149="","",IF(S149=0,"",S150/S149-1)) -> -0.02957688259
D160: 2014 | G160: -0.1565762004 | K160: 2014 | L160: =IF(L150=0,"",L151/L150-1) -> 0.0003165792959 | M160: 0.02820913651 | Q160: 2014 | R160: =IF(R150="","",IF(R150=0,"",R151/R150-1)) -> 0.1860189146 | S160: 0.2190895455
D161: 2015 | G161: 0.1492220651 | K161: 2015 | L161: =IF(L151=0,"",L152/L151-1) -> 0.03538237071 | M161: 0.04051247347 | Q161: 2015 | R161: =IF(R151="","",IF(R151=0,"",R152/R151-1)) -> -0.09905804789 | S161: -0.09459406924
D162: 2016 | G162: -0.1366153846 | K162: 2016 | L162: =IF(L152=0,"",L153/L152-1) -> 0.006728248692 | M162: 0.02357369131 | Q162: 2016 | R162: =IF(R152="","",IF(R152=0,"",R153/R152-1)) -> 0.1660252346 | S162: 0.1855361713
